Workbook

Sheet katalogi (hidden)
A1: 1 | B1: =A1+1 -> 2 | C1: =B1+1 -> 3 | D1: 4 | E1: 5 | F1: 6 | G1: 7 | H1: 8
A2: pełen kod powiatu | B2: powiat | C2: województwo | E2: kod strefy | F2: nazwa strefy | G2: województo | H2: do tabel sprawozdawczych | J2: rok | L2: poziomy
A3: 2401 | B3: będziński | C3: śląskie | E3: PL2401 | F3: aglomeracja górnośląska | G3: śląskie | H3: =CONCATENATE(F3," ",E3) -> aglomeracja górnośląska PL2401 | J3: 2020 | L3: POZIOM II
A4: 2402 | B4: bielski | C4: śląskie | E4: PL2402 | F4: aglomeracja rybnicko-jastrzębska | G4: śląskie | H4: =CONCATENATE(F4," ",E4) -> aglomeracja rybnicko-jastrzębska PL2402 | J4: 2021 | L4: POZIOM III
A5: 2403 | B5: cieszyński | C5: śląskie | E5: PL2403 | F5: miasto Bielsko-Biała | G5: śląskie | H5: miasto Bielsko-Biała PL2403 | J5: 2022
A6: 2404 | B6: częstochowski | C6: śląskie | E6: PL2404 | F6: miasto Częstochowa | G6: śląskie | H6: miasto Częstochowa PL2404 | J6: 2023
A7: 2405 | B7: gliwicki | C7: śląskie | E7: PL2405 | F7: strefa śląska | G7: śląskie | H7: strefa śląska PL2405 | J7: 2024
A8: 2406 | B8: kłobucki | C8: śląskie | J8: 2025
A9: 2407 | B9: lubliniecki | C9: śląskie | J9: 2026
A10: 2408 | B10: mikołowski | C10: śląskie
A11: 2409 | B11: myszkowski | C11: śląskie
A12: 2410 | B12: pszczyński | C12: śląskie
A13: 2411 | B13: raciborski | C13: śląskie
A14: 2412 | B14: rybnicki | C14: śląskie
A15: 2413 | B15: tarnogórski | C15: śląskie
A16: 2414 | B16: bieruńsko-lędziński | C16: śląskie
A17: 2415 | B17: wodzisławski | C17: śląskie
A18: 2416 | B18: zawierciański | C18: śląskie
A19: 2417 | B19: żywiecki | C19: śląskie
A20: 2461 | B20: m. Bielsko-Biała | C20: śląskie
A21: 2462 | B21: m. Bytom | C21: śląskie
A22: 2463 | B22: m. Chorzów | C22: śląskie
A23: 2464 | B23: m. Częstochowa | C23: śląskie
A24: 2465 | B24: m. Dąbrowa Górnicza | C24: śląskie
A25: 2466 | B25: m. Gliwice | C25: śląskie
A26: 2467 | B26: m. Jastrzębie-Zdrój | C26: śląskie
A27: 2468 | B27: m. Jaworzno | C27: śląskie
A28: 2469 | B28: m. Katowice | C28: śląskie
A29: 2470 | B29: m. Mysłowice | C29: śląskie
A30: 2471 | B30: m. Piekary Śląskie | C30: śląskie
A31: 2472 | B31: m. Ruda Śląska | C31: śląskie
A32: 2473 | B32: m. Rybnik | C32: śląskie
A33: 2474 | B33: m. Siemianowice Śląskie | C33: śląskie
A34: 2475 | B34: m. Sosnowiec | C34: śląskie
A35: 2476 | B35: m. Świętochłowice | C35: śląskie
A36: 2477 | B36: m. Tychy | C36: śląskie
A37: 2478 | B37: m. Zabrze | C37: śląskie
A38: 2479 | B38: m. Żory | C38: śląskie

Sheet katalog zadań (hidden)
A1: 1 | B1: =A1+1 -> 2 | C1: =B1+1 -> 3 | D1: 4 | E1: 5 | F1: 6 | G1: 7
A2: strefa | B2: kod zadania | C2: NAZWA zadania | D2: strefa
A3: PL2401 | B3: PL2401_ZSO | C3: Ograniczenie emisji z instalacji o małej mocy do 1 MW, w których następuje spalanie paliw stałych | D3: PL2401
A4: PL2402 | B4: PL2402_ZSO | C4: Ograniczenie emisji z instalacji o małej mocy do 1 MW, w których następuje spalanie paliw stałych | D4: PL2402
A5: PL2403 | B5: PL2403_ZSO | C5: Ograniczenie emisji z instalacji o małej mocy do 1 MW, w których następuje spalanie paliw stałych | D5: PL2403
A6: PL2404 | B6: PL2404_ZSO | C6: Ograniczenie emisji z instalacji o małej mocy do 1 MW, w których następuje spalanie paliw stałych | D6: PL2404
A7: PL2405 | B7: PL2405_ZSO | C7: Ograniczenie emisji z instalacji o małej mocy do 1 MW, w których następuje spalanie paliw stałych | D7: PL2405
A8: PL2401 | B8: PL2401_EE | C8: Prowadzenie edukacji ekologicznej (ulotki, imprezy, akcje szkolne, audycje, konferencje, działania informacyjne i szkoleniowe) związanej z ochroną powietrza | D8: PL2401
A9: PL2402 | B9: PL2402_EE | C9: Prowadzenie edukacji ekologicznej (ulotki, imprezy, akcje szkolne, audycje, konferencje, działania informacyjne i szkoleniowe) związanej z ochroną powietrza | D9: PL2402
A10: PL2403 | B10: PL2403_EE | C10: Prowadzenie edukacji ekologicznej (ulotki, imprezy, akcje szkolne, audycje, konferencje, działania informacyjne i szkoleniowe) związanej z ochroną powietrza | D10: PL2403
A11: PL2404 | B11: PL2404_EE | C11: Prowadzenie edukacji ekologicznej (ulotki, imprezy, akcje szkolne, audycje, konferencje, działania informacyjne i szkoleniowe) związanej z ochroną powietrza | D11: PL2404
A12: PL2405 | B12: PL2405_EE | C12: Prowadzenie edukacji ekologicznej (ulotki, imprezy, akcje szkolne, audycje, konferencje, działania informacyjne i szkoleniowe) związanej z ochroną powietrza | D12: PL2405
A13: PL2401 | B13: PL2401_KPP | C13: Prowadzenie kontroli przestrzegania przepisów ograniczających używanie paliw lub urządzeń do celów grzewczych oraz zakazu spalania odpadów | D13: PL2401
A14: PL2402 | B14: PL2402_KPP | C14: Prowadzenie kontroli przestrzegania przepisów ograniczających używanie paliw lub urządzeń do celów grzewczych oraz zakazu spalania odpadów | D14: PL2402
A15: PL2403 | B15: PL2403_KPP | C15: Prowadzenie kontroli przestrzegania przepisów ograniczających używanie paliw lub urządzeń do celów grzewczych oraz zakazu spalania odpadów | D15: PL2403
A16: PL2404 | B16: PL2404_KPP | C16: Prowadzenie kontroli przestrzegania przepisów ograniczających używanie paliw lub urządzeń do celów grzewczych oraz zakazu spalania odpadów | D16: PL2404
A17: PL2405 | B17: PL2405_KPP | C17: Prowadzenie kontroli przestrzegania przepisów ograniczających używanie paliw lub urządzeń do celów grzewczych oraz zakazu spalania odpadów | D17: PL2405
B24: rodzaj działania | C24: wskaźniki monitorowania postępu | D24: jednostka
A25: ZSO | C25: powierzchnia lokali, w których dokonano zmiany sposobu ogrzewania | D25: [m2]
A26: ZSO | C26: liczba urządzeń poddana wymianie | D26: [szt.]
A27: ZK | B27: zastosowanie systemu inteligentnego sterowania ruchem | C27: liczba zastosowanych systemów inteligentnego sterowania ruchem | D27: [szt.]
A28: ZK | B28: eliminacja transportu ciężarowego z centrum miasta | C28: liczba wydanych planów z zapisami dotyczącymi eliminacji transportu ciężarowego z miast | D28: [szt.]
A29: ZK | B29: budowa ścieżek rowerowych | C29: długość utworzonych ścieżek rowerowych | D29: [km]
A30: ZK | B30: wyznaczenie buspasa | C30: długość buspasów | D30: [km]
A31: ZK | B31: wyznaczenie tras alternatywnych | C31: długość tras alternatywnych | D31: [km]
A32: ZK | B32: strefa płatnego parkowania | C32: udział powierzchni miasta jaką objęto strefą płatnego parkowania | D32: [%]
A33: ZK | B33: zakup pojazdów samochodowych spełniających wymagania norm Euro 5 lub Euro 6 | C33: liczba zakupionych pojazdów spełniających wysokie normy emisji spalin | D33: [szt.]
A34: ZK | B34: utworzenie centrum przesiadkowego | C34: liczba utworzonych centrów przesiadkowych | D34: [szt.]
A35: ZK | B35: utwardzenie poboczy dróg | C35: długość dróg, na których dokonano utwardzenia poboczy | D35: [km]
A36: CZM | B36: czyszczenie dróg na mokro | C36: kolumny 11-12 | D36: nie dotyczy
A37: EE | B37: edukacja ekologiczna | C37: liczba przeprowadzonych kampanii | D37: [szt/rok]
A38: EE | B38: kampanie edukacyjne | C38: liczba przeprowadzonych kampanii [szt.] | D38: [szt/rok]
A39: EE | B39: materiały edukacyjne | C39: liczba przygotowanych materiałów edukacyjnych [szt.] | D39: [szt/rok]
A40: EE | B40: akcje szkolne | C40: liczba przeprowadzonych akcji szkolnych [szt.] | D40: [szt/rok]
A41: EE | B41: konferencje | C41: liczba przeprowadzonych konferencji [szt.] | D41: [szt/rok]
A42: EE | B42: placówki oświatowe objęte edukacją ekologiczną | C42: liczba placówek oświatowych objętych edukacją ekologiczną [szt.] | D42: [szt/rok]
A43: EE | B43: osoby objęte działaniami informacyjnymi i edukacyjnymi | C43: liczba osób objętych działaniami informacyjnymi i edukacyjnymi [szt.] | D43: [szt/rok]
A44: Listy kaskadowe:
A46: PL2401 | B46: PL2402 | C46: PL2403 | D46: PL2404 | E46: PL2405 | H46: ZK | I46: CZM
A47: SlsAG_ZK | B47: SlsARJ_ZK | C47: SlsBB_ZK | D47: SlsCz_ZK | E47: SlsŚl_ZK | H47: zastosowanie systemu inteligentnego sterowania ruchem | I47: czyszczenie dróg na mokro
A48: SlsAG_CZM | B48: SlsARJ_CZM | C48: SlsBB_CZM | D48: SlsCz_CZM | E48: SlsŚl_CZM | H48: eliminacja transportu ciężarowego z centrum miasta
H49: budowa ścieżek rowerowych
H50: wyznaczenie buspasa
H51: wyznaczenie tras alternatywnych
H52: strefa płatnego parkowania
H53: zakup pojazdów samochodowych spełniających wymagania norm Euro 5 lub Euro 6
H54: utworzenie centrum przesiadkowego
H55: utwardzenie poboczy dróg

Sheet katalog gmin (hidden)
A1: 1 | B1: =A1+1 -> 2 | C1: =B1+1 -> 3 | D1: 4 | E1: 5 | F1: 6 | G1: 7 | H1: 8 | I1: 9 | J1: 10 | K1: 11 | L1: 12 | M1: 13 | N1: 14 | O1: 15 | P1: 16 | Q1: 17 | R1: 18 | S1: 19 | T1: 20 | U1: 21 | V1: 22 | W1: 23 | X1: 24 | Y1: 25 | Z1: 26 | AA1: 27 | AB1: 28 | AC1: 29 | AD1: 30 | AE1: 31 | AF1: 32 | AG1: 33 | AH1: 34 | AI1: 35 | AJ1: 36 | AK1: 37 | AL1: 38 | AM1: 39 | AN1: 40 | AO1: 41 | AP1: 42 | AQ1: 43 | AR1: 44 | AS1: 45 | AT1: 46 | AU1: 47 | AV1: 48 | AW1: 49
N2: kod działań naprawczych | Q2: wymagana redukcja emisji powierzchniowej [Mg/rok]
A3: KOD_gm | B3: NAZWA | C3: województwo | D3: pełny kod powiatu | E3: powiat | F3: kod strefy | H3: kod gminy | I3: nazwa gminy z GUS | J3: nazwa gminy | K3: rodzaj gminy | L3: powiat | M3: kod strefy | N3: powierzchniowa | O3: edukacja | P3: kontrole | Q3: PM10 | X3: PM2,5 | AE3: B(a)P | AL3: średnia powierzchnia lokalu w gminie [m2] | AM3: liczba ludności w gminie | AN3: wymagana liczba kontroli w gminie w czasie ALARMU II poziomu | AO3: wymagana liczba kontroli w gminie w czasie ALARMU III poziomu | AP3: wymagana liczba rutynowych kontroli w gminie w ciągu roku | AQ3: wymagana powierzchnia, na której wymagana jest zmiana sposobu ogrzewania [m2]
Q4: 2020 | R4: 2021 | S4: 2022 | T4: 2023 | U4: 2024 | V4: 2025 | W4: 2026 | X4: 2020 | Y4: 2021 | Z4: 2022 | AA4: 2023 | AB4: 2024 | AC4: 2025 | AD4: 2026 | AE4: 2020 | AF4: 2021 | AG4: 2022 | AH4: 2023 | AI4: 2024 | AJ4: 2025 | AK4: 2026 | AQ4: 2020 | AR4: 2021 | AS4: 2022 | AT4: 2023 | AU4: 2024 | AV4: 2025 | AW4: 2026
A5: 2402 | B5: Powiat bielski | C5: śląskie | D5: =LEFT(A5,4) -> 2402 | E5: =VLOOKUP(D5,katalogi!$A$3:$C$38,katalogi!$B$1,FALSE) -> bielski | F5: PL2405 | H5: 2402022 | I5: Bestwina (2) | J5: Bestwina | K5: gmina wiejska | L5: =VLOOKUP($H5,$A$5:$F$253,$E$1,FALSE) -> bielski | M5: =VLOOKUP($H5,$A$5:$F$253,$F$1,FALSE) -> PL2405 | N5: =VLOOKUP($M5,'katalog zadań'!$A$3:$B$7,2,FALSE) -> PL2405_ZSO | O5: =VLOOKUP($M5,'katalog zadań'!$A$8:$B$12,2,FALSE) -> PL2405_EE | P5: =VLOOKUP($M5,'katalog zadań'!$A$13:$B$17,2,FALSE) -> PL2405_KPP | Q5: 0.42 | R5: 0.59 | S5: 0.95 | T5: 1.01 | U5: 1.18 | V5: 1.18 | W5: 0.59 | X5: 0.41 | Y5: 0.58 | Z5: 0.93 | AA5: 0.99 | AB5: 1.16 | AC5: 1.16 | AD5: 0.58 | AE5: 0.0002 | AF5: 0.0003 | AG5: 0.0005 | AH5: 0.0006 | AI5: 0.0007 | AJ5: 0.0007 | AK5: 0.0003 | AL5: =VLOOKUP(H5,powierzchnie!$A$6:$F$253,6,FALSE) -> 103.7 | AM5: 11,787 | AN5: 2 | AO5: 5 | AP5: 10 | AQ5: 850 | AR5: 1210 | AS5: 1930 | AT5: 2050 | AU5: 2410 | AV5: 2410 | AW5: 1210
A6: 2402011 | B6: Szczyrk (1) | C6: śląskie | D6: =LEFT(A6,4) -> 2402 | E6: =VLOOKUP(D6,katalogi!$A$3:$C$38,katalogi!$B$1,FALSE) -> bielski | F6: PL2405 | H6: 2401011 | I6: Będzin (1) | J6: Będzin | K6: gmina miejska | L6: =VLOOKUP($H6,$A$5:$F$253,$E$1,FALSE) -> będziński | M6: =VLOOKUP($H6,$A$5:$F$253,$F$1,FALSE) -> PL2405 | N6: =VLOOKUP($M6,'katalog zadań'!$A$3:$B$7,2,FALSE) -> PL2405_ZSO | O6: =VLOOKUP($M6,'katalog zadań'!$A$8:$B$12,2,FALSE) -> PL2405_EE | P6: =VLOOKUP($M6,'katalog zadań'!$A$13:$B$17,2,FALSE) -> PL2405_KPP | Q6: 1.33 | R6: 1.9 | S6: 3.04 | T6: 3.23 | U6: 3.79 | V6: 3.79 | W6: 1.9 | X6: 1.31 | Y6: 1.87 | Z6: 2.99 | AA6: 3.18 | AB6: 3.73 | AC6: 3.73 | AD6: 1.87 | AE6: 0.0007 | AF6: 0.0011 | AG6: 0.0017 | AH6: 0.0018 | AI6: 0.0021 | AJ6: 0.0021 | AK6: 0.0011 | AL6: =VLOOKUP(H6,powierzchnie!$A$6:$F$253,6,FALSE) -> 60.7 | AM6: 56,804 | AN6: 5 | AO6: 10 | AP6: 20 | AQ6: 2720 | AR6: 3880 | AS6: 6200 | AT6: 6590 | AU6: 7750 | AV6: 7750 | AW6: 3880
A7: 2402022 | B7: Bestwina (2) | C7: śląskie | D7: 2402 | E7: =VLOOKUP(D7,katalogi!$A$3:$C$38,katalogi!$B$1,FALSE) -> bielski | F7: PL2405 | H7: 2461011 | I7: Bielsko-Biała (1) | J7: Bielsko-Biała | K7: powiat grodzki | L7: m. Bielsko-Biała | M7: PL2403 | N7: =VLOOKUP($M7,'katalog zadań'!$A$3:$B$7,2,FALSE) -> PL2403_ZSO | O7: =VLOOKUP($M7,'katalog zadań'!$A$8:$B$12,2,FALSE) -> PL2403_EE | P7: =VLOOKUP($M7,'katalog zadań'!$A$13:$B$17,2,FALSE) -> PL2403_KPP | Q7: 1.99 | R7: 2.85 | S7: 4.54 | T7: 4.83 | U7: 5.68 | V7: 5.68 | W7: 2.85 | X7: 1.96 | Y7: 2.8 | Z7: 4.47 | AA7: 4.75 | AB7: 5.59 | AC7: 5.59 | AD7: 2.8 | AE7: 0.0011 | AF7: 0.0016 | AG7: 0.0025 | AH7: 0.0027 | AI7: 0.0032 | AJ7: 0.0032 | AK7: 0.0016 | AL7: =VLOOKUP(H7,powierzchnie!$A$6:$F$253,6,FALSE) -> 68.9 | AM7: 171,259 | AN7: 7 | AO7: 15 | AP7: 50 | AQ7: 4060 | AR7: 5800 | AS7: 9280 | AT7: 9860 | AU7: 11600 | AV7: 11600 | AW7: 5800
A8: 2402032 | B8: Buczkowice (2) | C8: śląskie | D8: 2402 | E8: =VLOOKUP(D8,katalogi!$A$3:$C$38,katalogi!$B$1,FALSE) -> bielski | F8: PL2405 | H8: 2414011 | I8: Bieruń (1) | J8: Bieruń | K8: gmina miejska | L8: bieruńsko-lędziński | M8: PL2405 | N8: =VLOOKUP($M8,'katalog zadań'!$A$3:$B$7,2,FALSE) -> PL2405_ZSO | O8: =VLOOKUP($M8,'katalog zadań'!$A$8:$B$12,2,FALSE) -> PL2405_EE | P8: =VLOOKUP($M8,'katalog zadań'!$A$13:$B$17,2,FALSE) -> PL2405_KPP | Q8: 0.59 | R8: 0.85 | S8: 1.36 | T8: 1.44 | U8: 1.69 | V8: 1.69 | W8: 0.85 | X8: 0.58 | Y8: 0.83 | Z8: 1.33 | AA8: 1.41 | AB8: 1.66 | AC8: 1.66 | AD8: 0.83 | AE8: 0.0003 | AF8: 0.0005 | AG8: 0.0008 | AH8: 0.0008 | AI8: 0.0009 | AJ8: 0.0009 | AK8: 0.0005 | AL8: =VLOOKUP(H8,powierzchnie!$A$6:$F$253,6,FALSE) -> 82.5 | AM8: 19,605 | AN8: 2 | AO8: 5 | AP8: 10 | AQ8: 1210 | AR8: 1720 | AS8: 2750 | AT8: 2920 | AU8: 3440 | AV8: 3440 | AW8: 1720
A9: 2402043 | B9: Czechowice-Dziedzice (3) | C9: śląskie | D9: 2402 | E9: =VLOOKUP(D9,katalogi!$A$3:$C$38,katalogi!$B$1,FALSE) -> bielski | F9: PL2405 | H9: 2404013 | I9: Blachownia (3) | J9: Blachownia | K9: gmina miejsko-wiejska | L9: częstochowski | M9: PL2405 | N9: =VLOOKUP($M9,'katalog zadań'!$A$3:$B$7,2,FALSE) -> PL2405_ZSO | O9: =VLOOKUP($M9,'katalog zadań'!$A$8:$B$12,2,FALSE) -> PL2405_EE | P9: =VLOOKUP($M9,'katalog zadań'!$A$13:$B$17,2,FALSE) -> PL2405_KPP | Q9: 0.08 | R9: 0.1 | S9: 0.15 | T9: 0.16 | U9: 0.19 | V9: 0.19 | W9: 0.1 | X9: 0.07 | Y9: 0.09 | Z9: 0.14 | AA9: 0.15 | AB9: 0.18 | AC9: 0.18 | AD9: 0.09 | AE9: 0 | AF9: 0.0001 | AG9: 0.0001 | AH9: 0.0001 | AI9: 0.0001 | AJ9: 0.0001 | AK9: 0.0001 | AL9: =VLOOKUP(H9,powierzchnie!$A$6:$F$253,6,FALSE) -> 77.8 | AM9: 12,995 | AN9: 2 | AO9: 5 | AP9: 10 | AQ9: 140 | AR9: 190 | AS9: 300 | AT9: 320 | AU9: 380 | AV9: 380 | AW9: 190
A10: 2402044 | B10: Czechowice-Dziedzice - miasto (4) | C10: śląskie | D10: 2402 | E10: =VLOOKUP(D10,katalogi!$A$3:$C$38,katalogi!$B$1,FALSE) -> bielski | F10: PL2405 | H10: 2401042 | I10: Bobrowniki (2) | J10: Bobrowniki | K10: gmina wiejska | L10: będziński | M10: PL2405 | N10: =VLOOKUP($M10,'katalog zadań'!$A$3:$B$7,2,FALSE) -> PL2405_ZSO | O10: =VLOOKUP($M10,'katalog zadań'!$A$8:$B$12,2,FALSE) -> PL2405_EE | P10: =VLOOKUP($M10,'katalog zadań'!$A$13:$B$17,2,FALSE) -> PL2405_KPP | Q10: 0.8 | R10: 1.14 | S10: 1.81 | T10: 1.93 | U10: 2.27 | V10: 2.27 | W10: 1.14 | X10: 0.78 | Y10: 1.12 | Z10: 1.78 | AA10: 1.9 | AB10: 2.23 | AC10: 2.23 | AD10: 1.12 | AE10: 0.0004 | AF10: 0.0006 | AG10: 0.001 | AH10: 0.0011 | AI10: 0.0013 | AJ10: 0.0013 | AK10: 0.0006 | AL10: =VLOOKUP(H10,powierzchnie!$A$6:$F$253,6,FALSE) -> 102.7 | AM10: 12,044 | AN10: 2 | AO10: 5 | AP10: 10 | AQ10: 1620 | AR10: 2320 | AS10: 3700 | AT10: 3940 | AU10: 4630 | AV10: 4630 | AW10: 2320
A11: 2402045 | B11: Czechowice-Dziedzice - obszar wiejski (5) | C11: śląskie | D11: 2402 | E11: =VLOOKUP(D11,katalogi!$A$3:$C$38,katalogi!$B$1,FALSE) -> bielski | F11: PL2405 | H11: 2414042 | I11: Bojszowy (2) | J11: Bojszowy | K11: gmina wiejska | L11: bieruńsko-lędziński | M11: PL2405 | N11: =VLOOKUP($M11,'katalog zadań'!$A$3:$B$7,2,FALSE) -> PL2405_ZSO | O11: =VLOOKUP($M11,'katalog zadań'!$A$8:$B$12,2,FALSE) -> PL2405_EE | P11: =VLOOKUP($M11,'katalog zadań'!$A$13:$B$17,2,FALSE) -> PL2405_KPP | Q11: 0.46 | R11: 0.65 | S11: 1.04 | T11: 1.1 | U11: 1.3 | V11: 1.3 | W11: 0.65 | X11: 0.45 | Y11: 0.64 | Z11: 1.02 | AA11: 1.08 | AB11: 1.28 | AC11: 1.28 | AD11: 0.64 | AE11: 0.0003 | AF11: 0.0004 | AG11: 0.0006 | AH11: 0.0006 | AI11: 0.0007 | AJ11: 0.0007 | AK11: 0.0004 | AL11: =VLOOKUP(H11,powierzchnie!$A$6:$F$253,6,FALSE) -> 129.1 | AM11: 7,860 | AN11: 2 | AO11: 5 | AP11: 10 | AQ11: 930 | AR11: 1330 | AS11: 2120 | AT11: 2250 | AU11: 2650 | AV11: 2650 | AW11: 1330
A12: 2402052 | B12: Jasienica (2) | C12: śląskie | D12: 2402 | E12: =VLOOKUP(D12,katalogi!$A$3:$C$38,katalogi!$B$1,FALSE) -> bielski | F12: PL2405 | H12: 2407022 | I12: Boronów (2) | J12: Boronów | K12: gmina wiejska | L12: lubliniecki | M12: PL2405 | N12: =VLOOKUP($M12,'katalog zadań'!$A$3:$B$7,2,FALSE) -> PL2405_ZSO | O12: =VLOOKUP($M12,'katalog zadań'!$A$8:$B$12,2,FALSE) -> PL2405_EE | P12: =VLOOKUP($M12,'katalog zadań'!$A$13:$B$17,2,FALSE) -> PL2405_KPP | Q12: 0.2 | R12: 0.28 | S12: 0.45 | T12: 0.48 | U12: 0.56 | V12: 0.56 | W12: 0.28 | X12: 0.19 | Y12: 0.27 | Z12: 0.44 | AA12: 0.47 | AB12: 0.55 | AC12: 0.55 | AD12: 0.27 | AE12: 0.0001 | AF12: 0.0002 | AG12: 0.0003 | AH12: 0.0003 | AI12: 0.0003 | AJ12: 0.0003 | AK12: 0.0002 | AL12: =VLOOKUP(H12,powierzchnie!$A$6:$F$253,6,FALSE) -> 101.0 | AM12: 3,408 | AN12: 2 | AO12: 5 | AP12: 10 | AQ12: 400 | AR12: 570 | AS12: 920 | AT12: 970 | AU12: 1140 | AV12: 1140 | AW12: 570
A13: 2402062 | B13: Jaworze (2) | C13: śląskie | D13: 2402 | E13: =VLOOKUP(D13,katalogi!$A$3:$C$38,katalogi!$B$1,FALSE) -> bielski | F13: PL2405 | H13: 2403042 | I13: Brenna (2) | J13: Brenna | K13: gmina wiejska | L13: cieszyński | M13: PL2405 | N13: =VLOOKUP($M13,'katalog zadań'!$A$3:$B$7,2,FALSE) -> PL2405_ZSO | O13: =VLOOKUP($M13,'katalog zadań'!$A$8:$B$12,2,FALSE) -> PL2405_EE | P13: =VLOOKUP($M13,'katalog zadań'!$A$13:$B$17,2,FALSE) -> PL2405_KPP | Q13: 0.11 | R13: 0.15 | S13: 0.23 | T13: 0.25 | U13: 0.29 | V13: 0.29 | W13: 0.15 | X13: 0.1 | Y13: 0.14 | Z13: 0.22 | AA13: 0.24 | AB13: 0.28 | AC13: 0.28 | AD13: 0.14 | AE13: 0.0001 | AF13: 0.0001 | AG13: 0.0001 | AH13: 0.0001 | AI13: 0.0002 | AJ13: 0.0002 | AK13: 0.0001 | AL13: =VLOOKUP(H13,powierzchnie!$A$6:$F$253,6,FALSE) -> 104.1 | AM13: 11,187 | AN13: 2 | AO13: 5 | AP13: 10 | AQ13: 210 | AR13: 290 | AS13: 460 | AT13: 490 | AU13: 580 | AV13: 580 | AW13: 290
A14: 2402072 | B14: Kozy (2) | C14: śląskie | D14: 2402 | E14: =VLOOKUP(D14,katalogi!$A$3:$C$38,katalogi!$B$1,FALSE) -> bielski | F14: PL2405 | H14: 2402032 | I14: Buczkowice (2) | J14: Buczkowice | K14: gmina wiejska | L14: bielski | M14: PL2405 | N14: =VLOOKUP($M14,'katalog zadań'!$A$3:$B$7,2,FALSE) -> PL2405_ZSO | O14: =VLOOKUP($M14,'katalog zadań'!$A$8:$B$12,2,FALSE) -> PL2405_EE | P14: =VLOOKUP($M14,'katalog zadań'!$A$13:$B$17,2,FALSE) -> PL2405_KPP | Q14: 0.19 | R14: 0.27 | S14: 0.43 | T14: 0.45 | U14: 0.53 | V14: 0.53 | W14: 0.27 | X14: 0.18 | Y14: 0.26 | Z14: 0.42 | AA14: 0.44 | AB14: 0.52 | AC14: 0.52 | AD14: 0.26 | AE14: 0.0001 | AF14: 0.0001 | AG14: 0.0002 | AH14: 0.0003 | AI14: 0.0003 | AJ14: 0.0003 | AK14: 0.0001 | AL14: =VLOOKUP(H14,powierzchnie!$A$6:$F$253,6,FALSE) -> 97.0 | AM14: 11,174 | AN14: 2 | AO14: 5 | AP14: 10 | AQ14: 380 | AR14: 540 | AS14: 870 | AT14: 920 | AU14: 1080 | AV14: 1080 | AW14: 540
A15: 2402082 | B15: Porąbka (2) | C15: śląskie | D15: 2402 | E15: =VLOOKUP(D15,katalogi!$A$3:$C$38,katalogi!$B$1,FALSE) -> bielski | F15: PL2405 | H15: 2462011 | I15: Bytom (1) | J15: Bytom | K15: powiat grodzki | L15: m. Bytom | M15: PL2401 | N15: =VLOOKUP($M15,'katalog zadań'!$A$3:$B$7,2,FALSE) -> PL2401_ZSO | O15: =VLOOKUP($M15,'katalog zadań'!$A$8:$B$12,2,FALSE) -> PL2401_EE | P15: =VLOOKUP($M15,'katalog zadań'!$A$13:$B$17,2,FALSE) -> PL2401_KPP | Q15: 5.99 | R15: 8.55 | S15: 13.68 | T15: 14.54 | U15: 17.1 | V15: 17.1 | W15: 8.55 | X15: 5.9 | Y15: 8.42 | Z15: 13.47 | AA15: 14.32 | AB15: 16.84 | AC15: 16.84 | AD15: 8.42 | AE15: 0.0034 | AF15: 0.0048 | AG15: 0.0077 | AH15: 0.0081 | AI15: 0.0096 | AJ15: 0.0096 | AK15: 0.0048 | AL15: =VLOOKUP(H15,powierzchnie!$A$6:$F$253,6,FALSE) -> 54.8 | AM15: 166,795 | AN15: 7 | AO15: 15 | AP15: 50 | AQ15: 12240 | AR15: 17480 | AS15: 27960 | AT15: 29710 | AU15: 34950 | AV15: 34950 | AW15: 17480
A16: 2402093 | B16: Wilamowice (3) | C16: śląskie | D16: 2402 | E16: =VLOOKUP(D16,katalogi!$A$3:$C$38,katalogi!$B$1,FALSE) -> bielski | F16: PL2405 | H16: 2414052 | I16: Chełm Śląski (2) | J16: Chełm Śląski | K16: gmina wiejska | L16: bieruńsko-lędziński | M16: PL2405 | N16: =VLOOKUP($M16,'katalog zadań'!$A$3:$B$7,2,FALSE) -> PL2405_ZSO | O16: =VLOOKUP($M16,'katalog zadań'!$A$8:$B$12,2,FALSE) -> PL2405_EE | P16: =VLOOKUP($M16,'katalog zadań'!$A$13:$B$17,2,FALSE) -> PL2405_KPP | Q16: 0.27 | R16: 0.38 | S16: 0.59 | T16: 0.63 | U16: 0.75 | V16: 0.75 | W16: 0.38 | X16: 0.26 | Y16: 0.37 | Z16: 0.58 | AA16: 0.62 | AB16: 0.73 | AC16: 0.73 | AD16: 0.37 | AE16: 0.0001 | AF16: 0.0002 | AG16: 0.0003 | AH16: 0.0004 | AI16: 0.0004 | AJ16: 0.0004 | AK16: 0.0002 | AL16: =VLOOKUP(H16,powierzchnie!$A$6:$F$253,6,FALSE) -> 100.8 | AM16: 6,320 | AN16: 2 | AO16: 5 | AP16: 10 | AQ16: 530 | AR16: 760 | AS16: 1210 | AT16: 1280 | AU16: 1510 | AV16: 1510 | AW16: 760
A17: 2402094 | B17: Wilamowice - miasto (4) | C17: śląskie | D17: 2402 | E17: =VLOOKUP(D17,katalogi!$A$3:$C$38,katalogi!$B$1,FALSE) -> bielski | F17: PL2405 | H17: 2463011 | I17: Chorzów (1) | J17: Chorzów | K17: powiat grodzki | L17: m. Chorzów | M17: PL2401 | N17: =VLOOKUP($M17,'katalog zadań'!$A$3:$B$7,2,FALSE) -> PL2401_ZSO | O17: =VLOOKUP($M17,'katalog zadań'!$A$8:$B$12,2,FALSE) -> PL2401_EE | P17: =VLOOKUP($M17,'katalog zadań'!$A$13:$B$17,2,FALSE) -> PL2401_KPP | Q17: 0.44 | R17: 0.62 | S17: 0.99 | T17: 1.06 | U17: 1.24 | V17: 1.24 | W17: 0.62 | X17: 0.43 | Y17: 0.61 | Z17: 0.97 | AA17: 1.04 | AB17: 1.22 | AC17: 1.22 | AD17: 0.61 | AE17: 0.0002 | AF17: 0.0003 | AG17: 0.0006 | AH17: 0.0006 | AI17: 0.0007 | AJ17: 0.0007 | AK17: 0.0003 | AL17: =VLOOKUP(H17,powierzchnie!$A$6:$F$253,6,FALSE) -> 52.1 | AM17: 108,434 | AN17: 7 | AO17: 15 | AP17: 50 | AQ17: 890 | AR17: 1270 | AS17: 2020 | AT17: 2150 | AU17: 2530 | AV17: 2530 | AW17: 1270
A18: 2402095 | B18: Wilamowice - obszar wiejski (5) | C18: śląskie | D18: 2402 | E18: =VLOOKUP(D18,katalogi!$A$3:$C$38,katalogi!$B$1,FALSE) -> bielski | F18: PL2405 | H18: 2403052 | I18: Chybie (2) | J18: Chybie | K18: gmina wiejska | L18: cieszyński | M18: PL2405 | N18: =VLOOKUP($M18,'katalog zadań'!$A$3:$B$7,2,FALSE) -> PL2405_ZSO | O18: =VLOOKUP($M18,'katalog zadań'!$A$8:$B$12,2,FALSE) -> PL2405_EE | P18: =VLOOKUP($M18,'katalog zadań'!$A$13:$B$17,2,FALSE) -> PL2405_KPP | Q18: 0.07 | R18: 0.09 | S18: 0.14 | T18: 0.14 | U18: 0.17 | V18: 0.17 | W18: 0.09 | X18: 0.06 | Y18: 0.08 | Z18: 0.13 | AA18: 0.13 | AB18: 0.16 | AC18: 0.16 | AD18: 0.08 | AE18: 0 | AF18: 0 | AG18: 0.0001 | AH18: 0.0001 | AI18: 0.0001 | AJ18: 0.0001 | AK18: 0 | AL18: =VLOOKUP(H18,powierzchnie!$A$6:$F$253,6,FALSE) -> 98.2 | AM18: 9,809 | AN18: 2 | AO18: 5 | AP18: 10 | AQ18: 120 | AR18: 170 | AS18: 270 | AT18: 280 | AU18: 330 | AV18: 330 | AW18: 170
A19: 2402102 | B19: Wilkowice (2) | C19: śląskie | D19: 2402 | E19: =VLOOKUP(D19,katalogi!$A$3:$C$38,katalogi!$B$1,FALSE) -> bielski | F19: PL2405 | H19: 2407032 | I19: Ciasna (2) | J19: Ciasna | K19: gmina wiejska | L19: lubliniecki | M19: PL2405 | N19: =VLOOKUP($M19,'katalog zadań'!$A$3:$B$7,2,FALSE) -> PL2405_ZSO | O19: =VLOOKUP($M19,'katalog zadań'!$A$8:$B$12,2,FALSE) -> PL2405_EE | P19: =VLOOKUP($M19,'katalog zadań'!$A$13:$B$17,2,FALSE) -> PL2405_KPP | Q19: 0.54 | R19: 0.77 | S19: 1.22 | T19: 1.3 | U19: 1.53 | V19: 1.53 | W19: 0.77 | X19: 0.53 | Y19: 0.75 | Z19: 1.2 | AA19: 1.28 | AB19: 1.5 | AC19: 1.5 | AD19: 0.75 | AE19: 0.0003 | AF19: 0.0004 | AG19: 0.0007 | AH19: 0.0007 | AI19: 0.0009 | AJ19: 0.0009 | AK19: 0.0004 | AL19: =VLOOKUP(H19,powierzchnie!$A$6:$F$253,6,FALSE) -> 97.6 | AM19: 7,500 | AN19: 2 | AO19: 5 | AP19: 10 | AQ19: 1100 | AR19: 1560 | AS19: 2500 | AT19: 2660 | AU19: 3120 | AV19: 3120 | AW19: 1560
A20: 2403 | B20: Powiat cieszyński | C20: śląskie | D20: 2403 | E20: =VLOOKUP(D20,katalogi!$A$3:$C$38,katalogi!$B$1,FALSE) -> cieszyński | F20: PL2405 | H20: 2403011 | I20: Cieszyn (1) | J20: Cieszyn | K20: gmina miejska | L20: cieszyński | M20: PL2405 | N20: =VLOOKUP($M20,'katalog zadań'!$A$3:$B$7,2,FALSE) -> PL2405_ZSO | O20: =VLOOKUP($M20,'katalog zadań'!$A$8:$B$12,2,FALSE) -> PL2405_EE | P20: =VLOOKUP($M20,'katalog zadań'!$A$13:$B$17,2,FALSE) -> PL2405_KPP | Q20: 0.29 | R20: 0.41 | S20: 0.66 | T20: 0.7 | U20: 0.82 | V20: 0.82 | W20: 0.41 | X20: 0.28 | Y20: 0.4 | Z20: 0.65 | AA20: 0.68 | AB20: 0.8 | AC20: 0.8 | AD20: 0.4 | AE20: 0.0002 | AF20: 0.0002 | AG20: 0.0004 | AH20: 0.0004 | AI20: 0.0005 | AJ20: 0.0005 | AK20: 0.0002 | AL20: =VLOOKUP(H20,powierzchnie!$A$6:$F$253,6,FALSE) -> 71.0 | AM20: 34,613 | AN20: 2 | AO20: 5 | AP20: 10 | AQ20: 590 | AR20: 840 | AS20: 1340 | AT20: 1420 | AU20: 1670 | AV20: 1670 | AW20: 840
A21: 2403011 | B21: Cieszyn (1) | C21: śląskie | D21: 2403 | E21: =VLOOKUP(D21,katalogi!$A$3:$C$38,katalogi!$B$1,FALSE) -> cieszyński | F21: PL2405 | H21: 2402043 | I21: Czechowice-Dziedzice (3) | J21: Czechowice-Dziedzice | K21: gmina miejsko-wiejska | L21: bielski | M21: PL2405 | N21: =VLOOKUP($M21,'katalog zadań'!$A$3:$B$7,2,FALSE) -> PL2405_ZSO | O21: =VLOOKUP($M21,'katalog zadań'!$A$8:$B$12,2,FALSE) -> PL2405_EE | P21: =VLOOKUP($M21,'katalog zadań'!$A$13:$B$17,2,FALSE) -> PL2405_KPP | Q21: 0.07 | R21: 0.1 | S21: 0.15 | T21: 0.16 | U21: 0.5 | V21: 0.5 | W21: 0.52 | X21: 0.06 | Y21: 0.09 | Z21: 0.14 | AA21: 0.15 | AB21: 0.49 | AC21: 0.49 | AD21: 0.51 | AE21: 0 | AF21: 0.0001 | AG21: 0.0001 | AH21: 0.0001 | AI21: 0.0003 | AJ21: 0.0003 | AK21: 0.0003 | AL21: =VLOOKUP(H21,powierzchnie!$A$6:$F$253,6,FALSE) -> 75.9 | AM21: 45,421 | AN21: 2 | AO21: 5 | AP21: 10 | AQ21: 130 | AR21: 190 | AS21: 290 | AT21: 310 | AU21: 1020 | AV21: 1020 | AW21: 1060
A22: 2403021 | B22: Ustroń (1) | C22: śląskie | D22: 2403 | E22: =VLOOKUP(D22,katalogi!$A$3:$C$38,katalogi!$B$1,FALSE) -> cieszyński | F22: PL2405 | H22: 2401021 | I22: Czeladź (1) | J22: Czeladź | K22: gmina miejska | L22: będziński | M22: PL2405 | N22: =VLOOKUP($M22,'katalog zadań'!$A$3:$B$7,2,FALSE) -> PL2405_ZSO | O22: =VLOOKUP($M22,'katalog zadań'!$A$8:$B$12,2,FALSE) -> PL2405_EE | P22: =VLOOKUP($M22,'katalog zadań'!$A$13:$B$17,2,FALSE) -> PL2405_KPP | Q22: 0.73 | R22: 1.04 | S22: 1.66 | T22: 1.76 | U22: 2.5 | V22: 2.5 | W22: 1.61 | X22: 0.71 | Y22: 1.02 | Z22: 1.63 | AA22: 1.73 | AB22: 2.46 | AC22: 2.46 | AD22: 1.58 | AE22: 0.0004 | AF22: 0.0006 | AG22: 0.0009 | AH22: 0.001 | AI22: 0.0014 | AJ22: 0.0014 | AK22: 0.0009 | AL22: =VLOOKUP(H22,powierzchnie!$A$6:$F$253,6,FALSE) -> 57.5 | AM22: 31,677 | AN22: 2 | AO22: 5 | AP22: 10 | AQ22: 1480 | AR22: 2120 | AS22: 3380 | AT22: 3600 | AU22: 5100 | AV22: 5100 | AW22: 3280
A23: 2403031 | B23: Wisła (1) | C23: śląskie | D23: 2403 | E23: =VLOOKUP(D23,katalogi!$A$3:$C$38,katalogi!$B$1,FALSE) -> cieszyński | F23: PL2405 | H23: 2417022 | I23: Czernichów (2) | J23: Czernichów | K23: gmina wiejska | L23: żywiecki | M23: PL2405 | N23: =VLOOKUP($M23,'katalog zadań'!$A$3:$B$7,2,FALSE) -> PL2405_ZSO | O23: =VLOOKUP($M23,'katalog zadań'!$A$8:$B$12,2,FALSE) -> PL2405_EE | P23: =VLOOKUP($M23,'katalog zadań'!$A$13:$B$17,2,FALSE) -> PL2405_KPP | Q23: 0.13 | R23: 0.18 | S23: 0.28 | T23: 0.29 | U23: 0.34 | V23: 0.34 | W23: 0.18 | X23: 0.12 | Y23: 0.17 | Z23: 0.27 | AA23: 0.28 | AB23: 0.33 | AC23: 0.33 | AD23: 0.17 | AE23: 0.0001 | AF23: 0.0001 | AG23: 0.0002 | AH23: 0.0002 | AI23: 0.0002 | AJ23: 0.0002 | AK23: 0.0001 | AL23: =VLOOKUP(H23,powierzchnie!$A$6:$F$253,6,FALSE) -> 93.4 | AM23: 6,809 | AN23: 2 | AO23: 5 | AP23: 10 | AQ23: 250 | AR23: 350 | AS23: 550 | AT23: 590 | AU23: 690 | AV23: 690 | AW23: 350
A24: 2403042 | B24: Brenna (2) | C24: śląskie | D24: 2403 | E24: =VLOOKUP(D24,katalogi!$A$3:$C$38,katalogi!$B$1,FALSE) -> cieszyński | F24: PL2405 | H24: 2412013 | I24: Czerwionka-Leszczyny (3) | J24: Czerwionka-Leszczyny | K24: gmina miejsko-wiejska | L24: rybnicki | M24: PL2405 | N24: =VLOOKUP($M24,'katalog zadań'!$A$3:$B$7,2,FALSE) -> PL2405_ZSO | O24: =VLOOKUP($M24,'katalog zadań'!$A$8:$B$12,2,FALSE) -> PL2405_EE | P24: =VLOOKUP($M24,'katalog zadań'!$A$13:$B$17,2,FALSE) -> PL2405_KPP | Q24: 1.6 | R24: 2.28 | S24: 3.65 | T24: 3.87 | U24: 4.55 | V24: 4.55 | W24: 2.28 | X24: 1.57 | Y24: 2.24 | Z24: 3.59 | AA24: 3.81 | AB24: 4.48 | AC24: 4.48 | AD24: 2.24 | AE24: 0.0009 | AF24: 0.0013 | AG24: 0.002 | AH24: 0.0022 | AI24: 0.0025 | AJ24: 0.0025 | AK24: 0.0013 | AL24: =VLOOKUP(H24,powierzchnie!$A$6:$F$253,6,FALSE) -> 77.9 | AM24: 42,193 | AN24: 2 | AO24: 5 | AP24: 10 | AQ24: 3260 | AR24: 4650 | AS24: 7440 | AT24: 7910 | AU24: 9300 | AV24: 9300 | AW24: 4650
A25: 2403052 | B25: Chybie (2) | C25: śląskie | D25: 2403 | E25: =VLOOKUP(D25,katalogi!$A$3:$C$38,katalogi!$B$1,FALSE) -> cieszyński | F25: PL2405 | H25: 2464011 | I25: Częstochowa (1) | J25: Częstochowa | K25: powiat grodzki | L25: m. Częstochowa | M25: PL2404 | N25: =VLOOKUP($M25,'katalog zadań'!$A$3:$B$7,2,FALSE) -> PL2404_ZSO | O25: =VLOOKUP($M25,'katalog zadań'!$A$8:$B$12,2,FALSE) -> PL2404_EE | P25: =VLOOKUP($M25,'katalog zadań'!$A$13:$B$17,2,FALSE) -> PL2404_KPP | Q25: 5.33 | R25: 7.62 | S25: 12.19 | T25: 12.95 | U25: 15.23 | V25: 15.23 | W25: 7.62 | X25: 5.25 | Y25: 7.5 | Z25: 12 | AA25: 12.75 | AB25: 15 | AC25: 15 | AD25: 7.5 | AE25: 0.003 | AF25: 0.0043 | AG25: 0.0068 | AH25: 0.0072 | AI25: 0.0085 | AJ25: 0.0085 | AK25: 0.0043 | AL25: =VLOOKUP(H25,powierzchnie!$A$6:$F$253,6,FALSE) -> 62.0 | AM25: 222,292 | AN25: 7 | AO25: 15 | AP25: 50 | AQ25: 10900 | AR25: 15560 | AS25: 24900 | AT25: 26460 | AU25: 31120 | AV25: 31120 | AW25: 15560
A26: 2403062 | B26: Dębowiec (2) | C26: śląskie | D26: 2403 | E26: =VLOOKUP(D26,katalogi!$A$3:$C$38,katalogi!$B$1,FALSE) -> cieszyński | F26: PL2405 | H26: 2465011 | I26: Dąbrowa Górnicza (1) | J26: Dąbrowa Górnicza | K26: powiat grodzki | L26: m. Dąbrowa Górnicza | M26: PL2401 | N26: =VLOOKUP($M26,'katalog zadań'!$A$3:$B$7,2,FALSE) -> PL2401_ZSO | O26: =VLOOKUP($M26,'katalog zadań'!$A$8:$B$12,2,FALSE) -> PL2401_EE | P26: =VLOOKUP($M26,'katalog zadań'!$A$13:$B$17,2,FALSE) -> PL2401_KPP | Q26: 1.37 | R26: 1.95 | S26: 3.12 | T26: 3.32 | U26: 3.9 | V26: 3.9 | W26: 1.95 | X26: 1.34 | Y26: 1.92 | Z26: 3.07 | AA26: 3.27 | AB26: 3.84 | AC26: 3.84 | AD26: 1.92 | AE26: 0.0008 | AF26: 0.0011 | AG26: 0.0017 | AH26: 0.0019 | AI26: 0.0022 | AJ26: 0.0022 | AK26: 0.0011 | AL26: =VLOOKUP(H26,powierzchnie!$A$6:$F$253,6,FALSE) -> 60.3 | AM26: 120,259 | AN26: 7 | AO26: 15 | AP26: 50 | AQ26: 2790 | AR26: 3990 | AS26: 6380 | AT26: 6780 | AU26: 7970 | AV26: 7970 | AW26: 3990
A27: 2403072 | B27: Goleszów (2) | C27: śląskie | D27: 2403 | E27: =VLOOKUP(D27,katalogi!$A$3:$C$38,katalogi!$B$1,FALSE) -> cieszyński | F27: PL2405 | H27: 2404022 | I27: Dąbrowa Zielona (2) | J27: Dąbrowa Zielona | K27: gmina wiejska | L27: częstochowski | M27: PL2405 | N27: =VLOOKUP($M27,'katalog zadań'!$A$3:$B$7,2,FALSE) -> PL2405_ZSO | O27: =VLOOKUP($M27,'katalog zadań'!$A$8:$B$12,2,FALSE) -> PL2405_EE | P27: =VLOOKUP($M27,'katalog zadań'!$A$13:$B$17,2,FALSE) -> PL2405_KPP | Q27: 0.03 | R27: 0.04 | S27: 0.05 | T27: 0.06 | U27: 0.06 | V27: 0.06 | W27: 0.04 | X27: 0.02 | Y27: 0.03 | Z27: 0.04 | AA27: 0.05 | AB27: 0.05 | AC27: 0.05 | AD27: 0.03 | AE27: 0 | AF27: 0 | AG27: 0 | AH27: 0 | AI27: 0 | AJ27: 0 | AK27: 0 | AL27: =VLOOKUP(H27,powierzchnie!$A$6:$F$253,6,FALSE) -> 78.6 | AM27: 3,865 | AN27: 2 | AO27: 5 | AP27: 10 | AQ27: 40 | AR27: 60 | AS27: 90 | AT27: 100 | AU27: 110 | AV27: 110 | AW27: 60
A28: 2403082 | B28: Hażlach * (2) | C28: śląskie | D28: 2403 | E28: =VLOOKUP(D28,katalogi!$A$3:$C$38,katalogi!$B$1,FALSE) -> cieszyński | F28: PL2405 | H28: 2403062 | I28: Dębowiec (2) | J28: Dębowiec | K28: gmina wiejska | L28: cieszyński | M28: PL2405 | N28: =VLOOKUP($M28,'katalog zadań'!$A$3:$B$7,2,FALSE) -> PL2405_ZSO | O28: =VLOOKUP($M28,'katalog zadań'!$A$8:$B$12,2,FALSE) -> PL2405_EE | P28: =VLOOKUP($M28,'katalog zadań'!$A$13:$B$17,2,FALSE) -> PL2405_KPP | Q28: 0.09 | R28: 0.12 | S28: 0.18 | T28: 0.19 | U28: 0.22 | V28: 0.22 | W28: 0.12 | X28: 0.08 | Y28: 0.11 | Z28: 0.17 | AA28: 0.18 | AB28: 0.21 | AC28: 0.21 | AD28: 0.11 | AE28: 0 | AF28: 0.0001 | AG28: 0.0001 | AH28: 0.0001 | AI28: 0.0001 | AJ28: 0.0001 | AK28: 0.0001 | AL28: =VLOOKUP(H28,powierzchnie!$A$6:$F$253,6,FALSE) -> 107.5 | AM28: 5,824 | AN28: 2 | AO28: 5 | AP28: 10 | AQ28: 160 | AR28: 220 | AS28: 350 | AT28: 370 | AU28: 440 | AV28: 440 | AW28: 220
A29: 2403092 | B29: Istebna (2) | C29: śląskie | D29: 2403 | E29: =VLOOKUP(D29,katalogi!$A$3:$C$38,katalogi!$B$1,FALSE) -> cieszyński | F29: PL2405 | H29: 2412022 | I29: Gaszowice (2) | J29: Gaszowice | K29: gmina wiejska | L29: rybnicki | M29: PL2405 | N29: =VLOOKUP($M29,'katalog zadań'!$A$3:$B$7,2,FALSE) -> PL2405_ZSO | O29: =VLOOKUP($M29,'katalog zadań'!$A$8:$B$12,2,FALSE) -> PL2405_EE | P29: =VLOOKUP($M29,'katalog zadań'!$A$13:$B$17,2,FALSE) -> PL2405_KPP | Q29: 0.53 | R29: 0.76 | S29: 1.21 | T29: 1.28 | U29: 1.51 | V29: 1.51 | W29: 0.76 | X29: 0.52 | Y29: 0.74 | Z29: 1.19 | AA29: 1.26 | AB29: 1.48 | AC29: 1.48 | AD29: 0.74 | AE29: 0.0003 | AF29: 0.0004 | AG29: 0.0007 | AH29: 0.0007 | AI29: 0.0008 | AJ29: 0.0008 | AK29: 0.0004 | AL29: =VLOOKUP(H29,powierzchnie!$A$6:$F$253,6,FALSE) -> 97.7 | AM29: 9,720 | AN29: 2 | AO29: 5 | AP29: 10 | AQ29: 1080 | AR29: 1540 | AS29: 2470 | AT29: 2620 | AU29: 3080 | AV29: 3080 | AW29: 1540
A30: 2403103 | B30: Skoczów (3) | C30: śląskie | D30: 2403 | E30: =VLOOKUP(D30,katalogi!$A$3:$C$38,katalogi!$B$1,FALSE) -> cieszyński | F30: PL2405 | H30: 2405032 | I30: Gierałtowice (2) | J30: Gierałtowice | K30: gmina wiejska | L30: gliwicki | M30: PL2405 | N30: =VLOOKUP($M30,'katalog zadań'!$A$3:$B$7,2,FALSE) -> PL2405_ZSO | O30: =VLOOKUP($M30,'katalog zadań'!$A$8:$B$12,2,FALSE) -> PL2405_EE | P30: =VLOOKUP($M30,'katalog zadań'!$A$13:$B$17,2,FALSE) -> PL2405_KPP | Q30: 0.94 | R30: 1.33 | S30: 2.13 | T30: 2.26 | U30: 2.65 | V30: 2.65 | W30: 1.33 | X30: 0.92 | Y30: 1.31 | Z30: 2.09 | AA30: 2.22 | AB30: 2.61 | AC30: 2.61 | AD30: 1.31 | AE30: 0.0005 | AF30: 0.0007 | AG30: 0.0012 | AH30: 0.0013 | AI30: 0.0015 | AJ30: 0.0015 | AK30: 0.0007 | AL30: =VLOOKUP(H30,powierzchnie!$A$6:$F$253,6,FALSE) -> 109.6 | AM30: 12,051 | AN30: 2 | AO30: 5 | AP30: 10 | AQ30: 1900 | AR30: 2710 | AS30: 4340 | AT30: 4610 | AU30: 5420 | AV30: 5420 | AW30: 2710
A31: 2403104 | B31: Skoczów - miasto (4) | C31: śląskie | D31: 2403 | E31: =VLOOKUP(D31,katalogi!$A$3:$C$38,katalogi!$B$1,FALSE) -> cieszyński | F31: PL2405 | H31: 2417032 | I31: Gilowice (2) | J31: Gilowice | K31: gmina wiejska | L31: żywiecki | M31: PL2405 | N31: =VLOOKUP($M31,'katalog zadań'!$A$3:$B$7,2,FALSE) -> PL2405_ZSO | O31: =VLOOKUP($M31,'katalog zadań'!$A$8:$B$12,2,FALSE) -> PL2405_EE | P31: =VLOOKUP($M31,'katalog zadań'!$A$13:$B$17,2,FALSE) -> PL2405_KPP | Q31: 0.18 | R31: 0.25 | S31: 0.4 | T31: 0.41 | U31: 0.49 | V31: 0.49 | W31: 0.25 | X31: 0.17 | Y31: 0.24 | Z31: 0.39 | AA31: 0.4 | AB31: 0.48 | AC31: 0.48 | AD31: 0.24 | AE31: 0.0001 | AF31: 0.0001 | AG31: 0.0002 | AH31: 0.0002 | AI31: 0.0003 | AJ31: 0.0003 | AK31: 0.0001 | AL31: =VLOOKUP(H31,powierzchnie!$A$6:$F$253,6,FALSE) -> 92.6 | AM31: 6,252 | AN31: 2 | AO31: 5 | AP31: 10 | AQ31: 350 | AR31: 500 | AS31: 800 | AT31: 840 | AU31: 990 | AV31: 990 | AW31: 500
A32: 2403105 | B32: Skoczów - obszar wiejski (5) | C32: śląskie | D32: 2403 | E32: =VLOOKUP(D32,katalogi!$A$3:$C$38,katalogi!$B$1,FALSE) -> cieszyński | F32: PL2405 | H32: 2466011 | I32: Gliwice (1) | J32: Gliwice | K32: powiat grodzki | L32: m. Gliwice | M32: PL2401 | N32: =VLOOKUP($M32,'katalog zadań'!$A$3:$B$7,2,FALSE) -> PL2401_ZSO | O32: =VLOOKUP($M32,'katalog zadań'!$A$8:$B$12,2,FALSE) -> PL2401_EE | P32: =VLOOKUP($M32,'katalog zadań'!$A$13:$B$17,2,FALSE) -> PL2401_KPP | Q32: 5.27 | R32: 7.53 | S32: 12.04 | T32: 12.8 | U32: 15.05 | V32: 15.05 | W32: 7.53 | X32: 5.19 | Y32: 7.41 | Z32: 11.85 | AA32: 12.6 | AB32: 14.82 | AC32: 14.82 | AD32: 7.41 | AE32: 0.0029 | AF32: 0.0042 | AG32: 0.0067 | AH32: 0.0072 | AI32: 0.0084 | AJ32: 0.0084 | AK32: 0.0042 | AL32: =VLOOKUP(H32,powierzchnie!$A$6:$F$253,6,FALSE) -> 61.6 | AM32: 179,806 | AN32: 7 | AO32: 15 | AP32: 50 | AQ32: 10770 | AR32: 15380 | AS32: 24600 | AT32: 26140 | AU32: 30750 | AV32: 30750 | AW32: 15380
A33: 2403113 | B33: Strumień (3) | C33: śląskie | D33: 2403 | E33: =VLOOKUP(D33,katalogi!$A$3:$C$38,katalogi!$B$1,FALSE) -> cieszyński | F33: PL2405 | H33: 2410012 | I33: Goczałkowice-Zdrój (2) | J33: Goczałkowice-Zdrój | K33: gmina wiejska | L33: pszczyński | M33: PL2405 | N33: =VLOOKUP($M33,'katalog zadań'!$A$3:$B$7,2,FALSE) -> PL2405_ZSO | O33: =VLOOKUP($M33,'katalog zadań'!$A$8:$B$12,2,FALSE) -> PL2405_EE | P33: =VLOOKUP($M33,'katalog zadań'!$A$13:$B$17,2,FALSE) -> PL2405_KPP | Q33: 0.15 | R33: 0.21 | S33: 0.32 | T33: 0.35 | U33: 0.41 | V33: 0.41 | W33: 0.21 | X33: 0.14 | Y33: 0.2 | Z33: 0.31 | AA33: 0.34 | AB33: 0.4 | AC33: 0.4 | AD33: 0.2 | AE33: 0.0001 | AF33: 0.0001 | AG33: 0.0002 | AH33: 0.0002 | AI33: 0.0002 | AJ33: 0.0002 | AK33: 0.0001 | AL33: =VLOOKUP(H33,powierzchnie!$A$6:$F$253,6,FALSE) -> 105.1 | AM33: 6,754 | AN33: 2 | AO33: 5 | AP33: 10 | AQ33: 290 | AR33: 410 | AS33: 650 | AT33: 700 | AU33: 820 | AV33: 820 | AW33: 410
A34: 2403114 | B34: Strumień - miasto (4) | C34: śląskie | D34: 2403 | E34: =VLOOKUP(D34,katalogi!$A$3:$C$38,katalogi!$B$1,FALSE) -> cieszyński | F34: PL2405 | H34: 2415052 | I34: Godów (2) | J34: Godów | K34: gmina wiejska | L34: wodzisławski | M34: PL2405 | N34: =VLOOKUP($M34,'katalog zadań'!$A$3:$B$7,2,FALSE) -> PL2405_ZSO | O34: =VLOOKUP($M34,'katalog zadań'!$A$8:$B$12,2,FALSE) -> PL2405_EE | P34: =VLOOKUP($M34,'katalog zadań'!$A$13:$B$17,2,FALSE) -> PL2405_KPP | Q34: 0.75 | R34: 1.07 | S34: 1.7 | T34: 1.8 | U34: 4.28 | V34: 4.28 | W34: 3.93 | X34: 0.73 | Y34: 1.05 | Z34: 1.67 | AA34: 1.77 | AB34: 4.21 | AC34: 4.21 | AD34: 3.87 | AE34: 0.0004 | AF34: 0.0006 | AG34: 0.001 | AH34: 0.001 | AI34: 0.0024 | AJ34: 0.0024 | AK34: 0.0022 | AL34: =VLOOKUP(H34,powierzchnie!$A$6:$F$253,6,FALSE) -> 118.9 | AM34: 13,747 | AN34: 2 | AO34: 5 | AP34: 10 | AQ34: 1520 | AR34: 2170 | AS34: 3470 | AT34: 3680 | AU34: 8730 | AV34: 8730 | AW34: 8040
A35: 2403115 | B35: Strumień - obszar wiejski (5) | C35: śląskie | D35: 2403 | E35: =VLOOKUP(D35,katalogi!$A$3:$C$38,katalogi!$B$1,FALSE) -> cieszyński | F35: PL2405 | H35: 2403072 | I35: Goleszów (2) | J35: Goleszów | K35: gmina wiejska | L35: cieszyński | M35: PL2405 | N35: =VLOOKUP($M35,'katalog zadań'!$A$3:$B$7,2,FALSE) -> PL2405_ZSO | O35: =VLOOKUP($M35,'katalog zadań'!$A$8:$B$12,2,FALSE) -> PL2405_EE | P35: =VLOOKUP($M35,'katalog zadań'!$A$13:$B$17,2,FALSE) -> PL2405_KPP | Q35: 0.09 | R35: 0.13 | S35: 0.2 | T35: 0.21 | U35: 0.24 | V35: 0.24 | W35: 0.13 | X35: 0.08 | Y35: 0.12 | Z35: 0.19 | AA35: 0.2 | AB35: 0.23 | AC35: 0.23 | AD35: 0.12 | AE35: 0 | AF35: 0.0001 | AG35: 0.0001 | AH35: 0.0001 | AI35: 0.0001 | AJ35: 0.0001 | AK35: 0.0001 | AL35: =VLOOKUP(H35,powierzchnie!$A$6:$F$253,6,FALSE) -> 99.8 | AM35: 13,122 | AN35: 2 | AO35: 5 | AP35: 10 | AQ35: 170 | AR35: 240 | AS35: 390 | AT35: 410 | AU35: 480 | AV35: 480 | AW35: 240
A36: 2403122 | B36: Zebrzydowice (2) | C36: śląskie | D36: 2403 | E36: =VLOOKUP(D36,katalogi!$A$3:$C$38,katalogi!$B$1,FALSE) -> cieszyński | F36: PL2405 | H36: 2415062 | I36: Gorzyce (2) | J36: Gorzyce | K36: gmina wiejska | L36: wodzisławski | M36: PL2405 | N36: =VLOOKUP($M36,'katalog zadań'!$A$3:$B$7,2,FALSE) -> PL2405_ZSO | O36: =VLOOKUP($M36,'katalog zadań'!$A$8:$B$12,2,FALSE) -> PL2405_EE | P36: =VLOOKUP($M36,'katalog zadań'!$A$13:$B$17,2,FALSE) -> PL2405_KPP | Q36: 0.33 | R36: 0.47 | S36: 0.76 | T36: 0.81 | U36: 6.36 | V36: 6.36 | W36: 7.7 | X36: 0.32 | Y36: 0.46 | Z36: 0.74 | AA36: 0.79 | AB36: 6.26 | AC36: 6.26 | AD36: 7.58 | AE36: 0.0002 | AF36: 0.0003 | AG36: 0.0004 | AH36: 0.0004 | AI36: 0.0036 | AJ36: 0.0036 | AK36: 0.0043 | AL36: =VLOOKUP(H36,powierzchnie!$A$6:$F$253,6,FALSE) -> 115.1 | AM36: 21,265 | AN36: 2 | AO36: 5 | AP36: 10 | AQ36: 670 | AR36: 960 | AS36: 1530 | AT36: 1630 | AU36: 12980 | AV36: 12980 | AW36: 15720
A37: 2417 | B37: Powiat żywiecki | C37: śląskie | D37: 2417 | E37: =VLOOKUP(D37,katalogi!$A$3:$C$38,katalogi!$B$1,FALSE) -> żywiecki | F37: PL2405 | H37: 2403082 | I37: Hażlach * (2) | J37: Hażlach | K37: gmina wiejska | L37: cieszyński | M37: PL2405 | N37: =VLOOKUP($M37,'katalog zadań'!$A$3:$B$7,2,FALSE) -> PL2405_ZSO | O37: =VLOOKUP($M37,'katalog zadań'!$A$8:$B$12,2,FALSE) -> PL2405_EE | P37: =VLOOKUP($M37,'katalog zadań'!$A$13:$B$17,2,FALSE) -> PL2405_KPP | Q37: 0.09 | R37: 0.12 | S37: 0.18 | T37: 0.2 | U37: 0.23 | V37: 0.23 | W37: 0.12 | X37: 0.08 | Y37: 0.11 | Z37: 0.17 | AA37: 0.19 | AB37: 0.22 | AC37: 0.22 | AD37: 0.11 | AE37: 0 | AF37: 0.0001 | AG37: 0.0001 | AH37: 0.0001 | AI37: 0.0001 | AJ37: 0.0001 | AK37: 0.0001 | AL37: =VLOOKUP(H37,powierzchnie!$A$6:$F$253,6,FALSE) -> 99.3 | AM37: 10,829 | AN37: 2 | AO37: 5 | AP37: 10 | AQ37: 160 | AR37: 230 | AS37: 360 | AT37: 390 | AU37: 450 | AV37: 450 | AW37: 230
A38: 2417011 | B38: Żywiec (1) | C38: śląskie | D38: 2417 | E38: =VLOOKUP(D38,katalogi!$A$3:$C$38,katalogi!$B$1,FALSE) -> żywiecki | F38: PL2405 | H38: 2407042 | I38: Herby (2) | J38: Herby | K38: gmina wiejska | L38: lubliniecki | M38: PL2405 | N38: =VLOOKUP($M38,'katalog zadań'!$A$3:$B$7,2,FALSE) -> PL2405_ZSO | O38: =VLOOKUP($M38,'katalog zadań'!$A$8:$B$12,2,FALSE) -> PL2405_EE | P38: =VLOOKUP($M38,'katalog zadań'!$A$13:$B$17,2,FALSE) -> PL2405_KPP | Q38: 0.33 | R38: 0.47 | S38: 0.75 | T38: 0.79 | U38: 0.93 | V38: 0.93 | W38: 0.47 | X38: 0.32 | Y38: 0.46 | Z38: 0.73 | AA38: 0.77 | AB38: 0.91 | AC38: 0.91 | AD38: 0.46 | AE38: 0.0002 | AF38: 0.0003 | AG38: 0.0004 | AH38: 0.0004 | AI38: 0.0005 | AJ38: 0.0005 | AK38: 0.0003 | AL38: =VLOOKUP(H38,powierzchnie!$A$6:$F$253,6,FALSE) -> 84.6 | AM38: 6,832 | AN38: 2 | AO38: 5 | AP38: 10 | AQ38: 660 | AR38: 950 | AS38: 1510 | AT38: 1600 | AU38: 1890 | AV38: 1890 | AW38: 950
A39: 2417022 | B39: Czernichów (2) | C39: śląskie | D39: 2417 | E39: =VLOOKUP(D39,katalogi!$A$3:$C$38,katalogi!$B$1,FALSE) -> żywiecki | F39: PL2405 | H39: 2414021 | I39: Imielin (1) | J39: Imielin | K39: gmina miejska | L39: bieruńsko-lędziński | M39: PL2405 | N39: =VLOOKUP($M39,'katalog zadań'!$A$3:$B$7,2,FALSE) -> PL2405_ZSO | O39: =VLOOKUP($M39,'katalog zadań'!$A$8:$B$12,2,FALSE) -> PL2405_EE | P39: =VLOOKUP($M39,'katalog zadań'!$A$13:$B$17,2,FALSE) -> PL2405_KPP | Q39: 0.38 | R39: 0.54 | S39: 0.87 | T39: 0.92 | U39: 1.08 | V39: 1.08 | W39: 0.54 | X39: 0.37 | Y39: 0.53 | Z39: 0.85 | AA39: 0.9 | AB39: 1.06 | AC39: 1.06 | AD39: 0.53 | AE39: 0.0002 | AF39: 0.0003 | AG39: 0.0005 | AH39: 0.0005 | AI39: 0.0006 | AJ39: 0.0006 | AK39: 0.0003 | AL39: =VLOOKUP(H39,powierzchnie!$A$6:$F$253,6,FALSE) -> 104.9 | AM39: 9,153 | AN39: 2 | AO39: 5 | AP39: 10 | AQ39: 770 | AR39: 1100 | AS39: 1760 | AT39: 1870 | AU39: 2190 | AV39: 2190 | AW39: 1100
A40: 2417032 | B40: Gilowice (2) | C40: śląskie | D40: 2417 | E40: =VLOOKUP(D40,katalogi!$A$3:$C$38,katalogi!$B$1,FALSE) -> żywiecki | F40: PL2405 | H40: 2416032 | I40: Irządze (2) | J40: Irządze | K40: gmina wiejska | L40: zawierciański | M40: PL2405 | N40: =VLOOKUP($M40,'katalog zadań'!$A$3:$B$7,2,FALSE) -> PL2405_ZSO | O40: =VLOOKUP($M40,'katalog zadań'!$A$8:$B$12,2,FALSE) -> PL2405_EE | P40: =VLOOKUP($M40,'katalog zadań'!$A$13:$B$17,2,FALSE) -> PL2405_KPP | Q40: 0.12 | R40: 0.17 | S40: 0.27 | T40: 0.28 | U40: 0.33 | V40: 0.33 | W40: 0.17 | X40: 0.11 | Y40: 0.16 | Z40: 0.26 | AA40: 0.27 | AB40: 0.32 | AC40: 0.32 | AD40: 0.16 | AE40: 0.0001 | AF40: 0.0001 | AG40: 0.0001 | AH40: 0.0002 | AI40: 0.0002 | AJ40: 0.0002 | AK40: 0.0001 | AL40: =VLOOKUP(H40,powierzchnie!$A$6:$F$253,6,FALSE) -> 86.0 | AM40: 2,630 | AN40: 2 | AO40: 5 | AP40: 10 | AQ40: 230 | AR40: 330 | AS40: 530 | AT40: 560 | AU40: 660 | AV40: 660 | AW40: 330
A41: 2417042 | B41: Jeleśnia (2) | C41: śląskie | D41: 2417 | E41: =VLOOKUP(D41,katalogi!$A$3:$C$38,katalogi!$B$1,FALSE) -> żywiecki | F41: PL2405 | H41: 2403092 | I41: Istebna (2) | J41: Istebna | K41: gmina wiejska | L41: cieszyński | M41: PL2405 | N41: =VLOOKUP($M41,'katalog zadań'!$A$3:$B$7,2,FALSE) -> PL2405_ZSO | O41: =VLOOKUP($M41,'katalog zadań'!$A$8:$B$12,2,FALSE) -> PL2405_EE | P41: =VLOOKUP($M41,'katalog zadań'!$A$13:$B$17,2,FALSE) -> PL2405_KPP | Q41: 0.02 | R41: 0.02 | S41: 0.03 | T41: 0.03 | U41: 0.04 | V41: 0.04 | W41: 0.02 | X41: 0.01 | Y41: 0.01 | Z41: 0.02 | AA41: 0.02 | AB41: 0.03 | AC41: 0.03 | AD41: 0.01 | AE41: 0 | AF41: 0 | AG41: 0 | AH41: 0 | AI41: 0 | AJ41: 0 | AK41: 0 | AL41: =VLOOKUP(H41,powierzchnie!$A$6:$F$253,6,FALSE) -> 92.6 | AM41: 12,110 | AN41: 2 | AO41: 5 | AP41: 10 | AQ41: 20 | AR41: 30 | AS41: 50 | AT41: 50 | AU41: 60 | AV41: 60 | AW41: 30
A42: 2417052 | B42: Koszarawa (2) | C42: śląskie | D42: 2417 | E42: =VLOOKUP(D42,katalogi!$A$3:$C$38,katalogi!$B$1,FALSE) -> żywiecki | F42: PL2405 | H42: 2404032 | I42: Janów (2) | J42: Janów | K42: gmina wiejska | L42: częstochowski | M42: PL2405 | N42: =VLOOKUP($M42,'katalog zadań'!$A$3:$B$7,2,FALSE) -> PL2405_ZSO | O42: =VLOOKUP($M42,'katalog zadań'!$A$8:$B$12,2,FALSE) -> PL2405_EE | P42: =VLOOKUP($M42,'katalog zadań'!$A$13:$B$17,2,FALSE) -> PL2405_KPP | Q42: 0 | R42: 0 | S42: 0 | T42: 0 | U42: 0 | V42: 0 | W42: 0 | X42: 0 | Y42: 0 | Z42: 0 | AA42: 0 | AB42: 0 | AC42: 0 | AD42: 0 | AE42: 0 | AF42: 0 | AG42: 0 | AH42: 0 | AI42: 0 | AJ42: 0 | AK42: 0 | AL42: =VLOOKUP(H42,powierzchnie!$A$6:$F$253,6,FALSE) -> 80.9 | AM42: 5,964 | AN42: 2 | AO42: 5 | AP42: 10 | AQ42: 0 | AR42: 0 | AS42: 0 | AT42: 0 | AU42: 0 | AV42: 0 | AW42: 0
A43: 2417062 | B43: Lipowa (2) | C43: śląskie | D43: 2417 | E43: =VLOOKUP(D43,katalogi!$A$3:$C$38,katalogi!$B$1,FALSE) -> żywiecki | F43: PL2405 | H43: 2402052 | I43: Jasienica (2) | J43: Jasienica | K43: gmina wiejska | L43: bielski | M43: PL2405 | N43: =VLOOKUP($M43,'katalog zadań'!$A$3:$B$7,2,FALSE) -> PL2405_ZSO | O43: =VLOOKUP($M43,'katalog zadań'!$A$8:$B$12,2,FALSE) -> PL2405_EE | P43: =VLOOKUP($M43,'katalog zadań'!$A$13:$B$17,2,FALSE) -> PL2405_KPP | Q43: 0.14 | R43: 0.19 | S43: 0.29 | T43: 0.31 | U43: 0.36 | V43: 0.36 | W43: 0.19 | X43: 0.13 | Y43: 0.18 | Z43: 0.28 | AA43: 0.3 | AB43: 0.35 | AC43: 0.35 | AD43: 0.18 | AE43: 0.0001 | AF43: 0.0001 | AG43: 0.0002 | AH43: 0.0002 | AI43: 0.0002 | AJ43: 0.0002 | AK43: 0.0001 | AL43: =VLOOKUP(H43,powierzchnie!$A$6:$F$253,6,FALSE) -> 100.6 | AM43: 24,117 | AN43: 2 | AO43: 5 | AP43: 10 | AQ43: 260 | AR43: 370 | AS43: 580 | AT43: 620 | AU43: 730 | AV43: 730 | AW43: 370
A44: 2417072 | B44: Łękawica (2) | C44: śląskie | D44: 2417 | E44: =VLOOKUP(D44,katalogi!$A$3:$C$38,katalogi!$B$1,FALSE) -> żywiecki | F44: PL2405 | H44: 2467011 | I44: Jastrzębie-Zdrój (1) | J44: Jastrzębie-Zdrój | K44: powiat grodzki | L44: m. Jastrzębie-Zdrój | M44: PL2402 | N44: =VLOOKUP($M44,'katalog zadań'!$A$3:$B$7,2,FALSE) -> PL2402_ZSO | O44: =VLOOKUP($M44,'katalog zadań'!$A$8:$B$12,2,FALSE) -> PL2402_EE | P44: =VLOOKUP($M44,'katalog zadań'!$A$13:$B$17,2,FALSE) -> PL2402_KPP | Q44: 1.51 | R44: 2.15 | S44: 3.43 | T44: 3.65 | U44: 4.29 | V44: 4.29 | W44: 2.15 | X44: 1.48 | Y44: 2.11 | Z44: 3.37 | AA44: 3.59 | AB44: 4.22 | AC44: 4.22 | AD44: 2.11 | AE44: 0.0008 | AF44: 0.0012 | AG44: 0.0019 | AH44: 0.002 | AI44: 0.0024 | AJ44: 0.0024 | AK44: 0.0012 | AL44: =VLOOKUP(H44,powierzchnie!$A$6:$F$253,6,FALSE) -> 68.7 | AM44: 89,128 | AN44: 5 | AO44: 10 | AP44: 50 | AQ44: 3070 | AR44: 4380 | AS44: 7000 | AT44: 7440 | AU44: 8750 | AV44: 8750 | AW44: 4380
A45: 2417082 | B45: Łodygowice (2) | C45: śląskie | D45: 2417 | E45: =VLOOKUP(D45,katalogi!$A$3:$C$38,katalogi!$B$1,FALSE) -> żywiecki | F45: PL2405 | H45: 2402062 | I45: Jaworze (2) | J45: Jaworze | K45: gmina wiejska | L45: bielski | M45: PL2405 | N45: =VLOOKUP($M45,'katalog zadań'!$A$3:$B$7,2,FALSE) -> PL2405_ZSO | O45: =VLOOKUP($M45,'katalog zadań'!$A$8:$B$12,2,FALSE) -> PL2405_EE | P45: =VLOOKUP($M45,'katalog zadań'!$A$13:$B$17,2,FALSE) -> PL2405_KPP | Q45: 0.02 | R45: 0.02 | S45: 0.02 | T45: 0.02 | U45: 0.27 | V45: 0.27 | W45: 0.34 | X45: 0.01 | Y45: 0.01 | Z45: 0.01 | AA45: 0.01 | AB45: 0.26 | AC45: 0.26 | AD45: 0.33 | AE45: 0 | AF45: 0 | AG45: 0 | AH45: 0 | AI45: 0.0001 | AJ45: 0.0001 | AK45: 0.0002 | AL45: =VLOOKUP(H45,powierzchnie!$A$6:$F$253,6,FALSE) -> 112.0 | AM45: 7,299 | AN45: 2 | AO45: 5 | AP45: 10 | AQ45: 20 | AR45: 20 | AS45: 30 | AT45: 30 | AU45: 530 | AV45: 530 | AW45: 680
A46: 2417092 | B46: Milówka (2) | C46: śląskie | D46: 2417 | E46: =VLOOKUP(D46,katalogi!$A$3:$C$38,katalogi!$B$1,FALSE) -> żywiecki | F46: PL2405 | H46: 2468011 | I46: Jaworzno (1) | J46: Jaworzno | K46: powiat grodzki | L46: m. Jaworzno | M46: PL2401 | N46: =VLOOKUP($M46,'katalog zadań'!$A$3:$B$7,2,FALSE) -> PL2401_ZSO | O46: =VLOOKUP($M46,'katalog zadań'!$A$8:$B$12,2,FALSE) -> PL2401_EE | P46: =VLOOKUP($M46,'katalog zadań'!$A$13:$B$17,2,FALSE) -> PL2401_KPP | Q46: 6.85 | R46: 9.78 | S46: 15.65 | T46: 16.62 | U46: 19.56 | V46: 19.56 | W46: 9.78 | X46: 6.74 | Y46: 9.63 | Z46: 15.41 | AA46: 16.37 | AB46: 19.26 | AC46: 19.26 | AD46: 9.63 | AE46: 0.0038 | AF46: 0.0055 | AG46: 0.0088 | AH46: 0.0093 | AI46: 0.0109 | AJ46: 0.0109 | AK46: 0.0055 | AL46: =VLOOKUP(H46,powierzchnie!$A$6:$F$253,6,FALSE) -> 68.1 | AM46: 91,563 | AN46: 5 | AO46: 10 | AP46: 50 | AQ46: 13990 | AR46: 19980 | AS46: 31970 | AT46: 33970 | AU46: 39960 | AV46: 39960 | AW46: 19980
A47: 2417102 | B47: Radziechowy-Wieprz (2) | C47: śląskie | D47: 2417 | E47: =VLOOKUP(D47,katalogi!$A$3:$C$38,katalogi!$B$1,FALSE) -> żywiecki | F47: PL2405 | H47: 2412032 | I47: Jejkowice (2) | J47: Jejkowice | K47: gmina wiejska | L47: rybnicki | M47: PL2405 | N47: =VLOOKUP($M47,'katalog zadań'!$A$3:$B$7,2,FALSE) -> PL2405_ZSO | O47: =VLOOKUP($M47,'katalog zadań'!$A$8:$B$12,2,FALSE) -> PL2405_EE | P47: =VLOOKUP($M47,'katalog zadań'!$A$13:$B$17,2,FALSE) -> PL2405_KPP | Q47: 0.12 | R47: 0.16 | S47: 0.25 | T47: 0.27 | U47: 0.31 | V47: 0.31 | W47: 0.16 | X47: 0.11 | Y47: 0.15 | Z47: 0.24 | AA47: 0.26 | AB47: 0.3 | AC47: 0.3 | AD47: 0.15 | AE47: 0.0001 | AF47: 0.0001 | AG47: 0.0001 | AH47: 0.0001 | AI47: 0.0002 | AJ47: 0.0002 | AK47: 0.0001 | AL47: =VLOOKUP(H47,powierzchnie!$A$6:$F$253,6,FALSE) -> 108.7 | AM47: 4,132 | AN47: 2 | AO47: 5 | AP47: 10 | AQ47: 220 | AR47: 320 | AS47: 500 | AT47: 530 | AU47: 630 | AV47: 630 | AW47: 320
A48: 2417112 | B48: Rajcza (2) | C48: śląskie | D48: 2417 | E48: =VLOOKUP(D48,katalogi!$A$3:$C$38,katalogi!$B$1,FALSE) -> żywiecki | F48: PL2405 | H48: 2417042 | I48: Jeleśnia (2) | J48: Jeleśnia | K48: gmina wiejska | L48: żywiecki | M48: PL2405 | N48: =VLOOKUP($M48,'katalog zadań'!$A$3:$B$7,2,FALSE) -> PL2405_ZSO | O48: =VLOOKUP($M48,'katalog zadań'!$A$8:$B$12,2,FALSE) -> PL2405_EE | P48: =VLOOKUP($M48,'katalog zadań'!$A$13:$B$17,2,FALSE) -> PL2405_KPP | Q48: 0.31 | R48: 0.43 | S48: 0.7 | T48: 0.74 | U48: 0.87 | V48: 0.87 | W48: 0.43 | X48: 0.3 | Y48: 0.42 | Z48: 0.68 | AA48: 0.72 | AB48: 0.85 | AC48: 0.85 | AD48: 0.42 | AE48: 0.0002 | AF48: 0.0002 | AG48: 0.0004 | AH48: 0.0004 | AI48: 0.0005 | AJ48: 0.0005 | AK48: 0.0002 | AL48: =VLOOKUP(H48,powierzchnie!$A$6:$F$253,6,FALSE) -> 89.6 | AM48: 13,342 | AN48: 2 | AO48: 5 | AP48: 10 | AQ48: 620 | AR48: 880 | AS48: 1410 | AT48: 1500 | AU48: 1760 | AV48: 1760 | AW48: 880
A49: 2417122 | B49: Ślemień (2) | C49: śląskie | D49: 2417 | E49: =VLOOKUP(D49,katalogi!$A$3:$C$38,katalogi!$B$1,FALSE) -> żywiecki | F49: PL2405 | H49: 2413011 | I49: Kalety (1) | J49: Kalety | K49: gmina miejska | L49: tarnogórski | M49: PL2405 | N49: =VLOOKUP($M49,'katalog zadań'!$A$3:$B$7,2,FALSE) -> PL2405_ZSO | O49: =VLOOKUP($M49,'katalog zadań'!$A$8:$B$12,2,FALSE) -> PL2405_EE | P49: =VLOOKUP($M49,'katalog zadań'!$A$13:$B$17,2,FALSE) -> PL2405_KPP | Q49: 0.7 | R49: 0.99 | S49: 1.59 | T49: 1.69 | U49: 1.98 | V49: 1.98 | W49: 0.99 | X49: 0.68 | Y49: 0.97 | Z49: 1.56 | AA49: 1.66 | AB49: 1.95 | AC49: 1.95 | AD49: 0.97 | AE49: 0.0004 | AF49: 0.0006 | AG49: 0.0009 | AH49: 0.0009 | AI49: 0.0011 | AJ49: 0.0011 | AK49: 0.0006 | AL49: =VLOOKUP(H49,powierzchnie!$A$6:$F$253,6,FALSE) -> 83.2 | AM49: 8,626 | AN49: 2 | AO49: 5 | AP49: 10 | AQ49: 1420 | AR49: 2020 | AS49: 3240 | AT49: 3440 | AU49: 4040 | AV49: 4040 | AW49: 2020
A50: 2417132 | B50: Świnna (2) | C50: śląskie | D50: 2417 | E50: =VLOOKUP(D50,katalogi!$A$3:$C$38,katalogi!$B$1,FALSE) -> żywiecki | F50: PL2405 | H50: 2404042 | I50: Kamienica Polska (2) | J50: Kamienica Polska | K50: gmina wiejska | L50: częstochowski | M50: PL2405 | N50: =VLOOKUP($M50,'katalog zadań'!$A$3:$B$7,2,FALSE) -> PL2405_ZSO | O50: =VLOOKUP($M50,'katalog zadań'!$A$8:$B$12,2,FALSE) -> PL2405_EE | P50: =VLOOKUP($M50,'katalog zadań'!$A$13:$B$17,2,FALSE) -> PL2405_KPP | Q50: 0 | R50: 0 | S50: 0 | T50: 0 | U50: 0 | V50: 0 | W50: 0 | X50: 0 | Y50: 0 | Z50: 0 | AA50: 0 | AB50: 0 | AC50: 0 | AD50: 0 | AE50: 0 | AF50: 0 | AG50: 0 | AH50: 0 | AI50: 0 | AJ50: 0 | AK50: 0 | AL50: =VLOOKUP(H50,powierzchnie!$A$6:$F$253,6,FALSE) -> 91.8 | AM50: 5,579 | AN50: 2 | AO50: 5 | AP50: 10 | AQ50: 0 | AR50: 0 | AS50: 0 | AT50: 0 | AU50: 0 | AV50: 0 | AW50: 0
A51: 2417142 | B51: Ujsoły (2) | C51: śląskie | D51: 2417 | E51: =VLOOKUP(D51,katalogi!$A$3:$C$38,katalogi!$B$1,FALSE) -> żywiecki | F51: PL2405 | H51: 2469011 | I51: Katowice (1) | J51: Katowice | K51: powiat grodzki | L51: m. Katowice | M51: PL2401 | N51: =VLOOKUP($M51,'katalog zadań'!$A$3:$B$7,2,FALSE) -> PL2401_ZSO | O51: =VLOOKUP($M51,'katalog zadań'!$A$8:$B$12,2,FALSE) -> PL2401_EE | P51: =VLOOKUP($M51,'katalog zadań'!$A$13:$B$17,2,FALSE) -> PL2401_KPP | Q51: 14.62 | R51: 20.9 | S51: 33.43 | T51: 35.52 | U51: 41.78 | V51: 41.78 | W51: 20.9 | X51: 14.4 | Y51: 20.58 | Z51: 32.92 | AA51: 34.98 | AB51: 41.15 | AC51: 41.15 | AD51: 20.58 | AE51: 0.0082 | AF51: 0.0117 | AG51: 0.0187 | AH51: 0.0199 | AI51: 0.0234 | AJ51: 0.0234 | AK51: 0.0117 | AL51: =VLOOKUP(H51,powierzchnie!$A$6:$F$253,6,FALSE) -> 60.0 | AM51: 294,510 | AN51: 7 | AO51: 15 | AP51: 50 | AQ51: 29890 | AR51: 42700 | AS51: 68310 | AT51: 72580 | AU51: 85390 | AV51: 85390 | AW51: 42700
A52: 2417152 | B52: Węgierska Górka (2) | C52: śląskie | D52: 2417 | E52: =VLOOKUP(D52,katalogi!$A$3:$C$38,katalogi!$B$1,FALSE) -> żywiecki | F52: PL2405 | H52: 2406013 | I52: Kłobuck (3) | J52: Kłobuck | K52: gmina miejsko-wiejska | L52: kłobucki | M52: PL2405 | N52: =VLOOKUP($M52,'katalog zadań'!$A$3:$B$7,2,FALSE) -> PL2405_ZSO | O52: =VLOOKUP($M52,'katalog zadań'!$A$8:$B$12,2,FALSE) -> PL2405_EE | P52: =VLOOKUP($M52,'katalog zadań'!$A$13:$B$17,2,FALSE) -> PL2405_KPP | Q52: 0.44 | R52: 0.62 | S52: 1 | T52: 1.06 | U52: 1.24 | V52: 1.24 | W52: 0.62 | X52: 0.43 | Y52: 0.61 | Z52: 0.98 | AA52: 1.04 | AB52: 1.22 | AC52: 1.22 | AD52: 0.61 | AE52: 0.0002 | AF52: 0.0003 | AG52: 0.0006 | AH52: 0.0006 | AI52: 0.0007 | AJ52: 0.0007 | AK52: 0.0003 | AL52: =VLOOKUP(H52,powierzchnie!$A$6:$F$253,6,FALSE) -> 91.1 | AM52: 20,449 | AN52: 2 | AO52: 5 | AP52: 10 | AQ52: 890 | AR52: 1270 | AS52: 2030 | AT52: 2160 | AU52: 2530 | AV52: 2530 | AW52: 1270
A53: 2461 | B53: Powiat m.Bielsko-Biała | C53: śląskie | D53: 2461 | E53: =VLOOKUP(D53,katalogi!$A$3:$C$38,katalogi!$B$1,FALSE) -> m. Bielsko-Biała | F53: PL2403 | H53: 2404052 | I53: Kłomnice (2) | J53: Kłomnice | K53: gmina wiejska | L53: częstochowski | M53: PL2405 | N53: =VLOOKUP($M53,'katalog zadań'!$A$3:$B$7,2,FALSE) -> PL2405_ZSO | O53: =VLOOKUP($M53,'katalog zadań'!$A$8:$B$12,2,FALSE) -> PL2405_EE | P53: =VLOOKUP($M53,'katalog zadań'!$A$13:$B$17,2,FALSE) -> PL2405_KPP | Q53: 0 | R53: 0 | S53: 0 | T53: 0 | U53: 0 | V53: 0 | W53: 0 | X53: 0 | Y53: 0 | Z53: 0 | AA53: 0 | AB53: 0 | AC53: 0 | AD53: 0 | AE53: 0 | AF53: 0 | AG53: 0 | AH53: 0 | AI53: 0 | AJ53: 0 | AK53: 0 | AL53: =VLOOKUP(H53,powierzchnie!$A$6:$F$253,6,FALSE) -> 87.4 | AM53: 13,524 | AN53: 2 | AO53: 5 | AP53: 10 | AQ53: 0 | AR53: 0 | AS53: 0 | AT53: 0 | AU53: 0 | AV53: 0 | AW53: 0
A54: 2461011 | B54: Bielsko-Biała (1) | C54: śląskie | D54: 2461 | E54: =VLOOKUP(D54,katalogi!$A$3:$C$38,katalogi!$B$1,FALSE) -> m. Bielsko-Biała | F54: PL2403 | H54: 2405011 | I54: Knurów (1) | J54: Knurów | K54: gmina miejska | L54: gliwicki | M54: PL2405 | N54: =VLOOKUP($M54,'katalog zadań'!$A$3:$B$7,2,FALSE) -> PL2405_ZSO | O54: =VLOOKUP($M54,'katalog zadań'!$A$8:$B$12,2,FALSE) -> PL2405_EE | P54: =VLOOKUP($M54,'katalog zadań'!$A$13:$B$17,2,FALSE) -> PL2405_KPP | Q54: 1.26 | R54: 1.8 | S54: 2.88 | T54: 3.05 | U54: 3.59 | V54: 3.59 | W54: 1.8 | X54: 1.24 | Y54: 1.77 | Z54: 2.83 | AA54: 3 | AB54: 3.53 | AC54: 3.53 | AD54: 1.77 | AE54: 0.0007 | AF54: 0.001 | AG54: 0.0016 | AH54: 0.0017 | AI54: 0.002 | AJ54: 0.002 | AK54: 0.001 | AL54: =VLOOKUP(H54,powierzchnie!$A$6:$F$253,6,FALSE) -> 57.6 | AM54: 38,402 | AN54: 2 | AO54: 5 | AP54: 10 | AQ54: 2570 | AR54: 3670 | AS54: 5870 | AT54: 6230 | AU54: 7330 | AV54: 7330 | AW54: 3670
A55: 2407 | B55: Powiat lubliniecki | C55: śląskie | D55: 2407 | E55: =VLOOKUP(D55,katalogi!$A$3:$C$38,katalogi!$B$1,FALSE) -> lubliniecki | F55: PL2405 | H55: 2410022 | I55: Kobiór (2) | J55: Kobiór | K55: gmina wiejska | L55: pszczyński | M55: PL2405 | N55: =VLOOKUP($M55,'katalog zadań'!$A$3:$B$7,2,FALSE) -> PL2405_ZSO | O55: =VLOOKUP($M55,'katalog zadań'!$A$8:$B$12,2,FALSE) -> PL2405_EE | P55: =VLOOKUP($M55,'katalog zadań'!$A$13:$B$17,2,FALSE) -> PL2405_KPP | Q55: 0.03 | R55: 0.04 | S55: 0.06 | T55: 0.06 | U55: 0.86 | V55: 0.86 | W55: 1.09 | X55: 0.02 | Y55: 0.03 | Z55: 0.05 | AA55: 0.05 | AB55: 0.84 | AC55: 0.84 | AD55: 1.07 | AE55: 0 | AF55: 0 | AG55: 0 | AH55: 0 | AI55: 0.0005 | AJ55: 0.0005 | AK55: 0.0006 | AL55: =VLOOKUP(H55,powierzchnie!$A$6:$F$253,6,FALSE) -> 98.5 | AM55: 4,894 | AN55: 2 | AO55: 5 | AP55: 10 | AQ55: 40 | AR55: 60 | AS55: 100 | AT55: 100 | AU55: 1740 | AV55: 1740 | AW55: 2230
A56: 2407011 | B56: Lubliniec (1) | C56: śląskie | D56: 2407 | E56: =VLOOKUP(D56,katalogi!$A$3:$C$38,katalogi!$B$1,FALSE) -> lubliniecki | F56: PL2405 | H56: 2407052 | I56: Kochanowice (2) | J56: Kochanowice | K56: gmina wiejska | L56: lubliniecki | M56: PL2405 | N56: =VLOOKUP($M56,'katalog zadań'!$A$3:$B$7,2,FALSE) -> PL2405_ZSO | O56: =VLOOKUP($M56,'katalog zadań'!$A$8:$B$12,2,FALSE) -> PL2405_EE | P56: =VLOOKUP($M56,'katalog zadań'!$A$13:$B$17,2,FALSE) -> PL2405_KPP | Q56: 0.48 | R56: 0.69 | S56: 1.09 | T56: 1.16 | U56: 1.37 | V56: 1.37 | W56: 0.69 | X56: 0.47 | Y56: 0.67 | Z56: 1.07 | AA56: 1.14 | AB56: 1.34 | AC56: 1.34 | AD56: 0.67 | AE56: 0.0003 | AF56: 0.0004 | AG56: 0.0006 | AH56: 0.0006 | AI56: 0.0008 | AJ56: 0.0008 | AK56: 0.0004 | AL56: =VLOOKUP(H56,powierzchnie!$A$6:$F$253,6,FALSE) -> 101.8 | AM56: 6,910 | AN56: 2 | AO56: 5 | AP56: 10 | AQ56: 980 | AR56: 1400 | AS56: 2230 | AT56: 2370 | AU56: 2790 | AV56: 2790 | AW56: 1400
A57: 2407022 | B57: Boronów (2) | C57: śląskie | D57: 2407 | E57: =VLOOKUP(D57,katalogi!$A$3:$C$38,katalogi!$B$1,FALSE) -> lubliniecki | F57: PL2405 | H57: 2404063 | I57: Koniecpol (3) | J57: Koniecpol | K57: gmina miejsko-wiejska | L57: częstochowski | M57: PL2405 | N57: =VLOOKUP($M57,'katalog zadań'!$A$3:$B$7,2,FALSE) -> PL2405_ZSO | O57: =VLOOKUP($M57,'katalog zadań'!$A$8:$B$12,2,FALSE) -> PL2405_EE | P57: =VLOOKUP($M57,'katalog zadań'!$A$13:$B$17,2,FALSE) -> PL2405_KPP | Q57: 0 | R57: 0 | S57: 0 | T57: 0 | U57: 0 | V57: 0 | W57: 0 | X57: 0 | Y57: 0 | Z57: 0 | AA57: 0 | AB57: 0 | AC57: 0 | AD57: 0 | AE57: 0 | AF57: 0 | AG57: 0 | AH57: 0 | AI57: 0 | AJ57: 0 | AK57: 0 | AL57: =VLOOKUP(H57,powierzchnie!$A$6:$F$253,6,FALSE) -> 75.6 | AM57: 9,500 | AN57: 2 | AO57: 5 | AP57: 10 | AQ57: 0 | AR57: 0 | AS57: 0 | AT57: 0 | AU57: 0 | AV57: 0 | AW57: 0
A58: 2407032 | B58: Ciasna (2) | C58: śląskie | D58: 2407 | E58: =VLOOKUP(D58,katalogi!$A$3:$C$38,katalogi!$B$1,FALSE) -> lubliniecki | F58: PL2405 | H58: 2404072 | I58: Konopiska (2) | J58: Konopiska | K58: gmina wiejska | L58: częstochowski | M58: PL2405 | N58: =VLOOKUP($M58,'katalog zadań'!$A$3:$B$7,2,FALSE) -> PL2405_ZSO | O58: =VLOOKUP($M58,'katalog zadań'!$A$8:$B$12,2,FALSE) -> PL2405_EE | P58: =VLOOKUP($M58,'katalog zadań'!$A$13:$B$17,2,FALSE) -> PL2405_KPP | Q58: 0.1 | R58: 0.14 | S58: 0.22 | T58: 0.23 | U58: 0.27 | V58: 0.27 | W58: 0.14 | X58: 0.09 | Y58: 0.13 | Z58: 0.21 | AA58: 0.22 | AB58: 0.26 | AC58: 0.26 | AD58: 0.13 | AE58: 0.0001 | AF58: 0.0001 | AG58: 0.0001 | AH58: 0.0001 | AI58: 0.0001 | AJ58: 0.0001 | AK58: 0.0001 | AL58: =VLOOKUP(H58,powierzchnie!$A$6:$F$253,6,FALSE) -> 95.9 | AM58: 10,737 | AN58: 2 | AO58: 5 | AP58: 10 | AQ58: 190 | AR58: 270 | AS58: 430 | AT58: 450 | AU58: 530 | AV58: 530 | AW58: 270
A59: 2407042 | B59: Herby (2) | C59: śląskie | D59: 2407 | E59: =VLOOKUP(D59,katalogi!$A$3:$C$38,katalogi!$B$1,FALSE) -> lubliniecki | F59: PL2405 | H59: 2411022 | I59: Kornowac (2) | J59: Kornowac | K59: gmina wiejska | L59: raciborski | M59: PL2405 | N59: =VLOOKUP($M59,'katalog zadań'!$A$3:$B$7,2,FALSE) -> PL2405_ZSO | O59: =VLOOKUP($M59,'katalog zadań'!$A$8:$B$12,2,FALSE) -> PL2405_EE | P59: =VLOOKUP($M59,'katalog zadań'!$A$13:$B$17,2,FALSE) -> PL2405_KPP | Q59: 0.46 | R59: 0.66 | S59: 1.05 | T59: 1.11 | U59: 1.31 | V59: 1.31 | W59: 0.66 | X59: 0.45 | Y59: 0.65 | Z59: 1.03 | AA59: 1.09 | AB59: 1.29 | AC59: 1.29 | AD59: 0.65 | AE59: 0.0003 | AF59: 0.0004 | AG59: 0.0006 | AH59: 0.0006 | AI59: 0.0007 | AJ59: 0.0007 | AK59: 0.0004 | AL59: =VLOOKUP(H59,powierzchnie!$A$6:$F$253,6,FALSE) -> 114.9 | AM59: 5,150 | AN59: 2 | AO59: 5 | AP59: 10 | AQ59: 940 | AR59: 1340 | AS59: 2140 | AT59: 2270 | AU59: 2670 | AV59: 2670 | AW59: 1340
A60: 2407052 | B60: Kochanowice (2) | C60: śląskie | D60: 2407 | E60: =VLOOKUP(D60,katalogi!$A$3:$C$38,katalogi!$B$1,FALSE) -> lubliniecki | F60: PL2405 | H60: 2417052 | I60: Koszarawa (2) | J60: Koszarawa | K60: gmina wiejska | L60: żywiecki | M60: PL2405 | N60: =VLOOKUP($M60,'katalog zadań'!$A$3:$B$7,2,FALSE) -> PL2405_ZSO | O60: =VLOOKUP($M60,'katalog zadań'!$A$8:$B$12,2,FALSE) -> PL2405_EE | P60: =VLOOKUP($M60,'katalog zadań'!$A$13:$B$17,2,FALSE) -> PL2405_KPP | Q60: 0.08 | R60: 0.11 | S60: 0.16 | T60: 0.17 | U60: 0.2 | V60: 0.2 | W60: 0.11 | X60: 0.07 | Y60: 0.1 | Z60: 0.15 | AA60: 0.16 | AB60: 0.19 | AC60: 0.19 | AD60: 0.1 | AE60: 0 | AF60: 0.0001 | AG60: 0.0001 | AH60: 0.0001 | AI60: 0.0001 | AJ60: 0.0001 | AK60: 0.0001 | AL60: =VLOOKUP(H60,powierzchnie!$A$6:$F$253,6,FALSE) -> 77.1 | AM60: 2,391 | AN60: 2 | AO60: 5 | AP60: 10 | AQ60: 140 | AR60: 200 | AS60: 320 | AT60: 340 | AU60: 400 | AV60: 400 | AW60: 200
A61: 2407062 | B61: Koszęcin (2) | C61: śląskie | D61: 2407 | E61: =VLOOKUP(D61,katalogi!$A$3:$C$38,katalogi!$B$1,FALSE) -> lubliniecki | F61: PL2405 | H61: 2407062 | I61: Koszęcin (2) | J61: Koszęcin | K61: gmina wiejska | L61: lubliniecki | M61: PL2405 | N61: =VLOOKUP($M61,'katalog zadań'!$A$3:$B$7,2,FALSE) -> PL2405_ZSO | O61: =VLOOKUP($M61,'katalog zadań'!$A$8:$B$12,2,FALSE) -> PL2405_EE | P61: =VLOOKUP($M61,'katalog zadań'!$A$13:$B$17,2,FALSE) -> PL2405_KPP | Q61: 0.97 | R61: 1.39 | S61: 2.22 | T61: 2.36 | U61: 2.78 | V61: 2.78 | W61: 1.39 | X61: 0.95 | Y61: 1.36 | Z61: 2.18 | AA61: 2.32 | AB61: 2.73 | AC61: 2.73 | AD61: 1.36 | AE61: 0.0005 | AF61: 0.0008 | AG61: 0.0012 | AH61: 0.0013 | AI61: 0.0015 | AJ61: 0.0015 | AK61: 0.0008 | AL61: =VLOOKUP(H61,powierzchnie!$A$6:$F$253,6,FALSE) -> 98.5 | AM61: 11,861 | AN61: 2 | AO61: 5 | AP61: 10 | AQ61: 1980 | AR61: 2830 | AS61: 4530 | AT61: 4810 | AU61: 5660 | AV61: 5660 | AW61: 2830
A62: 2407072 | B62: Pawonków (2) | C62: śląskie | D62: 2407 | E62: =VLOOKUP(D62,katalogi!$A$3:$C$38,katalogi!$B$1,FALSE) -> lubliniecki | F62: PL2405 | H62: 2409023 | I62: Koziegłowy (3) | J62: Koziegłowy | K62: gmina miejsko-wiejska | L62: myszkowski | M62: PL2405 | N62: =VLOOKUP($M62,'katalog zadań'!$A$3:$B$7,2,FALSE) -> PL2405_ZSO | O62: =VLOOKUP($M62,'katalog zadań'!$A$8:$B$12,2,FALSE) -> PL2405_EE | P62: =VLOOKUP($M62,'katalog zadań'!$A$13:$B$17,2,FALSE) -> PL2405_KPP | Q62: 0.32 | R62: 0.46 | S62: 0.73 | T62: 0.78 | U62: 0.91 | V62: 0.91 | W62: 0.46 | X62: 0.31 | Y62: 0.45 | Z62: 0.71 | AA62: 0.76 | AB62: 0.89 | AC62: 0.89 | AD62: 0.45 | AE62: 0.0002 | AF62: 0.0003 | AG62: 0.0004 | AH62: 0.0004 | AI62: 0.0005 | AJ62: 0.0005 | AK62: 0.0003 | AL62: =VLOOKUP(H62,powierzchnie!$A$6:$F$253,6,FALSE) -> 97.4 | AM62: 14,324 | AN62: 2 | AO62: 5 | AP62: 10 | AQ62: 650 | AR62: 930 | AS62: 1480 | AT62: 1570 | AU62: 1850 | AV62: 1850 | AW62: 930
A63: 2407083 | B63: Woźniki (3) | C63: śląskie | D63: 2407 | E63: =VLOOKUP(D63,katalogi!$A$3:$C$38,katalogi!$B$1,FALSE) -> lubliniecki | F63: PL2405 | H63: 2402072 | I63: Kozy (2) | J63: Kozy | K63: gmina wiejska | L63: bielski | M63: PL2405 | N63: =VLOOKUP($M63,'katalog zadań'!$A$3:$B$7,2,FALSE) -> PL2405_ZSO | O63: =VLOOKUP($M63,'katalog zadań'!$A$8:$B$12,2,FALSE) -> PL2405_EE | P63: =VLOOKUP($M63,'katalog zadań'!$A$13:$B$17,2,FALSE) -> PL2405_KPP | Q63: 0.03 | R63: 0.03 | S63: 0.05 | T63: 0.05 | U63: 0.06 | V63: 0.06 | W63: 0.03 | X63: 0.02 | Y63: 0.02 | Z63: 0.04 | AA63: 0.04 | AB63: 0.05 | AC63: 0.05 | AD63: 0.02 | AE63: 0 | AF63: 0 | AG63: 0 | AH63: 0 | AI63: 0 | AJ63: 0 | AK63: 0 | AL63: =VLOOKUP(H63,powierzchnie!$A$6:$F$253,6,FALSE) -> 97.1 | AM63: 12,990 | AN63: 2 | AO63: 5 | AP63: 10 | AQ63: 40 | AR63: 50 | AS63: 80 | AT63: 90 | AU63: 100 | AV63: 100 | AW63: 50
A64: 2407084 | B64: Woźniki - miasto (4) | C64: śląskie | D64: 2407 | E64: =VLOOKUP(D64,katalogi!$A$3:$C$38,katalogi!$B$1,FALSE) -> lubliniecki | F64: PL2405 | H64: 2416042 | I64: Kroczyce (2) | J64: Kroczyce | K64: gmina wiejska | L64: zawierciański | M64: PL2405 | N64: =VLOOKUP($M64,'katalog zadań'!$A$3:$B$7,2,FALSE) -> PL2405_ZSO | O64: =VLOOKUP($M64,'katalog zadań'!$A$8:$B$12,2,FALSE) -> PL2405_EE | P64: =VLOOKUP($M64,'katalog zadań'!$A$13:$B$17,2,FALSE) -> PL2405_KPP | Q64: 0.3 | R64: 0.42 | S64: 0.69 | T64: 0.73 | U64: 0.85 | V64: 0.85 | W64: 0.42 | X64: 0.29 | Y64: 0.41 | Z64: 0.67 | AA64: 0.71 | AB64: 0.83 | AC64: 0.83 | AD64: 0.41 | AE64: 0.0002 | AF64: 0.0002 | AG64: 0.0004 | AH64: 0.0004 | AI64: 0.0005 | AJ64: 0.0005 | AK64: 0.0002 | AL64: =VLOOKUP(H64,powierzchnie!$A$6:$F$253,6,FALSE) -> 93.8 | AM64: 6,347 | AN64: 2 | AO64: 5 | AP64: 10 | AQ64: 610 | AR64: 860 | AS64: 1380 | AT64: 1470 | AU64: 1720 | AV64: 1720 | AW64: 860
A65: 2407085 | B65: Woźniki - obszar wiejski (5) | C65: śląskie | D65: 2407 | E65: =VLOOKUP(D65,katalogi!$A$3:$C$38,katalogi!$B$1,FALSE) -> lubliniecki | F65: PL2405 | H65: 2413052 | I65: Krupski Młyn (2) | J65: Krupski Młyn | K65: gmina wiejska | L65: tarnogórski | M65: PL2405 | N65: =VLOOKUP($M65,'katalog zadań'!$A$3:$B$7,2,FALSE) -> PL2405_ZSO | O65: =VLOOKUP($M65,'katalog zadań'!$A$8:$B$12,2,FALSE) -> PL2405_EE | P65: =VLOOKUP($M65,'katalog zadań'!$A$13:$B$17,2,FALSE) -> PL2405_KPP | Q65: 0.06 | R65: 0.08 | S65: 0.12 | T65: 0.12 | U65: 0.14 | V65: 0.14 | W65: 0.08 | X65: 0.05 | Y65: 0.07 | Z65: 0.11 | AA65: 0.11 | AB65: 0.13 | AC65: 0.13 | AD65: 0.07 | AE65: 0 | AF65: 0 | AG65: 0.0001 | AH65: 0.0001 | AI65: 0.0001 | AJ65: 0.0001 | AK65: 0 | AL65: =VLOOKUP(H65,powierzchnie!$A$6:$F$253,6,FALSE) -> 64.9 | AM65: 3,191 | AN65: 2 | AO65: 5 | AP65: 10 | AQ65: 100 | AR65: 140 | AS65: 220 | AT65: 230 | AU65: 270 | AV65: 270 | AW65: 140
A66: 2413 | B66: Powiat tarnogórski | C66: śląskie | D66: 2413 | E66: =VLOOKUP(D66,katalogi!$A$3:$C$38,katalogi!$B$1,FALSE) -> tarnogórski | F66: PL2405 | H66: 2404082 | I66: Kruszyna (2) | J66: Kruszyna | K66: gmina wiejska | L66: częstochowski | M66: PL2405 | N66: =VLOOKUP($M66,'katalog zadań'!$A$3:$B$7,2,FALSE) -> PL2405_ZSO | O66: =VLOOKUP($M66,'katalog zadań'!$A$8:$B$12,2,FALSE) -> PL2405_EE | P66: =VLOOKUP($M66,'katalog zadań'!$A$13:$B$17,2,FALSE) -> PL2405_KPP | Q66: 0 | R66: 0 | S66: 0 | T66: 0 | U66: 0 | V66: 0 | W66: 0 | X66: 0 | Y66: 0 | Z66: 0 | AA66: 0 | AB66: 0 | AC66: 0 | AD66: 0 | AE66: 0 | AF66: 0 | AG66: 0 | AH66: 0 | AI66: 0 | AJ66: 0 | AK66: 0 | AL66: =VLOOKUP(H66,powierzchnie!$A$6:$F$253,6,FALSE) -> 83.8 | AM66: 4,862 | AN66: 2 | AO66: 5 | AP66: 10 | AQ66: 0 | AR66: 0 | AS66: 0 | AT66: 0 | AU66: 0 | AV66: 0 | AW66: 0
A67: 2413011 | B67: Kalety (1) | C67: śląskie | D67: 2413 | E67: =VLOOKUP(D67,katalogi!$A$3:$C$38,katalogi!$B$1,FALSE) -> tarnogórski | F67: PL2405 | H67: 2411033 | I67: Krzanowice * (3) | J67: Krzanowice | K67: gmina miejsko-wiejska | L67: raciborski | M67: PL2405 | N67: =VLOOKUP($M67,'katalog zadań'!$A$3:$B$7,2,FALSE) -> PL2405_ZSO | O67: =VLOOKUP($M67,'katalog zadań'!$A$8:$B$12,2,FALSE) -> PL2405_EE | P67: =VLOOKUP($M67,'katalog zadań'!$A$13:$B$17,2,FALSE) -> PL2405_KPP | Q67: 0.69 | R67: 0.98 | S67: 1.57 | T67: 1.66 | U67: 1.95 | V67: 1.95 | W67: 0.98 | X67: 0.67 | Y67: 0.96 | Z67: 1.54 | AA67: 1.63 | AB67: 1.92 | AC67: 1.92 | AD67: 0.96 | AE67: 0.0004 | AF67: 0.0005 | AG67: 0.0009 | AH67: 0.0009 | AI67: 0.0011 | AJ67: 0.0011 | AK67: 0.0005 | AL67: =VLOOKUP(H67,powierzchnie!$A$6:$F$253,6,FALSE) -> 107.6 | AM67: 5,746 | AN67: 2 | AO67: 5 | AP67: 10 | AQ67: 1400 | AR67: 2000 | AS67: 3190 | AT67: 3390 | AU67: 3990 | AV67: 3990 | AW67: 2000
A68: 2413021 | B68: Miasteczko Śląskie (1) | C68: śląskie | D68: 2413 | E68: =VLOOKUP(D68,katalogi!$A$3:$C$38,katalogi!$B$1,FALSE) -> tarnogórski | F68: PL2405 | H68: 2406023 | I68: Krzepice (3) | J68: Krzepice | K68: gmina miejsko-wiejska | L68: kłobucki | M68: PL2405 | N68: =VLOOKUP($M68,'katalog zadań'!$A$3:$B$7,2,FALSE) -> PL2405_ZSO | O68: =VLOOKUP($M68,'katalog zadań'!$A$8:$B$12,2,FALSE) -> PL2405_EE | P68: =VLOOKUP($M68,'katalog zadań'!$A$13:$B$17,2,FALSE) -> PL2405_KPP | Q68: 0.2 | R68: 0.28 | S68: 0.43 | T68: 0.46 | U68: 0.54 | V68: 0.54 | W68: 0.28 | X68: 0.19 | Y68: 0.27 | Z68: 0.42 | AA68: 0.45 | AB68: 0.53 | AC68: 0.53 | AD68: 0.27 | AE68: 0.0001 | AF68: 0.0002 | AG68: 0.0002 | AH68: 0.0003 | AI68: 0.0003 | AJ68: 0.0003 | AK68: 0.0002 | AL68: =VLOOKUP(H68,powierzchnie!$A$6:$F$253,6,FALSE) -> 95.9 | AM68: 9,160 | AN68: 2 | AO68: 5 | AP68: 10 | AQ68: 390 | AR68: 550 | AS68: 880 | AT68: 940 | AU68: 1100 | AV68: 1100 | AW68: 550
A69: 2413031 | B69: Radzionków * (1) | C69: śląskie | D69: 2413 | E69: =VLOOKUP(D69,katalogi!$A$3:$C$38,katalogi!$B$1,FALSE) -> tarnogórski | F69: PL2405 | H69: 2411042 | I69: Krzyżanowice (2) | J69: Krzyżanowice | K69: gmina wiejska | L69: raciborski | M69: PL2405 | N69: =VLOOKUP($M69,'katalog zadań'!$A$3:$B$7,2,FALSE) -> PL2405_ZSO | O69: =VLOOKUP($M69,'katalog zadań'!$A$8:$B$12,2,FALSE) -> PL2405_EE | P69: =VLOOKUP($M69,'katalog zadań'!$A$13:$B$17,2,FALSE) -> PL2405_KPP | Q69: 1.16 | R69: 1.66 | S69: 2.65 | T69: 2.83 | U69: 3.31 | V69: 3.31 | W69: 1.66 | X69: 1.14 | Y69: 1.63 | Z69: 2.61 | AA69: 2.78 | AB69: 3.26 | AC69: 3.26 | AD69: 1.63 | AE69: 0.0006 | AF69: 0.0009 | AG69: 0.0015 | AH69: 0.0016 | AI69: 0.0019 | AJ69: 0.0019 | AK69: 0.0009 | AL69: =VLOOKUP(H69,powierzchnie!$A$6:$F$253,6,FALSE) -> 115.5 | AM69: 11,301 | AN69: 2 | AO69: 5 | AP69: 10 | AQ69: 2370 | AR69: 3390 | AS69: 5420 | AT69: 5760 | AU69: 6770 | AV69: 6770 | AW69: 3390
A70: 2413041 | B70: Tarnowskie Góry (1) | C70: śląskie | D70: =LEFT(A70,4) -> 2413 | E70: =VLOOKUP(D70,katalogi!$A$3:$C$38,katalogi!$B$1,FALSE) -> tarnogórski | F70: PL2405 | H70: 2411053 | I70: Kuźnia Raciborska (3) | J70: Kuźnia Raciborska | K70: gmina miejsko-wiejska | L70: =VLOOKUP($H70,$A$5:$F$253,$E$1,FALSE) -> raciborski | M70: =VLOOKUP($H70,$A$5:$F$253,$F$1,FALSE) -> PL2405 | N70: =VLOOKUP($M70,'katalog zadań'!$A$3:$B$7,2,FALSE) -> PL2405_ZSO | O70: =VLOOKUP($M70,'katalog zadań'!$A$8:$B$12,2,FALSE) -> PL2405_EE | P70: =VLOOKUP($M70,'katalog zadań'!$A$13:$B$17,2,FALSE) -> PL2405_KPP | Q70: 1.15 | R70: 1.65 | S70: 2.63 | T70: 2.8 | U70: 3.28 | V70: 3.28 | W70: 1.65 | X70: 1.13 | Y70: 1.62 | Z70: 2.59 | AA70: 2.75 | AB70: 3.23 | AC70: 3.23 | AD70: 1.62 | AE70: 0.0006 | AF70: 0.0009 | AG70: 0.0015 | AH70: 0.0016 | AI70: 0.0018 | AJ70: 0.0018 | AK70: 0.0009 | AL70: =VLOOKUP(H70,powierzchnie!$A$6:$F$253,6,FALSE) -> 90.4 | AM70: 11,883 | AN70: 2 | AO70: 5 | AP70: 10 | AQ70: 2350 | AR70: 3360 | AS70: 5370 | AT70: 5700 | AU70: 6710 | AV70: 6710 | AW70: 3360
A71: 2413052 | B71: Krupski Młyn (2) | C71: śląskie | D71: 2413 | E71: =VLOOKUP(D71,katalogi!$A$3:$C$38,katalogi!$B$1,FALSE) -> tarnogórski | F71: PL2405 | H71: 2404092 | I71: Lelów (2) | J71: Lelów | K71: gmina wiejska | L71: częstochowski | M71: PL2405 | N71: =VLOOKUP($M71,'katalog zadań'!$A$3:$B$7,2,FALSE) -> PL2405_ZSO | O71: =VLOOKUP($M71,'katalog zadań'!$A$8:$B$12,2,FALSE) -> PL2405_EE | P71: =VLOOKUP($M71,'katalog zadań'!$A$13:$B$17,2,FALSE) -> PL2405_KPP | Q71: 0.04 | R71: 0.05 | S71: 0.07 | T71: 0.07 | U71: 0.09 | V71: 0.09 | W71: 0.05 | X71: 0.03 | Y71: 0.04 | Z71: 0.06 | AA71: 0.06 | AB71: 0.08 | AC71: 0.08 | AD71: 0.04 | AE71: 0 | AF71: 0 | AG71: 0 | AH71: 0 | AI71: 0 | AJ71: 0 | AK71: 0 | AL71: =VLOOKUP(H71,powierzchnie!$A$6:$F$253,6,FALSE) -> 75.5 | AM71: 4,872 | AN71: 2 | AO71: 5 | AP71: 10 | AQ71: 60 | AR71: 80 | AS71: 130 | AT71: 130 | AU71: 160 | AV71: 160 | AW71: 80
A72: 2413062 | B72: Ożarowice * (2) | C72: śląskie | D72: 2413 | E72: =VLOOKUP(D72,katalogi!$A$3:$C$38,katalogi!$B$1,FALSE) -> tarnogórski | F72: PL2405 | H72: 2414031 | I72: Lędziny (1) | J72: Lędziny | K72: gmina miejska | L72: bieruńsko-lędziński | M72: PL2405 | N72: =VLOOKUP($M72,'katalog zadań'!$A$3:$B$7,2,FALSE) -> PL2405_ZSO | O72: =VLOOKUP($M72,'katalog zadań'!$A$8:$B$12,2,FALSE) -> PL2405_EE | P72: =VLOOKUP($M72,'katalog zadań'!$A$13:$B$17,2,FALSE) -> PL2405_KPP | Q72: 0.45 | R72: 0.64 | S72: 1.03 | T72: 1.09 | U72: 1.28 | V72: 1.28 | W72: 0.64 | X72: 0.44 | Y72: 0.63 | Z72: 1.01 | AA72: 1.07 | AB72: 1.26 | AC72: 1.26 | AD72: 0.63 | AE72: 0.0003 | AF72: 0.0004 | AG72: 0.0006 | AH72: 0.0006 | AI72: 0.0007 | AJ72: 0.0007 | AK72: 0.0004 | AL72: =VLOOKUP(H72,powierzchnie!$A$6:$F$253,6,FALSE) -> 83.6 | AM72: 16,822 | AN72: 2 | AO72: 5 | AP72: 10 | AQ72: 920 | AR72: 1310 | AS72: 2090 | AT72: 2220 | AU72: 2610 | AV72: 2610 | AW72: 1310
A73: 2413072 | B73: Świerklaniec (2) | C73: śląskie | D73: 2413 | E73: =VLOOKUP(D73,katalogi!$A$3:$C$38,katalogi!$B$1,FALSE) -> tarnogórski | F73: PL2405 | H73: 2406032 | I73: Lipie (2) | J73: Lipie | K73: gmina wiejska | L73: kłobucki | M73: PL2405 | N73: =VLOOKUP($M73,'katalog zadań'!$A$3:$B$7,2,FALSE) -> PL2405_ZSO | O73: =VLOOKUP($M73,'katalog zadań'!$A$8:$B$12,2,FALSE) -> PL2405_EE | P73: =VLOOKUP($M73,'katalog zadań'!$A$13:$B$17,2,FALSE) -> PL2405_KPP | Q73: 0.22 | R73: 0.31 | S73: 0.5 | T73: 0.53 | U73: 0.62 | V73: 0.62 | W73: 0.31 | X73: 0.21 | Y73: 0.3 | Z73: 0.49 | AA73: 0.52 | AB73: 0.61 | AC73: 0.61 | AD73: 0.3 | AE73: 0.0001 | AF73: 0.0002 | AG73: 0.0003 | AH73: 0.0003 | AI73: 0.0003 | AJ73: 0.0003 | AK73: 0.0002 | AL73: =VLOOKUP(H73,powierzchnie!$A$6:$F$253,6,FALSE) -> 100.2 | AM73: 6,286 | AN73: 2 | AO73: 5 | AP73: 10 | AQ73: 440 | AR73: 630 | AS73: 1010 | AT73: 1070 | AU73: 1260 | AV73: 1260 | AW73: 630
A74: 2413082 | B74: Tworóg (2) | C74: śląskie | D74: 2413 | E74: =VLOOKUP(D74,katalogi!$A$3:$C$38,katalogi!$B$1,FALSE) -> tarnogórski | F74: PL2405 | H74: 2417062 | I74: Lipowa (2) | J74: Lipowa | K74: gmina wiejska | L74: żywiecki | M74: PL2405 | N74: =VLOOKUP($M74,'katalog zadań'!$A$3:$B$7,2,FALSE) -> PL2405_ZSO | O74: =VLOOKUP($M74,'katalog zadań'!$A$8:$B$12,2,FALSE) -> PL2405_EE | P74: =VLOOKUP($M74,'katalog zadań'!$A$13:$B$17,2,FALSE) -> PL2405_KPP | Q74: 0.19 | R74: 0.26 | S74: 0.41 | T74: 0.44 | U74: 0.51 | V74: 0.51 | W74: 0.26 | X74: 0.18 | Y74: 0.25 | Z74: 0.4 | AA74: 0.43 | AB74: 0.5 | AC74: 0.5 | AD74: 0.25 | AE74: 0.0001 | AF74: 0.0001 | AG74: 0.0002 | AH74: 0.0002 | AI74: 0.0003 | AJ74: 0.0003 | AK74: 0.0001 | AL74: =VLOOKUP(H74,powierzchnie!$A$6:$F$253,6,FALSE) -> 96.1 | AM74: 10,818 | AN74: 2 | AO74: 5 | AP74: 10 | AQ74: 370 | AR74: 520 | AS74: 840 | AT74: 890 | AU74: 1040 | AV74: 1040 | AW74: 520
A75: 2413092 | B75: Zbrosławice (2) | C75: śląskie | D75: 2413 | E75: =VLOOKUP(D75,katalogi!$A$3:$C$38,katalogi!$B$1,FALSE) -> tarnogórski | F75: PL2405 | H75: 2407011 | I75: Lubliniec (1) | J75: Lubliniec | K75: gmina miejska | L75: lubliniecki | M75: PL2405 | N75: =VLOOKUP($M75,'katalog zadań'!$A$3:$B$7,2,FALSE) -> PL2405_ZSO | O75: =VLOOKUP($M75,'katalog zadań'!$A$8:$B$12,2,FALSE) -> PL2405_EE | P75: =VLOOKUP($M75,'katalog zadań'!$A$13:$B$17,2,FALSE) -> PL2405_KPP | Q75: 0.86 | R75: 1.22 | S75: 1.95 | T75: 2.08 | U75: 2.44 | V75: 2.44 | W75: 1.22 | X75: 0.84 | Y75: 1.2 | Z75: 1.92 | AA75: 2.04 | AB75: 2.4 | AC75: 2.4 | AD75: 1.2 | AE75: 0.0005 | AF75: 0.0007 | AG75: 0.0011 | AH75: 0.0012 | AI75: 0.0014 | AJ75: 0.0014 | AK75: 0.0007 | AL75: =VLOOKUP(H75,powierzchnie!$A$6:$F$253,6,FALSE) -> 79.7 | AM75: 23,818 | AN75: 2 | AO75: 5 | AP75: 10 | AQ75: 1740 | AR75: 2490 | AS75: 3980 | AT75: 4230 | AU75: 4970 | AV75: 4970 | AW75: 2490
A76: 2462 | B76: Powiat m.Bytom | C76: śląskie | D76: 2462 | E76: =VLOOKUP(D76,katalogi!$A$3:$C$38,katalogi!$B$1,FALSE) -> m. Bytom | F76: PL2401 | H76: 2415072 | I76: Lubomia (2) | J76: Lubomia | K76: gmina wiejska | L76: wodzisławski | M76: PL2405 | N76: =VLOOKUP($M76,'katalog zadań'!$A$3:$B$7,2,FALSE) -> PL2405_ZSO | O76: =VLOOKUP($M76,'katalog zadań'!$A$8:$B$12,2,FALSE) -> PL2405_EE | P76: =VLOOKUP($M76,'katalog zadań'!$A$13:$B$17,2,FALSE) -> PL2405_KPP | Q76: 0.3 | R76: 0.42 | S76: 0.69 | T76: 0.73 | U76: 2.77 | V76: 2.77 | W76: 2.99 | X76: 0.29 | Y76: 0.41 | Z76: 0.67 | AA76: 0.71 | AB76: 2.72 | AC76: 2.72 | AD76: 2.94 | AE76: 0.0002 | AF76: 0.0002 | AG76: 0.0004 | AH76: 0.0004 | AI76: 0.0015 | AJ76: 0.0015 | AK76: 0.0017 | AL76: =VLOOKUP(H76,powierzchnie!$A$6:$F$253,6,FALSE) -> 105.1 | AM76: 7,920 | AN76: 2 | AO76: 5 | AP76: 10 | AQ76: 610 | AR76: 860 | AS76: 1380 | AT76: 1470 | AU76: 5650 | AV76: 5650 | AW76: 6100
A77: 2462011 | B77: Bytom (1) | C77: śląskie | D77: 2462 | E77: =VLOOKUP(D77,katalogi!$A$3:$C$38,katalogi!$B$1,FALSE) -> m. Bytom | F77: PL2401 | H77: 2412042 | I77: Lyski (2) | J77: Lyski | K77: gmina wiejska | L77: rybnicki | M77: PL2405 | N77: =VLOOKUP($M77,'katalog zadań'!$A$3:$B$7,2,FALSE) -> PL2405_ZSO | O77: =VLOOKUP($M77,'katalog zadań'!$A$8:$B$12,2,FALSE) -> PL2405_EE | P77: =VLOOKUP($M77,'katalog zadań'!$A$13:$B$17,2,FALSE) -> PL2405_KPP | Q77: 0.42 | R77: 0.6 | S77: 0.96 | T77: 1.02 | U77: 1.2 | V77: 1.2 | W77: 0.6 | X77: 0.41 | Y77: 0.59 | Z77: 0.94 | AA77: 1 | AB77: 1.18 | AC77: 1.18 | AD77: 0.59 | AE77: 0.0002 | AF77: 0.0003 | AG77: 0.0005 | AH77: 0.0006 | AI77: 0.0007 | AJ77: 0.0007 | AK77: 0.0003 | AL77: =VLOOKUP(H77,powierzchnie!$A$6:$F$253,6,FALSE) -> 100.0 | AM77: 9,650 | AN77: 2 | AO77: 5 | AP77: 10 | AQ77: 860 | AR77: 1220 | AS77: 1960 | AT77: 2080 | AU77: 2440 | AV77: 2440 | AW77: 1220
A78: 2471 | B78: Powiat m.Piekary Śląskie | C78: śląskie | D78: 2471 | E78: =VLOOKUP(D78,katalogi!$A$3:$C$38,katalogi!$B$1,FALSE) -> m. Piekary Śląskie | F78: PL2401 | H78: 2408011 | I78: Łaziska Górne (1) | J78: Łaziska Górne | K78: gmina miejska | L78: mikołowski | M78: PL2405 | N78: =VLOOKUP($M78,'katalog zadań'!$A$3:$B$7,2,FALSE) -> PL2405_ZSO | O78: =VLOOKUP($M78,'katalog zadań'!$A$8:$B$12,2,FALSE) -> PL2405_EE | P78: =VLOOKUP($M78,'katalog zadań'!$A$13:$B$17,2,FALSE) -> PL2405_KPP | Q78: 0.33 | R78: 0.46 | S78: 0.75 | T78: 0.79 | U78: 1.75 | V78: 1.75 | W78: 1.57 | X78: 0.32 | Y78: 0.45 | Z78: 0.73 | AA78: 0.77 | AB78: 1.72 | AC78: 1.72 | AD78: 1.54 | AE78: 0.0002 | AF78: 0.0003 | AG78: 0.0004 | AH78: 0.0004 | AI78: 0.001 | AJ78: 0.001 | AK78: 0.0009 | AL78: =VLOOKUP(H78,powierzchnie!$A$6:$F$253,6,FALSE) -> 70.4 | AM78: 22,334 | AN78: 2 | AO78: 5 | AP78: 10 | AQ78: 660 | AR78: 940 | AS78: 1510 | AT78: 1600 | AU78: 3570 | AV78: 3570 | AW78: 3190
A79: 2471011 | B79: Piekary Śląskie (1) | C79: śląskie | D79: 2471 | E79: =VLOOKUP(D79,katalogi!$A$3:$C$38,katalogi!$B$1,FALSE) -> m. Piekary Śląskie | F79: PL2401 | H79: 2416053 | I79: Łazy (3) | J79: Łazy | K79: gmina miejsko-wiejska | L79: zawierciański | M79: PL2405 | N79: =VLOOKUP($M79,'katalog zadań'!$A$3:$B$7,2,FALSE) -> PL2405_ZSO | O79: =VLOOKUP($M79,'katalog zadań'!$A$8:$B$12,2,FALSE) -> PL2405_EE | P79: =VLOOKUP($M79,'katalog zadań'!$A$13:$B$17,2,FALSE) -> PL2405_KPP | Q79: 0.79 | R79: 1.12 | S79: 1.79 | T79: 1.9 | U79: 2.24 | V79: 2.24 | W79: 1.12 | X79: 0.77 | Y79: 1.1 | Z79: 1.76 | AA79: 1.87 | AB79: 2.2 | AC79: 2.2 | AD79: 1.1 | AE79: 0.0004 | AF79: 0.0006 | AG79: 0.001 | AH79: 0.0011 | AI79: 0.0013 | AJ79: 0.0013 | AK79: 0.0006 | AL79: =VLOOKUP(H79,powierzchnie!$A$6:$F$253,6,FALSE) -> 76.1 | AM79: 15,956 | AN79: 2 | AO79: 5 | AP79: 10 | AQ79: 1600 | AR79: 2290 | AS79: 3660 | AT79: 3890 | AU79: 4570 | AV79: 4570 | AW79: 2290
A80: 2404 | B80: Powiat częstochowski | C80: śląskie | D80: 2404 | E80: =VLOOKUP(D80,katalogi!$A$3:$C$38,katalogi!$B$1,FALSE) -> częstochowski | F80: PL2405 | H80: 2417072 | I80: Łękawica (2) | J80: Łękawica | K80: gmina wiejska | L80: żywiecki | M80: PL2405 | N80: =VLOOKUP($M80,'katalog zadań'!$A$3:$B$7,2,FALSE) -> PL2405_ZSO | O80: =VLOOKUP($M80,'katalog zadań'!$A$8:$B$12,2,FALSE) -> PL2405_EE | P80: =VLOOKUP($M80,'katalog zadań'!$A$13:$B$17,2,FALSE) -> PL2405_KPP | Q80: 0.1 | R80: 0.14 | S80: 0.22 | T80: 0.24 | U80: 0.28 | V80: 0.28 | W80: 0.14 | X80: 0.09 | Y80: 0.13 | Z80: 0.21 | AA80: 0.23 | AB80: 0.27 | AC80: 0.27 | AD80: 0.13 | AE80: 0.0001 | AF80: 0.0001 | AG80: 0.0001 | AH80: 0.0001 | AI80: 0.0002 | AJ80: 0.0002 | AK80: 0.0001 | AL80: =VLOOKUP(H80,powierzchnie!$A$6:$F$253,6,FALSE) -> 83.9 | AM80: 4,545 | AN80: 2 | AO80: 5 | AP80: 10 | AQ80: 190 | AR80: 280 | AS80: 440 | AT80: 470 | AU80: 550 | AV80: 550 | AW80: 280
A81: 2404013 | B81: Blachownia (3) | C81: śląskie | D81: 2404 | E81: =VLOOKUP(D81,katalogi!$A$3:$C$38,katalogi!$B$1,FALSE) -> częstochowski | F81: PL2405 | H81: 2417082 | I81: Łodygowice (2) | J81: Łodygowice | K81: gmina wiejska | L81: żywiecki | M81: PL2405 | N81: =VLOOKUP($M81,'katalog zadań'!$A$3:$B$7,2,FALSE) -> PL2405_ZSO | O81: =VLOOKUP($M81,'katalog zadań'!$A$8:$B$12,2,FALSE) -> PL2405_EE | P81: =VLOOKUP($M81,'katalog zadań'!$A$13:$B$17,2,FALSE) -> PL2405_KPP | Q81: 0.28 | R81: 0.4 | S81: 0.62 | T81: 0.66 | U81: 0.79 | V81: 0.79 | W81: 0.4 | X81: 0.27 | Y81: 0.39 | Z81: 0.61 | AA81: 0.65 | AB81: 0.77 | AC81: 0.77 | AD81: 0.39 | AE81: 0.0002 | AF81: 0.0002 | AG81: 0.0003 | AH81: 0.0004 | AI81: 0.0004 | AJ81: 0.0004 | AK81: 0.0002 | AL81: =VLOOKUP(H81,powierzchnie!$A$6:$F$253,6,FALSE) -> 101.7 | AM81: 14,426 | AN81: 2 | AO81: 5 | AP81: 10 | AQ81: 560 | AR81: 800 | AS81: 1270 | AT81: 1350 | AU81: 1590 | AV81: 1590 | AW81: 800
A82: 2404014 | B82: Blachownia - miasto (4) | C82: śląskie | D82: 2404 | E82: =VLOOKUP(D82,katalogi!$A$3:$C$38,katalogi!$B$1,FALSE) -> częstochowski | F82: PL2405 | H82: 2415082 | I82: Marklowice (2) | J82: Marklowice | K82: gmina wiejska | L82: wodzisławski | M82: PL2405 | N82: =VLOOKUP($M82,'katalog zadań'!$A$3:$B$7,2,FALSE) -> PL2405_ZSO | O82: =VLOOKUP($M82,'katalog zadań'!$A$8:$B$12,2,FALSE) -> PL2405_EE | P82: =VLOOKUP($M82,'katalog zadań'!$A$13:$B$17,2,FALSE) -> PL2405_KPP | Q82: 0.1 | R82: 0.14 | S82: 0.21 | T82: 0.22 | U82: 1.59 | V82: 1.59 | W82: 1.9 | X82: 0.09 | Y82: 0.13 | Z82: 0.2 | AA82: 0.21 | AB82: 1.56 | AC82: 1.56 | AD82: 1.87 | AE82: 0 | AF82: 0.0001 | AG82: 0.0001 | AH82: 0.0001 | AI82: 0.0009 | AJ82: 0.0009 | AK82: 0.0011 | AL82: =VLOOKUP(H82,powierzchnie!$A$6:$F$253,6,FALSE) -> 113.5 | AM82: 5,415 | AN82: 2 | AO82: 5 | AP82: 10 | AQ82: 180 | AR82: 260 | AS82: 410 | AT82: 440 | AU82: 3230 | AV82: 3230 | AW82: 3890
A83: 2404015 | B83: Blachownia - obszar wiejski (5) | C83: śląskie | D83: 2404 | E83: =VLOOKUP(D83,katalogi!$A$3:$C$38,katalogi!$B$1,FALSE) -> częstochowski | F83: PL2405 | H83: 2413021 | I83: Miasteczko Śląskie (1) | J83: Miasteczko Śląskie | K83: gmina miejska | L83: tarnogórski | M83: PL2405 | N83: =VLOOKUP($M83,'katalog zadań'!$A$3:$B$7,2,FALSE) -> PL2405_ZSO | O83: =VLOOKUP($M83,'katalog zadań'!$A$8:$B$12,2,FALSE) -> PL2405_EE | P83: =VLOOKUP($M83,'katalog zadań'!$A$13:$B$17,2,FALSE) -> PL2405_KPP | Q83: 0.42 | R83: 0.59 | S83: 0.95 | T83: 1.01 | U83: 1.19 | V83: 1.19 | W83: 0.59 | X83: 0.41 | Y83: 0.58 | Z83: 0.93 | AA83: 0.99 | AB83: 1.17 | AC83: 1.17 | AD83: 0.58 | AE83: 0.0002 | AF83: 0.0003 | AG83: 0.0005 | AH83: 0.0006 | AI83: 0.0007 | AJ83: 0.0007 | AK83: 0.0003 | AL83: =VLOOKUP(H83,powierzchnie!$A$6:$F$253,6,FALSE) -> 70.8 | AM83: 7,449 | AN83: 2 | AO83: 5 | AP83: 10 | AQ83: 850 | AR83: 1210 | AS83: 1940 | AT83: 2060 | AU83: 2420 | AV83: 2420 | AW83: 1210
A84: 2404022 | B84: Dąbrowa Zielona (2) | C84: śląskie | D84: 2404 | E84: =VLOOKUP(D84,katalogi!$A$3:$C$38,katalogi!$B$1,FALSE) -> częstochowski | F84: PL2405 | H84: 2410032 | I84: Miedźna (2) | J84: Miedźna | K84: gmina wiejska | L84: pszczyński | M84: PL2405 | N84: =VLOOKUP($M84,'katalog zadań'!$A$3:$B$7,2,FALSE) -> PL2405_ZSO | O84: =VLOOKUP($M84,'katalog zadań'!$A$8:$B$12,2,FALSE) -> PL2405_EE | P84: =VLOOKUP($M84,'katalog zadań'!$A$13:$B$17,2,FALSE) -> PL2405_KPP | Q84: 0.02 | R84: 0.03 | S84: 0.04 | T84: 0.04 | U84: 2.32 | V84: 2.32 | W84: 3.06 | X84: 0.01 | Y84: 0.02 | Z84: 0.03 | AA84: 0.03 | AB84: 2.28 | AC84: 2.28 | AD84: 3.01 | AE84: 0 | AF84: 0 | AG84: 0 | AH84: 0 | AI84: 0.0013 | AJ84: 0.0013 | AK84: 0.0017 | AL84: =VLOOKUP(H84,powierzchnie!$A$6:$F$253,6,FALSE) -> 87.9 | AM84: 16,499 | AN84: 2 | AO84: 5 | AP84: 10 | AQ84: 30 | AR84: 40 | AS84: 60 | AT84: 60 | AU84: 4730 | AV84: 4730 | AW84: 6250
A85: 2404032 | B85: Janów (2) | C85: śląskie | D85: 2404 | E85: =VLOOKUP(D85,katalogi!$A$3:$C$38,katalogi!$B$1,FALSE) -> częstochowski | F85: PL2405 | H85: 2406042 | I85: Miedźno (2) | J85: Miedźno | K85: gmina wiejska | L85: kłobucki | M85: PL2405 | N85: =VLOOKUP($M85,'katalog zadań'!$A$3:$B$7,2,FALSE) -> PL2405_ZSO | O85: =VLOOKUP($M85,'katalog zadań'!$A$8:$B$12,2,FALSE) -> PL2405_EE | P85: =VLOOKUP($M85,'katalog zadań'!$A$13:$B$17,2,FALSE) -> PL2405_KPP | Q85: 0.19 | R85: 0.26 | S85: 0.41 | T85: 0.43 | U85: 0.51 | V85: 0.51 | W85: 0.26 | X85: 0.18 | Y85: 0.25 | Z85: 0.4 | AA85: 0.42 | AB85: 0.5 | AC85: 0.5 | AD85: 0.25 | AE85: 0.0001 | AF85: 0.0001 | AG85: 0.0002 | AH85: 0.0002 | AI85: 0.0003 | AJ85: 0.0003 | AK85: 0.0001 | AL85: =VLOOKUP(H85,powierzchnie!$A$6:$F$253,6,FALSE) -> 97.6 | AM85: 7,567 | AN85: 2 | AO85: 5 | AP85: 10 | AQ85: 370 | AR85: 520 | AS85: 830 | AT85: 880 | AU85: 1040 | AV85: 1040 | AW85: 520
A86: 2404042 | B86: Kamienica Polska (2) | C86: śląskie | D86: 2404 | E86: =VLOOKUP(D86,katalogi!$A$3:$C$38,katalogi!$B$1,FALSE) -> częstochowski | F86: PL2405 | H86: 2401052 | I86: Mierzęcice (2) | J86: Mierzęcice | K86: gmina wiejska | L86: będziński | M86: PL2405 | N86: =VLOOKUP($M86,'katalog zadań'!$A$3:$B$7,2,FALSE) -> PL2405_ZSO | O86: =VLOOKUP($M86,'katalog zadań'!$A$8:$B$12,2,FALSE) -> PL2405_EE | P86: =VLOOKUP($M86,'katalog zadań'!$A$13:$B$17,2,FALSE) -> PL2405_KPP | Q86: 0.56 | R86: 0.81 | S86: 1.28 | T86: 1.37 | U86: 1.61 | V86: 1.61 | W86: 0.81 | X86: 0.55 | Y86: 0.79 | Z86: 1.26 | AA86: 1.34 | AB86: 1.58 | AC86: 1.58 | AD86: 0.79 | AE86: 0.0003 | AF86: 0.0004 | AG86: 0.0007 | AH86: 0.0008 | AI86: 0.0009 | AJ86: 0.0009 | AK86: 0.0004 | AL86: =VLOOKUP(H86,powierzchnie!$A$6:$F$253,6,FALSE) -> 106.3 | AM86: 7,664 | AN86: 2 | AO86: 5 | AP86: 10 | AQ86: 1150 | AR86: 1640 | AS86: 2610 | AT86: 2780 | AU86: 3270 | AV86: 3270 | AW86: 1640
A87: 2404052 | B87: Kłomnice (2) | C87: śląskie | D87: 2404 | E87: =VLOOKUP(D87,katalogi!$A$3:$C$38,katalogi!$B$1,FALSE) -> częstochowski | F87: PL2405 | H87: 2408021 | I87: Mikołów (1) | J87: Mikołów | K87: gmina miejska | L87: mikołowski | M87: PL2405 | N87: =VLOOKUP($M87,'katalog zadań'!$A$3:$B$7,2,FALSE) -> PL2405_ZSO | O87: =VLOOKUP($M87,'katalog zadań'!$A$8:$B$12,2,FALSE) -> PL2405_EE | P87: =VLOOKUP($M87,'katalog zadań'!$A$13:$B$17,2,FALSE) -> PL2405_KPP | Q87: 0.33 | R87: 0.47 | S87: 0.76 | T87: 0.81 | U87: 3.36 | V87: 3.36 | W87: 3.69 | X87: 0.32 | Y87: 0.46 | Z87: 0.74 | AA87: 0.79 | AB87: 3.3 | AC87: 3.3 | AD87: 3.63 | AE87: 0.0002 | AF87: 0.0003 | AG87: 0.0004 | AH87: 0.0004 | AI87: 0.0019 | AJ87: 0.0019 | AK87: 0.0021 | AL87: =VLOOKUP(H87,powierzchnie!$A$6:$F$253,6,FALSE) -> 85.1 | AM87: 40,813 | AN87: 2 | AO87: 5 | AP87: 10 | AQ87: 670 | AR87: 960 | AS87: 1530 | AT87: 1630 | AU87: 6850 | AV87: 6850 | AW87: 7540
A88: 2404063 | B88: Koniecpol (3) | C88: śląskie | D88: 2404 | E88: =VLOOKUP(D88,katalogi!$A$3:$C$38,katalogi!$B$1,FALSE) -> częstochowski | F88: PL2405 | H88: 2417092 | I88: Milówka (2) | J88: Milówka | K88: gmina wiejska | L88: żywiecki | M88: PL2405 | N88: =VLOOKUP($M88,'katalog zadań'!$A$3:$B$7,2,FALSE) -> PL2405_ZSO | O88: =VLOOKUP($M88,'katalog zadań'!$A$8:$B$12,2,FALSE) -> PL2405_EE | P88: =VLOOKUP($M88,'katalog zadań'!$A$13:$B$17,2,FALSE) -> PL2405_KPP | Q88: 0.27 | R88: 0.37 | S88: 0.59 | T88: 0.63 | U88: 0.74 | V88: 0.74 | W88: 0.37 | X88: 0.26 | Y88: 0.36 | Z88: 0.58 | AA88: 0.62 | AB88: 0.72 | AC88: 0.72 | AD88: 0.36 | AE88: 0.0001 | AF88: 0.0002 | AG88: 0.0003 | AH88: 0.0004 | AI88: 0.0004 | AJ88: 0.0004 | AK88: 0.0002 | AL88: =VLOOKUP(H88,powierzchnie!$A$6:$F$253,6,FALSE) -> 92.6 | AM88: 10,078 | AN88: 2 | AO88: 5 | AP88: 10 | AQ88: 530 | AR88: 750 | AS88: 1200 | AT88: 1280 | AU88: 1500 | AV88: 1500 | AW88: 750
A89: 2404064 | B89: Koniecpol - miasto (4) | C89: śląskie | D89: 2404 | E89: =VLOOKUP(D89,katalogi!$A$3:$C$38,katalogi!$B$1,FALSE) -> częstochowski | F89: PL2405 | H89: 2404102 | I89: Mstów (2) | J89: Mstów | K89: gmina wiejska | L89: częstochowski | M89: PL2405 | N89: =VLOOKUP($M89,'katalog zadań'!$A$3:$B$7,2,FALSE) -> PL2405_ZSO | O89: =VLOOKUP($M89,'katalog zadań'!$A$8:$B$12,2,FALSE) -> PL2405_EE | P89: =VLOOKUP($M89,'katalog zadań'!$A$13:$B$17,2,FALSE) -> PL2405_KPP | Q89: 0.07 | R89: 0.1 | S89: 0.14 | T89: 0.15 | U89: 0.18 | V89: 0.18 | W89: 0.1 | X89: 0.06 | Y89: 0.09 | Z89: 0.13 | AA89: 0.14 | AB89: 0.17 | AC89: 0.17 | AD89: 0.09 | AE89: 0 | AF89: 0 | AG89: 0.0001 | AH89: 0.0001 | AI89: 0.0001 | AJ89: 0.0001 | AK89: 0 | AL89: =VLOOKUP(H89,powierzchnie!$A$6:$F$253,6,FALSE) -> 97.3 | AM89: 10,827 | AN89: 2 | AO89: 5 | AP89: 10 | AQ89: 130 | AR89: 180 | AS89: 280 | AT89: 300 | AU89: 350 | AV89: 350 | AW89: 180
A90: 2404065 | B90: Koniecpol - obszar wiejski (5) | C90: śląskie | D90: 2404 | E90: =VLOOKUP(D90,katalogi!$A$3:$C$38,katalogi!$B$1,FALSE) -> częstochowski | F90: PL2405 | H90: 2415092 | I90: Mszana (2) | J90: Mszana | K90: gmina wiejska | L90: wodzisławski | M90: PL2405 | N90: =VLOOKUP($M90,'katalog zadań'!$A$3:$B$7,2,FALSE) -> PL2405_ZSO | O90: =VLOOKUP($M90,'katalog zadań'!$A$8:$B$12,2,FALSE) -> PL2405_EE | P90: =VLOOKUP($M90,'katalog zadań'!$A$13:$B$17,2,FALSE) -> PL2405_KPP | Q90: 0.12 | R90: 0.17 | S90: 0.26 | T90: 0.28 | U90: 2.21 | V90: 2.21 | W90: 2.69 | X90: 0.11 | Y90: 0.16 | Z90: 0.25 | AA90: 0.27 | AB90: 2.17 | AC90: 2.17 | AD90: 2.64 | AE90: 0.0001 | AF90: 0.0001 | AG90: 0.0001 | AH90: 0.0002 | AI90: 0.0012 | AJ90: 0.0012 | AK90: 0.0015 | AL90: =VLOOKUP(H90,powierzchnie!$A$6:$F$253,6,FALSE) -> 119.0 | AM90: 7,689 | AN90: 2 | AO90: 5 | AP90: 10 | AQ90: 230 | AR90: 330 | AS90: 520 | AT90: 550 | AU90: 4510 | AV90: 4510 | AW90: 5470
A91: 2404072 | B91: Konopiska (2) | C91: śląskie | D91: 2404 | E91: =VLOOKUP(D91,katalogi!$A$3:$C$38,katalogi!$B$1,FALSE) -> częstochowski | F91: PL2405 | H91: 2404112 | I91: Mykanów (2) | J91: Mykanów | K91: gmina wiejska | L91: częstochowski | M91: PL2405 | N91: =VLOOKUP($M91,'katalog zadań'!$A$3:$B$7,2,FALSE) -> PL2405_ZSO | O91: =VLOOKUP($M91,'katalog zadań'!$A$8:$B$12,2,FALSE) -> PL2405_EE | P91: =VLOOKUP($M91,'katalog zadań'!$A$13:$B$17,2,FALSE) -> PL2405_KPP | Q91: 0.1 | R91: 0.14 | S91: 0.21 | T91: 0.22 | U91: 0.26 | V91: 0.26 | W91: 0.14 | X91: 0.09 | Y91: 0.13 | Z91: 0.2 | AA91: 0.21 | AB91: 0.25 | AC91: 0.25 | AD91: 0.13 | AE91: 0 | AF91: 0.0001 | AG91: 0.0001 | AH91: 0.0001 | AI91: 0.0001 | AJ91: 0.0001 | AK91: 0.0001 | AL91: =VLOOKUP(H91,powierzchnie!$A$6:$F$253,6,FALSE) -> 105.2 | AM91: 15,052 | AN91: 2 | AO91: 5 | AP91: 10 | AQ91: 180 | AR91: 260 | AS91: 410 | AT91: 430 | AU91: 510 | AV91: 510 | AW91: 260
A92: 2404082 | B92: Kruszyna (2) | C92: śląskie | D92: 2404 | E92: =VLOOKUP(D92,katalogi!$A$3:$C$38,katalogi!$B$1,FALSE) -> częstochowski | F92: PL2405 | H92: 2470011 | I92: Mysłowice (1) | J92: Mysłowice | K92: powiat grodzki | L92: m. Mysłowice | M92: PL2401 | N92: =VLOOKUP($M92,'katalog zadań'!$A$3:$B$7,2,FALSE) -> PL2401_ZSO | O92: =VLOOKUP($M92,'katalog zadań'!$A$8:$B$12,2,FALSE) -> PL2401_EE | P92: =VLOOKUP($M92,'katalog zadań'!$A$13:$B$17,2,FALSE) -> PL2401_KPP | Q92: 2.43 | R92: 3.47 | S92: 5.54 | T92: 5.88 | U92: 6.92 | V92: 6.92 | W92: 3.47 | X92: 2.39 | Y92: 3.41 | Z92: 5.45 | AA92: 5.79 | AB92: 6.81 | AC92: 6.81 | AD92: 3.41 | AE92: 0.0014 | AF92: 0.0019 | AG92: 0.0031 | AH92: 0.0033 | AI92: 0.0039 | AJ92: 0.0039 | AK92: 0.0019 | AL92: =VLOOKUP(H92,powierzchnie!$A$6:$F$253,6,FALSE) -> 67.2 | AM92: 74,586 | AN92: 5 | AO92: 10 | AP92: 50 | AQ92: 4950 | AR92: 7070 | AS92: 11300 | AT92: 12010 | AU92: 14130 | AV92: 14130 | AW92: 7070
A93: 2404092 | B93: Lelów (2) | C93: śląskie | D93: 2404 | E93: =VLOOKUP(D93,katalogi!$A$3:$C$38,katalogi!$B$1,FALSE) -> częstochowski | F93: PL2405 | H93: 2409011 | I93: Myszków (1) | J93: Myszków | K93: gmina miejska | L93: myszkowski | M93: PL2405 | N93: =VLOOKUP($M93,'katalog zadań'!$A$3:$B$7,2,FALSE) -> PL2405_ZSO | O93: =VLOOKUP($M93,'katalog zadań'!$A$8:$B$12,2,FALSE) -> PL2405_EE | P93: =VLOOKUP($M93,'katalog zadań'!$A$13:$B$17,2,FALSE) -> PL2405_KPP | Q93: 0.44 | R93: 0.62 | S93: 0.99 | T93: 1.06 | U93: 1.23 | V93: 1.23 | W93: 0.62 | X93: 0.43 | Y93: 0.61 | Z93: 0.97 | AA93: 1.04 | AB93: 1.21 | AC93: 1.21 | AD93: 0.61 | AE93: 0.0002 | AF93: 0.0003 | AG93: 0.0006 | AH93: 0.0006 | AI93: 0.0007 | AJ93: 0.0007 | AK93: 0.0003 | AL93: =VLOOKUP(H93,powierzchnie!$A$6:$F$253,6,FALSE) -> 72.6 | AM93: 31,762 | AN93: 2 | AO93: 5 | AP93: 10 | AQ93: 890 | AR93: 1260 | AS93: 2020 | AT93: 2150 | AU93: 2520 | AV93: 2520 | AW93: 1260
A94: 2404102 | B94: Mstów (2) | C94: śląskie | D94: 2404 | E94: =VLOOKUP(D94,katalogi!$A$3:$C$38,katalogi!$B$1,FALSE) -> częstochowski | F94: PL2405 | H94: 2411062 | I94: Nędza (2) | J94: Nędza | K94: gmina wiejska | L94: raciborski | M94: PL2405 | N94: =VLOOKUP($M94,'katalog zadań'!$A$3:$B$7,2,FALSE) -> PL2405_ZSO | O94: =VLOOKUP($M94,'katalog zadań'!$A$8:$B$12,2,FALSE) -> PL2405_EE | P94: =VLOOKUP($M94,'katalog zadań'!$A$13:$B$17,2,FALSE) -> PL2405_KPP | Q94: 0.83 | R94: 1.19 | S94: 1.89 | T94: 2.02 | U94: 2.37 | V94: 2.37 | W94: 1.19 | X94: 0.81 | Y94: 1.17 | Z94: 1.86 | AA94: 1.98 | AB94: 2.33 | AC94: 2.33 | AD94: 1.17 | AE94: 0.0005 | AF94: 0.0007 | AG94: 0.0011 | AH94: 0.0011 | AI94: 0.0013 | AJ94: 0.0013 | AK94: 0.0007 | AL94: =VLOOKUP(H94,powierzchnie!$A$6:$F$253,6,FALSE) -> 113.0 | AM94: 7,437 | AN94: 2 | AO94: 5 | AP94: 10 | AQ94: 1690 | AR94: 2420 | AS94: 3870 | AT94: 4110 | AU94: 4830 | AV94: 4830 | AW94: 2420
A95: 2404112 | B95: Mykanów (2) | C95: śląskie | D95: 2404 | E95: =VLOOKUP(D95,katalogi!$A$3:$C$38,katalogi!$B$1,FALSE) -> częstochowski | F95: PL2405 | H95: 2409032 | I95: Niegowa (2) | J95: Niegowa | K95: gmina wiejska | L95: myszkowski | M95: PL2405 | N95: =VLOOKUP($M95,'katalog zadań'!$A$3:$B$7,2,FALSE) -> PL2405_ZSO | O95: =VLOOKUP($M95,'katalog zadań'!$A$8:$B$12,2,FALSE) -> PL2405_EE | P95: =VLOOKUP($M95,'katalog zadań'!$A$13:$B$17,2,FALSE) -> PL2405_KPP | Q95: 0.03 | R95: 0.05 | S95: 0.07 | T95: 0.07 | U95: 0.08 | V95: 0.08 | W95: 0.05 | X95: 0.02 | Y95: 0.04 | Z95: 0.06 | AA95: 0.06 | AB95: 0.07 | AC95: 0.07 | AD95: 0.04 | AE95: 0 | AF95: 0 | AG95: 0 | AH95: 0 | AI95: 0 | AJ95: 0 | AK95: 0 | AL95: =VLOOKUP(H95,powierzchnie!$A$6:$F$253,6,FALSE) -> 92.5 | AM95: 5,663 | AN95: 2 | AO95: 5 | AP95: 10 | AQ95: 50 | AR95: 80 | AS95: 120 | AT95: 130 | AU95: 150 | AV95: 150 | AW95: 80
A96: 2404122 | B96: Olsztyn (2) | C96: śląskie | D96: 2404 | E96: =VLOOKUP(D96,katalogi!$A$3:$C$38,katalogi!$B$1,FALSE) -> częstochowski | F96: PL2405 | H96: 2416063 | I96: Ogrodzieniec (3) | J96: Ogrodzieniec | K96: gmina miejsko-wiejska | L96: zawierciański | M96: PL2405 | N96: =VLOOKUP($M96,'katalog zadań'!$A$3:$B$7,2,FALSE) -> PL2405_ZSO | O96: =VLOOKUP($M96,'katalog zadań'!$A$8:$B$12,2,FALSE) -> PL2405_EE | P96: =VLOOKUP($M96,'katalog zadań'!$A$13:$B$17,2,FALSE) -> PL2405_KPP | Q96: 0.44 | R96: 0.63 | S96: 1.01 | T96: 1.07 | U96: 1.25 | V96: 1.25 | W96: 0.63 | X96: 0.43 | Y96: 0.62 | Z96: 0.99 | AA96: 1.05 | AB96: 1.23 | AC96: 1.23 | AD96: 0.62 | AE96: 0.0002 | AF96: 0.0004 | AG96: 0.0006 | AH96: 0.0006 | AI96: 0.0007 | AJ96: 0.0007 | AK96: 0.0004 | AL96: =VLOOKUP(H96,powierzchnie!$A$6:$F$253,6,FALSE) -> 92.7 | AM96: 9,152 | AN96: 2 | AO96: 5 | AP96: 10 | AQ96: 900 | AR96: 1280 | AS96: 2050 | AT96: 2180 | AU96: 2560 | AV96: 2560 | AW96: 1280
A97: 2404132 | B97: Poczesna (2) | C97: śląskie | D97: 2404 | E97: =VLOOKUP(D97,katalogi!$A$3:$C$38,katalogi!$B$1,FALSE) -> częstochowski | F97: PL2405 | H97: 2404122 | I97: Olsztyn (2) | J97: Olsztyn | K97: gmina wiejska | L97: częstochowski | M97: PL2405 | N97: =VLOOKUP($M97,'katalog zadań'!$A$3:$B$7,2,FALSE) -> PL2405_ZSO | O97: =VLOOKUP($M97,'katalog zadań'!$A$8:$B$12,2,FALSE) -> PL2405_EE | P97: =VLOOKUP($M97,'katalog zadań'!$A$13:$B$17,2,FALSE) -> PL2405_KPP | Q97: 0 | R97: 0 | S97: 0 | T97: 0 | U97: 0 | V97: 0 | W97: 0 | X97: 0 | Y97: 0 | Z97: 0 | AA97: 0 | AB97: 0 | AC97: 0 | AD97: 0 | AE97: 0 | AF97: 0 | AG97: 0 | AH97: 0 | AI97: 0 | AJ97: 0 | AK97: 0 | AL97: =VLOOKUP(H97,powierzchnie!$A$6:$F$253,6,FALSE) -> 101.5 | AM97: 7,822 | AN97: 2 | AO97: 5 | AP97: 10 | AQ97: 0 | AR97: 0 | AS97: 0 | AT97: 0 | AU97: 0 | AV97: 0 | AW97: 0
A98: 2404142 | B98: Przyrów (2) | C98: śląskie | D98: 2404 | E98: =VLOOKUP(D98,katalogi!$A$3:$C$38,katalogi!$B$1,FALSE) -> częstochowski | F98: PL2405 | H98: 2406052 | I98: Opatów (2) | J98: Opatów | K98: gmina wiejska | L98: kłobucki | M98: PL2405 | N98: =VLOOKUP($M98,'katalog zadań'!$A$3:$B$7,2,FALSE) -> PL2405_ZSO | O98: =VLOOKUP($M98,'katalog zadań'!$A$8:$B$12,2,FALSE) -> PL2405_EE | P98: =VLOOKUP($M98,'katalog zadań'!$A$13:$B$17,2,FALSE) -> PL2405_KPP | Q98: 0.19 | R98: 0.27 | S98: 0.42 | T98: 0.44 | U98: 0.52 | V98: 0.52 | W98: 0.27 | X98: 0.18 | Y98: 0.26 | Z98: 0.41 | AA98: 0.43 | AB98: 0.51 | AC98: 0.51 | AD98: 0.26 | AE98: 0.0001 | AF98: 0.0001 | AG98: 0.0002 | AH98: 0.0002 | AI98: 0.0003 | AJ98: 0.0003 | AK98: 0.0001 | AL98: =VLOOKUP(H98,powierzchnie!$A$6:$F$253,6,FALSE) -> 102.4 | AM98: 6,824 | AN98: 2 | AO98: 5 | AP98: 10 | AQ98: 370 | AR98: 530 | AS98: 850 | AT98: 900 | AU98: 1060 | AV98: 1060 | AW98: 530
A99: 2404152 | B99: Rędziny (2) | C99: śląskie | D99: 2404 | E99: =VLOOKUP(D99,katalogi!$A$3:$C$38,katalogi!$B$1,FALSE) -> częstochowski | F99: PL2405 | H99: 2408042 | I99: Ornontowice (2) | J99: Ornontowice | K99: gmina wiejska | L99: mikołowski | M99: PL2405 | N99: =VLOOKUP($M99,'katalog zadań'!$A$3:$B$7,2,FALSE) -> PL2405_ZSO | O99: =VLOOKUP($M99,'katalog zadań'!$A$8:$B$12,2,FALSE) -> PL2405_EE | P99: =VLOOKUP($M99,'katalog zadań'!$A$13:$B$17,2,FALSE) -> PL2405_KPP | Q99: 0.03 | R99: 0.03 | S99: 0.05 | T99: 0.05 | U99: 0.81 | V99: 0.81 | W99: 1.03 | X99: 0.02 | Y99: 0.02 | Z99: 0.04 | AA99: 0.04 | AB99: 0.79 | AC99: 0.79 | AD99: 1.01 | AE99: 0 | AF99: 0 | AG99: 0 | AH99: 0 | AI99: 0.0004 | AJ99: 0.0004 | AK99: 0.0006 | AL99: =VLOOKUP(H99,powierzchnie!$A$6:$F$253,6,FALSE) -> 88.6 | AM99: 6,073 | AN99: 2 | AO99: 5 | AP99: 10 | AQ99: 40 | AR99: 50 | AS99: 80 | AT99: 80 | AU99: 1630 | AV99: 1630 | AW99: 2090
A100: 2404162 | B100: Starcza (2) | C100: śląskie | D100: 2404 | E100: =VLOOKUP(D100,katalogi!$A$3:$C$38,katalogi!$B$1,FALSE) -> częstochowski | F100: PL2405 | H100: 2408031 | I100: Orzesze (1) | J100: Orzesze | K100: gmina miejska | L100: mikołowski | M100: PL2405 | N100: =VLOOKUP($M100,'katalog zadań'!$A$3:$B$7,2,FALSE) -> PL2405_ZSO | O100: =VLOOKUP($M100,'katalog zadań'!$A$8:$B$12,2,FALSE) -> PL2405_EE | P100: =VLOOKUP($M100,'katalog zadań'!$A$13:$B$17,2,FALSE) -> PL2405_KPP | Q100: 0.39 | R100: 0.54 | S100: 0.87 | T100: 0.93 | U100: 2.48 | V100: 2.48 | W100: 2.41 | X100: 0.38 | Y100: 0.53 | Z100: 0.85 | AA100: 0.91 | AB100: 2.44 | AC100: 2.44 | AD100: 2.37 | AE100: 0.0002 | AF100: 0.0003 | AG100: 0.0005 | AH100: 0.0005 | AI100: 0.0014 | AJ100: 0.0014 | AK100: 0.0013 | AL100: =VLOOKUP(H100,powierzchnie!$A$6:$F$253,6,FALSE) -> 99.0 | AM100: 20,927 | AN100: 2 | AO100: 5 | AP100: 10 | AQ100: 780 | AR100: 1110 | AS100: 1770 | AT100: 1880 | AU100: 5070 | AV100: 5070 | AW100: 4920
A101: 2406 | B101: Powiat kłobucki | C101: śląskie | D101: 2406 | E101: =VLOOKUP(D101,katalogi!$A$3:$C$38,katalogi!$B$1,FALSE) -> kłobucki | F101: PL2405 | H101: 2413062 | I101: Ożarowice * (2) | J101: Ożarowice | K101: gmina wiejska | L101: tarnogórski | M101: PL2405 | N101: =VLOOKUP($M101,'katalog zadań'!$A$3:$B$7,2,FALSE) -> PL2405_ZSO | O101: =VLOOKUP($M101,'katalog zadań'!$A$8:$B$12,2,FALSE) -> PL2405_EE | P101: =VLOOKUP($M101,'katalog zadań'!$A$13:$B$17,2,FALSE) -> PL2405_KPP | Q101: 0.34 | R101: 0.48 | S101: 0.77 | T101: 0.82 | U101: 1.03 | V101: 1.03 | W101: 0.58 | X101: 0.33 | Y101: 0.47 | Z101: 0.75 | AA101: 0.8 | AB101: 1.01 | AC101: 1.01 | AD101: 0.57 | AE101: 0.0002 | AF101: 0.0003 | AG101: 0.0004 | AH101: 0.0005 | AI101: 0.0006 | AJ101: 0.0006 | AK101: 0.0003 | AL101: =VLOOKUP(H101,powierzchnie!$A$6:$F$253,6,FALSE) -> 112.4 | AM101: 5,793 | AN101: 2 | AO101: 5 | AP101: 10 | AQ101: 680 | AR101: 970 | AS101: 1550 | AT101: 1650 | AU101: 2100 | AV101: 2100 | AW101: 1190
A102: 2406013 | B102: Kłobuck (3) | C102: śląskie | D102: 2406 | E102: =VLOOKUP(D102,katalogi!$A$3:$C$38,katalogi!$B$1,FALSE) -> kłobucki | F102: PL2405 | H102: 2406062 | I102: Panki (2) | J102: Panki | K102: gmina wiejska | L102: kłobucki | M102: PL2405 | N102: =VLOOKUP($M102,'katalog zadań'!$A$3:$B$7,2,FALSE) -> PL2405_ZSO | O102: =VLOOKUP($M102,'katalog zadań'!$A$8:$B$12,2,FALSE) -> PL2405_EE | P102: =VLOOKUP($M102,'katalog zadań'!$A$13:$B$17,2,FALSE) -> PL2405_KPP | Q102: 0.14 | R102: 0.19 | S102: 0.3 | T102: 0.32 | U102: 0.38 | V102: 0.38 | W102: 0.19 | X102: 0.13 | Y102: 0.18 | Z102: 0.29 | AA102: 0.31 | AB102: 0.37 | AC102: 0.37 | AD102: 0.18 | AE102: 0.0001 | AF102: 0.0001 | AG102: 0.0002 | AH102: 0.0002 | AI102: 0.0002 | AJ102: 0.0002 | AK102: 0.0001 | AL102: =VLOOKUP(H102,powierzchnie!$A$6:$F$253,6,FALSE) -> 97.7 | AM102: 5,109 | AN102: 2 | AO102: 5 | AP102: 10 | AQ102: 270 | AR102: 380 | AS102: 610 | AT102: 650 | AU102: 760 | AV102: 760 | AW102: 380
A103: 2406014 | B103: Kłobuck - miasto (4) | C103: śląskie | D103: 2406 | E103: =VLOOKUP(D103,katalogi!$A$3:$C$38,katalogi!$B$1,FALSE) -> kłobucki | F103: PL2405 | H103: 2410042 | I103: Pawłowice (2) | J103: Pawłowice | K103: gmina wiejska | L103: pszczyński | M103: PL2405 | N103: =VLOOKUP($M103,'katalog zadań'!$A$3:$B$7,2,FALSE) -> PL2405_ZSO | O103: =VLOOKUP($M103,'katalog zadań'!$A$8:$B$12,2,FALSE) -> PL2405_EE | P103: =VLOOKUP($M103,'katalog zadań'!$A$13:$B$17,2,FALSE) -> PL2405_KPP | Q103: 0.13 | R103: 0.18 | S103: 0.28 | T103: 0.29 | U103: 1.28 | V103: 1.28 | W103: 1.44 | X103: 0.12 | Y103: 0.17 | Z103: 0.27 | AA103: 0.28 | AB103: 1.26 | AC103: 1.26 | AD103: 1.41 | AE103: 0.0001 | AF103: 0.0001 | AG103: 0.0002 | AH103: 0.0002 | AI103: 0.0007 | AJ103: 0.0007 | AK103: 0.0008 | AL103: =VLOOKUP(H103,powierzchnie!$A$6:$F$253,6,FALSE) -> 99.8 | AM103: 18,197 | AN103: 2 | AO103: 5 | AP103: 10 | AQ103: 250 | AR103: 350 | AS103: 550 | AT103: 590 | AU103: 2620 | AV103: 2620 | AW103: 2920
A104: 2406015 | B104: Kłobuck - obszar wiejski (5) | C104: śląskie | D104: 2406 | E104: =VLOOKUP(D104,katalogi!$A$3:$C$38,katalogi!$B$1,FALSE) -> kłobucki | F104: PL2405 | H104: 2407072 | I104: Pawonków (2) | J104: Pawonków | K104: gmina wiejska | L104: lubliniecki | M104: PL2405 | N104: =VLOOKUP($M104,'katalog zadań'!$A$3:$B$7,2,FALSE) -> PL2405_ZSO | O104: =VLOOKUP($M104,'katalog zadań'!$A$8:$B$12,2,FALSE) -> PL2405_EE | P104: =VLOOKUP($M104,'katalog zadań'!$A$13:$B$17,2,FALSE) -> PL2405_KPP | Q104: 0.43 | R104: 0.6 | S104: 0.97 | T104: 1.03 | U104: 1.21 | V104: 1.21 | W104: 0.6 | X104: 0.42 | Y104: 0.59 | Z104: 0.95 | AA104: 1.01 | AB104: 1.19 | AC104: 1.19 | AD104: 0.59 | AE104: 0.0002 | AF104: 0.0003 | AG104: 0.0005 | AH104: 0.0006 | AI104: 0.0007 | AJ104: 0.0007 | AK104: 0.0003 | AL104: =VLOOKUP(H104,powierzchnie!$A$6:$F$253,6,FALSE) -> 96.2 | AM104: 6,650 | AN104: 2 | AO104: 5 | AP104: 10 | AQ104: 870 | AR104: 1230 | AS104: 1970 | AT104: 2100 | AU104: 2460 | AV104: 2460 | AW104: 1230
A105: 2406023 | B105: Krzepice (3) | C105: śląskie | D105: 2406 | E105: =VLOOKUP(D105,katalogi!$A$3:$C$38,katalogi!$B$1,FALSE) -> kłobucki | F105: PL2405 | H105: 2471011 | I105: Piekary Śląskie (1) | J105: Piekary Śląskie | K105: powiat grodzki | L105: m. Piekary Śląskie | M105: PL2401 | N105: =VLOOKUP($M105,'katalog zadań'!$A$3:$B$7,2,FALSE) -> PL2401_ZSO | O105: =VLOOKUP($M105,'katalog zadań'!$A$8:$B$12,2,FALSE) -> PL2401_EE | P105: =VLOOKUP($M105,'katalog zadań'!$A$13:$B$17,2,FALSE) -> PL2401_KPP | Q105: 0.18 | R105: 0.26 | S105: 0.41 | T105: 0.43 | U105: 9.72 | V105: 9.72 | W105: 12.54 | X105: 0.17 | Y105: 0.25 | Z105: 0.4 | AA105: 0.42 | AB105: 9.57 | AC105: 9.57 | AD105: 12.35 | AE105: 0.0001 | AF105: 0.0001 | AG105: 0.0002 | AH105: 0.0002 | AI105: 0.0054 | AJ105: 0.0054 | AK105: 0.007 | AL105: =VLOOKUP(H105,powierzchnie!$A$6:$F$253,6,FALSE) -> 61.8 | AM105: 55,299 | AN105: 5 | AO105: 10 | AP105: 50 | AQ105: 360 | AR105: 510 | AS105: 820 | AT105: 870 | AU105: 19860 | AV105: 19860 | AW105: 25630
A106: 2406024 | B106: Krzepice - miasto (4) | C106: śląskie | D106: 2406 | E106: =VLOOKUP(D106,katalogi!$A$3:$C$38,katalogi!$B$1,FALSE) -> kłobucki | F106: PL2405 | H106: 2411072 | I106: Pietrowice Wielkie (2) | J106: Pietrowice Wielkie | K106: gmina wiejska | L106: raciborski | M106: PL2405 | N106: =VLOOKUP($M106,'katalog zadań'!$A$3:$B$7,2,FALSE) -> PL2405_ZSO | O106: =VLOOKUP($M106,'katalog zadań'!$A$8:$B$12,2,FALSE) -> PL2405_EE | P106: =VLOOKUP($M106,'katalog zadań'!$A$13:$B$17,2,FALSE) -> PL2405_KPP | Q106: 0.71 | R106: 1.01 | S106: 1.61 | T106: 1.71 | U106: 2 | V106: 2 | W106: 1.01 | X106: 0.69 | Y106: 0.99 | Z106: 1.58 | AA106: 1.68 | AB106: 1.97 | AC106: 1.97 | AD106: 0.99 | AE106: 0.0004 | AF106: 0.0006 | AG106: 0.0009 | AH106: 0.001 | AI106: 0.0011 | AJ106: 0.0011 | AK106: 0.0006 | AL106: =VLOOKUP(H106,powierzchnie!$A$6:$F$253,6,FALSE) -> 103.2 | AM106: 6,910 | AN106: 2 | AO106: 5 | AP106: 10 | AQ106: 1440 | AR106: 2050 | AS106: 3270 | AT106: 3480 | AU106: 4090 | AV106: 4090 | AW106: 2050
A107: 2406025 | B107: Krzepice - obszar wiejski (5) | C107: śląskie | D107: 2406 | E107: =VLOOKUP(D107,katalogi!$A$3:$C$38,katalogi!$B$1,FALSE) -> kłobucki | F107: PL2405 | H107: 2405042 | I107: Pilchowice (2) | J107: Pilchowice | K107: gmina wiejska | L107: gliwicki | M107: PL2405 | N107: =VLOOKUP($M107,'katalog zadań'!$A$3:$B$7,2,FALSE) -> PL2405_ZSO | O107: =VLOOKUP($M107,'katalog zadań'!$A$8:$B$12,2,FALSE) -> PL2405_EE | P107: =VLOOKUP($M107,'katalog zadań'!$A$13:$B$17,2,FALSE) -> PL2405_KPP | Q107: 0.92 | R107: 1.31 | S107: 2.09 | T107: 2.22 | U107: 2.61 | V107: 2.61 | W107: 1.31 | X107: 0.9 | Y107: 1.29 | Z107: 2.05 | AA107: 2.18 | AB107: 2.57 | AC107: 2.57 | AD107: 1.29 | AE107: 0.0005 | AF107: 0.0007 | AG107: 0.0012 | AH107: 0.0012 | AI107: 0.0015 | AJ107: 0.0015 | AK107: 0.0007 | AL107: =VLOOKUP(H107,powierzchnie!$A$6:$F$253,6,FALSE) -> 109.7 | AM107: 11,887 | AN107: 2 | AO107: 5 | AP107: 10 | AQ107: 1870 | AR107: 2670 | AS107: 4260 | AT107: 4530 | AU107: 5330 | AV107: 5330 | AW107: 2670
A108: 2406032 | B108: Lipie (2) | C108: śląskie | D108: 2406 | E108: =VLOOKUP(D108,katalogi!$A$3:$C$38,katalogi!$B$1,FALSE) -> kłobucki | F108: PL2405 | H108: 2416073 | I108: Pilica (3) | J108: Pilica | K108: gmina miejsko-wiejska | L108: zawierciański | M108: PL2405 | N108: =VLOOKUP($M108,'katalog zadań'!$A$3:$B$7,2,FALSE) -> PL2405_ZSO | O108: =VLOOKUP($M108,'katalog zadań'!$A$8:$B$12,2,FALSE) -> PL2405_EE | P108: =VLOOKUP($M108,'katalog zadań'!$A$13:$B$17,2,FALSE) -> PL2405_KPP | Q108: 0.41 | R108: 0.58 | S108: 0.94 | T108: 0.99 | U108: 1.16 | V108: 1.16 | W108: 0.58 | X108: 0.4 | Y108: 0.57 | Z108: 0.92 | AA108: 0.97 | AB108: 1.14 | AC108: 1.14 | AD108: 0.57 | AE108: 0.0002 | AF108: 0.0003 | AG108: 0.0005 | AH108: 0.0006 | AI108: 0.0006 | AJ108: 0.0006 | AK108: 0.0003 | AL108: =VLOOKUP(H108,powierzchnie!$A$6:$F$253,6,FALSE) -> 85.0 | AM108: 8,640 | AN108: 2 | AO108: 5 | AP108: 10 | AQ108: 830 | AR108: 1190 | AS108: 1900 | AT108: 2020 | AU108: 2370 | AV108: 2370 | AW108: 1190
A109: 2406042 | B109: Miedźno (2) | C109: śląskie | D109: 2406 | E109: =VLOOKUP(D109,katalogi!$A$3:$C$38,katalogi!$B$1,FALSE) -> kłobucki | F109: PL2405 | H109: 2404132 | I109: Poczesna (2) | J109: Poczesna | K109: gmina wiejska | L109: częstochowski | M109: PL2405 | N109: =VLOOKUP($M109,'katalog zadań'!$A$3:$B$7,2,FALSE) -> PL2405_ZSO | O109: =VLOOKUP($M109,'katalog zadań'!$A$8:$B$12,2,FALSE) -> PL2405_EE | P109: =VLOOKUP($M109,'katalog zadań'!$A$13:$B$17,2,FALSE) -> PL2405_KPP | Q109: 0.18 | R109: 0.26 | S109: 0.41 | T109: 0.43 | U109: 0.5 | V109: 0.5 | W109: 0.26 | X109: 0.17 | Y109: 0.25 | Z109: 0.4 | AA109: 0.42 | AB109: 0.49 | AC109: 0.49 | AD109: 0.25 | AE109: 0.0001 | AF109: 0.0001 | AG109: 0.0002 | AH109: 0.0002 | AI109: 0.0003 | AJ109: 0.0003 | AK109: 0.0001 | AL109: =VLOOKUP(H109,powierzchnie!$A$6:$F$253,6,FALSE) -> 93.1 | AM109: 12,700 | AN109: 2 | AO109: 5 | AP109: 10 | AQ109: 360 | AR109: 510 | AS109: 820 | AT109: 870 | AU109: 1020 | AV109: 1020 | AW109: 510
A110: 2406052 | B110: Opatów (2) | C110: śląskie | D110: 2406 | E110: =VLOOKUP(D110,katalogi!$A$3:$C$38,katalogi!$B$1,FALSE) -> kłobucki | F110: PL2405 | H110: 2406072 | I110: Popów (2) | J110: Popów | K110: gmina wiejska | L110: kłobucki | M110: PL2405 | N110: =VLOOKUP($M110,'katalog zadań'!$A$3:$B$7,2,FALSE) -> PL2405_ZSO | O110: =VLOOKUP($M110,'katalog zadań'!$A$8:$B$12,2,FALSE) -> PL2405_EE | P110: =VLOOKUP($M110,'katalog zadań'!$A$13:$B$17,2,FALSE) -> PL2405_KPP | Q110: 0.14 | R110: 0.2 | S110: 0.31 | T110: 0.33 | U110: 0.39 | V110: 0.39 | W110: 0.2 | X110: 0.13 | Y110: 0.19 | Z110: 0.3 | AA110: 0.32 | AB110: 0.38 | AC110: 0.38 | AD110: 0.19 | AE110: 0.0001 | AF110: 0.0001 | AG110: 0.0002 | AH110: 0.0002 | AI110: 0.0002 | AJ110: 0.0002 | AK110: 0.0001 | AL110: =VLOOKUP(H110,powierzchnie!$A$6:$F$253,6,FALSE) -> 98.9 | AM110: 5,883 | AN110: 2 | AO110: 5 | AP110: 10 | AQ110: 280 | AR110: 390 | AS110: 630 | AT110: 660 | AU110: 780 | AV110: 780 | AW110: 390
A111: 2406062 | B111: Panki (2) | C111: śląskie | D111: 2406 | E111: =VLOOKUP(D111,katalogi!$A$3:$C$38,katalogi!$B$1,FALSE) -> kłobucki | F111: PL2405 | H111: 2409042 | I111: Poraj (2) | J111: Poraj | K111: gmina wiejska | L111: myszkowski | M111: PL2405 | N111: =VLOOKUP($M111,'katalog zadań'!$A$3:$B$7,2,FALSE) -> PL2405_ZSO | O111: =VLOOKUP($M111,'katalog zadań'!$A$8:$B$12,2,FALSE) -> PL2405_EE | P111: =VLOOKUP($M111,'katalog zadań'!$A$13:$B$17,2,FALSE) -> PL2405_KPP | Q111: 0.32 | R111: 0.45 | S111: 0.73 | T111: 0.78 | U111: 0.91 | V111: 0.91 | W111: 0.45 | X111: 0.31 | Y111: 0.44 | Z111: 0.71 | AA111: 0.76 | AB111: 0.89 | AC111: 0.89 | AD111: 0.44 | AE111: 0.0002 | AF111: 0.0003 | AG111: 0.0004 | AH111: 0.0004 | AI111: 0.0005 | AJ111: 0.0005 | AK111: 0.0003 | AL111: =VLOOKUP(H111,powierzchnie!$A$6:$F$253,6,FALSE) -> 98.2 | AM111: 10,919 | AN111: 2 | AO111: 5 | AP111: 10 | AQ111: 650 | AR111: 920 | AS111: 1480 | AT111: 1570 | AU111: 1840 | AV111: 1840 | AW111: 920
A112: 2406072 | B112: Popów (2) | C112: śląskie | D112: 2406 | E112: =VLOOKUP(D112,katalogi!$A$3:$C$38,katalogi!$B$1,FALSE) -> kłobucki | F112: PL2405 | H112: 2402082 | I112: Porąbka (2) | J112: Porąbka | K112: gmina wiejska | L112: bielski | M112: PL2405 | N112: =VLOOKUP($M112,'katalog zadań'!$A$3:$B$7,2,FALSE) -> PL2405_ZSO | O112: =VLOOKUP($M112,'katalog zadań'!$A$8:$B$12,2,FALSE) -> PL2405_EE | P112: =VLOOKUP($M112,'katalog zadań'!$A$13:$B$17,2,FALSE) -> PL2405_KPP | Q112: 0.07 | R112: 0.1 | S112: 0.15 | T112: 0.16 | U112: 0.18 | V112: 0.18 | W112: 0.1 | X112: 0.06 | Y112: 0.09 | Z112: 0.14 | AA112: 0.15 | AB112: 0.17 | AC112: 0.17 | AD112: 0.09 | AE112: 0 | AF112: 0 | AG112: 0.0001 | AH112: 0.0001 | AI112: 0.0001 | AJ112: 0.0001 | AK112: 0 | AL112: =VLOOKUP(H112,powierzchnie!$A$6:$F$253,6,FALSE) -> 96.1 | AM112: 15,589 | AN112: 2 | AO112: 5 | AP112: 10 | AQ112: 130 | AR112: 180 | AS112: 290 | AT112: 310 | AU112: 360 | AV112: 360 | AW112: 180
A113: 2406082 | B113: Przystajń (2) | C113: śląskie | D113: 2406 | E113: =VLOOKUP(D113,katalogi!$A$3:$C$38,katalogi!$B$1,FALSE) -> kłobucki | F113: PL2405 | H113: 2416011 | I113: Poręba (1) | J113: Poręba | K113: gmina miejska | L113: zawierciański | M113: PL2405 | N113: =VLOOKUP($M113,'katalog zadań'!$A$3:$B$7,2,FALSE) -> PL2405_ZSO | O113: =VLOOKUP($M113,'katalog zadań'!$A$8:$B$12,2,FALSE) -> PL2405_EE | P113: =VLOOKUP($M113,'katalog zadań'!$A$13:$B$17,2,FALSE) -> PL2405_KPP | Q113: 0.33 | R113: 0.47 | S113: 0.76 | T113: 0.81 | U113: 0.94 | V113: 0.94 | W113: 0.47 | X113: 0.32 | Y113: 0.46 | Z113: 0.74 | AA113: 0.79 | AB113: 0.92 | AC113: 0.92 | AD113: 0.46 | AE113: 0.0002 | AF113: 0.0003 | AG113: 0.0004 | AH113: 0.0004 | AI113: 0.0005 | AJ113: 0.0005 | AK113: 0.0003 | AL113: =VLOOKUP(H113,powierzchnie!$A$6:$F$253,6,FALSE) -> 72.2 | AM113: 8,568 | AN113: 2 | AO113: 5 | AP113: 10 | AQ113: 670 | AR113: 960 | AS113: 1530 | AT113: 1630 | AU113: 1910 | AV113: 1910 | AW113: 960
A114: 2406092 | B114: Wręczyca Wielka (2) | C114: śląskie | D114: 2406 | E114: =VLOOKUP(D114,katalogi!$A$3:$C$38,katalogi!$B$1,FALSE) -> kłobucki | F114: PL2405 | H114: 2404142 | I114: Przyrów (2) | J114: Przyrów | K114: gmina wiejska | L114: częstochowski | M114: PL2405 | N114: =VLOOKUP($M114,'katalog zadań'!$A$3:$B$7,2,FALSE) -> PL2405_ZSO | O114: =VLOOKUP($M114,'katalog zadań'!$A$8:$B$12,2,FALSE) -> PL2405_EE | P114: =VLOOKUP($M114,'katalog zadań'!$A$13:$B$17,2,FALSE) -> PL2405_KPP | Q114: 0.05 | R114: 0.07 | S114: 0.1 | T114: 0.1 | U114: 0.12 | V114: 0.12 | W114: 0.07 | X114: 0.04 | Y114: 0.06 | Z114: 0.09 | AA114: 0.09 | AB114: 0.11 | AC114: 0.11 | AD114: 0.06 | AE114: 0 | AF114: 0 | AG114: 0 | AH114: 0.0001 | AI114: 0.0001 | AJ114: 0.0001 | AK114: 0 | AL114: =VLOOKUP(H114,powierzchnie!$A$6:$F$253,6,FALSE) -> 77.6 | AM114: 3,779 | AN114: 2 | AO114: 5 | AP114: 10 | AQ114: 80 | AR114: 120 | AS114: 180 | AT114: 190 | AU114: 230 | AV114: 230 | AW114: 120
A115: 2409 | B115: Powiat myszkowski | C115: śląskie | D115: 2409 | E115: =VLOOKUP(D115,katalogi!$A$3:$C$38,katalogi!$B$1,FALSE) -> myszkowski | F115: PL2405 | H115: 2406082 | I115: Przystajń (2) | J115: Przystajń | K115: gmina wiejska | L115: kłobucki | M115: PL2405 | N115: =VLOOKUP($M115,'katalog zadań'!$A$3:$B$7,2,FALSE) -> PL2405_ZSO | O115: =VLOOKUP($M115,'katalog zadań'!$A$8:$B$12,2,FALSE) -> PL2405_EE | P115: =VLOOKUP($M115,'katalog zadań'!$A$13:$B$17,2,FALSE) -> PL2405_KPP | Q115: 0.17 | R115: 0.24 | S115: 0.37 | T115: 0.39 | U115: 0.46 | V115: 0.46 | W115: 0.24 | X115: 0.16 | Y115: 0.23 | Z115: 0.36 | AA115: 0.38 | AB115: 0.45 | AC115: 0.45 | AD115: 0.23 | AE115: 0.0001 | AF115: 0.0001 | AG115: 0.0002 | AH115: 0.0002 | AI115: 0.0003 | AJ115: 0.0003 | AK115: 0.0001 | AL115: =VLOOKUP(H115,powierzchnie!$A$6:$F$253,6,FALSE) -> 92.5 | AM115: 5,894 | AN115: 2 | AO115: 5 | AP115: 10 | AQ115: 330 | AR115: 470 | AS115: 750 | AT115: 790 | AU115: 930 | AV115: 930 | AW115: 470
A116: 2409011 | B116: Myszków (1) | C116: śląskie | D116: 2409 | E116: =VLOOKUP(D116,katalogi!$A$3:$C$38,katalogi!$B$1,FALSE) -> myszkowski | F116: PL2405 | H116: 2401062 | I116: Psary (2) | J116: Psary | K116: gmina wiejska | L116: będziński | M116: PL2405 | N116: =VLOOKUP($M116,'katalog zadań'!$A$3:$B$7,2,FALSE) -> PL2405_ZSO | O116: =VLOOKUP($M116,'katalog zadań'!$A$8:$B$12,2,FALSE) -> PL2405_EE | P116: =VLOOKUP($M116,'katalog zadań'!$A$13:$B$17,2,FALSE) -> PL2405_KPP | Q116: 0.66 | R116: 0.94 | S116: 1.5 | T116: 1.59 | U116: 2.44 | V116: 2.44 | W116: 1.7 | X116: 0.65 | Y116: 0.92 | Z116: 1.47 | AA116: 1.56 | AB116: 2.4 | AC116: 2.4 | AD116: 1.67 | AE116: 0.0004 | AF116: 0.0005 | AG116: 0.0008 | AH116: 0.0009 | AI116: 0.0014 | AJ116: 0.0014 | AK116: 0.001 | AL116: =VLOOKUP(H116,powierzchnie!$A$6:$F$253,6,FALSE) -> 96.3 | AM116: 12,117 | AN116: 2 | AO116: 5 | AP116: 10 | AQ116: 1340 | AR116: 1910 | AS116: 3050 | AT116: 3240 | AU116: 4980 | AV116: 4980 | AW116: 3470
A117: 2409023 | B117: Koziegłowy (3) | C117: śląskie | D117: 2409 | E117: =VLOOKUP(D117,katalogi!$A$3:$C$38,katalogi!$B$1,FALSE) -> myszkowski | F117: PL2405 | H117: 2410053 | I117: Pszczyna (3) | J117: Pszczyna | K117: gmina miejsko-wiejska | L117: pszczyński | M117: PL2405 | N117: =VLOOKUP($M117,'katalog zadań'!$A$3:$B$7,2,FALSE) -> PL2405_ZSO | O117: =VLOOKUP($M117,'katalog zadań'!$A$8:$B$12,2,FALSE) -> PL2405_EE | P117: =VLOOKUP($M117,'katalog zadań'!$A$13:$B$17,2,FALSE) -> PL2405_KPP | Q117: 0.03 | R117: 0.04 | S117: 0.06 | T117: 0.06 | U117: 4.62 | V117: 4.62 | W117: 6.12 | X117: 0.02 | Y117: 0.03 | Z117: 0.05 | AA117: 0.05 | AB117: 4.55 | AC117: 4.55 | AD117: 6.02 | AE117: 0 | AF117: 0 | AG117: 0 | AH117: 0 | AI117: 0.0026 | AJ117: 0.0026 | AK117: 0.0034 | AL117: =VLOOKUP(H117,powierzchnie!$A$6:$F$253,6,FALSE) -> 98.7 | AM117: 52,578 | AN117: 5 | AO117: 10 | AP117: 20 | AQ117: 50 | AR117: 60 | AS117: 100 | AT117: 100 | AU117: 9440 | AV117: 9440 | AW117: 12490
A118: 2409024 | B118: Koziegłowy - miasto (4) | C118: śląskie | D118: 2409 | E118: =VLOOKUP(D118,katalogi!$A$3:$C$38,katalogi!$B$1,FALSE) -> myszkowski | F118: PL2405 | H118: 2415011 | I118: Pszów (1) | J118: Pszów | K118: gmina miejska | L118: wodzisławski | M118: PL2405 | N118: =VLOOKUP($M118,'katalog zadań'!$A$3:$B$7,2,FALSE) -> PL2405_ZSO | O118: =VLOOKUP($M118,'katalog zadań'!$A$8:$B$12,2,FALSE) -> PL2405_EE | P118: =VLOOKUP($M118,'katalog zadań'!$A$13:$B$17,2,FALSE) -> PL2405_KPP | Q118: 0.05 | R118: 0.06 | S118: 0.09 | T118: 0.1 | U118: 0.54 | V118: 0.54 | W118: 0.64 | X118: 0.04 | Y118: 0.05 | Z118: 0.08 | AA118: 0.09 | AB118: 0.53 | AC118: 0.53 | AD118: 0.63 | AE118: 0 | AF118: 0 | AG118: 0 | AH118: 0 | AI118: 0.0003 | AJ118: 0.0003 | AK118: 0.0004 | AL118: =VLOOKUP(H118,powierzchnie!$A$6:$F$253,6,FALSE) -> 79.7 | AM118: 13,994 | AN118: 2 | AO118: 5 | AP118: 10 | AQ118: 80 | AR118: 110 | AS118: 170 | AT118: 180 | AU118: 1110 | AV118: 1110 | AW118: 1310
A119: 2409025 | B119: Koziegłowy - obszar wiejski (5) | C119: śląskie | D119: 2409 | E119: =VLOOKUP(D119,katalogi!$A$3:$C$38,katalogi!$B$1,FALSE) -> myszkowski | F119: PL2405 | H119: 2405021 | I119: Pyskowice (1) | J119: Pyskowice | K119: gmina miejska | L119: gliwicki | M119: PL2405 | N119: =VLOOKUP($M119,'katalog zadań'!$A$3:$B$7,2,FALSE) -> PL2405_ZSO | O119: =VLOOKUP($M119,'katalog zadań'!$A$8:$B$12,2,FALSE) -> PL2405_EE | P119: =VLOOKUP($M119,'katalog zadań'!$A$13:$B$17,2,FALSE) -> PL2405_KPP | Q119: 0.22 | R119: 0.3 | S119: 0.48 | T119: 0.51 | U119: 0.6 | V119: 0.6 | W119: 0.3 | X119: 0.21 | Y119: 0.29 | Z119: 0.47 | AA119: 0.5 | AB119: 0.59 | AC119: 0.59 | AD119: 0.29 | AE119: 0.0001 | AF119: 0.0002 | AG119: 0.0003 | AH119: 0.0003 | AI119: 0.0003 | AJ119: 0.0003 | AK119: 0.0002 | AL119: =VLOOKUP(H119,powierzchnie!$A$6:$F$253,6,FALSE) -> 59.9 | AM119: 18,456 | AN119: 2 | AO119: 5 | AP119: 10 | AQ119: 430 | AR119: 610 | AS119: 980 | AT119: 1040 | AU119: 1220 | AV119: 1220 | AW119: 610
A120: 2409032 | B120: Niegowa (2) | C120: śląskie | D120: 2409 | E120: =VLOOKUP(D120,katalogi!$A$3:$C$38,katalogi!$B$1,FALSE) -> myszkowski | F120: PL2405 | H120: 2411011 | I120: Racibórz (1) | J120: Racibórz | K120: gmina miejska | L120: raciborski | M120: PL2405 | N120: =VLOOKUP($M120,'katalog zadań'!$A$3:$B$7,2,FALSE) -> PL2405_ZSO | O120: =VLOOKUP($M120,'katalog zadań'!$A$8:$B$12,2,FALSE) -> PL2405_EE | P120: =VLOOKUP($M120,'katalog zadań'!$A$13:$B$17,2,FALSE) -> PL2405_KPP | Q120: 2.98 | R120: 4.26 | S120: 6.81 | T120: 7.23 | U120: 8.51 | V120: 8.51 | W120: 4.26 | X120: 2.93 | Y120: 4.19 | Z120: 6.7 | AA120: 7.12 | AB120: 8.38 | AC120: 8.38 | AD120: 4.19 | AE120: 0.0017 | AF120: 0.0024 | AG120: 0.0038 | AH120: 0.004 | AI120: 0.0048 | AJ120: 0.0048 | AK120: 0.0024 | AL120: =VLOOKUP(H120,powierzchnie!$A$6:$F$253,6,FALSE) -> 69.0 | AM120: 54,882 | AN120: 5 | AO120: 10 | AP120: 20 | AQ120: 6090 | AR120: 8690 | AS120: 13910 | AT120: 14780 | AU120: 17380 | AV120: 17380 | AW120: 8690
A121: 2409042 | B121: Poraj (2) | C121: śląskie | D121: 2409 | E121: =VLOOKUP(D121,katalogi!$A$3:$C$38,katalogi!$B$1,FALSE) -> myszkowski | F121: PL2405 | H121: 2415021 | I121: Radlin * (1) | J121: Radlin | K121: gmina miejska | L121: wodzisławski | M121: PL2405 | N121: =VLOOKUP($M121,'katalog zadań'!$A$3:$B$7,2,FALSE) -> PL2405_ZSO | O121: =VLOOKUP($M121,'katalog zadań'!$A$8:$B$12,2,FALSE) -> PL2405_EE | P121: =VLOOKUP($M121,'katalog zadań'!$A$13:$B$17,2,FALSE) -> PL2405_KPP | Q121: 0.18 | R121: 0.25 | S121: 0.4 | T121: 0.42 | U121: 3.1 | V121: 3.1 | W121: 3.73 | X121: 0.17 | Y121: 0.24 | Z121: 0.39 | AA121: 0.41 | AB121: 3.05 | AC121: 3.05 | AD121: 3.67 | AE121: 0.0001 | AF121: 0.0001 | AG121: 0.0002 | AH121: 0.0002 | AI121: 0.0017 | AJ121: 0.0017 | AK121: 0.0021 | AL121: =VLOOKUP(H121,powierzchnie!$A$6:$F$253,6,FALSE) -> 78.9 | AM121: 17,806 | AN121: 2 | AO121: 5 | AP121: 10 | AQ121: 350 | AR121: 500 | AS121: 800 | AT121: 850 | AU121: 6330 | AV121: 6330 | AW121: 7620
A122: 2409053 | B122: Żarki (3) | C122: śląskie | D122: 2409 | E122: =VLOOKUP(D122,katalogi!$A$3:$C$38,katalogi!$B$1,FALSE) -> myszkowski | F122: PL2405 | H122: 2417102 | I122: Radziechowy-Wieprz (2) | J122: Radziechowy-Wieprz | K122: gmina wiejska | L122: żywiecki | M122: PL2405 | N122: =VLOOKUP($M122,'katalog zadań'!$A$3:$B$7,2,FALSE) -> PL2405_ZSO | O122: =VLOOKUP($M122,'katalog zadań'!$A$8:$B$12,2,FALSE) -> PL2405_EE | P122: =VLOOKUP($M122,'katalog zadań'!$A$13:$B$17,2,FALSE) -> PL2405_KPP | Q122: 0.21 | R122: 0.29 | S122: 0.46 | T122: 0.49 | U122: 0.57 | V122: 0.57 | W122: 0.29 | X122: 0.2 | Y122: 0.28 | Z122: 0.45 | AA122: 0.48 | AB122: 0.56 | AC122: 0.56 | AD122: 0.28 | AE122: 0.0001 | AF122: 0.0002 | AG122: 0.0003 | AH122: 0.0003 | AI122: 0.0003 | AJ122: 0.0003 | AK122: 0.0002 | AL122: =VLOOKUP(H122,powierzchnie!$A$6:$F$253,6,FALSE) -> 94.6 | AM122: 13,095 | AN122: 2 | AO122: 5 | AP122: 10 | AQ122: 410 | AR122: 580 | AS122: 930 | AT122: 990 | AU122: 1160 | AV122: 1160 | AW122: 580
A123: 2409054 | B123: Żarki - miasto (4) | C123: śląskie | D123: 2409 | E123: =VLOOKUP(D123,katalogi!$A$3:$C$38,katalogi!$B$1,FALSE) -> myszkowski | F123: PL2405 | H123: 2413031 | I123: Radzionków * (1) | J123: Radzionków | K123: gmina miejska | L123: tarnogórski | M123: PL2405 | N123: =VLOOKUP($M123,'katalog zadań'!$A$3:$B$7,2,FALSE) -> PL2405_ZSO | O123: =VLOOKUP($M123,'katalog zadań'!$A$8:$B$12,2,FALSE) -> PL2405_EE | P123: =VLOOKUP($M123,'katalog zadań'!$A$13:$B$17,2,FALSE) -> PL2405_KPP | Q123: 1.52 | R123: 2.17 | S123: 3.46 | T123: 3.67 | U123: 4.32 | V123: 4.32 | W123: 2.17 | X123: 1.49 | Y123: 2.13 | Z123: 3.4 | AA123: 3.61 | AB123: 4.25 | AC123: 4.25 | AD123: 2.13 | AE123: 0.0008 | AF123: 0.0012 | AG123: 0.0019 | AH123: 0.0021 | AI123: 0.0024 | AJ123: 0.0024 | AK123: 0.0012 | AL123: =VLOOKUP(H123,powierzchnie!$A$6:$F$253,6,FALSE) -> 78.2 | AM123: 16,818 | AN123: 2 | AO123: 5 | AP123: 10 | AQ123: 3090 | AR123: 4410 | AS123: 7050 | AT123: 7490 | AU123: 8810 | AV123: 8810 | AW123: 4410
A124: 2409055 | B124: Żarki - obszar wiejski (5) | C124: śląskie | D124: 2409 | E124: =VLOOKUP(D124,katalogi!$A$3:$C$38,katalogi!$B$1,FALSE) -> myszkowski | F124: PL2405 | H124: 2417112 | I124: Rajcza (2) | J124: Rajcza | K124: gmina wiejska | L124: żywiecki | M124: PL2405 | N124: =VLOOKUP($M124,'katalog zadań'!$A$3:$B$7,2,FALSE) -> PL2405_ZSO | O124: =VLOOKUP($M124,'katalog zadań'!$A$8:$B$12,2,FALSE) -> PL2405_EE | P124: =VLOOKUP($M124,'katalog zadań'!$A$13:$B$17,2,FALSE) -> PL2405_KPP | Q124: 0.23 | R124: 0.32 | S124: 0.5 | T124: 0.54 | U124: 0.63 | V124: 0.63 | W124: 0.32 | X124: 0.22 | Y124: 0.31 | Z124: 0.49 | AA124: 0.53 | AB124: 0.62 | AC124: 0.62 | AD124: 0.31 | AE124: 0.0001 | AF124: 0.0002 | AG124: 0.0003 | AH124: 0.0003 | AI124: 0.0004 | AJ124: 0.0004 | AK124: 0.0002 | AL124: =VLOOKUP(H124,powierzchnie!$A$6:$F$253,6,FALSE) -> 84.6 | AM124: 8,842 | AN124: 2 | AO124: 5 | AP124: 10 | AQ124: 450 | AR124: 640 | AS124: 1020 | AT124: 1090 | AU124: 1280 | AV124: 1280 | AW124: 640
A125: 2464 | B125: Powiat m.Częstochowa | C125: śląskie | D125: 2464 | E125: =VLOOKUP(D125,katalogi!$A$3:$C$38,katalogi!$B$1,FALSE) -> m. Częstochowa | F125: PL2404 | H125: 2404152 | I125: Rędziny (2) | J125: Rędziny | K125: gmina wiejska | L125: częstochowski | M125: PL2405 | N125: =VLOOKUP($M125,'katalog zadań'!$A$3:$B$7,2,FALSE) -> PL2405_ZSO | O125: =VLOOKUP($M125,'katalog zadań'!$A$8:$B$12,2,FALSE) -> PL2405_EE | P125: =VLOOKUP($M125,'katalog zadań'!$A$13:$B$17,2,FALSE) -> PL2405_KPP | Q125: 0.08 | R125: 0.1 | S125: 0.16 | T125: 0.16 | U125: 0.19 | V125: 0.19 | W125: 0.1 | X125: 0.07 | Y125: 0.09 | Z125: 0.15 | AA125: 0.15 | AB125: 0.18 | AC125: 0.18 | AD125: 0.09 | AE125: 0 | AF125: 0.0001 | AG125: 0.0001 | AH125: 0.0001 | AI125: 0.0001 | AJ125: 0.0001 | AK125: 0.0001 | AL125: =VLOOKUP(H125,powierzchnie!$A$6:$F$253,6,FALSE) -> 89.9 | AM125: 10,012 | AN125: 2 | AO125: 5 | AP125: 10 | AQ125: 140 | AR125: 190 | AS125: 310 | AT125: 320 | AU125: 380 | AV125: 380 | AW125: 190
A126: 2464011 | B126: Częstochowa (1) | C126: śląskie | D126: 2464 | E126: =VLOOKUP(D126,katalogi!$A$3:$C$38,katalogi!$B$1,FALSE) -> m. Częstochowa | F126: PL2404 | H126: 2472011 | I126: Ruda Śląska (1) | J126: Ruda Śląska | K126: powiat grodzki | L126: m. Ruda Śląska | M126: PL2401 | N126: =VLOOKUP($M126,'katalog zadań'!$A$3:$B$7,2,FALSE) -> PL2401_ZSO | O126: =VLOOKUP($M126,'katalog zadań'!$A$8:$B$12,2,FALSE) -> PL2401_EE | P126: =VLOOKUP($M126,'katalog zadań'!$A$13:$B$17,2,FALSE) -> PL2401_KPP | Q126: 0 | R126: 0 | S126: 0 | T126: 0 | U126: 0 | V126: 0 | W126: 0 | X126: 0 | Y126: 0 | Z126: 0 | AA126: 0 | AB126: 0 | AC126: 0 | AD126: 0 | AE126: 0 | AF126: 0 | AG126: 0 | AH126: 0 | AI126: 0 | AJ126: 0 | AK126: 0 | AL126: =VLOOKUP(H126,powierzchnie!$A$6:$F$253,6,FALSE) -> 54.8 | AM126: 138,000 | AN126: 7 | AO126: 15 | AP126: 50 | AQ126: 0 | AR126: 0 | AS126: 0 | AT126: 0 | AU126: 0 | AV126: 0 | AW126: 0
A127: 2405 | B127: Powiat gliwicki | C127: śląskie | D127: 2405 | E127: =VLOOKUP(D127,katalogi!$A$3:$C$38,katalogi!$B$1,FALSE) -> gliwicki | F127: PL2405 | H127: 2411082 | I127: Rudnik (2) | J127: Rudnik | K127: gmina wiejska | L127: raciborski | M127: PL2405 | N127: =VLOOKUP($M127,'katalog zadań'!$A$3:$B$7,2,FALSE) -> PL2405_ZSO | O127: =VLOOKUP($M127,'katalog zadań'!$A$8:$B$12,2,FALSE) -> PL2405_EE | P127: =VLOOKUP($M127,'katalog zadań'!$A$13:$B$17,2,FALSE) -> PL2405_KPP | Q127: 0.56 | R127: 0.81 | S127: 1.29 | T127: 1.37 | U127: 1.61 | V127: 1.61 | W127: 0.81 | X127: 0.55 | Y127: 0.79 | Z127: 1.27 | AA127: 1.34 | AB127: 1.58 | AC127: 1.58 | AD127: 0.79 | AE127: 0.0003 | AF127: 0.0004 | AG127: 0.0007 | AH127: 0.0008 | AI127: 0.0009 | AJ127: 0.0009 | AK127: 0.0004 | AL127: =VLOOKUP(H127,powierzchnie!$A$6:$F$253,6,FALSE) -> 106.4 | AM127: 5,204 | AN127: 2 | AO127: 5 | AP127: 10 | AQ127: 1150 | AR127: 1640 | AS127: 2630 | AT127: 2790 | AU127: 3280 | AV127: 3280 | AW127: 1640
A128: 2405011 | B128: Knurów (1) | C128: śląskie | D128: 2405 | E128: =VLOOKUP(D128,katalogi!$A$3:$C$38,katalogi!$B$1,FALSE) -> gliwicki | F128: PL2405 | H128: 2405052 | I128: Rudziniec (2) | J128: Rudziniec | K128: gmina wiejska | L128: gliwicki | M128: PL2405 | N128: =VLOOKUP($M128,'katalog zadań'!$A$3:$B$7,2,FALSE) -> PL2405_ZSO | O128: =VLOOKUP($M128,'katalog zadań'!$A$8:$B$12,2,FALSE) -> PL2405_EE | P128: =VLOOKUP($M128,'katalog zadań'!$A$13:$B$17,2,FALSE) -> PL2405_KPP | Q128: 0.97 | R128: 1.39 | S128: 2.22 | T128: 2.35 | U128: 2.77 | V128: 2.77 | W128: 1.39 | X128: 0.95 | Y128: 1.36 | Z128: 2.18 | AA128: 2.31 | AB128: 2.72 | AC128: 2.72 | AD128: 1.36 | AE128: 0.0005 | AF128: 0.0008 | AG128: 0.0012 | AH128: 0.0013 | AI128: 0.0015 | AJ128: 0.0015 | AK128: 0.0008 | AL128: =VLOOKUP(H128,powierzchnie!$A$6:$F$253,6,FALSE) -> 98.6 | AM128: 10,623 | AN128: 2 | AO128: 5 | AP128: 10 | AQ128: 1980 | AR128: 2820 | AS128: 4520 | AT128: 4800 | AU128: 5640 | AV128: 5640 | AW128: 2820
A129: 2405021 | B129: Pyskowice (1) | C129: śląskie | D129: 2405 | E129: =VLOOKUP(D129,katalogi!$A$3:$C$38,katalogi!$B$1,FALSE) -> gliwicki | F129: PL2405 | H129: 2473011 | I129: Rybnik (1) | J129: Rybnik | K129: powiat grodzki | L129: m. Rybnik | M129: PL2402 | N129: =VLOOKUP($M129,'katalog zadań'!$A$3:$B$7,2,FALSE) -> PL2402_ZSO | O129: =VLOOKUP($M129,'katalog zadań'!$A$8:$B$12,2,FALSE) -> PL2402_EE | P129: =VLOOKUP($M129,'katalog zadań'!$A$13:$B$17,2,FALSE) -> PL2402_KPP | Q129: 3.68 | R129: 5.25 | S129: 8.4 | T129: 8.93 | U129: 11.93 | V129: 11.93 | W129: 7.17 | X129: 3.62 | Y129: 5.17 | Z129: 8.27 | AA129: 8.79 | AB129: 11.75 | AC129: 11.75 | AD129: 7.06 | AE129: 0.0021 | AF129: 0.0029 | AG129: 0.0047 | AH129: 0.005 | AI129: 0.0067 | AJ129: 0.0067 | AK129: 0.004 | AL129: =VLOOKUP(H129,powierzchnie!$A$6:$F$253,6,FALSE) -> 75.3 | AM129: 138,696 | AN129: 7 | AO129: 15 | AP129: 50 | AQ129: 7510 | AR129: 10720 | AS129: 17160 | AT129: 18230 | AU129: 24380 | AV129: 24380 | AW129: 14640
A130: 2405032 | B130: Gierałtowice (2) | C130: śląskie | D130: 2405 | E130: =VLOOKUP(D130,katalogi!$A$3:$C$38,katalogi!$B$1,FALSE) -> gliwicki | F130: PL2405 | H130: 2415031 | I130: Rydułtowy (1) | J130: Rydułtowy | K130: gmina miejska | L130: wodzisławski | M130: PL2405 | N130: =VLOOKUP($M130,'katalog zadań'!$A$3:$B$7,2,FALSE) -> PL2405_ZSO | O130: =VLOOKUP($M130,'katalog zadań'!$A$8:$B$12,2,FALSE) -> PL2405_EE | P130: =VLOOKUP($M130,'katalog zadań'!$A$13:$B$17,2,FALSE) -> PL2405_KPP | Q130: 0.76 | R130: 1.08 | S130: 1.72 | T130: 1.82 | U130: 4.12 | V130: 4.12 | W130: 3.7 | X130: 0.74 | Y130: 1.06 | Z130: 1.69 | AA130: 1.79 | AB130: 4.05 | AC130: 4.05 | AD130: 3.64 | AE130: 0.0004 | AF130: 0.0006 | AG130: 0.001 | AH130: 0.001 | AI130: 0.0023 | AJ130: 0.0023 | AK130: 0.0021 | AL130: =VLOOKUP(H130,powierzchnie!$A$6:$F$253,6,FALSE) -> 83.3 | AM130: 21,637 | AN130: 2 | AO130: 5 | AP130: 10 | AQ130: 1530 | AR130: 2190 | AS130: 3500 | AT130: 3720 | AU130: 8400 | AV130: 8400 | AW130: 7550
A131: 2405042 | B131: Pilchowice (2) | C131: śląskie | D131: 2405 | E131: =VLOOKUP(D131,katalogi!$A$3:$C$38,katalogi!$B$1,FALSE) -> gliwicki | F131: PL2405 | H131: 2474011 | I131: Siemianowice Śląskie (1) | J131: Siemianowice Śląskie | K131: powiat grodzki | L131: m. Siemianowice Śląskie | M131: PL2401 | N131: =VLOOKUP($M131,'katalog zadań'!$A$3:$B$7,2,FALSE) -> PL2401_ZSO | O131: =VLOOKUP($M131,'katalog zadań'!$A$8:$B$12,2,FALSE) -> PL2401_EE | P131: =VLOOKUP($M131,'katalog zadań'!$A$13:$B$17,2,FALSE) -> PL2401_KPP | Q131: 0.71 | R131: 1.01 | S131: 1.61 | T131: 1.7 | U131: 9.05 | V131: 9.05 | W131: 10.4 | X131: 0.69 | Y131: 0.99 | Z131: 1.58 | AA131: 1.67 | AB131: 8.91 | AC131: 8.91 | AD131: 10.24 | AE131: 0.0004 | AF131: 0.0006 | AG131: 0.0009 | AH131: 0.001 | AI131: 0.0051 | AJ131: 0.0051 | AK131: 0.0058 | AL131: =VLOOKUP(H131,powierzchnie!$A$6:$F$253,6,FALSE) -> 53.9 | AM131: 67,154 | AN131: 5 | AO131: 10 | AP131: 50 | AQ131: 1430 | AR131: 2050 | AS131: 3270 | AT131: 3470 | AU131: 18480 | AV131: 18480 | AW131: 21240
A132: 2405052 | B132: Rudziniec (2) | C132: śląskie | D132: 2405 | E132: =VLOOKUP(D132,katalogi!$A$3:$C$38,katalogi!$B$1,FALSE) -> gliwicki | F132: PL2405 | H132: 2401073 | I132: Siewierz (3) | J132: Siewierz | K132: gmina miejsko-wiejska | L132: będziński | M132: PL2405 | N132: =VLOOKUP($M132,'katalog zadań'!$A$3:$B$7,2,FALSE) -> PL2405_ZSO | O132: =VLOOKUP($M132,'katalog zadań'!$A$8:$B$12,2,FALSE) -> PL2405_EE | P132: =VLOOKUP($M132,'katalog zadań'!$A$13:$B$17,2,FALSE) -> PL2405_KPP | Q132: 0.87 | R132: 1.24 | S132: 1.98 | T132: 2.11 | U132: 2.47 | V132: 2.47 | W132: 1.24 | X132: 0.85 | Y132: 1.22 | Z132: 1.95 | AA132: 2.07 | AB132: 2.43 | AC132: 2.43 | AD132: 1.22 | AE132: 0.0005 | AF132: 0.0007 | AG132: 0.0011 | AH132: 0.0012 | AI132: 0.0014 | AJ132: 0.0014 | AK132: 0.0007 | AL132: =VLOOKUP(H132,powierzchnie!$A$6:$F$253,6,FALSE) -> 100.3 | AM132: 12,477 | AN132: 2 | AO132: 5 | AP132: 10 | AQ132: 1770 | AR132: 2530 | AS132: 4040 | AT132: 4290 | AU132: 5050 | AV132: 5050 | AW132: 2530
B133: Sośnicowice * (2) | C133: śląskie | E133: =VLOOKUP(D133,katalogi!$A$3:$C$38,katalogi!$B$1,FALSE) ->  | H133: 2403103 | I133: Skoczów (3) | J133: Skoczów | K133: gmina miejsko-wiejska | L133: cieszyński | M133: PL2405 | N133: =VLOOKUP($M133,'katalog zadań'!$A$3:$B$7,2,FALSE) -> PL2405_ZSO | O133: =VLOOKUP($M133,'katalog zadań'!$A$8:$B$12,2,FALSE) -> PL2405_EE | P133: =VLOOKUP($M133,'katalog zadań'!$A$13:$B$17,2,FALSE) -> PL2405_KPP | Q133: 0.27 | R133: 0.38 | S133: 0.6 | T133: 0.64 | U133: 0.76 | V133: 0.76 | W133: 0.38 | X133: 0.26 | Y133: 0.37 | Z133: 0.59 | AA133: 0.63 | AB133: 0.74 | AC133: 0.74 | AD133: 0.37 | AE133: 0.0001 | AF133: 0.0002 | AG133: 0.0003 | AH133: 0.0004 | AI133: 0.0004 | AJ133: 0.0004 | AK133: 0.0002 | AL133: =VLOOKUP(H133,powierzchnie!$A$6:$F$253,6,FALSE) -> 83.6 | AM133: 26,970 | AN133: 2 | AO133: 5 | AP133: 10 | AQ133: 540 | AR133: 770 | AS133: 1220 | AT133: 1300 | AU133: 1530 | AV133: 1530 | AW133: 770
A134: 2405063 | B134: Sośnicowice * (3) | C134: śląskie | D134: =LEFT(A134,4) -> 2405 | E134: =VLOOKUP(D134,katalogi!$A$3:$C$38,katalogi!$B$1,FALSE) -> gliwicki | F134: PL2405 | H134: 2401081 | I134: Sławków * (1) | J134: Sławków | K134: gmina miejska | L134: =VLOOKUP($H134,$A$5:$F$253,$E$1,FALSE) -> będziński | M134: =VLOOKUP($H134,$A$5:$F$253,$F$1,FALSE) -> PL2405 | N134: =VLOOKUP($M134,'katalog zadań'!$A$3:$B$7,2,FALSE) -> PL2405_ZSO | O134: =VLOOKUP($M134,'katalog zadań'!$A$8:$B$12,2,FALSE) -> PL2405_EE | P134: =VLOOKUP($M134,'katalog zadań'!$A$13:$B$17,2,FALSE) -> PL2405_KPP | Q134: 0.37 | R134: 0.53 | S134: 0.84 | T134: 0.89 | U134: 1.05 | V134: 1.05 | W134: 0.53 | X134: 0.36 | Y134: 0.52 | Z134: 0.82 | AA134: 0.87 | AB134: 1.03 | AC134: 1.03 | AD134: 0.52 | AE134: 0.0002 | AF134: 0.0003 | AG134: 0.0005 | AH134: 0.0005 | AI134: 0.0006 | AJ134: 0.0006 | AK134: 0.0003 | AL134: =VLOOKUP(H134,powierzchnie!$A$6:$F$253,6,FALSE) -> 81.3 | AM134: 7,043 | AN134: 2 | AO134: 5 | AP134: 10 | AQ134: 750 | AR134: 1070 | AS134: 1710 | AT134: 1810 | AU134: 2130 | AV134: 2130 | AW134: 1070
A135: 2405064 | B135: Sośnicowice - miasto * (4) | C135: śląskie | D135: 2405 | E135: =VLOOKUP(D135,katalogi!$A$3:$C$38,katalogi!$B$1,FALSE) -> gliwicki | F135: PL2405 | H135: 2475011 | I135: Sosnowiec (1) | J135: Sosnowiec | K135: powiat grodzki | L135: m. Sosnowiec | M135: PL2401 | N135: =VLOOKUP($M135,'katalog zadań'!$A$3:$B$7,2,FALSE) -> PL2401_ZSO | O135: =VLOOKUP($M135,'katalog zadań'!$A$8:$B$12,2,FALSE) -> PL2401_EE | P135: =VLOOKUP($M135,'katalog zadań'!$A$13:$B$17,2,FALSE) -> PL2401_KPP | Q135: 5.06 | R135: 7.23 | S135: 11.56 | T135: 12.29 | U135: 16.03 | V135: 16.03 | W135: 9.33 | X135: 4.98 | Y135: 7.12 | Z135: 11.38 | AA135: 12.1 | AB135: 15.78 | AC135: 15.78 | AD135: 9.19 | AE135: 0.0028 | AF135: 0.004 | AG135: 0.0065 | AH135: 0.0069 | AI135: 0.009 | AJ135: 0.009 | AK135: 0.0052 | AL135: =VLOOKUP(H135,powierzchnie!$A$6:$F$253,6,FALSE) -> 55.2 | AM135: 202,036 | AN135: 7 | AO135: 15 | AP135: 50 | AQ135: 10340 | AR135: 14770 | AS135: 23620 | AT135: 25100 | AU135: 32750 | AV135: 32750 | AW135: 19060
A136: 2405065 | B136: Sośnicowice - obszar wiejski * (5) | C136: śląskie | D136: 2405 | E136: =VLOOKUP(D136,katalogi!$A$3:$C$38,katalogi!$B$1,FALSE) -> gliwicki | F136: PL2405 | H136: 2405063 | I136: Sośnicowice * (3) | J136: Sośnicowice | K136: gmina miejsko-wiejska | L136: gliwicki | M136: PL2405 | N136: =VLOOKUP($M136,'katalog zadań'!$A$3:$B$7,2,FALSE) -> PL2405_ZSO | O136: =VLOOKUP($M136,'katalog zadań'!$A$8:$B$12,2,FALSE) -> PL2405_EE | P136: =VLOOKUP($M136,'katalog zadań'!$A$13:$B$17,2,FALSE) -> PL2405_KPP | Q136: 0.75 | R136: 1.07 | S136: 1.7 | T136: 1.81 | U136: 2.13 | V136: 2.13 | W136: 1.07 | X136: 0.73 | Y136: 1.05 | Z136: 1.67 | AA136: 1.78 | AB136: 2.09 | AC136: 2.09 | AD136: 1.05 | AE136: 0.0004 | AF136: 0.0006 | AG136: 0.001 | AH136: 0.001 | AI136: 0.0012 | AJ136: 0.0012 | AK136: 0.0006 | AL136: =VLOOKUP(H136,powierzchnie!$A$6:$F$253,6,FALSE) -> 111.6 | AM136: 8,874 | AN136: 2 | AO136: 5 | AP136: 10 | AQ136: 1520 | AR136: 2170 | AS136: 3470 | AT136: 3690 | AU136: 4340 | AV136: 4340 | AW136: 2170
A137: 2405073 | B137: Toszek (3) | C137: śląskie | D137: 2405 | E137: =VLOOKUP(D137,katalogi!$A$3:$C$38,katalogi!$B$1,FALSE) -> gliwicki | F137: PL2405 | H137: 2404162 | I137: Starcza (2) | J137: Starcza | K137: gmina wiejska | L137: częstochowski | M137: PL2405 | N137: =VLOOKUP($M137,'katalog zadań'!$A$3:$B$7,2,FALSE) -> PL2405_ZSO | O137: =VLOOKUP($M137,'katalog zadań'!$A$8:$B$12,2,FALSE) -> PL2405_EE | P137: =VLOOKUP($M137,'katalog zadań'!$A$13:$B$17,2,FALSE) -> PL2405_KPP | Q137: 0.06 | R137: 0.08 | S137: 0.11 | T137: 0.12 | U137: 0.14 | V137: 0.14 | W137: 0.08 | X137: 0.05 | Y137: 0.07 | Z137: 0.1 | AA137: 0.11 | AB137: 0.13 | AC137: 0.13 | AD137: 0.07 | AE137: 0 | AF137: 0 | AG137: 0.0001 | AH137: 0.0001 | AI137: 0.0001 | AJ137: 0.0001 | AK137: 0 | AL137: =VLOOKUP(H137,powierzchnie!$A$6:$F$253,6,FALSE) -> 90.2 | AM137: 2,829 | AN137: 2 | AO137: 5 | AP137: 10 | AQ137: 100 | AR137: 140 | AS137: 210 | AT137: 230 | AU137: 270 | AV137: 270 | AW137: 140
A138: 2405074 | B138: Toszek - miasto (4) | C138: śląskie | D138: 2405 | E138: =VLOOKUP(D138,katalogi!$A$3:$C$38,katalogi!$B$1,FALSE) -> gliwicki | F138: PL2405 | H138: 2403113 | I138: Strumień (3) | J138: Strumień | K138: gmina miejsko-wiejska | L138: cieszyński | M138: PL2405 | N138: =VLOOKUP($M138,'katalog zadań'!$A$3:$B$7,2,FALSE) -> PL2405_ZSO | O138: =VLOOKUP($M138,'katalog zadań'!$A$8:$B$12,2,FALSE) -> PL2405_EE | P138: =VLOOKUP($M138,'katalog zadań'!$A$13:$B$17,2,FALSE) -> PL2405_KPP | Q138: 0.14 | R138: 0.2 | S138: 0.31 | T138: 0.33 | U138: 0.39 | V138: 0.39 | W138: 0.2 | X138: 0.13 | Y138: 0.19 | Z138: 0.3 | AA138: 0.32 | AB138: 0.38 | AC138: 0.38 | AD138: 0.19 | AE138: 0.0001 | AF138: 0.0001 | AG138: 0.0002 | AH138: 0.0002 | AI138: 0.0002 | AJ138: 0.0002 | AK138: 0.0001 | AL138: =VLOOKUP(H138,powierzchnie!$A$6:$F$253,6,FALSE) -> 101.5 | AM138: 13,197 | AN138: 2 | AO138: 5 | AP138: 10 | AQ138: 280 | AR138: 390 | AS138: 630 | AT138: 660 | AU138: 780 | AV138: 780 | AW138: 390
A139: 2405075 | B139: Toszek - obszar wiejski (5) | C139: śląskie | D139: 2405 | E139: =VLOOKUP(D139,katalogi!$A$3:$C$38,katalogi!$B$1,FALSE) -> gliwicki | F139: PL2405 | H139: 2410062 | I139: Suszec (2) | J139: Suszec | K139: gmina wiejska | L139: pszczyński | M139: PL2405 | N139: =VLOOKUP($M139,'katalog zadań'!$A$3:$B$7,2,FALSE) -> PL2405_ZSO | O139: =VLOOKUP($M139,'katalog zadań'!$A$8:$B$12,2,FALSE) -> PL2405_EE | P139: =VLOOKUP($M139,'katalog zadań'!$A$13:$B$17,2,FALSE) -> PL2405_KPP | Q139: 0.16 | R139: 0.23 | S139: 0.36 | T139: 0.38 | U139: 1.09 | V139: 1.09 | W139: 1.09 | X139: 0.15 | Y139: 0.22 | Z139: 0.35 | AA139: 0.37 | AB139: 1.07 | AC139: 1.07 | AD139: 1.07 | AE139: 0.0001 | AF139: 0.0001 | AG139: 0.0002 | AH139: 0.0002 | AI139: 0.0006 | AJ139: 0.0006 | AK139: 0.0006 | AL139: =VLOOKUP(H139,powierzchnie!$A$6:$F$253,6,FALSE) -> 115.6 | AM139: 12,280 | AN139: 2 | AO139: 5 | AP139: 10 | AQ139: 320 | AR139: 450 | AS139: 720 | AT139: 760 | AU139: 2230 | AV139: 2230 | AW139: 2230
A140: 2405082 | B140: Wielowieś (2) | C140: śląskie | D140: 2405 | E140: =VLOOKUP(D140,katalogi!$A$3:$C$38,katalogi!$B$1,FALSE) -> gliwicki | F140: PL2405 | H140: 2416083 | I140: Szczekociny (3) | J140: Szczekociny | K140: gmina miejsko-wiejska | L140: zawierciański | M140: PL2405 | N140: =VLOOKUP($M140,'katalog zadań'!$A$3:$B$7,2,FALSE) -> PL2405_ZSO | O140: =VLOOKUP($M140,'katalog zadań'!$A$8:$B$12,2,FALSE) -> PL2405_EE | P140: =VLOOKUP($M140,'katalog zadań'!$A$13:$B$17,2,FALSE) -> PL2405_KPP | Q140: 0.5 | R140: 0.71 | S140: 1.13 | T140: 1.2 | U140: 1.41 | V140: 1.41 | W140: 0.71 | X140: 0.49 | Y140: 0.69 | Z140: 1.11 | AA140: 1.18 | AB140: 1.38 | AC140: 1.38 | AD140: 0.69 | AE140: 0.0003 | AF140: 0.0004 | AG140: 0.0006 | AH140: 0.0007 | AI140: 0.0008 | AJ140: 0.0008 | AK140: 0.0004 | AL140: =VLOOKUP(H140,powierzchnie!$A$6:$F$253,6,FALSE) -> 78.5 | AM140: 7,713 | AN140: 2 | AO140: 5 | AP140: 10 | AQ140: 1010 | AR140: 1440 | AS140: 2300 | AT140: 2440 | AU140: 2870 | AV140: 2870 | AW140: 1440
A141: 2466 | B141: Powiat m.Gliwice | C141: śląskie | D141: 2466 | E141: =VLOOKUP(D141,katalogi!$A$3:$C$38,katalogi!$B$1,FALSE) -> m. Gliwice | F141: PL2401 | H141: 2402011 | I141: Szczyrk (1) | J141: Szczyrk | K141: gmina miejska | L141: bielski | M141: PL2405 | N141: =VLOOKUP($M141,'katalog zadań'!$A$3:$B$7,2,FALSE) -> PL2405_ZSO | O141: =VLOOKUP($M141,'katalog zadań'!$A$8:$B$12,2,FALSE) -> PL2405_EE | P141: =VLOOKUP($M141,'katalog zadań'!$A$13:$B$17,2,FALSE) -> PL2405_KPP | Q141: 0 | R141: 0 | S141: 0 | T141: 0 | U141: 0.22 | V141: 0.22 | W141: 0.28 | X141: 0 | Y141: 0 | Z141: 0 | AA141: 0 | AB141: 0.21 | AC141: 0.21 | AD141: 0.27 | AE141: 0 | AF141: 0 | AG141: 0 | AH141: 0 | AI141: 0.0001 | AJ141: 0.0001 | AK141: 0.0002 | AL141: =VLOOKUP(H141,powierzchnie!$A$6:$F$253,6,FALSE) -> 100.5 | AM141: 5,747 | AN141: 2 | AO141: 5 | AP141: 10 | AQ141: 10 | AR141: 10 | AS141: 10 | AT141: 10 | AU141: 430 | AV141: 430 | AW141: 570
A142: 2466011 | B142: Gliwice (1) | C142: śląskie | D142: 2466 | E142: =VLOOKUP(D142,katalogi!$A$3:$C$38,katalogi!$B$1,FALSE) -> m. Gliwice | F142: PL2401 | H142: 2417122 | I142: Ślemień (2) | J142: Ślemień | K142: gmina wiejska | L142: żywiecki | M142: PL2405 | N142: =VLOOKUP($M142,'katalog zadań'!$A$3:$B$7,2,FALSE) -> PL2405_ZSO | O142: =VLOOKUP($M142,'katalog zadań'!$A$8:$B$12,2,FALSE) -> PL2405_EE | P142: =VLOOKUP($M142,'katalog zadań'!$A$13:$B$17,2,FALSE) -> PL2405_KPP | Q142: 0.04 | R142: 0.06 | S142: 0.08 | T142: 0.09 | U142: 0.1 | V142: 0.1 | W142: 0.06 | X142: 0.03 | Y142: 0.05 | Z142: 0.07 | AA142: 0.08 | AB142: 0.09 | AC142: 0.09 | AD142: 0.05 | AE142: 0 | AF142: 0 | AG142: 0 | AH142: 0 | AI142: 0.0001 | AJ142: 0.0001 | AK142: 0 | AL142: =VLOOKUP(H142,powierzchnie!$A$6:$F$253,6,FALSE) -> 82.9 | AM142: 3,545 | AN142: 2 | AO142: 5 | AP142: 10 | AQ142: 70 | AR142: 100 | AS142: 150 | AT142: 160 | AU142: 190 | AV142: 190 | AW142: 100
A143: 2478 | B143: Powiat m.Zabrze | C143: śląskie | D143: 2478 | E143: =VLOOKUP(D143,katalogi!$A$3:$C$38,katalogi!$B$1,FALSE) -> m. Zabrze | F143: PL2401 | H143: 2413072 | I143: Świerklaniec (2) | J143: Świerklaniec | K143: gmina wiejska | L143: tarnogórski | M143: PL2405 | N143: =VLOOKUP($M143,'katalog zadań'!$A$3:$B$7,2,FALSE) -> PL2405_ZSO | O143: =VLOOKUP($M143,'katalog zadań'!$A$8:$B$12,2,FALSE) -> PL2405_EE | P143: =VLOOKUP($M143,'katalog zadań'!$A$13:$B$17,2,FALSE) -> PL2405_KPP | Q143: 0.62 | R143: 0.89 | S143: 1.42 | T143: 1.51 | U143: 1.77 | V143: 1.77 | W143: 0.89 | X143: 0.61 | Y143: 0.87 | Z143: 1.39 | AA143: 1.48 | AB143: 1.74 | AC143: 1.74 | AD143: 0.87 | AE143: 0.0003 | AF143: 0.0005 | AG143: 0.0008 | AH143: 0.0008 | AI143: 0.001 | AJ143: 0.001 | AK143: 0.0005 | AL143: =VLOOKUP(H143,powierzchnie!$A$6:$F$253,6,FALSE) -> 109.4 | AM143: 12,248 | AN143: 2 | AO143: 5 | AP143: 10 | AQ143: 1270 | AR143: 1810 | AS143: 2890 | AT143: 3070 | AU143: 3610 | AV143: 3610 | AW143: 1810
A144: 2478011 | B144: Zabrze (1) | C144: śląskie | D144: 2478 | E144: =VLOOKUP(D144,katalogi!$A$3:$C$38,katalogi!$B$1,FALSE) -> m. Zabrze | F144: PL2401 | H144: 2412052 | I144: Świerklany (2) | J144: Świerklany | K144: gmina wiejska | L144: rybnicki | M144: PL2405 | N144: =VLOOKUP($M144,'katalog zadań'!$A$3:$B$7,2,FALSE) -> PL2405_ZSO | O144: =VLOOKUP($M144,'katalog zadań'!$A$8:$B$12,2,FALSE) -> PL2405_EE | P144: =VLOOKUP($M144,'katalog zadań'!$A$13:$B$17,2,FALSE) -> PL2405_KPP | Q144: 0.64 | R144: 0.91 | S144: 1.46 | T144: 1.54 | U144: 1.81 | V144: 1.81 | W144: 0.91 | X144: 0.63 | Y144: 0.89 | Z144: 1.43 | AA144: 1.51 | AB144: 1.78 | AC144: 1.78 | AD144: 0.89 | AE144: 0.0004 | AF144: 0.0005 | AG144: 0.0008 | AH144: 0.0009 | AI144: 0.001 | AJ144: 0.001 | AK144: 0.0005 | AL144: =VLOOKUP(H144,powierzchnie!$A$6:$F$253,6,FALSE) -> 102.3 | AM144: 12,409 | AN144: 2 | AO144: 5 | AP144: 10 | AQ144: 1300 | AR144: 1850 | AS144: 2960 | AT144: 3140 | AU144: 3700 | AV144: 3700 | AW144: 1850
A145: 2463 | B145: Powiat m.Chorzów | C145: śląskie | D145: 2463 | E145: =VLOOKUP(D145,katalogi!$A$3:$C$38,katalogi!$B$1,FALSE) -> m. Chorzów | F145: PL2401 | H145: 2476011 | I145: Świętochłowice (1) | J145: Świętochłowice | K145: powiat grodzki | L145: m. Świętochłowice | M145: PL2401 | N145: =VLOOKUP($M145,'katalog zadań'!$A$3:$B$7,2,FALSE) -> PL2401_ZSO | O145: =VLOOKUP($M145,'katalog zadań'!$A$8:$B$12,2,FALSE) -> PL2401_EE | P145: =VLOOKUP($M145,'katalog zadań'!$A$13:$B$17,2,FALSE) -> PL2401_KPP | Q145: 0.17 | R145: 0.24 | S145: 0.37 | T145: 0.39 | U145: 0.46 | V145: 0.46 | W145: 0.24 | X145: 0.16 | Y145: 0.23 | Z145: 0.36 | AA145: 0.38 | AB145: 0.45 | AC145: 0.45 | AD145: 0.23 | AE145: 0.0001 | AF145: 0.0001 | AG145: 0.0002 | AH145: 0.0002 | AI145: 0.0003 | AJ145: 0.0003 | AK145: 0.0001 | AL145: =VLOOKUP(H145,powierzchnie!$A$6:$F$253,6,FALSE) -> 51.1 | AM145: 50,012 | AN145: 5 | AO145: 10 | AP145: 50 | AQ145: 330 | AR145: 470 | AS145: 740 | AT145: 790 | AU145: 930 | AV145: 930 | AW145: 470
A146: 2463011 | B146: Chorzów (1) | C146: śląskie | D146: 2463 | E146: =VLOOKUP(D146,katalogi!$A$3:$C$38,katalogi!$B$1,FALSE) -> m. Chorzów | F146: PL2401 | H146: 2417132 | I146: Świnna (2) | J146: Świnna | K146: gmina wiejska | L146: żywiecki | M146: PL2405 | N146: =VLOOKUP($M146,'katalog zadań'!$A$3:$B$7,2,FALSE) -> PL2405_ZSO | O146: =VLOOKUP($M146,'katalog zadań'!$A$8:$B$12,2,FALSE) -> PL2405_EE | P146: =VLOOKUP($M146,'katalog zadań'!$A$13:$B$17,2,FALSE) -> PL2405_KPP | Q146: 0.18 | R146: 0.25 | S146: 0.39 | T146: 0.41 | U146: 0.48 | V146: 0.48 | W146: 0.25 | X146: 0.17 | Y146: 0.24 | Z146: 0.38 | AA146: 0.4 | AB146: 0.47 | AC146: 0.47 | AD146: 0.24 | AE146: 0.0001 | AF146: 0.0001 | AG146: 0.0002 | AH146: 0.0002 | AI146: 0.0003 | AJ146: 0.0003 | AK146: 0.0001 | AL146: =VLOOKUP(H146,powierzchnie!$A$6:$F$253,6,FALSE) -> 85.3 | AM146: 8,095 | AN146: 2 | AO146: 5 | AP146: 10 | AQ146: 350 | AR146: 490 | AS146: 780 | AT146: 830 | AU146: 980 | AV146: 980 | AW146: 490
A147: 2469 | B147: Powiat m.Katowice | C147: śląskie | D147: 2469 | E147: =VLOOKUP(D147,katalogi!$A$3:$C$38,katalogi!$B$1,FALSE) -> m. Katowice | F147: PL2401 | H147: 2413041 | I147: Tarnowskie Góry (1) | J147: Tarnowskie Góry | K147: gmina miejska | L147: tarnogórski | M147: PL2405 | N147: =VLOOKUP($M147,'katalog zadań'!$A$3:$B$7,2,FALSE) -> PL2405_ZSO | O147: =VLOOKUP($M147,'katalog zadań'!$A$8:$B$12,2,FALSE) -> PL2405_EE | P147: =VLOOKUP($M147,'katalog zadań'!$A$13:$B$17,2,FALSE) -> PL2405_KPP | Q147: 0.72 | R147: 1.03 | S147: 1.64 | T147: 1.74 | U147: 2.05 | V147: 2.05 | W147: 1.03 | X147: 0.7 | Y147: 1.01 | Z147: 1.61 | AA147: 1.71 | AB147: 2.01 | AC147: 2.01 | AD147: 1.01 | AE147: 0.0004 | AF147: 0.0006 | AG147: 0.0009 | AH147: 0.001 | AI147: 0.0011 | AJ147: 0.0011 | AK147: 0.0006 | AL147: =VLOOKUP(H147,powierzchnie!$A$6:$F$253,6,FALSE) -> 77.0 | AM147: 61,356 | AN147: 5 | AO147: 10 | AP147: 20 | AQ147: 1460 | AR147: 2090 | AS147: 3340 | AT147: 3540 | AU147: 4170 | AV147: 4170 | AW147: 2090
A148: 2469011 | B148: Katowice (1) | C148: śląskie | D148: 2469 | E148: =VLOOKUP(D148,katalogi!$A$3:$C$38,katalogi!$B$1,FALSE) -> m. Katowice | F148: PL2401 | H148: 2405073 | I148: Toszek (3) | J148: Toszek | K148: gmina miejsko-wiejska | L148: gliwicki | M148: PL2405 | N148: =VLOOKUP($M148,'katalog zadań'!$A$3:$B$7,2,FALSE) -> PL2405_ZSO | O148: =VLOOKUP($M148,'katalog zadań'!$A$8:$B$12,2,FALSE) -> PL2405_EE | P148: =VLOOKUP($M148,'katalog zadań'!$A$13:$B$17,2,FALSE) -> PL2405_KPP | Q148: 0.59 | R148: 0.84 | S148: 1.35 | T148: 1.43 | U148: 1.68 | V148: 1.68 | W148: 0.84 | X148: 0.58 | Y148: 0.82 | Z148: 1.32 | AA148: 1.4 | AB148: 1.65 | AC148: 1.65 | AD148: 0.82 | AE148: 0.0003 | AF148: 0.0005 | AG148: 0.0008 | AH148: 0.0008 | AI148: 0.0009 | AJ148: 0.0009 | AK148: 0.0005 | AL148: =VLOOKUP(H148,powierzchnie!$A$6:$F$253,6,FALSE) -> 86.5 | AM148: 9,409 | AN148: 2 | AO148: 5 | AP148: 10 | AQ148: 1200 | AR148: 1710 | AS148: 2740 | AT148: 2910 | AU148: 3420 | AV148: 3420 | AW148: 1710
A149: 2470 | B149: Powiat m.Mysłowice | C149: śląskie | D149: 2470 | E149: =VLOOKUP(D149,katalogi!$A$3:$C$38,katalogi!$B$1,FALSE) -> m. Mysłowice | F149: PL2401 | H149: 2413082 | I149: Tworóg (2) | J149: Tworóg | K149: gmina wiejska | L149: tarnogórski | M149: PL2405 | N149: =VLOOKUP($M149,'katalog zadań'!$A$3:$B$7,2,FALSE) -> PL2405_ZSO | O149: =VLOOKUP($M149,'katalog zadań'!$A$8:$B$12,2,FALSE) -> PL2405_EE | P149: =VLOOKUP($M149,'katalog zadań'!$A$13:$B$17,2,FALSE) -> PL2405_KPP | Q149: 0.62 | R149: 0.89 | S149: 1.43 | T149: 1.51 | U149: 1.77 | V149: 1.77 | W149: 0.89 | X149: 0.61 | Y149: 0.87 | Z149: 1.4 | AA149: 1.48 | AB149: 1.74 | AC149: 1.74 | AD149: 0.87 | AE149: 0.0003 | AF149: 0.0005 | AG149: 0.0008 | AH149: 0.0008 | AI149: 0.001 | AJ149: 0.001 | AK149: 0.0005 | AL149: =VLOOKUP(H149,powierzchnie!$A$6:$F$253,6,FALSE) -> 97.5 | AM149: 8,240 | AN149: 2 | AO149: 5 | AP149: 10 | AQ149: 1270 | AR149: 1810 | AS149: 2900 | AT149: 3080 | AU149: 3620 | AV149: 3620 | AW149: 1810
A150: 2470011 | B150: Mysłowice (1) | C150: śląskie | D150: 2470 | E150: =VLOOKUP(D150,katalogi!$A$3:$C$38,katalogi!$B$1,FALSE) -> m. Mysłowice | F150: PL2401 | H150: 2477011 | I150: Tychy (1) | J150: Tychy | K150: powiat grodzki | L150: m. Tychy | M150: PL2401 | N150: =VLOOKUP($M150,'katalog zadań'!$A$3:$B$7,2,FALSE) -> PL2401_ZSO | O150: =VLOOKUP($M150,'katalog zadań'!$A$8:$B$12,2,FALSE) -> PL2401_EE | P150: =VLOOKUP($M150,'katalog zadań'!$A$13:$B$17,2,FALSE) -> PL2401_KPP | Q150: 0.7 | R150: 0.99 | S150: 1.59 | T150: 1.68 | U150: 1.97 | V150: 1.97 | W150: 0.99 | X150: 0.68 | Y150: 0.97 | Z150: 1.56 | AA150: 1.65 | AB150: 1.94 | AC150: 1.94 | AD150: 0.97 | AE150: 0.0004 | AF150: 0.0006 | AG150: 0.0009 | AH150: 0.0009 | AI150: 0.0011 | AJ150: 0.0011 | AK150: 0.0006 | AL150: =VLOOKUP(H150,powierzchnie!$A$6:$F$253,6,FALSE) -> 64.1 | AM150: 127,831 | AN150: 7 | AO150: 15 | AP150: 50 | AQ150: 1420 | AR150: 2020 | AS150: 3230 | AT150: 3430 | AU150: 4030 | AV150: 4030 | AW150: 2020
A151: 2472 | B151: Powiat m.Ruda Śląska | C151: śląskie | D151: 2472 | E151: =VLOOKUP(D151,katalogi!$A$3:$C$38,katalogi!$B$1,FALSE) -> m. Ruda Śląska | F151: PL2401 | H151: 2417142 | I151: Ujsoły (2) | J151: Ujsoły | K151: gmina wiejska | L151: żywiecki | M151: PL2405 | N151: =VLOOKUP($M151,'katalog zadań'!$A$3:$B$7,2,FALSE) -> PL2405_ZSO | O151: =VLOOKUP($M151,'katalog zadań'!$A$8:$B$12,2,FALSE) -> PL2405_EE | P151: =VLOOKUP($M151,'katalog zadań'!$A$13:$B$17,2,FALSE) -> PL2405_KPP | Q151: 0.1 | R151: 0.13 | S151: 0.2 | T151: 0.22 | U151: 0.25 | V151: 0.25 | W151: 0.13 | X151: 0.09 | Y151: 0.12 | Z151: 0.19 | AA151: 0.21 | AB151: 0.24 | AC151: 0.24 | AD151: 0.12 | AE151: 0 | AF151: 0.0001 | AG151: 0.0001 | AH151: 0.0001 | AI151: 0.0001 | AJ151: 0.0001 | AK151: 0.0001 | AL151: =VLOOKUP(H151,powierzchnie!$A$6:$F$253,6,FALSE) -> 81.6 | AM151: 4,499 | AN151: 2 | AO151: 5 | AP151: 10 | AQ151: 180 | AR151: 250 | AS151: 400 | AT151: 430 | AU151: 500 | AV151: 500 | AW151: 250
A152: 2472011 | B152: Ruda Śląska (1) | C152: śląskie | D152: 2472 | E152: =VLOOKUP(D152,katalogi!$A$3:$C$38,katalogi!$B$1,FALSE) -> m. Ruda Śląska | F152: PL2401 | H152: 2403021 | I152: Ustroń (1) | J152: Ustroń | K152: gmina miejska | L152: cieszyński | M152: PL2405 | N152: =VLOOKUP($M152,'katalog zadań'!$A$3:$B$7,2,FALSE) -> PL2405_ZSO | O152: =VLOOKUP($M152,'katalog zadań'!$A$8:$B$12,2,FALSE) -> PL2405_EE | P152: =VLOOKUP($M152,'katalog zadań'!$A$13:$B$17,2,FALSE) -> PL2405_KPP | Q152: 0.32 | R152: 0.45 | S152: 0.72 | T152: 0.77 | U152: 0.9 | V152: 0.9 | W152: 0.45 | X152: 0.31 | Y152: 0.44 | Z152: 0.7 | AA152: 0.75 | AB152: 0.88 | AC152: 0.88 | AD152: 0.44 | AE152: 0.0002 | AF152: 0.0002 | AG152: 0.0004 | AH152: 0.0004 | AI152: 0.0005 | AJ152: 0.0005 | AK152: 0.0002 | AL152: =VLOOKUP(H152,powierzchnie!$A$6:$F$253,6,FALSE) -> 91.5 | AM152: 16,054 | AN152: 2 | AO152: 5 | AP152: 10 | AQ152: 640 | AR152: 910 | AS152: 1460 | AT152: 1550 | AU152: 1820 | AV152: 1820 | AW152: 910
A153: 2474 | B153: Powiat m.Siemianowice Śląskie | C153: śląskie | D153: 2474 | E153: =VLOOKUP(D153,katalogi!$A$3:$C$38,katalogi!$B$1,FALSE) -> m. Siemianowice Śląskie | F153: PL2401 | H153: 2417152 | I153: Węgierska Górka (2) | J153: Węgierska Górka | K153: gmina wiejska | L153: żywiecki | M153: PL2405 | N153: =VLOOKUP($M153,'katalog zadań'!$A$3:$B$7,2,FALSE) -> PL2405_ZSO | O153: =VLOOKUP($M153,'katalog zadań'!$A$8:$B$12,2,FALSE) -> PL2405_EE | P153: =VLOOKUP($M153,'katalog zadań'!$A$13:$B$17,2,FALSE) -> PL2405_KPP | Q153: 0.32 | R153: 0.45 | S153: 0.73 | T153: 0.77 | U153: 0.9 | V153: 0.9 | W153: 0.45 | X153: 0.31 | Y153: 0.44 | Z153: 0.71 | AA153: 0.75 | AB153: 0.88 | AC153: 0.88 | AD153: 0.44 | AE153: 0.0002 | AF153: 0.0003 | AG153: 0.0004 | AH153: 0.0004 | AI153: 0.0005 | AJ153: 0.0005 | AK153: 0.0003 | AL153: =VLOOKUP(H153,powierzchnie!$A$6:$F$253,6,FALSE) -> 90.9 | AM153: 15,101 | AN153: 2 | AO153: 5 | AP153: 10 | AQ153: 640 | AR153: 920 | AS153: 1470 | AT153: 1560 | AU153: 1830 | AV153: 1830 | AW153: 920
A154: 2474011 | B154: Siemianowice Śląskie (1) | C154: śląskie | D154: 2474 | E154: =VLOOKUP(D154,katalogi!$A$3:$C$38,katalogi!$B$1,FALSE) -> m. Siemianowice Śląskie | F154: PL2401 | H154: 2405082 | I154: Wielowieś (2) | J154: Wielowieś | K154: gmina wiejska | L154: gliwicki | M154: PL2405 | N154: =VLOOKUP($M154,'katalog zadań'!$A$3:$B$7,2,FALSE) -> PL2405_ZSO | O154: =VLOOKUP($M154,'katalog zadań'!$A$8:$B$12,2,FALSE) -> PL2405_EE | P154: =VLOOKUP($M154,'katalog zadań'!$A$13:$B$17,2,FALSE) -> PL2405_KPP | Q154: 0.5 | R154: 0.71 | S154: 1.13 | T154: 1.2 | U154: 1.42 | V154: 1.42 | W154: 0.71 | X154: 0.49 | Y154: 0.69 | Z154: 1.11 | AA154: 1.18 | AB154: 1.39 | AC154: 1.39 | AD154: 0.69 | AE154: 0.0003 | AF154: 0.0004 | AG154: 0.0006 | AH154: 0.0007 | AI154: 0.0008 | AJ154: 0.0008 | AK154: 0.0004 | AL154: =VLOOKUP(H154,powierzchnie!$A$6:$F$253,6,FALSE) -> 104.5 | AM154: 5,856 | AN154: 2 | AO154: 5 | AP154: 10 | AQ154: 1010 | AR154: 1440 | AS154: 2310 | AT154: 2450 | AU154: 2880 | AV154: 2880 | AW154: 1440
A155: 2476 | B155: Powiat m.Świętochłowice | C155: śląskie | D155: 2476 | E155: =VLOOKUP(D155,katalogi!$A$3:$C$38,katalogi!$B$1,FALSE) -> m. Świętochłowice | F155: PL2401 | H155: 2402093 | I155: Wilamowice (3) | J155: Wilamowice | K155: gmina miejsko-wiejska | L155: bielski | M155: PL2405 | N155: =VLOOKUP($M155,'katalog zadań'!$A$3:$B$7,2,FALSE) -> PL2405_ZSO | O155: =VLOOKUP($M155,'katalog zadań'!$A$8:$B$12,2,FALSE) -> PL2405_EE | P155: =VLOOKUP($M155,'katalog zadań'!$A$13:$B$17,2,FALSE) -> PL2405_KPP | Q155: 0.18 | R155: 0.25 | S155: 0.39 | T155: 0.41 | U155: 0.48 | V155: 0.48 | W155: 0.25 | X155: 0.17 | Y155: 0.24 | Z155: 0.38 | AA155: 0.4 | AB155: 0.47 | AC155: 0.47 | AD155: 0.24 | AE155: 0.0001 | AF155: 0.0001 | AG155: 0.0002 | AH155: 0.0002 | AI155: 0.0003 | AJ155: 0.0003 | AK155: 0.0001 | AL155: =VLOOKUP(H155,powierzchnie!$A$6:$F$253,6,FALSE) -> 100.2 | AM155: 17,505 | AN155: 2 | AO155: 5 | AP155: 10 | AQ155: 350 | AR155: 490 | AS155: 780 | AT155: 830 | AU155: 980 | AV155: 980 | AW155: 490
A156: 2476011 | B156: Świętochłowice (1) | C156: śląskie | D156: 2476 | E156: =VLOOKUP(D156,katalogi!$A$3:$C$38,katalogi!$B$1,FALSE) -> m. Świętochłowice | F156: PL2401 | H156: 2402102 | I156: Wilkowice (2) | J156: Wilkowice | K156: gmina wiejska | L156: bielski | M156: PL2405 | N156: =VLOOKUP($M156,'katalog zadań'!$A$3:$B$7,2,FALSE) -> PL2405_ZSO | O156: =VLOOKUP($M156,'katalog zadań'!$A$8:$B$12,2,FALSE) -> PL2405_EE | P156: =VLOOKUP($M156,'katalog zadań'!$A$13:$B$17,2,FALSE) -> PL2405_KPP | Q156: 0.16 | R156: 0.23 | S156: 0.36 | T156: 0.38 | U156: 0.44 | V156: 0.44 | W156: 0.23 | X156: 0.15 | Y156: 0.22 | Z156: 0.35 | AA156: 0.37 | AB156: 0.43 | AC156: 0.43 | AD156: 0.22 | AE156: 0.0001 | AF156: 0.0001 | AG156: 0.0002 | AH156: 0.0002 | AI156: 0.0002 | AJ156: 0.0002 | AK156: 0.0001 | AL156: =VLOOKUP(H156,powierzchnie!$A$6:$F$253,6,FALSE) -> 95.9 | AM156: 13,371 | AN156: 2 | AO156: 5 | AP156: 10 | AQ156: 320 | AR156: 450 | AS156: 720 | AT156: 760 | AU156: 900 | AV156: 900 | AW156: 450
A157: 2411 | B157: Powiat raciborski | C157: śląskie | D157: 2411 | E157: =VLOOKUP(D157,katalogi!$A$3:$C$38,katalogi!$B$1,FALSE) -> raciborski | F157: PL2405 | H157: 2403031 | I157: Wisła (1) | J157: Wisła | K157: gmina miejska | L157: cieszyński | M157: PL2405 | N157: =VLOOKUP($M157,'katalog zadań'!$A$3:$B$7,2,FALSE) -> PL2405_ZSO | O157: =VLOOKUP($M157,'katalog zadań'!$A$8:$B$12,2,FALSE) -> PL2405_EE | P157: =VLOOKUP($M157,'katalog zadań'!$A$13:$B$17,2,FALSE) -> PL2405_KPP | Q157: 0.2 | R157: 0.28 | S157: 0.43 | T157: 0.46 | U157: 0.54 | V157: 0.54 | W157: 0.28 | X157: 0.19 | Y157: 0.27 | Z157: 0.42 | AA157: 0.45 | AB157: 0.53 | AC157: 0.53 | AD157: 0.27 | AE157: 0.0001 | AF157: 0.0002 | AG157: 0.0002 | AH157: 0.0003 | AI157: 0.0003 | AJ157: 0.0003 | AK157: 0.0002 | AL157: =VLOOKUP(H157,powierzchnie!$A$6:$F$253,6,FALSE) -> 105.3 | AM157: 11,171 | AN157: 2 | AO157: 5 | AP157: 10 | AQ157: 390 | AR157: 550 | AS157: 870 | AT157: 930 | AU157: 1090 | AV157: 1090 | AW157: 550
A158: 2411011 | B158: Racibórz (1) | C158: śląskie | D158: 2411 | E158: =VLOOKUP(D158,katalogi!$A$3:$C$38,katalogi!$B$1,FALSE) -> raciborski | F158: PL2405 | H158: 2416092 | I158: Włodowice (2) | J158: Włodowice | K158: gmina wiejska | L158: zawierciański | M158: PL2405 | N158: =VLOOKUP($M158,'katalog zadań'!$A$3:$B$7,2,FALSE) -> PL2405_ZSO | O158: =VLOOKUP($M158,'katalog zadań'!$A$8:$B$12,2,FALSE) -> PL2405_EE | P158: =VLOOKUP($M158,'katalog zadań'!$A$13:$B$17,2,FALSE) -> PL2405_KPP | Q158: 0.24 | R158: 0.33 | S158: 0.53 | T158: 0.55 | U158: 0.65 | V158: 0.65 | W158: 0.33 | X158: 0.23 | Y158: 0.32 | Z158: 0.52 | AA158: 0.54 | AB158: 0.64 | AC158: 0.64 | AD158: 0.32 | AE158: 0.0001 | AF158: 0.0002 | AG158: 0.0003 | AH158: 0.0003 | AI158: 0.0004 | AJ158: 0.0004 | AK158: 0.0002 | AL158: =VLOOKUP(H158,powierzchnie!$A$6:$F$253,6,FALSE) -> 85.1 | AM158: 5,224 | AN158: 2 | AO158: 5 | AP158: 10 | AQ158: 470 | AR158: 670 | AS158: 1070 | AT158: 1130 | AU158: 1330 | AV158: 1330 | AW158: 670
A159: 2411022 | B159: Kornowac (2) | C159: śląskie | D159: 2411 | E159: =VLOOKUP(D159,katalogi!$A$3:$C$38,katalogi!$B$1,FALSE) -> raciborski | F159: PL2405 | H159: 2415041 | I159: Wodzisław Śląski (1) | J159: Wodzisław Śląski | K159: gmina miejska | L159: wodzisławski | M159: PL2405 | N159: =VLOOKUP($M159,'katalog zadań'!$A$3:$B$7,2,FALSE) -> PL2405_ZSO | O159: =VLOOKUP($M159,'katalog zadań'!$A$8:$B$12,2,FALSE) -> PL2405_EE | P159: =VLOOKUP($M159,'katalog zadań'!$A$13:$B$17,2,FALSE) -> PL2405_KPP | Q159: 0.51 | R159: 0.73 | S159: 1.16 | T159: 1.23 | U159: 9.66 | V159: 9.66 | W159: 11.68 | X159: 0.5 | Y159: 0.71 | Z159: 1.14 | AA159: 1.21 | AB159: 9.51 | AC159: 9.51 | AD159: 11.5 | AE159: 0.0003 | AF159: 0.0004 | AG159: 0.0006 | AH159: 0.0007 | AI159: 0.0054 | AJ159: 0.0054 | AK159: 0.0065 | AL159: =VLOOKUP(H159,powierzchnie!$A$6:$F$253,6,FALSE) -> 72.4 | AM159: 48,143 | AN159: 2 | AO159: 5 | AP159: 10 | AQ159: 1030 | AR159: 1480 | AS159: 2360 | AT159: 2510 | AU159: 19730 | AV159: 19730 | AW159: 23860
B160: Krzanowice * (2) | C160: śląskie | E160: =VLOOKUP(D160,katalogi!$A$3:$C$38,katalogi!$B$1,FALSE) ->  | H160: 2401031 | I160: Wojkowice (1) | J160: Wojkowice | K160: gmina miejska | L160: będziński | M160: PL2405 | N160: =VLOOKUP($M160,'katalog zadań'!$A$3:$B$7,2,FALSE) -> PL2405_ZSO | O160: =VLOOKUP($M160,'katalog zadań'!$A$8:$B$12,2,FALSE) -> PL2405_EE | P160: =VLOOKUP($M160,'katalog zadań'!$A$13:$B$17,2,FALSE) -> PL2405_KPP | Q160: 0.38 | R160: 0.54 | S160: 0.86 | T160: 0.91 | U160: 1.26 | V160: 1.26 | W160: 0.8 | X160: 0.37 | Y160: 0.53 | Z160: 0.84 | AA160: 0.89 | AB160: 1.24 | AC160: 1.24 | AD160: 0.78 | AE160: 0.0002 | AF160: 0.0003 | AG160: 0.0005 | AH160: 0.0005 | AI160: 0.0007 | AJ160: 0.0007 | AK160: 0.0004 | AL160: =VLOOKUP(H160,powierzchnie!$A$6:$F$253,6,FALSE) -> 69.3 | AM160: 8,936 | AN160: 2 | AO160: 5 | AP160: 10 | AQ160: 770 | AR160: 1090 | AS160: 1740 | AT160: 1850 | AU160: 2580 | AV160: 2580 | AW160: 1620
A161: 2411033 | B161: Krzanowice * (3) | C161: śląskie | D161: 2411 | E161: =VLOOKUP(D161,katalogi!$A$3:$C$38,katalogi!$B$1,FALSE) -> raciborski | F161: PL2405 | H161: 2407083 | I161: Woźniki (3) | J161: Woźniki | K161: gmina miejsko-wiejska | L161: lubliniecki | M161: PL2405 | N161: =VLOOKUP($M161,'katalog zadań'!$A$3:$B$7,2,FALSE) -> PL2405_ZSO | O161: =VLOOKUP($M161,'katalog zadań'!$A$8:$B$12,2,FALSE) -> PL2405_EE | P161: =VLOOKUP($M161,'katalog zadań'!$A$13:$B$17,2,FALSE) -> PL2405_KPP | Q161: 0.8 | R161: 1.12 | S161: 1.79 | T161: 1.9 | U161: 2.25 | V161: 2.25 | W161: 1.12 | X161: 0.78 | Y161: 1.1 | Z161: 1.76 | AA161: 1.87 | AB161: 2.21 | AC161: 2.21 | AD161: 1.1 | AE161: 0.0004 | AF161: 0.0006 | AG161: 0.001 | AH161: 0.0011 | AI161: 0.0013 | AJ161: 0.0013 | AK161: 0.0006 | AL161: =VLOOKUP(H161,powierzchnie!$A$6:$F$253,6,FALSE) -> 99.0 | AM161: 9,614 | AN161: 2 | AO161: 5 | AP161: 10 | AQ161: 1610 | AR161: 2290 | AS161: 3660 | AT161: 3890 | AU161: 4580 | AV161: 4580 | AW161: 2290
A162: 2411034 | B162: Krzanowice - miasto * (4) | C162: śląskie | D162: 2411 | E162: =VLOOKUP(D162,katalogi!$A$3:$C$38,katalogi!$B$1,FALSE) -> raciborski | F162: PL2405 | H162: 2406092 | I162: Wręczyca Wielka (2) | J162: Wręczyca Wielka | K162: gmina wiejska | L162: kłobucki | M162: PL2405 | N162: =VLOOKUP($M162,'katalog zadań'!$A$3:$B$7,2,FALSE) -> PL2405_ZSO | O162: =VLOOKUP($M162,'katalog zadań'!$A$8:$B$12,2,FALSE) -> PL2405_EE | P162: =VLOOKUP($M162,'katalog zadań'!$A$13:$B$17,2,FALSE) -> PL2405_KPP | Q162: 0.44 | R162: 0.62 | S162: 0.99 | T162: 1.06 | U162: 1.24 | V162: 1.24 | W162: 0.62 | X162: 0.43 | Y162: 0.61 | Z162: 0.97 | AA162: 1.04 | AB162: 1.22 | AC162: 1.22 | AD162: 0.61 | AE162: 0.0002 | AF162: 0.0003 | AG162: 0.0006 | AH162: 0.0006 | AI162: 0.0007 | AJ162: 0.0007 | AK162: 0.0003 | AL162: =VLOOKUP(H162,powierzchnie!$A$6:$F$253,6,FALSE) -> 91.9 | AM162: 17,752 | AN162: 2 | AO162: 5 | AP162: 10 | AQ162: 890 | AR162: 1270 | AS162: 2020 | AT162: 2150 | AU162: 2530 | AV162: 2530 | AW162: 1270
A163: 2411035 | B163: Krzanowice - obszar wiejski * (5) | C163: śląskie | D163: 2411 | E163: =VLOOKUP(D163,katalogi!$A$3:$C$38,katalogi!$B$1,FALSE) -> raciborski | F163: PL2405 | H163: 2408052 | I163: Wyry (2) | J163: Wyry | K163: gmina wiejska | L163: mikołowski | M163: PL2405 | N163: =VLOOKUP($M163,'katalog zadań'!$A$3:$B$7,2,FALSE) -> PL2405_ZSO | O163: =VLOOKUP($M163,'katalog zadań'!$A$8:$B$12,2,FALSE) -> PL2405_EE | P163: =VLOOKUP($M163,'katalog zadań'!$A$13:$B$17,2,FALSE) -> PL2405_KPP | Q163: 0.08 | R163: 0.11 | S163: 0.16 | T163: 0.17 | U163: 1.71 | V163: 1.71 | W163: 2.12 | X163: 0.07 | Y163: 0.1 | Z163: 0.15 | AA163: 0.16 | AB163: 1.68 | AC163: 1.68 | AD163: 2.08 | AE163: 0 | AF163: 0.0001 | AG163: 0.0001 | AH163: 0.0001 | AI163: 0.001 | AJ163: 0.001 | AK163: 0.0012 | AL163: =VLOOKUP(H163,powierzchnie!$A$6:$F$253,6,FALSE) -> 102.2 | AM163: 8,226 | AN163: 2 | AO163: 5 | AP163: 10 | AQ163: 140 | AR163: 200 | AS163: 320 | AT163: 340 | AU163: 3480 | AV163: 3480 | AW163: 4310
A164: 2411042 | B164: Krzyżanowice (2) | C164: śląskie | D164: 2411 | E164: =VLOOKUP(D164,katalogi!$A$3:$C$38,katalogi!$B$1,FALSE) -> raciborski | F164: PL2405 | H164: 2478011 | I164: Zabrze (1) | J164: Zabrze | K164: powiat grodzki | L164: m. Zabrze | M164: PL2401 | N164: =VLOOKUP($M164,'katalog zadań'!$A$3:$B$7,2,FALSE) -> PL2401_ZSO | O164: =VLOOKUP($M164,'katalog zadań'!$A$8:$B$12,2,FALSE) -> PL2401_EE | P164: =VLOOKUP($M164,'katalog zadań'!$A$13:$B$17,2,FALSE) -> PL2401_KPP | Q164: 0 | R164: 0 | S164: 0 | T164: 0 | U164: 0 | V164: 0 | W164: 0 | X164: 0 | Y164: 0 | Z164: 0 | AA164: 0 | AB164: 0 | AC164: 0 | AD164: 0 | AE164: 0 | AF164: 0 | AG164: 0 | AH164: 0 | AI164: 0 | AJ164: 0 | AK164: 0 | AL164: =VLOOKUP(H164,powierzchnie!$A$6:$F$253,6,FALSE) -> 56.2 | AM164: 173,374 | AN164: 7 | AO164: 15 | AP164: 50 | AQ164: 0 | AR164: 0 | AS164: 0 | AT164: 0 | AU164: 0 | AV164: 0 | AW164: 0
A165: 2411053 | B165: Kuźnia Raciborska (3) | C165: śląskie | D165: 2411 | E165: =VLOOKUP(D165,katalogi!$A$3:$C$38,katalogi!$B$1,FALSE) -> raciborski | F165: PL2405 | H165: 2416021 | I165: Zawiercie (1) | J165: Zawiercie | K165: gmina miejska | L165: zawierciański | M165: PL2405 | N165: =VLOOKUP($M165,'katalog zadań'!$A$3:$B$7,2,FALSE) -> PL2405_ZSO | O165: =VLOOKUP($M165,'katalog zadań'!$A$8:$B$12,2,FALSE) -> PL2405_EE | P165: =VLOOKUP($M165,'katalog zadań'!$A$13:$B$17,2,FALSE) -> PL2405_KPP | Q165: 1.24 | R165: 1.77 | S165: 2.84 | T165: 3.02 | U165: 3.55 | V165: 3.55 | W165: 1.77 | X165: 1.22 | Y165: 1.74 | Z165: 2.79 | AA165: 2.97 | AB165: 3.49 | AC165: 3.49 | AD165: 1.74 | AE165: 0.0007 | AF165: 0.001 | AG165: 0.0016 | AH165: 0.0017 | AI165: 0.002 | AJ165: 0.002 | AK165: 0.001 | AL165: =VLOOKUP(H165,powierzchnie!$A$6:$F$253,6,FALSE) -> 66.0 | AM165: 49,567 | AN165: 2 | AO165: 5 | AP165: 10 | AQ165: 2540 | AR165: 3620 | AS165: 5790 | AT165: 6160 | AU165: 7240 | AV165: 7240 | AW165: 3620
A166: 2411054 | B166: Kuźnia Raciborska - miasto (4) | C166: śląskie | D166: 2411 | E166: =VLOOKUP(D166,katalogi!$A$3:$C$38,katalogi!$B$1,FALSE) -> raciborski | F166: PL2405 | H166: 2413092 | I166: Zbrosławice (2) | J166: Zbrosławice | K166: gmina wiejska | L166: tarnogórski | M166: PL2405 | N166: =VLOOKUP($M166,'katalog zadań'!$A$3:$B$7,2,FALSE) -> PL2405_ZSO | O166: =VLOOKUP($M166,'katalog zadań'!$A$8:$B$12,2,FALSE) -> PL2405_EE | P166: =VLOOKUP($M166,'katalog zadań'!$A$13:$B$17,2,FALSE) -> PL2405_KPP | Q166: 1.24 | R166: 1.77 | S166: 2.84 | T166: 3.01 | U166: 3.55 | V166: 3.55 | W166: 1.77 | X166: 1.22 | Y166: 1.74 | Z166: 2.79 | AA166: 2.96 | AB166: 3.49 | AC166: 3.49 | AD166: 1.74 | AE166: 0.0007 | AF166: 0.001 | AG166: 0.0016 | AH166: 0.0017 | AI166: 0.002 | AJ166: 0.002 | AK166: 0.001 | AL166: =VLOOKUP(H166,powierzchnie!$A$6:$F$253,6,FALSE) -> 102.6 | AM166: 16,112 | AN166: 2 | AO166: 5 | AP166: 10 | AQ166: 2540 | AR166: 3620 | AS166: 5790 | AT166: 6150 | AU166: 7240 | AV166: 7240 | AW166: 3620
A167: 2411055 | B167: Kuźnia Raciborska - obszar wiejski (5) | C167: śląskie | D167: 2411 | E167: =VLOOKUP(D167,katalogi!$A$3:$C$38,katalogi!$B$1,FALSE) -> raciborski | F167: PL2405 | H167: 2403122 | I167: Zebrzydowice (2) | J167: Zebrzydowice | K167: gmina wiejska | L167: cieszyński | M167: PL2405 | N167: =VLOOKUP($M167,'katalog zadań'!$A$3:$B$7,2,FALSE) -> PL2405_ZSO | O167: =VLOOKUP($M167,'katalog zadań'!$A$8:$B$12,2,FALSE) -> PL2405_EE | P167: =VLOOKUP($M167,'katalog zadań'!$A$13:$B$17,2,FALSE) -> PL2405_KPP | Q167: 0.06 | R167: 0.08 | S167: 0.12 | T167: 0.13 | U167: 0.14 | V167: 0.14 | W167: 0.08 | X167: 0.05 | Y167: 0.07 | Z167: 0.11 | AA167: 0.12 | AB167: 0.13 | AC167: 0.13 | AD167: 0.07 | AE167: 0 | AF167: 0 | AG167: 0.0001 | AH167: 0.0001 | AI167: 0.0001 | AJ167: 0.0001 | AK167: 0 | AL167: =VLOOKUP(H167,powierzchnie!$A$6:$F$253,6,FALSE) -> 104.4 | AM167: 13,253 | AN167: 2 | AO167: 5 | AP167: 10 | AQ167: 100 | AR167: 140 | AS167: 220 | AT167: 240 | AU167: 280 | AV167: 280 | AW167: 140
A168: 2411062 | B168: Nędza (2) | C168: śląskie | D168: 2411 | E168: =VLOOKUP(D168,katalogi!$A$3:$C$38,katalogi!$B$1,FALSE) -> raciborski | F168: PL2405 | H168: 2409053 | I168: Żarki (3) | J168: Żarki | K168: gmina miejsko-wiejska | L168: myszkowski | M168: PL2405 | N168: =VLOOKUP($M168,'katalog zadań'!$A$3:$B$7,2,FALSE) -> PL2405_ZSO | O168: =VLOOKUP($M168,'katalog zadań'!$A$8:$B$12,2,FALSE) -> PL2405_EE | P168: =VLOOKUP($M168,'katalog zadań'!$A$13:$B$17,2,FALSE) -> PL2405_KPP | Q168: 0.12 | R168: 0.17 | S168: 0.26 | T168: 0.28 | U168: 0.32 | V168: 0.32 | W168: 0.17 | X168: 0.11 | Y168: 0.16 | Z168: 0.25 | AA168: 0.27 | AB168: 0.31 | AC168: 0.31 | AD168: 0.16 | AE168: 0.0001 | AF168: 0.0001 | AG168: 0.0001 | AH168: 0.0002 | AI168: 0.0002 | AJ168: 0.0002 | AK168: 0.0001 | AL168: =VLOOKUP(H168,powierzchnie!$A$6:$F$253,6,FALSE) -> 84.2 | AM168: 8,451 | AN168: 2 | AO168: 5 | AP168: 10 | AQ168: 230 | AR168: 330 | AS168: 520 | AT168: 550 | AU168: 650 | AV168: 650 | AW168: 330
A169: 2411072 | B169: Pietrowice Wielkie (2) | C169: śląskie | D169: 2411 | E169: =VLOOKUP(D169,katalogi!$A$3:$C$38,katalogi!$B$1,FALSE) -> raciborski | F169: PL2405 | H169: 2416102 | I169: Żarnowiec (2) | J169: Żarnowiec | K169: gmina wiejska | L169: zawierciański | M169: PL2405 | N169: =VLOOKUP($M169,'katalog zadań'!$A$3:$B$7,2,FALSE) -> PL2405_ZSO | O169: =VLOOKUP($M169,'katalog zadań'!$A$8:$B$12,2,FALSE) -> PL2405_EE | P169: =VLOOKUP($M169,'katalog zadań'!$A$13:$B$17,2,FALSE) -> PL2405_KPP | Q169: 0.22 | R169: 0.3 | S169: 0.48 | T169: 0.51 | U169: 0.6 | V169: 0.6 | W169: 0.3 | X169: 0.21 | Y169: 0.29 | Z169: 0.47 | AA169: 0.5 | AB169: 0.59 | AC169: 0.59 | AD169: 0.29 | AE169: 0.0001 | AF169: 0.0002 | AG169: 0.0003 | AH169: 0.0003 | AI169: 0.0003 | AJ169: 0.0003 | AK169: 0.0002 | AL169: =VLOOKUP(H169,powierzchnie!$A$6:$F$253,6,FALSE) -> 95.2 | AM169: 4,637 | AN169: 2 | AO169: 5 | AP169: 10 | AQ169: 430 | AR169: 610 | AS169: 970 | AT169: 1040 | AU169: 1220 | AV169: 1220 | AW169: 610
A170: 2411082 | B170: Rudnik (2) | C170: śląskie | D170: 2411 | E170: =VLOOKUP(D170,katalogi!$A$3:$C$38,katalogi!$B$1,FALSE) -> raciborski | F170: PL2405 | H170: 2479011 | I170: Żory (1) | J170: Żory | K170: powiat grodzki | L170: m. Żory | M170: PL2402 | N170: =VLOOKUP($M170,'katalog zadań'!$A$3:$B$7,2,FALSE) -> PL2402_ZSO | O170: =VLOOKUP($M170,'katalog zadań'!$A$8:$B$12,2,FALSE) -> PL2402_EE | P170: =VLOOKUP($M170,'katalog zadań'!$A$13:$B$17,2,FALSE) -> PL2402_KPP | Q170: 1.55 | R170: 2.21 | S170: 3.54 | T170: 3.76 | U170: 4.42 | V170: 4.42 | W170: 2.21 | X170: 1.52 | Y170: 2.17 | Z170: 3.48 | AA170: 3.7 | AB170: 4.35 | AC170: 4.35 | AD170: 2.17 | AE170: 0.0009 | AF170: 0.0012 | AG170: 0.002 | AH170: 0.0021 | AI170: 0.0025 | AJ170: 0.0025 | AK170: 0.0012 | AL170: =VLOOKUP(H170,powierzchnie!$A$6:$F$253,6,FALSE) -> 73.4 | AM170: 62,456 | AN170: 5 | AO170: 10 | AP170: 50 | AQ170: 3160 | AR170: 4510 | AS170: 7220 | AT170: 7670 | AU170: 9020 | AV170: 9020 | AW170: 4510
A171: 2412 | B171: Powiat rybnicki | C171: śląskie | D171: 2412 | E171: =VLOOKUP(D171,katalogi!$A$3:$C$38,katalogi!$B$1,FALSE) -> rybnicki | F171: PL2405 | H171: 2417011 | I171: Żywiec (1) | J171: Żywiec | K171: gmina miejska | L171: żywiecki | M171: PL2405 | N171: =VLOOKUP($M171,'katalog zadań'!$A$3:$B$7,2,FALSE) -> PL2405_ZSO | O171: =VLOOKUP($M171,'katalog zadań'!$A$8:$B$12,2,FALSE) -> PL2405_EE | P171: =VLOOKUP($M171,'katalog zadań'!$A$13:$B$17,2,FALSE) -> PL2405_KPP | Q171: 0.21 | R171: 0.29 | S171: 0.46 | T171: 0.49 | U171: 0.57 | V171: 0.57 | W171: 0.29 | X171: 0.2 | Y171: 0.28 | Z171: 0.45 | AA171: 0.48 | AB171: 0.56 | AC171: 0.56 | AD171: 0.28 | AE171: 0.0001 | AF171: 0.0002 | AG171: 0.0003 | AH171: 0.0003 | AI171: 0.0003 | AJ171: 0.0003 | AK171: 0.0002 | AL171: =VLOOKUP(H171,powierzchnie!$A$6:$F$253,6,FALSE) -> 75.4 | AM171: 31,388 | AN171: 2 | AO171: 5 | AP171: 10 | AQ171: 410 | AR171: 580 | AS171: 930 | AT171: 990 | AU171: 1160 | AV171: 1160 | AW171: 580
A172: 2412013 | B172: Czerwionka-Leszczyny (3) | C172: śląskie | D172: 2412 | E172: =VLOOKUP(D172,katalogi!$A$3:$C$38,katalogi!$B$1,FALSE) -> rybnicki | F172: PL2405 | H172: 2406 | J172: starostwo powiatowe w Kłobucku | K172: starostwo powiatowe | L172: kłobucki | M172: PL2405 | N172: =VLOOKUP($M172,'katalog zadań'!$A$3:$B$7,2,FALSE) -> PL2405_ZSO | O172: =VLOOKUP($M172,'katalog zadań'!$A$8:$B$12,2,FALSE) -> PL2405_EE | P172: =VLOOKUP($M172,'katalog zadań'!$A$13:$B$17,2,FALSE) -> PL2405_KPP | AL172: =VLOOKUP(H172,powierzchnie!$A$6:$F$253,6,FALSE) -> 94.8
A173: 2412014 | B173: Czerwionka-Leszczyny - miasto (4) | C173: śląskie | D173: 2412 | E173: =VLOOKUP(D173,katalogi!$A$3:$C$38,katalogi!$B$1,FALSE) -> rybnicki | F173: PL2405 | H173: 2404 | J173: starostwo powiatowe w Częstochowie | K173: starostwo powiatowe | L173: częstochowski | M173: PL2405 | N173: =VLOOKUP($M173,'katalog zadań'!$A$3:$B$7,2,FALSE) -> PL2405_ZSO | O173: =VLOOKUP($M173,'katalog zadań'!$A$8:$B$12,2,FALSE) -> PL2405_EE | P173: =VLOOKUP($M173,'katalog zadań'!$A$13:$B$17,2,FALSE) -> PL2405_KPP | AL173: =VLOOKUP(H173,powierzchnie!$A$6:$F$253,6,FALSE) -> 88.6
A174: 2412015 | B174: Czerwionka-Leszczyny - obszar wiejski (5) | C174: śląskie | D174: 2412 | E174: =VLOOKUP(D174,katalogi!$A$3:$C$38,katalogi!$B$1,FALSE) -> rybnicki | F174: PL2405 | H174: 2407 | J174: starostwo powiatowe w Lublińcu | K174: starostwo powiatowe | L174: lubliniecki | M174: PL2405 | N174: =VLOOKUP($M174,'katalog zadań'!$A$3:$B$7,2,FALSE) -> PL2405_ZSO | O174: =VLOOKUP($M174,'katalog zadań'!$A$8:$B$12,2,FALSE) -> PL2405_EE | P174: =VLOOKUP($M174,'katalog zadań'!$A$13:$B$17,2,FALSE) -> PL2405_KPP | AL174: =VLOOKUP(H174,powierzchnie!$A$6:$F$253,6,FALSE) -> 90.8
A175: 2412022 | B175: Gaszowice (2) | C175: śląskie | D175: 2412 | E175: =VLOOKUP(D175,katalogi!$A$3:$C$38,katalogi!$B$1,FALSE) -> rybnicki | F175: PL2405 | H175: 2409 | J175: starostwo powiatowe w Myszkowie | K175: starostwo powiatowe | L175: myszkowski | M175: PL2405 | N175: =VLOOKUP($M175,'katalog zadań'!$A$3:$B$7,2,FALSE) -> PL2405_ZSO | O175: =VLOOKUP($M175,'katalog zadań'!$A$8:$B$12,2,FALSE) -> PL2405_EE | P175: =VLOOKUP($M175,'katalog zadań'!$A$13:$B$17,2,FALSE) -> PL2405_KPP | AL175: =VLOOKUP(H175,powierzchnie!$A$6:$F$253,6,FALSE) -> 84.3
A176: 2412032 | B176: Jejkowice (2) | C176: śląskie | D176: 2412 | E176: =VLOOKUP(D176,katalogi!$A$3:$C$38,katalogi!$B$1,FALSE) -> rybnicki | F176: PL2405 | H176: 2416 | J176: starostwo powiatowe w Zawierciu | K176: starostwo powiatowe | L176: zawierciański | M176: PL2405 | N176: =VLOOKUP($M176,'katalog zadań'!$A$3:$B$7,2,FALSE) -> PL2405_ZSO | O176: =VLOOKUP($M176,'katalog zadań'!$A$8:$B$12,2,FALSE) -> PL2405_EE | P176: =VLOOKUP($M176,'katalog zadań'!$A$13:$B$17,2,FALSE) -> PL2405_KPP | AL176: =VLOOKUP(H176,powierzchnie!$A$6:$F$253,6,FALSE) -> 75.1
A177: 2412042 | B177: Lyski (2) | C177: śląskie | D177: 2412 | E177: =VLOOKUP(D177,katalogi!$A$3:$C$38,katalogi!$B$1,FALSE) -> rybnicki | F177: PL2405 | H177: 2413 | J177: straostwo powiatowe w Tarnowskich Górach | K177: starostwo powiatowe | L177: tarnogórski | M177: PL2405 | N177: =VLOOKUP($M177,'katalog zadań'!$A$3:$B$7,2,FALSE) -> PL2405_ZSO | O177: =VLOOKUP($M177,'katalog zadań'!$A$8:$B$12,2,FALSE) -> PL2405_EE | P177: =VLOOKUP($M177,'katalog zadań'!$A$13:$B$17,2,FALSE) -> PL2405_KPP | AL177: =VLOOKUP(H177,powierzchnie!$A$6:$F$253,6,FALSE) -> 84.0
A178: 2412052 | B178: Świerklany (2) | C178: śląskie | D178: 2412 | E178: =VLOOKUP(D178,katalogi!$A$3:$C$38,katalogi!$B$1,FALSE) -> rybnicki | F178: PL2405 | H178: 2401 | J178: starostwo powiatowe w Będzinie | K178: starostwo powiatowe | L178: będziński | M178: PL2405 | N178: =VLOOKUP($M178,'katalog zadań'!$A$3:$B$7,2,FALSE) -> PL2405_ZSO | O178: =VLOOKUP($M178,'katalog zadań'!$A$8:$B$12,2,FALSE) -> PL2405_EE | P178: =VLOOKUP($M178,'katalog zadań'!$A$13:$B$17,2,FALSE) -> PL2405_KPP | AL178: =VLOOKUP(H178,powierzchnie!$A$6:$F$253,6,FALSE) -> 71.4
A179: 2415 | B179: Powiat wodzisławski | C179: śląskie | D179: 2415 | E179: =VLOOKUP(D179,katalogi!$A$3:$C$38,katalogi!$B$1,FALSE) -> wodzisławski | F179: PL2405 | H179: 2405 | J179: starostwo powiatowe w Gliwicach | K179: starostwo powiatowe | L179: gliwicki | M179: PL2405 | N179: =VLOOKUP($M179,'katalog zadań'!$A$3:$B$7,2,FALSE) -> PL2405_ZSO | O179: =VLOOKUP($M179,'katalog zadań'!$A$8:$B$12,2,FALSE) -> PL2405_EE | P179: =VLOOKUP($M179,'katalog zadań'!$A$13:$B$17,2,FALSE) -> PL2405_KPP | AL179: =VLOOKUP(H179,powierzchnie!$A$6:$F$253,6,FALSE) -> 78.3
A180: 2415011 | B180: Pszów (1) | C180: śląskie | D180: 2415 | E180: =VLOOKUP(D180,katalogi!$A$3:$C$38,katalogi!$B$1,FALSE) -> wodzisławski | F180: PL2405 | H180: 2408 | J180: starostwo powiatowe w Mikołowie | K180: starostwo powiatowe | L180: mikołowski | M180: PL2405 | N180: =VLOOKUP($M180,'katalog zadań'!$A$3:$B$7,2,FALSE) -> PL2405_ZSO | O180: =VLOOKUP($M180,'katalog zadań'!$A$8:$B$12,2,FALSE) -> PL2405_EE | P180: =VLOOKUP($M180,'katalog zadań'!$A$13:$B$17,2,FALSE) -> PL2405_KPP | AL180: =VLOOKUP(H180,powierzchnie!$A$6:$F$253,6,FALSE) -> 85.2
A181: 2415021 | B181: Radlin * (1) | C181: śląskie | D181: 2415 | E181: =VLOOKUP(D181,katalogi!$A$3:$C$38,katalogi!$B$1,FALSE) -> wodzisławski | F181: PL2405 | H181: 2412 | J181: starostwo powiatowe w Rybniku | K181: starostwo powiatowe | L181: rybnicki | M181: PL2405 | N181: =VLOOKUP($M181,'katalog zadań'!$A$3:$B$7,2,FALSE) -> PL2405_ZSO | O181: =VLOOKUP($M181,'katalog zadań'!$A$8:$B$12,2,FALSE) -> PL2405_EE | P181: =VLOOKUP($M181,'katalog zadań'!$A$13:$B$17,2,FALSE) -> PL2405_KPP | AL181: =VLOOKUP(H181,powierzchnie!$A$6:$F$253,6,FALSE) -> 88.1
A182: 2415031 | B182: Rydułtowy (1) | C182: śląskie | D182: 2415 | E182: =VLOOKUP(D182,katalogi!$A$3:$C$38,katalogi!$B$1,FALSE) -> wodzisławski | F182: PL2405 | H182: 2414 | J182: starostwo powiatowe Powiatu Bieruńsko-Lędzińskiego | K182: starostwo powiatowe | L182: bieruńsko-lędziński | M182: PL2405 | N182: =VLOOKUP($M182,'katalog zadań'!$A$3:$B$7,2,FALSE) -> PL2405_ZSO | O182: =VLOOKUP($M182,'katalog zadań'!$A$8:$B$12,2,FALSE) -> PL2405_EE | P182: =VLOOKUP($M182,'katalog zadań'!$A$13:$B$17,2,FALSE) -> PL2405_KPP | AL182: =VLOOKUP(H182,powierzchnie!$A$6:$F$253,6,FALSE) -> 93.2
A183: 2415041 | B183: Wodzisław Śląski (1) | C183: śląskie | D183: 2415 | E183: =VLOOKUP(D183,katalogi!$A$3:$C$38,katalogi!$B$1,FALSE) -> wodzisławski | F183: PL2405 | H183: 2411 | J183: starostwo powiatowe w Raciborzu | K183: starostwo powiatowe | L183: raciborski | M183: PL2405 | N183: =VLOOKUP($M183,'katalog zadań'!$A$3:$B$7,2,FALSE) -> PL2405_ZSO | O183: =VLOOKUP($M183,'katalog zadań'!$A$8:$B$12,2,FALSE) -> PL2405_EE | P183: =VLOOKUP($M183,'katalog zadań'!$A$13:$B$17,2,FALSE) -> PL2405_KPP | AL183: =VLOOKUP(H183,powierzchnie!$A$6:$F$253,6,FALSE) -> 84.7
A184: 2415052 | B184: Godów (2) | C184: śląskie | D184: 2415 | E184: =VLOOKUP(D184,katalogi!$A$3:$C$38,katalogi!$B$1,FALSE) -> wodzisławski | F184: PL2405 | H184: 2415 | J184: starostwo powiatowe w Wodzisławiu Śląskim | K184: starostwo powiatowe | L184: wodzisławski | M184: PL2405 | N184: =VLOOKUP($M184,'katalog zadań'!$A$3:$B$7,2,FALSE) -> PL2405_ZSO | O184: =VLOOKUP($M184,'katalog zadań'!$A$8:$B$12,2,FALSE) -> PL2405_EE | P184: =VLOOKUP($M184,'katalog zadań'!$A$13:$B$17,2,FALSE) -> PL2405_KPP | AL184: =VLOOKUP(H184,powierzchnie!$A$6:$F$253,6,FALSE) -> 88.4
A185: 2415062 | B185: Gorzyce (2) | C185: śląskie | D185: 2415 | E185: =VLOOKUP(D185,katalogi!$A$3:$C$38,katalogi!$B$1,FALSE) -> wodzisławski | F185: PL2405 | H185: 2410 | J185: starostwo powiatowe w Pszczynie | K185: starostwo powiatowe | L185: pszczyński | M185: PL2405 | N185: =VLOOKUP($M185,'katalog zadań'!$A$3:$B$7,2,FALSE) -> PL2405_ZSO | O185: =VLOOKUP($M185,'katalog zadań'!$A$8:$B$12,2,FALSE) -> PL2405_EE | P185: =VLOOKUP($M185,'katalog zadań'!$A$13:$B$17,2,FALSE) -> PL2405_KPP | AL185: =VLOOKUP(H185,powierzchnie!$A$6:$F$253,6,FALSE) -> 99.4
A186: 2415072 | B186: Lubomia (2) | C186: śląskie | D186: 2415 | E186: =VLOOKUP(D186,katalogi!$A$3:$C$38,katalogi!$B$1,FALSE) -> wodzisławski | F186: PL2405 | H186: 2402 | J186: starostwo powiatowe w Bielsku-Białej | K186: starostwo powiatowe | L186: bielski | M186: PL2405 | N186: =VLOOKUP($M186,'katalog zadań'!$A$3:$B$7,2,FALSE) -> PL2405_ZSO | O186: =VLOOKUP($M186,'katalog zadań'!$A$8:$B$12,2,FALSE) -> PL2405_EE | P186: =VLOOKUP($M186,'katalog zadań'!$A$13:$B$17,2,FALSE) -> PL2405_KPP | AL186: =VLOOKUP(H186,powierzchnie!$A$6:$F$253,6,FALSE) -> 92.5
A187: 2415082 | B187: Marklowice (2) | C187: śląskie | D187: 2415 | E187: =VLOOKUP(D187,katalogi!$A$3:$C$38,katalogi!$B$1,FALSE) -> wodzisławski | F187: PL2405 | H187: 2403 | J187: starostwo powiatowe w Cieszynie | K187: starostwo powiatowe | L187: cieszyński | M187: PL2405 | N187: =VLOOKUP($M187,'katalog zadań'!$A$3:$B$7,2,FALSE) -> PL2405_ZSO | O187: =VLOOKUP($M187,'katalog zadań'!$A$8:$B$12,2,FALSE) -> PL2405_EE | P187: =VLOOKUP($M187,'katalog zadań'!$A$13:$B$17,2,FALSE) -> PL2405_KPP | AL187: =VLOOKUP(H187,powierzchnie!$A$6:$F$253,6,FALSE) -> 91.4
A188: 2415092 | B188: Mszana (2) | C188: śląskie | D188: 2415 | E188: =VLOOKUP(D188,katalogi!$A$3:$C$38,katalogi!$B$1,FALSE) -> wodzisławski | F188: PL2405 | H188: 2417 | J188: starostwo powiatowe w Żywcu | K188: starostwo powiatowe | L188: żywiecki | M188: PL2405 | N188: =VLOOKUP($M188,'katalog zadań'!$A$3:$B$7,2,FALSE) -> PL2405_ZSO | O188: =VLOOKUP($M188,'katalog zadań'!$A$8:$B$12,2,FALSE) -> PL2405_EE | P188: =VLOOKUP($M188,'katalog zadań'!$A$13:$B$17,2,FALSE) -> PL2405_KPP | AL188: =VLOOKUP(H188,powierzchnie!$A$6:$F$253,6,FALSE) -> 87.3
A189: 2467 | B189: Powiat m.Jastrzębie-Zdrój | C189: śląskie | D189: 2467 | E189: =VLOOKUP(D189,katalogi!$A$3:$C$38,katalogi!$B$1,FALSE) -> m. Jastrzębie-Zdrój | F189: PL2402
A190: 2467011 | B190: Jastrzębie-Zdrój (1) | C190: śląskie | D190: 2467 | E190: =VLOOKUP(D190,katalogi!$A$3:$C$38,katalogi!$B$1,FALSE) -> m. Jastrzębie-Zdrój | F190: PL2402
A191: 2473 | B191: Powiat m.Rybnik | C191: śląskie | D191: 2473 | E191: =VLOOKUP(D191,katalogi!$A$3:$C$38,katalogi!$B$1,FALSE) -> m. Rybnik | F191: PL2402
A192: 2473011 | B192: Rybnik (1) | C192: śląskie | D192: 2473 | E192: =VLOOKUP(D192,katalogi!$A$3:$C$38,katalogi!$B$1,FALSE) -> m. Rybnik | F192: PL2402
A193: 2479 | B193: Powiat m.Żory | C193: śląskie | D193: 2479 | E193: =VLOOKUP(D193,katalogi!$A$3:$C$38,katalogi!$B$1,FALSE) -> m. Żory | F193: PL2402
A194: 2479011 | B194: Żory (1) | C194: śląskie | D194: 2479 | E194: =VLOOKUP(D194,katalogi!$A$3:$C$38,katalogi!$B$1,FALSE) -> m. Żory | F194: PL2402
A195: 2401 | B195: Powiat będziński * | C195: śląskie | D195: 2401 | E195: =VLOOKUP(D195,katalogi!$A$3:$C$38,katalogi!$B$1,FALSE) -> będziński | F195: PL2405
A196: 2401011 | B196: Będzin (1) | C196: śląskie | D196: 2401 | E196: =VLOOKUP(D196,katalogi!$A$3:$C$38,katalogi!$B$1,FALSE) -> będziński | F196: PL2405
A197: 2401021 | B197: Czeladź (1) | C197: śląskie | D197: 2401 | E197: =VLOOKUP(D197,katalogi!$A$3:$C$38,katalogi!$B$1,FALSE) -> będziński | F197: PL2405
A198: 2401031 | B198: Wojkowice (1) | C198: śląskie | D198: =LEFT(A198,4) -> 2401 | E198: =VLOOKUP(D198,katalogi!$A$3:$C$38,katalogi!$B$1,FALSE) -> będziński | F198: PL2405
A199: 2401042 | B199: Bobrowniki (2) | C199: śląskie | D199: 2401 | E199: =VLOOKUP(D199,katalogi!$A$3:$C$38,katalogi!$B$1,FALSE) -> będziński | F199: PL2405
A200: 2401052 | B200: Mierzęcice (2) | C200: śląskie | D200: 2401 | E200: =VLOOKUP(D200,katalogi!$A$3:$C$38,katalogi!$B$1,FALSE) -> będziński | F200: PL2405
... 53 more rows

Sheet powierzchnie (hidden)
A1: 1 | B1: 2 | C1: 3 | D1: 7 | E1: 8
B2: Kod | C2: Nazwa
D3: zasoby mieszkaniowe ogółem (dane za 2015)
D4: ilość | E4: powierzchnia | F4: średnia powierzchnia mieszkania
A5: kod | D5: [mieszk.] | E5: [m2] | F5: [m2]
A6: 24 | B6: 2240000000 | C6: ŚLĄSKIE | D6: 1,740,320 | E6: 122,594,507 | F6: =E6/D6 -> 70.4
A7: 2402 | B7: 2244402000 | C7: Powiat bielski | D7: 49,173 | E7: 4,546,369 | F7: 92.5
A8: 2402011 | B8: 2244402011 | C8: Szczyrk (1) | D8: 2,156 | E8: 216,593 | F8: =E8/D8 -> 100.5
A9: 2402022 | B9: 2244402022 | C9: Bestwina (2) | D9: 2,868 | E9: 297,531 | F9: =E9/D9 -> 103.7
A10: 2402032 | B10: 2244402032 | C10: Buczkowice (2) | D10: 3,165 | E10: 306,982 | F10: 97.0
A11: 2402043 | B11: 2244402043 | C11: Czechowice-Dziedzice (3) | D11: 14,968 | E11: 1,135,895 | F11: 75.9
A12: 2402044 | B12: 2244402044 | C12: Czechowice-Dziedzice - miasto (4) | D12: 12,380 | E12: 878,369 | F12: 71.0
A13: 2402045 | B13: 2244402045 | C13: Czechowice-Dziedzice - obszar wiejski (5) | D13: 2,588 | E13: 257,526 | F13: 99.5
A14: 2402052 | B14: 2244402052 | C14: Jasienica (2) | D14: 6,901 | E14: 694,200 | F14: 100.6
A15: 2402062 | B15: 2244402062 | C15: Jaworze (2) | D15: 2,272 | E15: 254,451 | F15: 112.0
A16: 2402072 | B16: 2244402072 | C16: Kozy (2) | D16: 3,183 | E16: 308,962 | F16: 97.1
A17: 2402082 | B17: 2244402082 | C17: Porąbka (2) | D17: 4,126 | E17: 396,684 | F17: 96.1
A18: 2402093 | B18: 2244402093 | C18: Wilamowice (3) | D18: 4,844 | E18: 485,271 | F18: 100.2
A19: 2402094 | B19: 2244402094 | C19: Wilamowice - miasto (4) | D19: 884 | E19: 88,212 | F19: 99.8
A20: 2402095 | B20: 2244402095 | C20: Wilamowice - obszar wiejski (5) | D20: 3,960 | E20: 397,059 | F20: 100.3
A21: 2402102 | B21: 2244402102 | C21: Wilkowice (2) | D21: 4,690 | E21: 449,800 | F21: 95.9
A22: 2403 | B22: 2244403000 | C22: Powiat cieszyński | D22: 60,280 | E22: 5,506,806 | F22: 91.4
A23: 2403011 | B23: 2244403011 | C23: Cieszyn (1) | D23: 13,024 | E23: 924,491 | F23: 71.0
A24: 2403021 | B24: 2244403021 | C24: Ustroń (1) | D24: 7,185 | E24: 657,602 | F24: 91.5
A25: 2403031 | B25: 2244403031 | C25: Wisła (1) | D25: 4,889 | E25: 514,864 | F25: 105.3
A26: 2403042 | B26: 2244403042 | C26: Brenna (2) | D26: 4,690 | E26: 488,393 | F26: 104.1
A27: 2403052 | B27: 2244403052 | C27: Chybie (2) | D27: 2,487 | E27: 244,176 | F27: 98.2
A28: 2403062 | B28: 2244403062 | C28: Dębowiec (2) | D28: 1,707 | E28: 183,512 | F28: 107.5
A29: 2403072 | B29: 2244403072 | C29: Goleszów (2) | D29: 4,101 | E29: 409,271 | F29: 99.8
A30: 2403082 | B30: 2244403082 | C30: Hażlach (2) | D30: 3,253 | E30: 322,941 | F30: 99.3
A31: 2403092 | B31: 2244403092 | C31: Istebna (2) | D31: 3,690 | E31: 341,787 | F31: 92.6
A32: 2403103 | B32: 2244403103 | C32: Skoczów (3) | D32: 7,733 | E32: 646,276 | F32: 83.6
A33: 2403104 | B33: 2244403104 | C33: Skoczów - miasto (4) | D33: 4,697 | E33: 323,110 | F33: 68.8
A34: 2403105 | B34: 2244403105 | C34: Skoczów - obszar wiejski (5) | D34: 3,036 | E34: 323,166 | F34: 106.4
A35: 2403113 | B35: 2244403113 | C35: Strumień (3) | D35: 3,969 | E35: 402,773 | F35: 101.5
A36: 2403114 | B36: 2244403114 | C36: Strumień - miasto (4) | D36: 1,201 | E36: 111,550 | F36: 92.9
A37: 2403115 | B37: 2244403115 | C37: Strumień - obszar wiejski (5) | D37: 2,768 | E37: 291,223 | F37: 105.2
A38: 2403122 | B38: 2244403122 | C38: Zebrzydowice (2) | D38: 3,552 | E38: 370,720 | F38: 104.4
A39: 2417 | B39: 2244417000 | C39: Powiat żywiecki | D39: 50,435 | E39: 4,401,829 | F39: 87.3
A40: 2417011 | B40: 2244417011 | C40: Żywiec (1) | D40: 11,695 | E40: 882,027 | F40: 75.4
A41: 2417022 | B41: 2244417022 | C41: Czernichów (2) | D41: 2,413 | E41: 225,485 | F41: 93.4
A42: 2417032 | B42: 2244417032 | C42: Gilowice (2) | D42: 1,871 | E42: 173,301 | F42: 92.6
A43: 2417042 | B43: 2244417042 | C43: Jeleśnia (2) | D43: 4,533 | E43: 406,273 | F43: 89.6
A44: 2417052 | B44: 2244417052 | C44: Koszarawa (2) | D44: 1,102 | E44: 84,995 | F44: 77.1
A45: 2417062 | B45: 2244417062 | C45: Lipowa (2) | D45: 3,169 | E45: 304,511 | F45: 96.1
A46: 2417072 | B46: 2244417072 | C46: Łękawica (2) | D46: 1,456 | E46: 122,097 | F46: 83.9
A47: 2417082 | B47: 2244417082 | C47: Łodygowice (2) | D47: 4,274 | E47: 434,630 | F47: 101.7
A48: 2417092 | B48: 2244417092 | C48: Milówka (2) | D48: 3,261 | E48: 301,831 | F48: 92.6
A49: 2417102 | B49: 2244417102 | C49: Radziechowy-Wieprz (2) | D49: 3,420 | E49: 323,675 | F49: 94.6
A50: 2417112 | B50: 2244417112 | C50: Rajcza (2) | D50: 3,081 | E50: 260,643 | F50: 84.6
A51: 2417122 | B51: 2244417122 | C51: Ślemień (2) | D51: 1,235 | E51: 102,343 | F51: 82.9
A52: 2417132 | B52: 2244417132 | C52: Świnna (2) | D52: 2,517 | E52: 214,670 | F52: 85.3
A53: 2417142 | B53: 2244417142 | C53: Ujsoły (2) | D53: 1,827 | E53: 149,113 | F53: 81.6
A54: 2417152 | B54: 2244417152 | C54: Węgierska Górka (2) | D54: 4,581 | E54: 416,235 | F54: 90.9
A55: 2461 | B55: 2244461000 | C55: Powiat m.Bielsko-Biała | D55: 69,874 | E55: 4,815,034 | F55: 68.9
A56: 2461011 | B56: 2244461011 | C56: Bielsko-Biała (1) | D56: 69,874 | E56: 4,815,034 | F56: 68.9
A57: 2407 | B57: 2244507000 | C57: Powiat lubliniecki | D57: 25,045 | E57: 2,273,729 | F57: 90.8
A58: 2407011 | B58: 2244507011 | C58: Lubliniec (1) | D58: 8,692 | E58: 692,506 | F58: 79.7
A59: 2407022 | B59: 2244507022 | C59: Boronów (2) | D59: 981 | E59: 99,058 | F59: 101.0
A60: 2407032 | B60: 2244507032 | C60: Ciasna (2) | D60: 2,165 | E60: 211,236 | F60: 97.6
A61: 2407042 | B61: 2244507042 | C61: Herby (2) | D61: 2,377 | E61: 200,987 | F61: 84.6
A62: 2407052 | B62: 2244507052 | C62: Kochanowice (2) | D62: 1,923 | E62: 195,804 | F62: 101.8
A63: 2407062 | B63: 2244507062 | C63: Koszęcin (2) | D63: 3,836 | E63: 377,663 | F63: 98.5
A64: 2407072 | B64: 2244507072 | C64: Pawonków (2) | D64: 2,004 | E64: 192,807 | F64: 96.2
A65: 2407083 | B65: 2244507083 | C65: Woźniki (3) | D65: 3,067 | E65: 303,668 | F65: 99.0
A66: 2407084 | B66: 2244507084 | C66: Woźniki - miasto (4) | D66: 1,442 | E66: 140,687 | F66: 97.6
A67: 2407085 | B67: 2244507085 | C67: Woźniki - obszar wiejski (5) | D67: 1,625 | E67: 162,981 | F67: 100.3
A68: 2413 | B68: 2244513000 | C68: Powiat tarnogórski | D68: 48,434 | E68: 4,066,472 | F68: 84.0
A69: 2413011 | B69: 2244513011 | C69: Kalety (1) | D69: 3,114 | E69: 259,088 | F69: 83.2
A70: 2413021 | B70: 2244513021 | C70: Miasteczko Śląskie (1) | D70: 2,311 | E70: 163,621 | F70: 70.8
A71: 2413031 | B71: 2244513031 | C71: Radzionków (1) | D71: 5,938 | E71: 464,404 | F71: 78.2
A72: 2413041 | B72: 2244513041 | C72: Tarnowskie Góry (1) | D72: 23,702 | E72: 1,825,313 | F72: 77.0
A73: 2413052 | B73: 2244513052 | C73: Krupski Młyn (2) | D73: 1,193 | E73: 77,371 | F73: =E73/D73 -> 64.9
A74: 2413062 | B74: 2244513062 | C74: Ożarowice (2) | D74: 1,735 | E74: 195,025 | F74: 112.4
A75: 2413072 | B75: 2244513072 | C75: Świerklaniec (2) | D75: 3,389 | E75: 370,862 | F75: 109.4
A76: 2413082 | B76: 2244513082 | C76: Tworóg (2) | D76: 2,491 | E76: 242,935 | F76: 97.5
A77: 2413092 | B77: 2244513092 | C77: Zbrosławice (2) | D77: 4,561 | E77: 467,853 | F77: 102.6
A78: 2462 | B78: 2244562000 | C78: Powiat m.Bytom | D78: 73,364 | E78: 4,019,664 | F78: 54.8
A79: 2462011 | B79: 2244562011 | C79: Bytom (1) | D79: 73,364 | E79: 4,019,664 | F79: 54.8
A80: 2471 | B80: 2244571000 | C80: Powiat m.Piekary Śląskie | D80: 22,137 | E80: 1,368,734 | F80: 61.8
A81: 2471011 | B81: 2244571011 | C81: Piekary Śląskie (1) | D81: 22,137 | E81: 1,368,734 | F81: 61.8
A82: 2404 | B82: 2244604000 | C82: Powiat częstochowski | D82: 46,215 | E82: 4,092,496 | F82: 88.6
A83: 2404013 | B83: 2244604013 | C83: Blachownia (3) | D83: 4,876 | E83: 379,136 | F83: 77.8
A84: 2404014 | B84: 2244604014 | C84: Blachownia - miasto (4) | D84: 3,696 | E84: 277,046 | F84: 75.0
A85: 2404015 | B85: 2244604015 | C85: Blachownia - obszar wiejski (5) | D85: 1,180 | E85: 102,090 | F85: 86.5
A86: 2404022 | B86: 2244604022 | C86: Dąbrowa Zielona (2) | D86: 1,563 | E86: 122,820 | F86: 78.6
A87: 2404032 | B87: 2244604032 | C87: Janów (2) | D87: 2,451 | E87: 198,277 | F87: 80.9
A88: 2404042 | B88: 2244604042 | C88: Kamienica Polska (2) | D88: 2,137 | E88: 196,174 | F88: 91.8
A89: 2404052 | B89: 2244604052 | C89: Kłomnice (2) | D89: 4,616 | E89: 403,362 | F89: 87.4
A90: 2404063 | B90: 2244604063 | C90: Koniecpol (3) | D90: 3,644 | E90: 275,534 | F90: 75.6
A91: 2404064 | B91: 2244604064 | C91: Koniecpol - miasto (4) | D91: 2,274 | E91: 170,663 | F91: 75.0
A92: 2404065 | B92: 2244604065 | C92: Koniecpol - obszar wiejski (5) | D92: 1,370 | E92: 104,871 | F92: 76.5
A93: 2404072 | B93: 2244604072 | C93: Konopiska (2) | D93: 3,162 | E93: 303,365 | F93: 95.9
A94: 2404082 | B94: 2244604082 | C94: Kruszyna (2) | D94: 1,628 | E94: 136,458 | F94: 83.8
A95: 2404092 | B95: 2244604092 | C95: Lelów (2) | D95: 2,026 | E95: 153,027 | F95: 75.5
A96: 2404102 | B96: 2244604102 | C96: Mstów (2) | D96: 3,289 | E96: 319,912 | F96: 97.3
A97: 2404112 | B97: 2244604112 | C97: Mykanów (2) | D97: 4,471 | E97: 470,517 | F97: 105.2
A98: 2404122 | B98: 2244604122 | C98: Olsztyn (2) | D98: 2,658 | E98: 269,834 | F98: 101.5
A99: 2404132 | B99: 2244604132 | C99: Poczesna (2) | D99: 4,002 | E99: 372,454 | F99: 93.1
A100: 2404142 | B100: 2244604142 | C100: Przyrów (2) | D100: 1,662 | E100: 129,010 | F100: 77.6
A101: 2404152 | B101: 2244604152 | C101: Rędziny (2) | D101: 3,130 | E101: 281,401 | F101: 89.9
A102: 2404162 | B102: 2244604162 | C102: Starcza (2) | D102: 900 | E102: 81,215 | F102: 90.2
A103: 2406 | B103: 2244606000 | C103: Powiat kłobucki | D103: 26,537 | E103: 2,516,468 | F103: 94.8
A104: 2406013 | B104: 2244606013 | C104: Kłobuck (3) | D104: 6,632 | E104: 603,979 | F104: 91.1
A105: 2406014 | B105: 2244606014 | C105: Kłobuck - miasto (4) | D105: 4,521 | E105: 378,163 | F105: 83.6
A106: 2406015 | B106: 2244606015 | C106: Kłobuck - obszar wiejski (5) | D106: 2,111 | E106: 225,816 | F106: 107.0
A107: 2406023 | B107: 2244606023 | C107: Krzepice (3) | D107: 2,937 | E107: 281,546 | F107: 95.9
A108: 2406024 | B108: 2244606024 | C108: Krzepice - miasto (4) | D108: 1,550 | E108: 140,652 | F108: 90.7
A109: 2406025 | B109: 2244606025 | C109: Krzepice - obszar wiejski (5) | D109: 1,387 | E109: 140,894 | F109: 101.6
A110: 2406032 | B110: 2244606032 | C110: Lipie (2) | D110: 1,983 | E110: 198,631 | F110: 100.2
A111: 2406042 | B111: 2244606042 | C111: Miedźno (2) | D111: 2,126 | E111: 207,582 | F111: 97.6
A112: 2406052 | B112: 2244606052 | C112: Opatów (2) | D112: 1,803 | E112: 184,619 | F112: 102.4
A113: 2406062 | B113: 2244606062 | C113: Panki (2) | D113: 1,651 | E113: 161,320 | F113: 97.7
A114: 2406072 | B114: 2244606072 | C114: Popów (2) | D114: 1,883 | E114: 186,154 | F114: 98.9
A115: 2406082 | B115: 2244606082 | C115: Przystajń (2) | D115: 1,994 | E115: 184,451 | F115: 92.5
A116: 2406092 | B116: 2244606092 | C116: Wręczyca Wielka (2) | D116: 5,528 | E116: 508,186 | F116: 91.9
A117: 2409 | B117: 2244609000 | C117: Powiat myszkowski | D117: 26,554 | E117: 2,239,501 | F117: 84.3
A118: 2409011 | B118: 2244609011 | C118: Myszków (1) | D118: 12,150 | E118: 881,593 | F118: 72.6
A119: 2409023 | B119: 2244609023 | C119: Koziegłowy (3) | D119: 5,595 | E119: 544,764 | F119: 97.4
A120: 2409024 | B120: 2244609024 | C120: Koziegłowy - miasto (4) | D120: 1,066 | E120: 102,877 | F120: 96.5
A121: 2409025 | B121: 2244609025 | C121: Koziegłowy - obszar wiejski (5) | D121: 4,529 | E121: 441,887 | F121: 97.6
A122: 2409032 | B122: 2244609032 | C122: Niegowa (2) | D122: 1,625 | E122: 150,262 | F122: 92.5
A123: 2409042 | B123: 2244609042 | C123: Poraj (2) | D123: 4,125 | E123: 405,231 | F123: 98.2
A124: 2409053 | B124: 2244609053 | C124: Żarki (3) | D124: 3,059 | E124: 257,651 | F124: 84.2
A125: 2409054 | B125: 2244609054 | C125: Żarki - miasto (4) | D125: 1,584 | E125: 140,528 | F125: 88.7
A126: 2409055 | B126: 2244609055 | C126: Żarki - obszar wiejski (5) | D126: 1,475 | E126: 117,123 | F126: 79.4
A127: 2464 | B127: 2244664000 | C127: Powiat m.Częstochowa | D127: 98,335 | E127: 6,094,900 | F127: 62.0
A128: 2464011 | B128: 2244664011 | C128: Częstochowa (1) | D128: 98,335 | E128: 6,094,900 | F128: 62.0
A129: 2405 | B129: 2244705000 | C129: Powiat gliwicki | D129: 38,001 | E129: 2,974,401 | F129: 78.3
A130: 2405011 | B130: 2244705011 | C130: Knurów (1) | D130: 14,138 | E130: 814,993 | F130: 57.6
A131: 2405021 | B131: 2244705021 | C131: Pyskowice (1) | D131: 6,920 | E131: 414,215 | F131: 59.9
A132: 2405032 | B132: 2244705032 | C132: Gierałtowice (2) | D132: 3,124 | E132: 342,253 | F132: 109.6
A133: 2405042 | B133: 2244705042 | C133: Pilchowice (2) | D133: 3,104 | E133: 340,492 | F133: 109.7
A134: 2405052 | B134: 2244705052 | C134: Rudziniec (2) | D134: 3,419 | E134: 337,221 | F134: 98.6
A135: 2405063 | B135: 2244705063 | C135: Sośnicowice (3) | D135: 2,573 | E135: 287,079 | F135: 111.6
A136: 2405064 | B136: 2244705064 | C136: Sośnicowice - miasto (4) | D136: 574 | E136: 58,825 | F136: 102.5
A137: 2405065 | B137: 2244705065 | C137: Sośnicowice - obszar wiejski (5) | D137: 1,999 | E137: 228,254 | F137: =E137/D137 -> 114.2
A138: 2405073 | B138: 2244705073 | C138: Toszek (3) | D138: 3,073 | E138: 265,679 | F138: 86.5
A139: 2405074 | B139: 2244705074 | C139: Toszek - miasto (4) | D139: 1,291 | E139: 100,004 | F139: 77.5
A140: 2405075 | B140: 2244705075 | C140: Toszek - obszar wiejski (5) | D140: 1,782 | E140: 165,675 | F140: 93.0
A141: 2405082 | B141: 2244705082 | C141: Wielowieś (2) | D141: 1,650 | E141: 172,469 | F141: 104.5
A142: 2466 | B142: 2244766000 | C142: Powiat m.Gliwice | D142: 78,136 | E142: 4,815,041 | F142: 61.6
A143: 2466011 | B143: 2244766011 | C143: Gliwice (1) | D143: 78,136 | E143: 4,815,041 | F143: 61.6
A144: 2478 | B144: 2244778000 | C144: Powiat m.Zabrze | D144: 70,045 | E144: 3,938,367 | F144: 56.2
A145: 2478011 | B145: 2244778011 | C145: Zabrze (1) | D145: 70,045 | E145: 3,938,367 | F145: 56.2
A146: 2463 | B146: 2244863000 | C146: Powiat m.Chorzów | D146: 52,652 | E146: 2,745,325 | F146: 52.1
A147: 2463011 | B147: 2244863011 | C147: Chorzów (1) | D147: 52,652 | E147: 2,745,325 | F147: 52.1
A148: 2469 | B148: 2244869000 | C148: Powiat m.Katowice | D148: 141,045 | E148: 8,461,180 | F148: 60.0
A149: 2469011 | B149: 2244869011 | C149: Katowice (1) | D149: 141,045 | E149: 8,461,180 | F149: 60.0
A150: 2470 | B150: 2244870000 | C150: Powiat m.Mysłowice | D150: 28,314 | E150: 1,902,307 | F150: 67.2
A151: 2470011 | B151: 2244870011 | C151: Mysłowice (1) | D151: 28,314 | E151: 1,902,307 | F151: 67.2
A152: 2472 | B152: 2244872000 | C152: Powiat m.Ruda Śląska | D152: 58,042 | E152: 3,181,105 | F152: 54.8
A153: 2472011 | B153: 2244872011 | C153: Ruda Śląska (1) | D153: 58,042 | E153: 3,181,105 | F153: 54.8
A154: 2474 | B154: 2244874000 | C154: Powiat m.Siemianowice Śląskie | D154: 30,955 | E154: 1,669,585 | F154: 53.9
A155: 2474011 | B155: 2244874011 | C155: Siemianowice Śląskie (1) | D155: 30,955 | E155: 1,669,585 | F155: 53.9
A156: 2476 | B156: 2244876000 | C156: Powiat m.Świętochłowice | D156: 22,544 | E156: 1,152,104 | F156: 51.1
A157: 2476011 | B157: 2244876011 | C157: Świętochłowice (1) | D157: 22,544 | E157: 1,152,104 | F157: 51.1
A158: 2411 | B158: 2244911000 | C158: Powiat raciborski | D158: 35,819 | E158: 3,034,272 | F158: 84.7
A159: 2411011 | B159: 2244911011 | C159: Racibórz (1) | D159: 20,521 | E159: 1,416,080 | F159: 69.0
A160: 2411022 | B160: 2244911022 | C160: Kornowac (2) | D160: 1,393 | E160: 159,987 | F160: 114.9
A161: 2411033 | B161: 2244911033 | C161: Krzanowice (3) | D161: 1,706 | E161: 183,530 | F161: 107.6
A162: 2411034 | B162: 2244911034 | C162: Krzanowice - miasto (4) | D162: 651 | E162: 69,929 | F162: 107.4
A163: 2411035 | B163: 2244911035 | C163: Krzanowice - obszar wiejski (5) | D163: 1,055 | E163: 113,601 | F163: 107.7
A164: 2411042 | B164: 2244911042 | C164: Krzyżanowice (2) | D164: 3,098 | E164: 357,711 | F164: 115.5
A165: 2411053 | B165: 2244911053 | C165: Kuźnia Raciborska (3) | D165: 3,633 | E165: 328,284 | F165: 90.4
A166: 2411054 | B166: 2244911054 | C166: Kuźnia Raciborska - miasto (4) | D166: 1,761 | E166: 120,105 | F166: 68.2
A167: 2411055 | B167: 2244911055 | C167: Kuźnia Raciborska - obszar wiejski (5) | D167: 1,872 | E167: 208,179 | F167: 111.2
A168: 2411062 | B168: 2244911062 | C168: Nędza (2) | D168: 1,987 | E168: 224,619 | F168: 113.0
A169: 2411072 | B169: 2244911072 | C169: Pietrowice Wielkie (2) | D169: 1,978 | E169: 204,175 | F169: 103.2
A170: 2411082 | B170: 2244911082 | C170: Rudnik (2) | D170: 1,503 | E170: 159,886 | F170: 106.4
A171: 2412 | B171: 2244912000 | C171: Powiat rybnicki | D171: 24,208 | E171: 2,132,020 | F171: 88.1
A172: 2412013 | B172: 2244912013 | C172: Czerwionka-Leszczyny (3) | D172: 13,513 | E172: 1,052,349 | F172: 77.9
A173: 2412014 | B173: 2244912014 | C173: Czerwionka-Leszczyny - miasto (4) | D173: 9,720 | E173: 659,812 | F173: 67.9
A174: 2412015 | B174: 2244912015 | C174: Czerwionka-Leszczyny - obszar wiejski (5) | D174: 3,793 | E174: 392,537 | F174: 103.5
A175: 2412022 | B175: 2244912022 | C175: Gaszowice (2) | D175: 3,004 | E175: 293,380 | F175: 97.7
A176: 2412032 | B176: 2244912032 | C176: Jejkowice (2) | D176: 1,020 | E176: 110,853 | F176: 108.7
A177: 2412042 | B177: 2244912042 | C177: Lyski (2) | D177: 3,025 | E177: 302,424 | F177: 100.0
A178: 2412052 | B178: 2244912052 | C178: Świerklany (2) | D178: 3,646 | E178: 373,014 | F178: 102.3
A179: 2415 | B179: 2244915000 | C179: Powiat wodzisławski | D179: 48,829 | E179: 4,316,264 | F179: 88.4
A180: 2415011 | B180: 2244915011 | C180: Pszów (1) | D180: 4,553 | E180: 362,833 | F180: 79.7
A181: 2415021 | B181: 2244915021 | C181: Radlin (1) | D181: 5,622 | E181: 443,687 | F181: 78.9
A182: 2415031 | B182: 2244915031 | C182: Rydułtowy (1) | D182: 6,947 | E182: 578,370 | F182: 83.3
A183: 2415041 | B183: 2244915041 | C183: Wodzisław Śląski (1) | D183: 16,736 | E183: 1,211,582 | F183: 72.4
A184: 2415052 | B184: 2244915052 | C184: Godów (2) | D184: 3,846 | E184: 457,255 | F184: 118.9
A185: 2415062 | B185: 2244915062 | C185: Gorzyce (2) | D185: 5,445 | E185: 626,776 | F185: 115.1
A186: 2415072 | B186: 2244915072 | C186: Lubomia (2) | D186: 2,356 | E186: 247,651 | F186: 105.1
A187: 2415082 | B187: 2244915082 | C187: Marklowice (2) | D187: 1,332 | E187: 151,151 | F187: 113.5
A188: 2415092 | B188: 2244915092 | C188: Mszana (2) | D188: 1,992 | E188: 236,959 | F188: 119.0
A189: 2467 | B189: 2244967000 | C189: Powiat m.Jastrzębie-Zdrój | D189: 31,837 | E189: 2,186,007 | F189: 68.7
A190: 2467011 | B190: 2244967011 | C190: Jastrzębie-Zdrój (1) | D190: 31,837 | E190: 2,186,007 | F190: 68.7
A191: 2473 | B191: 2244973000 | C191: Powiat m.Rybnik | D191: 47,447 | E191: 3,574,432 | F191: 75.3
A192: 2473011 | B192: 2244973011 | C192: Rybnik (1) | D192: 47,447 | E192: 3,574,432 | F192: 75.3
A193: 2479 | B193: 2244979000 | C193: Powiat m.Żory | D193: 19,841 | E193: 1,455,799 | F193: 73.4
A194: 2479011 | B194: 2244979011 | C194: Żory (1) | D194: 19,841 | E194: 1,455,799 | F194: 73.4
A195: 2401 | B195: 2245001000 | C195: Powiat będziński | D195: 61,014 | E195: 4,358,778 | F195: 71.4
A196: 2401011 | B196: 2245001011 | C196: Będzin (1) | D196: 24,716 | E196: 1,500,242 | F196: 60.7
A197: 2401021 | B197: 2245001021 | C197: Czeladź (1) | D197: 14,539 | E197: 835,672 | F197: 57.5
A198: 2401031 | B198: 2245001031 | C198: Wojkowice (1) | D198: 3,741 | E198: 259,212 | F198: 69.3
A199: 2401042 | B199: 2245001042 | C199: Bobrowniki (2) | D199: 3,809 | E199: 391,142 | F199: 102.7
A200: 2401052 | B200: 2245001052 | C200: Mierzęcice (2) | D200: 2,544 | E200: 270,302 | F200: 106.3
... 53 more rows

Sheet tabela informacyjna dla JST
B1: *pole wymagane
A3: Informacje ogóle na temat sprawozdania z Programu ochrony powietrza
A4: Lp. | B4: Zawartość | C4: Opis
A5: 1 | B5: Rok sprawozdawczy* | C5: 2021
A6: 2 | B6: Województwo | C6: śląskie
A7: 3 | B7: Strefa i kod strefy | C7: =IFERROR(VLOOKUP(VLOOKUP($C$9,'katalog gmin'!$J$5:$M$188,'katalog gmin'!$M$1-'katalog gmin'!$I$1,FALSE),katalogi!$E$3:$H$7,katalogi!$H$1-katalogi!$D$1),"") -> strefa śląska PL2405
A8: 4 | B8: Powiat | C8: =IFERROR(VLOOKUP($C$9,'katalog gmin'!$J$5:$M$188,'katalog gmin'!$L$1-'katalog gmin'!$I$1,FALSE),"") -> raciborski
A9: 5 | B9: Gmina/starostwo powiatowe* | C9: starostwo powiatowe w Raciborzu
A10: 6 | B10: Nazwa Urzędu Marszałkowskiego przejmującego sprawozdanie | C10: Urząd Marszałkowski Województwa Ślaskiego | E10: Wypełniony arkusz sprawozdawczy należy odesłać do 15 lutego każdego roku na adres mailowy sekretariatu Departamentu Ochrony Środowiska Urzędu Marszałkowskiego Województwa Śląskiego:
A11: 7 | B11: Adres pocztowy Urzędu Marszałkowskiego | C11: Katowice ul. Ligonia 46
A12: 8 | B12: Nazwisko osoby do kontaktu* | C12: Kasperzec Dorota | E12: kancelaria@slaskie.pl
A13: 9 | B13: Numer służbowego telefonu osoby do kontaktu* | C13: 32 45 97 336
A14: 10 | B14: Numer służbowego faksu osoby do kontaktu
A15: 11 | B15: Służbowy adres e-mail osoby do kontaktu* | C15: srodowisko@powiatraciborski.pl
A16: 12 | B16: Uwagi
A18: Informacje ogóle na temat sprawozdania z PDK (Plan działań krótkoterminowych)
A19: Lp. | B19: Zawartość | C19: Opis
A20: 1 | B20: Rok sprawozdawczy* | C20: =IF(C5="","",C5) -> 2021
A21: 2 | B21: Województwo | C21: =C6 -> śląskie
A22: 3 | B22: Strefa i kod strefy | C22: strefa śląska PL2405
A23: 4 | B23: Powiat | C23: raciborski
A24: 5 | B24: Gmina/starostwo powiatowe* | C24: =IF(C9="","",C9) -> starostwo powiatowe w Raciborzu
A25: 6 | B25: liczba dni w roku z informacją o wystąpieniu na terenie gminy POZIOMU II PDK*
A26: 7 | B26: liczba dni w roku z informacją o wystąpieniu na terenie gminy POZIOMU III PDK*
A27: 8 | B27: Funkcjonowanie Inteligentnego Systemu Transportowego - ITS (tak lub nie)*
A28: 9 | B28: Opis sposobu wykorzystania ITS w trakcie trwania POZIOMU III (Alarmu smogowego), jeżeli w punkcie 7 podano "tak"

Sheet tabela informacyjna dla innych
B1: *pole wymagane
A3: Informacje ogóle na temat sprawozdania z Programu ochrony powietrza
A4: Lp. | B4: Zawartość | C4: Opis
A5: 1 | B5: Rok sprawozdawczy*
A6: 2 | B6: Województwo | C6: śląskie
A7: 3 | B7: Strefa i kod strefy | C7: =IFERROR(VLOOKUP(VLOOKUP($C$9,'katalog gmin'!$J$5:$M$188,'katalog gmin'!$M$1-'katalog gmin'!$I$1,FALSE),katalogi!$E$3:$H$7,katalogi!$H$1-katalogi!$D$1),"") -> 
A8: 4 | B8: Powiat | C8: =IFERROR(VLOOKUP($C$9,'katalog gmin'!$J$5:$M$188,'katalog gmin'!$L$1-'katalog gmin'!$I$1,FALSE),"") -> 
A9: 5 | B9: Obszar gminy, na którym jednostka podejmowała działania*
A10: 5a | B10: Nazwa jednostki przygotowujacej sprawozdanie
A11: 6 | B11: Nazwa Urzędu Marszałkowskiego przejmującego sprawozdanie | C11: Urząd Marszałkowski Województwa Ślaskiego | E11: Wypełniony arkusz sprawozdawczy należy odesłać do 15 lutego każdego roku na adres mailowy sekretariatu Departamentu Ochrony Środowiska Urzędu Marszałkowskiego Województwa Śląskiego:
A12: 7 | B12: Adres pocztowy Urzędu Marszałkowskiego | C12: Katowice ul. Ligonia 46
A13: 8 | B13: Nazwisko osoby do kontaktu* | E13: kancelaria@slaskie.pl
A14: 9 | B14: Numer służbowego telefonu osoby do kontaktu*
A15: 10 | B15: Numer służbowego faksu osoby do kontaktu
A16: 11 | B16: Służbowy adres e-mail osoby do kontaktu*
A17: 12 | B17: Uwagi
B19: producenci i dystrybutorzy ciepła sieciowego wypełniają tabelę 1 (komunalno-bytowe)

Sheet tab.1 komunalno-bytowe
B1: * pole wymagane
F2: SUMA: | G2: =SUM(G9:G4008) -> 0.00 | H2: =SUM(H9:H4008) -> 0.00 | I2: =SUM(I9:I4008) -> 0.00 | K2: =SUM(K9:K4008) -> 0.00 | L2: =SUM(L9:L4008) -> 0.00 | M2: 0.00 | N2: 0.00 | O2: 0.00 | P2: 0.00 | Q2: 0.00 | R2: 0.00 | S2: 0.00 | T2: 0.00 | U2: 0.00 | V2: 0.00 | W2: 0.00 | X2: 0.00 | Y2: 0.00 | Z2: 0.00 | AA2: 0.00 | AB2: 0.00 | AC2: =IFERROR(IF(VLOOKUP($B9,'katalog gmin'!$J$5:$AW$188,'katalog gmin'!$AQ$1-'katalog gmin'!$I$1+MATCH('tabela informacyjna dla JST'!$C$5,'katalog gmin'!$AQ$4:$AW$4,0)-1,FALSE)=0,"n.d.",VLOOKUP($B9,'katalog gmin'!$J$5:$AW$188,'katalog gmin'!$AQ$1-'katalog gmin'!$I$1+MATCH('tabela informacyjna dla JST'!$C$5,'katalog gmin'!$AQ$4:$AW$4,0)-1,FALSE)),"brak gminy/roku") -> n.d. | AD2: =IF((OR(AC2="brak gminy/roku",AC2="n.d."))=TRUE,AC2,AB2/AC2) -> n.d. | AE2: =SUM(AE9:AE4008) -> 0.00 zł | AF2: =SUM(AF9:AF4008) -> 0.00 zł
AJ3: PM10 | AK3: PM10 | AL3: PM10 | AM3: PM10 | AN3: PM10 | AO3: PM10 | AP3: PM10 | AQ3: PM10 | AR3: PM10 | AS3: PM10 | AT3: PM10 | AU3: PM10 | AV3: PM10 | AW3: PM2,5 | AX3: PM2,5 | AY3: PM2,5 | AZ3: PM2,5 | BA3: PM2,5 | BB3: PM2,5 | BC3: PM2,5 | BD3: PM2,5 | BE3: PM2,5 | BF3: PM2,5 | BG3: PM2,5 | BH3: PM2,5 | BI3: PM2,5 | BJ3: B(a)P | BK3: B(a)P | BL3: B(a)P | BM3: B(a)P | BN3: B(a)P | BO3: B(a)P | BP3: B(a)P | BQ3: B(a)P | BR3: B(a)P | BS3: B(a)P | BT3: B(a)P | BU3: B(a)P | BV3: B(a)P | BW3: SO2 | BX3: SO2 | BY3: SO2 | BZ3: SO2 | CA3: SO2 | CB3: SO2 | CC3: SO2 | CD3: SO2 | CE3: SO2 | CF3: SO2 | CG3: SO2 | CH3: SO2 | CI3: SO2
A4: Tabela 1. Sprawozdanie w zakresie działań związanych z ograniczeniem emisji z indywidualnych systemów grzewczych | K4: w_c.o. | L4: w_elektr | M4: w_gaz | N4: w_olej | O4: w_WK_5 | P4: w_WK_5_b | Q4: ks+WK_R | R4: w_pompa | S4: termo_co | T4: termo+gaz | U4: termo+olej | V4: termo+WK_5 | W4: termo+WK_5_b | AJ4: w_c.o. | AK4: w_elektr | AL4: w_gaz | AM4: w_olej | AN4: w_WK_5 | AO4: w_WK_5_b | AP4: ks+WK_R | AQ4: w_pompa | AR4: termo+gaz | AS4: termo+olej | AT4: termo+WK_5 | AU4: termo+WK_5_b | AW4: w_c.o. | AX4: w_elektr | AY4: w_gaz | AZ4: w_olej | BA4: w_WK_5 | BB4: w_WK_5_b | BC4: ks+WK_R | BD4: w_pompa | BE4: termo+gaz | BF4: termo+olej | BG4: termo+WK_5 | BH4: termo+WK_5_b | BJ4: w_c.o. | BK4: w_elektr | BL4: w_gaz | BM4: w_olej | BN4: w_WK_5 | BO4: w_WK_5_b | BP4: ks+WK_R | BQ4: w_pompa | BR4: termo+gaz | BS4: termo+olej | BT4: termo+WK_5 | BU4: termo+WK_5_b | BW4: w_c.o. | BX4: w_elektr | BY4: w_gaz | BZ4: w_olej | CA4: w_WK_5 | CB4: w_WK_5_b | CC4: ks+WK_R | CD4: w_pompa | CE4: termo+gaz | CF4: termo+olej | CG4: termo+WK_5 | CH4: termo+WK_5_b
A5: Lp. | B5: gmina | C5: kod zadania | D5: nazwa zadania zgodnie z harmonogramem | E5: lokalizacja | F5: krótki opis prowadzonych działań | G5: informacja o zlikwidowanych tradycyjnych piecach węglowych | I5: moc cieplna zlikwidowanego źródła [kW] | J5: zaznaczyć czy została przeprowadzona termomodernizacja* | K5: Powierzchnia użytkowa lokali [m2], gdzie ZLIKWIDOWANO TRADYCYJNE KOTŁY WĘGLOWE, w przypadku gdy przeprowadzono termomodernizację a także gdy jej nie było. | M5: Powierzchnia użytkowa lokali [m2], gdzie ZLIKWIDOWANO TRADYCYJNE KOTŁY WĘGLOWE, w tym wymienione na następujące źródła: * - wypełniane, gdy działanie nie jest połączone z termomodernizacją | Q5: alternatywne lub odnawialne źródło ciepła - powierzchnia użytkowa lokalu [m2]* | S5: INFORMACJA o powierzchni użytkowej lokali poddanych TERMOMODERNIZACJI [m2] * | X5: osiągnięty efekt ekologiczny - redukcja emisji [kg/rok] | AB5: osiągnięty efekt rzeczowy - powierzchnia, na której zmieniono lub zlikwidowano stare niefefektywne źródło ciepła na paliwo stałe [m2] | AC5: wymagany efekt rzeczowy - wymagana powierzchnia, na której wymagana jest zmiana lub zlikwidowanie starego niefefektywnego źródło ciepła na paliwo stałe [m2] | AD5: stopień osiągniętego efektu rzeczowego | AE5: koszty łącznie* | AF5: w tym wysokość uzyskanego dofinansowanie zewnętrznego | AG5: sposób finansowania | AJ5: wielkość redukcji emisji wynikająca z działań związanych z wymianą starych kotłów na paliwa stałe BEZ TERMOMODERNIZACJI [kg/rok] | AP5: wielkość redukcji emisji wynikająca z zastosowania OZE [kg/rok] | AR5: wielkość redukcji emisji wynikająca z TERMOMODERNIZACJI połączonej z wymianą źródła ciepła [kg/rok] | AV5: SUMA REDUKCJI | AW5: wielkość redukcji emisji wynikająca z działań związanych z wymianą starych kotłów na paliwa stałe BEZ TERMOMODERNIZACJI [kg/rok] | BC5: wielkość redukcji emisji wynikająca z zastosowania OZE [kg/rok] | BE5: wielkość redukcji emisji wynikająca z TERMOMODERNIZACJI połączonej z wymianą źródła ciepła [kg/rok] | BI5: SUMA REDUKCJI | BJ5: wielkość redukcji emisji wynikająca z działań związanych z wymianą starych kotłów na paliwa stałe BEZ TERMOMODERNIZACJI [kg/rok] | BP5: wielkość redukcji emisji wynikająca z zastosowania OZE [kg/rok] | BR5: wielkość redukcji emisji wynikająca z TERMOMODERNIZACJI połączonej z wymianą źródła ciepła [kg/rok] | BV5: SUMA REDUKCJI | BW5: wielkość redukcji emisji wynikająca z działań związanych z wymianą starych kotłów na paliwa stałe BEZ TERMOMODERNIZACJI [kg/rok] | CC5: wielkość redukcji emisji wynikająca z zastosowania OZE [kg/rok] | CE5: wielkość redukcji emisji wynikająca z TERMOMODERNIZACJI połączonej z wymianą źródła ciepła [kg/rok] | CI5: SUMA REDUKCJI
G6: liczba zlikwidowanych kotłów węglowych* | H6: powierzchnia użytkowa lokali gdzie zlikwidowano kotły [m2] | K6: sieć ciepłownicza | L6: elektryczne | M6: gazowe | N6: olejowe | O6: węglowe klasa 5 (automatyczne lub ręczne) | P6: opalane biomasą klasa 5 (automatyczne lub ręczne) | Q6: instalacja kolektorów słonecznych przy jednoczesnym pozostawieniu dotychczasowego ogrzewania węglowego | R6: wymiana ogrzewania węglowego na pompę ciepła | S6: w lokalach podłączonych do sieci ciepłowniczej | T6: połączona z wymianą starego kotła węglowego na kocioł gazowy | U6: połączona z wymianą starego kotła węglowego na kocioł olejowy | V6: połączona z wymianą starego kotła węglowego na kocioł węglowy klasy 5 | W6: połączona z wymianą starego kotła węglowego na kocioł klasy 5 na biomasę | X6: pył PM10 | Y6: pył PM2,5 | Z6: B(a)P | AA6: SO2 | AE6: [zł/rok] | AF6: [zł/rok] | AJ6: sieć cieplna | AK6: elektryczne | AL6: gazowe | AM6: olejowe | AN6: węglowe klasa 5 (automatyczne lub ręczne) | AO6: opalane biomasą klasa 5 (automatyczne lub ręczne) | AP6: kolektory słoneczne | AQ6: pompa ciepła | AR6: na kocioł gazowy | AS6: na kocioł olejowy | AT6: na kocioł węglowy klasy 5 | AU6: na kocioł klasy 5 na biomasę | AV6: [kg/rok] | AW6: sieć cieplna | AX6: elektryczne | AY6: gazowe | AZ6: olejowe | BA6: węglowe klasa 5 (automatyczne lub ręczne) | BB6: opalane biomasą klasa 5 (automatyczne lub ręczne) | BC6: kolektory słoneczne | BD6: pompa ciepła | BE6: na kocioł gazowy | BF6: na kocioł olejowy | BG6: na kocioł węglowy klasy 5 | BH6: na kocioł klasy 5 na biomasę | BI6: [kg/rok] | BJ6: sieć cieplna | BK6: elektryczne | BL6: gazowe | BM6: olejowe | BN6: węglowe klasa 5 (automatyczne lub ręczne) | BO6: opalane biomasą klasa 5 (automatyczne lub ręczne) | BP6: kolektory słoneczne | BQ6: pompa ciepła | BR6: na kocioł gazowy | BS6: na kocioł olejowy | BT6: na kocioł węglowy klasy 5 | BU6: na kocioł klasy 5 na biomasę | BV6: [kg/rok] | BW6: sieć cieplna | BX6: elektryczne | BY6: gazowe | BZ6: olejowe | CA6: węglowe klasa 5 (automatyczne lub ręczne) | CB6: opalane biomasą klasa 5 (automatyczne lub ręczne) | CC6: kolektory słoneczne | CD6: pompa ciepła | CE6: na kocioł gazowy | CF6: na kocioł olejowy | CG6: na kocioł węglowy klasy 5 | CH6: na kocioł klasy 5 na biomasę | CI6: [kg/rok] | CJ6: Czy pobierać
A7: 1 | B7: =A7+1 -> 2 | C7: =B7+1 -> 3 | D7: 4 | E7: 5 | F7: 6 | G7: 7 | H7: 8 | I7: 9 | J7: 10 | K7: 11 | L7: 12 | M7: 13 | N7: 14 | O7: 15 | P7: 16 | Q7: 17 | R7: 18 | S7: 19 | T7: 20 | U7: 21 | V7: 22 | W7: 23 | X7: 24 | Y7: 25 | Z7: 26 | AA7: 27 | AB7: 28 | AC7: 29 | AD7: 30 | AE7: 31 | AF7: 32 | AG7: 33
B8: wypełnia się automatycznie, zgodnie z tabelą informacyjną | C8: wypełnia się automatycznie dla strefy | D8: wypełnia się automatycznie | E8: podać dokładny adres, gdzie zostało przeprowadzone działanie naprawcze (nazwa ulicy wg terytu GUS) | F8: krótko opisać rodzaj prowadzonych działań inwestycyjnych lub modernizacyjnych i ich wpływ na wielkość emisji zanieczyszczeń do powietrza | G8: podać liczbę zlikwidowanych tradycyjnych kotłów węglowych (informacja w celach statystycznych) | H8: wypełnia się automatycznie po wprowadzeniu powierzchni lokali, gdzie wymieniono źródła ogrzewania w kolumnach 11-16, 18 i 20-23 | I8: w przypadku likwidacji kilku źródeł podać sumaryczną moc cieplną | J8: wybrać z listy: - tak - gdy przeprowadzono termomodernizację (wówczas wypełnić kolumny 19-23) - nie - gdy nie była prowadzona termomodenizacja (wówczas wypełnić kolumny 11-16) | K8: podać we właściwej kolumnie powierzchnię użytkową lokalu lub budynku [m2], w którym dokonano zmiany sposobu ogrzewania na elektryczne lub podłączono do sieci ciepłowniczej | M8: podać we właściwej kolumnie powierzchnię użytkową lokalu lub budynku [m2], w którym dokonano zmiany sposobu ogrzewania bez jednoczesnej termomodernizacji; w przypadku, gdy taka zmiana sposobu ogrzwania połączona była z termomodenizacją należy informacje te podać w kolumnach 19-23 | Q8: podać powierzchnię użytkową lokalu lub budynku, w którym zastosowano alternatywne lub odnawialne źródła energii cieplnej | S8: podać powierzchnię użytkową lokalu lub budynku, w którym dokonano termomodernizacji - dotyczy budynków już podłączonych do sieci ciepłowniczej | T8: podać powierzchnię użytkową lokalu lub budynku, w którym dokonano termomodernizacji z jednoczesną wymianą starego źródła ciepła (kotła węglowego) na kocioł gazowy; | U8: podać powierzchnię użytkową lokalu lub budynku, w którym dokonano termomodernizacji z jednoczesną wymianą starego źródła ciepła (kotła węglowego) na kocioł olejowy; | V8: podać powierzchnię użytkową lokalu lub budynku, w którym dokonano termomodernizacji z jednoczesną wymianą starego źródła ciepła (kotła węglowego) na kocioł węglowy klasy 5; | W8: podać powierzchnię użytkową lokalu lub budynku, w którym dokonano termomodernizacji z jednoczesną wymianą starego źródła ciepła (kotła węglowego) na kocioł klasy 5 na biomasę; | X8: efekt ekologiczny (czyli wielkość redukcji emisji) wylicza się automatycznie wykorzystując wskaźniki efektu ekologicznego z katalogu oraz powierzchnię użytkową podaną w kolumnach 10-17 lub w kolumnach 19-22 | AB8: wypełnia się automatycznie | AC8: wypełnia się automatycznie | AD8: wypełnia się automatycznie | AE8: podać koszty sumaryczne poniesione na realizację zadania | AF8: jeżeli uzyskano dofinansowanie podać w jakiej kwocie | AG8: wskazać źródła finansowania działania, uwzględniając uzyskane dofinansowanie wraz z podaniem źródła dofinansowania
A9: 1 | B9: =IF('tabela informacyjna dla JST'!$C$9="",'tabela informacyjna dla innych'!$C$9,'tabela informacyjna dla JST'!$C$9) -> starostwo powiatowe w Raciborzu | C9: =IFERROR(VLOOKUP($B9,'katalog gmin'!$J$5:$N$188,'katalog gmin'!$N$1-'katalog gmin'!$I$1,FALSE),"brak gminy") -> PL2405_ZSO | D9: =IFERROR(VLOOKUP($C9,'katalog zadań'!$B$3:$D$18,'katalog zadań'!$C$1-'katalog zadań'!$A$1,FALSE),"") -> Ograniczenie emisji z instalacji o małej mocy do 1 MW, w których następuje spalanie paliw stałych | H9: =SUM(K9:P9,R9,T9:W9) -> 0 | X9: =$AV9 -> 0.0 | Y9: =$BI9 -> 0.0 | Z9: =$BV9 -> 0.000 | AA9: =$CI9 -> 0.0 | AB9: =SUM(K9:P9,R9,T9:W9) -> 0.0 | AC9: =IFERROR(IF(VLOOKUP($B9,'katalog gmin'!$J$5:$AW$188,'katalog gmin'!$AQ$1-'katalog gmin'!$I$1+MATCH('tabela informacyjna dla JST'!$C$5,'katalog gmin'!$AQ$4:$AW$4,0)-1,FALSE)=0,"n.d.",VLOOKUP($B9,'katalog gmin'!$J$5:$AW$188,'katalog gmin'!$AQ$1-'katalog gmin'!$I$1+MATCH('tabela informacyjna dla JST'!$C$5,'katalog gmin'!$AQ$4:$AW$4,0)-1,FALSE)),"brak gminy/roku") -> n.d. | AD9: =IF((OR(AC9="brak gminy/roku",AC9="n.d."))=TRUE,AC9,AB9/AC9) -> n.d. | AJ9: =VLOOKUP(AJ$4,'wskaźniki efektu'!$A$5:$F$16,'wskaźniki efektu'!$C$1,FALSE)*K9/100 -> 0 | AK9: =VLOOKUP(AK$4,'wskaźniki efektu'!$A$5:$F$16,'wskaźniki efektu'!$C$1,FALSE)*L9/100 -> 0 | AL9: =IF($J9="nie",(VLOOKUP(AL$4,'wskaźniki efektu'!$A$5:$F$16,'wskaźniki efektu'!$C$1,FALSE)*M9/100),0) -> 0 | AM9: =IF($J9="nie",(VLOOKUP(AM$4,'wskaźniki efektu'!$A$5:$F$16,'wskaźniki efektu'!$C$1,FALSE)*N9/100),0) -> 0 | AN9: =IF($J9="nie",(VLOOKUP(AN$4,'wskaźniki efektu'!$A$5:$F$16,'wskaźniki efektu'!$C$1,FALSE)*O9/100),0) -> 0 | AO9: =IF($J9="nie",(VLOOKUP(AO$4,'wskaźniki efektu'!$A$5:$F$16,'wskaźniki efektu'!$C$1,FALSE)*P9/100),0) -> 0 | AP9: =VLOOKUP(AP$4,'wskaźniki efektu'!$A$5:$F$16,'wskaźniki efektu'!$C$1,FALSE)*Q9/100 -> 0 | AQ9: =VLOOKUP(AQ$4,'wskaźniki efektu'!$A$5:$F$16,'wskaźniki efektu'!$C$1,FALSE)*R9/100 -> 0 | AR9: =IF($J9="tak",(VLOOKUP(AR$4,'wskaźniki efektu'!$A$5:$F$16,'wskaźniki efektu'!$C$1,FALSE)*T9/100),0) -> 0 | AS9: =IF($J9="tak",(VLOOKUP(AS$4,'wskaźniki efektu'!$A$5:$F$16,'wskaźniki efektu'!$C$1,FALSE)*U9/100),0) -> 0 | AT9: =IF($J9="tak",(VLOOKUP(AT$4,'wskaźniki efektu'!$A$5:$F$16,'wskaźniki efektu'!$C$1,FALSE)*V9/100),0) -> 0 | AU9: =IF($J9="tak",(VLOOKUP(AU$4,'wskaźniki efektu'!$A$5:$F$16,'wskaźniki efektu'!$C$1,FALSE)*W9/100),0) -> 0 | AV9: =SUM(AJ9:AU9) -> 0 | AW9: =VLOOKUP(AW$4,'wskaźniki efektu'!$A$5:$F$16,'wskaźniki efektu'!$D$1,FALSE)*K9/100 -> 0 | AX9: =VLOOKUP(AX$4,'wskaźniki efektu'!$A$5:$F$16,'wskaźniki efektu'!$D$1,FALSE)*L9/100 -> 0 | AY9: =IF($J9="nie",(VLOOKUP(AY$4,'wskaźniki efektu'!$A$5:$F$16,'wskaźniki efektu'!$D$1,FALSE)*M9/100),0) -> 0 | AZ9: =IF($J9="nie",(VLOOKUP(AZ$4,'wskaźniki efektu'!$A$5:$F$16,'wskaźniki efektu'!$D$1,FALSE)*N9/100),0) -> 0 | BA9: =IF($J9="nie",(VLOOKUP(BA$4,'wskaźniki efektu'!$A$5:$F$16,'wskaźniki efektu'!$D$1,FALSE)*O9/100),0) -> 0 | BB9: =IF($J9="nie",(VLOOKUP(BB$4,'wskaźniki efektu'!$A$5:$F$16,'wskaźniki efektu'!$D$1,FALSE)*P9/100),0) -> 0 | BC9: =VLOOKUP(BC$4,'wskaźniki efektu'!$A$5:$F$16,'wskaźniki efektu'!$D$1,FALSE)*Q9/100 -> 0 | BD9: =VLOOKUP(BD$4,'wskaźniki efektu'!$A$5:$F$16,'wskaźniki efektu'!$D$1,FALSE)*R9/100 -> 0 | BE9: =IF($J9="tak",(VLOOKUP(BE$4,'wskaźniki efektu'!$A$5:$F$16,'wskaźniki efektu'!$D$1,FALSE)*T9/100),0) -> 0 | BF9: =IF($J9="tak",(VLOOKUP(BF$4,'wskaźniki efektu'!$A$5:$F$16,'wskaźniki efektu'!$D$1,FALSE)*U9/100),0) -> 0 | BG9: =IF($J9="tak",(VLOOKUP(BG$4,'wskaźniki efektu'!$A$5:$F$16,'wskaźniki efektu'!$D$1,FALSE)*V9/100),0) -> 0 | BH9: =IF($J9="tak",(VLOOKUP(BH$4,'wskaźniki efektu'!$A$5:$F$16,'wskaźniki efektu'!$D$1,FALSE)*W9/100),0) -> 0 | BI9: =SUM(AW9:BH9) -> 0 | BJ9: =VLOOKUP(BJ$4,'wskaźniki efektu'!$A$5:$F$16,'wskaźniki efektu'!$E$1,FALSE)*K9/100 -> 0 | BK9: =VLOOKUP(BK$4,'wskaźniki efektu'!$A$5:$F$16,'wskaźniki efektu'!$E$1,FALSE)*L9/100 -> 0 | BL9: =IF($J9="nie",(VLOOKUP(BL$4,'wskaźniki efektu'!$A$5:$F$16,'wskaźniki efektu'!$E$1,FALSE)*M9/100),0) -> 0 | BM9: =IF($J9="nie",(VLOOKUP(BM$4,'wskaźniki efektu'!$A$5:$F$16,'wskaźniki efektu'!$E$1,FALSE)*N9/100),0) -> 0 | BN9: =IF($J9="nie",(VLOOKUP(BN$4,'wskaźniki efektu'!$A$5:$F$16,'wskaźniki efektu'!$E$1,FALSE)*O9/100),0) -> 0 | BO9: =IF($J9="nie",(VLOOKUP(BO$4,'wskaźniki efektu'!$A$5:$F$16,'wskaźniki efektu'!$E$1,FALSE)*P9/100),0) -> 0 | BP9: =VLOOKUP(BP$4,'wskaźniki efektu'!$A$5:$F$16,'wskaźniki efektu'!$E$1,FALSE)*Q9/100 -> 0 | BQ9: =VLOOKUP(BQ$4,'wskaźniki efektu'!$A$5:$F$16,'wskaźniki efektu'!$E$1,FALSE)*R9/100 -> 0 | BR9: =IF($J9="tak",(VLOOKUP(BR$4,'wskaźniki efektu'!$A$5:$F$16,'wskaźniki efektu'!$E$1,FALSE)*T9/100),0) -> 0 | BS9: =IF($J9="tak",(VLOOKUP(BS$4,'wskaźniki efektu'!$A$5:$F$16,'wskaźniki efektu'!$E$1,FALSE)*U9/100),0) -> 0 | BT9: =IF($J9="tak",(VLOOKUP(BT$4,'wskaźniki efektu'!$A$5:$F$16,'wskaźniki efektu'!$E$1,FALSE)*V9/100),0) -> 0 | BU9: =IF($J9="tak",(VLOOKUP(BU$4,'wskaźniki efektu'!$A$5:$F$16,'wskaźniki efektu'!$E$1,FALSE)*W9/100),0) -> 0 | BV9: =SUM(BJ9:BU9) -> 0 | BW9: =VLOOKUP(BW$4,'wskaźniki efektu'!$A$5:$F$16,'wskaźniki efektu'!$F$1,FALSE)*K9/100 -> 0 | BX9: =VLOOKUP(BX$4,'wskaźniki efektu'!$A$5:$F$16,'wskaźniki efektu'!$F$1,FALSE)*L9/100 -> 0 | BY9: =IF($J9="nie",(VLOOKUP(BY$4,'wskaźniki efektu'!$A$5:$F$16,'wskaźniki efektu'!$F$1,FALSE)*M9/100),0) -> 0 | BZ9: =IF($J9="nie",(VLOOKUP(BZ$4,'wskaźniki efektu'!$A$5:$F$16,'wskaźniki efektu'!$F$1,FALSE)*N9/100),0) -> 0 | CA9: =IF($J9="nie",(VLOOKUP(CA$4,'wskaźniki efektu'!$A$5:$F$16,'wskaźniki efektu'!$F$1,FALSE)*O9/100),0) -> 0 | CB9: =IF($J9="nie",(VLOOKUP(CB$4,'wskaźniki efektu'!$A$5:$F$16,'wskaźniki efektu'!$F$1,FALSE)*P9/100),0) -> 0 | CC9: =VLOOKUP(CC$4,'wskaźniki efektu'!$A$5:$F$16,'wskaźniki efektu'!$F$1,FALSE)*Q9/100 -> 0 | CD9: =VLOOKUP(CD$4,'wskaźniki efektu'!$A$5:$F$16,'wskaźniki efektu'!$F$1,FALSE)*R9/100 -> 0 | CE9: =IF($J9="tak",(VLOOKUP(CE$4,'wskaźniki efektu'!$A$5:$F$16,'wskaźniki efektu'!$F$1,FALSE)*T9/100),0) -> 0 | CF9: =IF($J9="tak",(VLOOKUP(CF$4,'wskaźniki efektu'!$A$5:$F$16,'wskaźniki efektu'!$F$1,FALSE)*U9/100),0) -> 0 | CG9: =IF($J9="tak",(VLOOKUP(CG$4,'wskaźniki efektu'!$A$5:$F$16,'wskaźniki efektu'!$F$1,FALSE)*V9/100),0) -> 0 | CH9: =IF($J9="tak",(VLOOKUP(CH$4,'wskaźniki efektu'!$A$5:$F$16,'wskaźniki efektu'!$F$1,FALSE)*W9/100),0) -> 0 | CI9: =SUM(BW9:CH9) -> 0 | CJ9: =OR(S9>0,X9>0,Y9>0,Z9>0,AB9>0) -> FALSE
A10: 2 | B10: =IF('tabela informacyjna dla JST'!$C$9="",'tabela informacyjna dla innych'!$C$9,'tabela informacyjna dla JST'!$C$9) -> starostwo powiatowe w Raciborzu | C10: =IFERROR(VLOOKUP($B10,'katalog gmin'!$J$5:$N$188,'katalog gmin'!$N$1-'katalog gmin'!$I$1,FALSE),"brak gminy") -> PL2405_ZSO | D10: =IFERROR(VLOOKUP($C10,'katalog zadań'!$B$3:$D$18,'katalog zadań'!$C$1-'katalog zadań'!$A$1,FALSE),"") -> Ograniczenie emisji z instalacji o małej mocy do 1 MW, w których następuje spalanie paliw stałych | H10: =SUM(K10:P10,R10,T10:W10) -> 0 | X10: =$AV10 -> 0.0 | Y10: =$BI10 -> 0.0 | Z10: =$BV10 -> 0.000 | AA10: =$CI10 -> 0.0 | AB10: =SUM(K10:P10,R10,T10:W10) -> 0.0 | AC10: =IFERROR(IF(VLOOKUP($B10,'katalog gmin'!$J$5:$AW$188,'katalog gmin'!$AQ$1-'katalog gmin'!$I$1+MATCH('tabela informacyjna dla JST'!$C$5,'katalog gmin'!$AQ$4:$AW$4,0)-1,FALSE)=0,"n.d.",VLOOKUP($B10,'katalog gmin'!$J$5:$AW$188,'katalog gmin'!$AQ$1-'katalog gmin'!$I$1+MATCH('tabela informacyjna dla JST'!$C$5,'katalog gmin'!$AQ$4:$AW$4,0)-1,FALSE)),"brak gminy/roku") -> n.d. | AD10: =IF((OR(AC10="brak gminy/roku",AC10="n.d."))=TRUE,AC10,AB10/AC10) -> n.d. | AJ10: =VLOOKUP(AJ$4,'wskaźniki efektu'!$A$5:$F$16,'wskaźniki efektu'!$C$1,FALSE)*K10/100 -> 0 | AK10: =VLOOKUP(AK$4,'wskaźniki efektu'!$A$5:$F$16,'wskaźniki efektu'!$C$1,FALSE)*L10/100 -> 0 | AL10: =IF($J10="nie",(VLOOKUP(AL$4,'wskaźniki efektu'!$A$5:$F$16,'wskaźniki efektu'!$C$1,FALSE)*M10/100),0) -> 0 | AM10: =IF($J10="nie",(VLOOKUP(AM$4,'wskaźniki efektu'!$A$5:$F$16,'wskaźniki efektu'!$C$1,FALSE)*N10/100),0) -> 0 | AN10: =IF($J10="nie",(VLOOKUP(AN$4,'wskaźniki efektu'!$A$5:$F$16,'wskaźniki efektu'!$C$1,FALSE)*O10/100),0) -> 0 | AO10: =IF($J10="nie",(VLOOKUP(AO$4,'wskaźniki efektu'!$A$5:$F$16,'wskaźniki efektu'!$C$1,FALSE)*P10/100),0) -> 0 | AP10: =VLOOKUP(AP$4,'wskaźniki efektu'!$A$5:$F$16,'wskaźniki efektu'!$C$1,FALSE)*Q10/100 -> 0 | AQ10: =VLOOKUP(AQ$4,'wskaźniki efektu'!$A$5:$F$16,'wskaźniki efektu'!$C$1,FALSE)*R10/100 -> 0 | AR10: =IF($J10="tak",(VLOOKUP(AR$4,'wskaźniki efektu'!$A$5:$F$16,'wskaźniki efektu'!$C$1,FALSE)*T10/100),0) -> 0 | AS10: =IF($J10="tak",(VLOOKUP(AS$4,'wskaźniki efektu'!$A$5:$F$16,'wskaźniki efektu'!$C$1,FALSE)*U10/100),0) -> 0 | AT10: =IF($J10="tak",(VLOOKUP(AT$4,'wskaźniki efektu'!$A$5:$F$16,'wskaźniki efektu'!$C$1,FALSE)*V10/100),0) -> 0 | AU10: =IF($J10="tak",(VLOOKUP(AU$4,'wskaźniki efektu'!$A$5:$F$16,'wskaźniki efektu'!$C$1,FALSE)*W10/100),0) -> 0 | AV10: =SUM(AJ10:AU10) -> 0 | AW10: =VLOOKUP(AW$4,'wskaźniki efektu'!$A$5:$F$16,'wskaźniki efektu'!$D$1,FALSE)*K10/100 -> 0 | AX10: =VLOOKUP(AX$4,'wskaźniki efektu'!$A$5:$F$16,'wskaźniki efektu'!$D$1,FALSE)*L10/100 -> 0 | AY10: =IF($J10="nie",(VLOOKUP(AY$4,'wskaźniki efektu'!$A$5:$F$16,'wskaźniki efektu'!$D$1,FALSE)*M10/100),0) -> 0 | AZ10: =IF($J10="nie",(VLOOKUP(AZ$4,'wskaźniki efektu'!$A$5:$F$16,'wskaźniki efektu'!$D$1,FALSE)*N10/100),0) -> 0 | BA10: =IF($J10="nie",(VLOOKUP(BA$4,'wskaźniki efektu'!$A$5:$F$16,'wskaźniki efektu'!$D$1,FALSE)*O10/100),0) -> 0 | BB10: =IF($J10="nie",(VLOOKUP(BB$4,'wskaźniki efektu'!$A$5:$F$16,'wskaźniki efektu'!$D$1,FALSE)*P10/100),0) -> 0 | BC10: =VLOOKUP(BC$4,'wskaźniki efektu'!$A$5:$F$16,'wskaźniki efektu'!$D$1,FALSE)*Q10/100 -> 0 | BD10: =VLOOKUP(BD$4,'wskaźniki efektu'!$A$5:$F$16,'wskaźniki efektu'!$D$1,FALSE)*R10/100 -> 0 | BE10: =IF($J10="tak",(VLOOKUP(BE$4,'wskaźniki efektu'!$A$5:$F$16,'wskaźniki efektu'!$D$1,FALSE)*T10/100),0) -> 0 | BF10: =IF($J10="tak",(VLOOKUP(BF$4,'wskaźniki efektu'!$A$5:$F$16,'wskaźniki efektu'!$D$1,FALSE)*U10/100),0) -> 0 | BG10: =IF($J10="tak",(VLOOKUP(BG$4,'wskaźniki efektu'!$A$5:$F$16,'wskaźniki efektu'!$D$1,FALSE)*V10/100),0) -> 0 | BH10: =IF($J10="tak",(VLOOKUP(BH$4,'wskaźniki efektu'!$A$5:$F$16,'wskaźniki efektu'!$D$1,FALSE)*W10/100),0) -> 0 | BI10: =SUM(AW10:BH10) -> 0 | BJ10: =VLOOKUP(BJ$4,'wskaźniki efektu'!$A$5:$F$16,'wskaźniki efektu'!$E$1,FALSE)*K10/100 -> 0 | BK10: =VLOOKUP(BK$4,'wskaźniki efektu'!$A$5:$F$16,'wskaźniki efektu'!$E$1,FALSE)*L10/100 -> 0 | BL10: =IF($J10="nie",(VLOOKUP(BL$4,'wskaźniki efektu'!$A$5:$F$16,'wskaźniki efektu'!$E$1,FALSE)*M10/100),0) -> 0 | BM10: =IF($J10="nie",(VLOOKUP(BM$4,'wskaźniki efektu'!$A$5:$F$16,'wskaźniki efektu'!$E$1,FALSE)*N10/100),0) -> 0 | BN10: =IF($J10="nie",(VLOOKUP(BN$4,'wskaźniki efektu'!$A$5:$F$16,'wskaźniki efektu'!$E$1,FALSE)*O10/100),0) -> 0 | BO10: =IF($J10="nie",(VLOOKUP(BO$4,'wskaźniki efektu'!$A$5:$F$16,'wskaźniki efektu'!$E$1,FALSE)*P10/100),0) -> 0 | BP10: =VLOOKUP(BP$4,'wskaźniki efektu'!$A$5:$F$16,'wskaźniki efektu'!$E$1,FALSE)*Q10/100 -> 0 | BQ10: =VLOOKUP(BQ$4,'wskaźniki efektu'!$A$5:$F$16,'wskaźniki efektu'!$E$1,FALSE)*R10/100 -> 0 | BR10: =IF($J10="tak",(VLOOKUP(BR$4,'wskaźniki efektu'!$A$5:$F$16,'wskaźniki efektu'!$E$1,FALSE)*T10/100),0) -> 0 | BS10: =IF($J10="tak",(VLOOKUP(BS$4,'wskaźniki efektu'!$A$5:$F$16,'wskaźniki efektu'!$E$1,FALSE)*U10/100),0) -> 0 | BT10: =IF($J10="tak",(VLOOKUP(BT$4,'wskaźniki efektu'!$A$5:$F$16,'wskaźniki efektu'!$E$1,FALSE)*V10/100),0) -> 0 | BU10: =IF($J10="tak",(VLOOKUP(BU$4,'wskaźniki efektu'!$A$5:$F$16,'wskaźniki efektu'!$E$1,FALSE)*W10/100),0) -> 0 | BV10: =SUM(BJ10:BU10) -> 0 | BW10: =VLOOKUP(BW$4,'wskaźniki efektu'!$A$5:$F$16,'wskaźniki efektu'!$F$1,FALSE)*K10/100 -> 0 | BX10: =VLOOKUP(BX$4,'wskaźniki efektu'!$A$5:$F$16,'wskaźniki efektu'!$F$1,FALSE)*L10/100 -> 0 | BY10: =IF($J10="nie",(VLOOKUP(BY$4,'wskaźniki efektu'!$A$5:$F$16,'wskaźniki efektu'!$F$1,FALSE)*M10/100),0) -> 0 | BZ10: =IF($J10="nie",(VLOOKUP(BZ$4,'wskaźniki efektu'!$A$5:$F$16,'wskaźniki efektu'!$F$1,FALSE)*N10/100),0) -> 0 | CA10: =IF($J10="nie",(VLOOKUP(CA$4,'wskaźniki efektu'!$A$5:$F$16,'wskaźniki efektu'!$F$1,FALSE)*O10/100),0) -> 0 | CB10: =IF($J10="nie",(VLOOKUP(CB$4,'wskaźniki efektu'!$A$5:$F$16,'wskaźniki efektu'!$F$1,FALSE)*P10/100),0) -> 0 | CC10: =VLOOKUP(CC$4,'wskaźniki efektu'!$A$5:$F$16,'wskaźniki efektu'!$F$1,FALSE)*Q10/100 -> 0 | CD10: =VLOOKUP(CD$4,'wskaźniki efektu'!$A$5:$F$16,'wskaźniki efektu'!$F$1,FALSE)*R10/100 -> 0 | CE10: =IF($J10="tak",(VLOOKUP(CE$4,'wskaźniki efektu'!$A$5:$F$16,'wskaźniki efektu'!$F$1,FALSE)*T10/100),0) -> 0 | CF10: =IF($J10="tak",(VLOOKUP(CF$4,'wskaźniki efektu'!$A$5:$F$16,'wskaźniki efektu'!$F$1,FALSE)*U10/100),0) -> 0 | CG10: =IF($J10="tak",(VLOOKUP(CG$4,'wskaźniki efektu'!$A$5:$F$16,'wskaźniki efektu'!$F$1,FALSE)*V10/100),0) -> 0 | CH10: =IF($J10="tak",(VLOOKUP(CH$4,'wskaźniki efektu'!$A$5:$F$16,'wskaźniki efektu'!$F$1,FALSE)*W10/100),0) -> 0 | CI10: =SUM(BW10:CH10) -> 0 | CJ10: =OR(S10>0,X10>0,Y10>0,Z10>0,AB10>0) -> FALSE
A11: 3 | B11: =IF('tabela informacyjna dla JST'!$C$9="",'tabela informacyjna dla innych'!$C$9,'tabela informacyjna dla JST'!$C$9) -> starostwo powiatowe w Raciborzu | C11: =IFERROR(VLOOKUP($B11,'katalog gmin'!$J$5:$N$188,'katalog gmin'!$N$1-'katalog gmin'!$I$1,FALSE),"brak gminy") -> PL2405_ZSO | D11: =IFERROR(VLOOKUP($C11,'katalog zadań'!$B$3:$D$18,'katalog zadań'!$C$1-'katalog zadań'!$A$1,FALSE),"") -> Ograniczenie emisji z instalacji o małej mocy do 1 MW, w których następuje spalanie paliw stałych | H11: 0 | X11: 0.0 | Y11: 0.0 | Z11: 0.000 | AA11: 0.0 | AB11: 0.0 | AC11: =IFERROR(IF(VLOOKUP($B11,'katalog gmin'!$J$5:$AW$188,'katalog gmin'!$AQ$1-'katalog gmin'!$I$1+MATCH('tabela informacyjna dla JST'!$C$5,'katalog gmin'!$AQ$4:$AW$4,0)-1,FALSE)=0,"n.d.",VLOOKUP($B11,'katalog gmin'!$J$5:$AW$188,'katalog gmin'!$AQ$1-'katalog gmin'!$I$1+MATCH('tabela informacyjna dla JST'!$C$5,'katalog gmin'!$AQ$4:$AW$4,0)-1,FALSE)),"brak gminy/roku") -> n.d. | AD11: n.d. | AJ11: =VLOOKUP(AJ$4,'wskaźniki efektu'!$A$5:$F$16,'wskaźniki efektu'!$C$1,FALSE)*K11/100 -> 0 | AK11: =VLOOKUP(AK$4,'wskaźniki efektu'!$A$5:$F$16,'wskaźniki efektu'!$C$1,FALSE)*L11/100 -> 0 | AL11: =IF($J11="nie",(VLOOKUP(AL$4,'wskaźniki efektu'!$A$5:$F$16,'wskaźniki efektu'!$C$1,FALSE)*M11/100),0) -> 0 | AM11: =IF($J11="nie",(VLOOKUP(AM$4,'wskaźniki efektu'!$A$5:$F$16,'wskaźniki efektu'!$C$1,FALSE)*N11/100),0) -> 0 | AN11: =IF($J11="nie",(VLOOKUP(AN$4,'wskaźniki efektu'!$A$5:$F$16,'wskaźniki efektu'!$C$1,FALSE)*O11/100),0) -> 0 | AO11: =IF($J11="nie",(VLOOKUP(AO$4,'wskaźniki efektu'!$A$5:$F$16,'wskaźniki efektu'!$C$1,FALSE)*P11/100),0) -> 0 | AP11: =VLOOKUP(AP$4,'wskaźniki efektu'!$A$5:$F$16,'wskaźniki efektu'!$C$1,FALSE)*Q11/100 -> 0 | AQ11: =VLOOKUP(AQ$4,'wskaźniki efektu'!$A$5:$F$16,'wskaźniki efektu'!$C$1,FALSE)*R11/100 -> 0 | AR11: =IF($J11="tak",(VLOOKUP(AR$4,'wskaźniki efektu'!$A$5:$F$16,'wskaźniki efektu'!$C$1,FALSE)*T11/100),0) -> 0 | AS11: =IF($J11="tak",(VLOOKUP(AS$4,'wskaźniki efektu'!$A$5:$F$16,'wskaźniki efektu'!$C$1,FALSE)*U11/100),0) -> 0 | AT11: =IF($J11="tak",(VLOOKUP(AT$4,'wskaźniki efektu'!$A$5:$F$16,'wskaźniki efektu'!$C$1,FALSE)*V11/100),0) -> 0 | AU11: =IF($J11="tak",(VLOOKUP(AU$4,'wskaźniki efektu'!$A$5:$F$16,'wskaźniki efektu'!$C$1,FALSE)*W11/100),0) -> 0 | AV11: 0 | AW11: =VLOOKUP(AW$4,'wskaźniki efektu'!$A$5:$F$16,'wskaźniki efektu'!$D$1,FALSE)*K11/100 -> 0 | AX11: =VLOOKUP(AX$4,'wskaźniki efektu'!$A$5:$F$16,'wskaźniki efektu'!$D$1,FALSE)*L11/100 -> 0 | AY11: =IF($J11="nie",(VLOOKUP(AY$4,'wskaźniki efektu'!$A$5:$F$16,'wskaźniki efektu'!$D$1,FALSE)*M11/100),0) -> 0 | AZ11: =IF($J11="nie",(VLOOKUP(AZ$4,'wskaźniki efektu'!$A$5:$F$16,'wskaźniki efektu'!$D$1,FALSE)*N11/100),0) -> 0 | BA11: =IF($J11="nie",(VLOOKUP(BA$4,'wskaźniki efektu'!$A$5:$F$16,'wskaźniki efektu'!$D$1,FALSE)*O11/100),0) -> 0 | BB11: =IF($J11="nie",(VLOOKUP(BB$4,'wskaźniki efektu'!$A$5:$F$16,'wskaźniki efektu'!$D$1,FALSE)*P11/100),0) -> 0 | BC11: =VLOOKUP(BC$4,'wskaźniki efektu'!$A$5:$F$16,'wskaźniki efektu'!$D$1,FALSE)*Q11/100 -> 0 | BD11: =VLOOKUP(BD$4,'wskaźniki efektu'!$A$5:$F$16,'wskaźniki efektu'!$D$1,FALSE)*R11/100 -> 0 | BE11: =IF($J11="tak",(VLOOKUP(BE$4,'wskaźniki efektu'!$A$5:$F$16,'wskaźniki efektu'!$D$1,FALSE)*T11/100),0) -> 0 | BF11: =IF($J11="tak",(VLOOKUP(BF$4,'wskaźniki efektu'!$A$5:$F$16,'wskaźniki efektu'!$D$1,FALSE)*U11/100),0) -> 0 | BG11: =IF($J11="tak",(VLOOKUP(BG$4,'wskaźniki efektu'!$A$5:$F$16,'wskaźniki efektu'!$D$1,FALSE)*V11/100),0) -> 0 | BH11: =IF($J11="tak",(VLOOKUP(BH$4,'wskaźniki efektu'!$A$5:$F$16,'wskaźniki efektu'!$D$1,FALSE)*W11/100),0) -> 0 | BI11: 0 | BJ11: =VLOOKUP(BJ$4,'wskaźniki efektu'!$A$5:$F$16,'wskaźniki efektu'!$E$1,FALSE)*K11/100 -> 0 | BK11: =VLOOKUP(BK$4,'wskaźniki efektu'!$A$5:$F$16,'wskaźniki efektu'!$E$1,FALSE)*L11/100 -> 0 | BL11: =IF($J11="nie",(VLOOKUP(BL$4,'wskaźniki efektu'!$A$5:$F$16,'wskaźniki efektu'!$E$1,FALSE)*M11/100),0) -> 0 | BM11: =IF($J11="nie",(VLOOKUP(BM$4,'wskaźniki efektu'!$A$5:$F$16,'wskaźniki efektu'!$E$1,FALSE)*N11/100),0) -> 0 | BN11: =IF($J11="nie",(VLOOKUP(BN$4,'wskaźniki efektu'!$A$5:$F$16,'wskaźniki efektu'!$E$1,FALSE)*O11/100),0) -> 0 | BO11: =IF($J11="nie",(VLOOKUP(BO$4,'wskaźniki efektu'!$A$5:$F$16,'wskaźniki efektu'!$E$1,FALSE)*P11/100),0) -> 0 | BP11: =VLOOKUP(BP$4,'wskaźniki efektu'!$A$5:$F$16,'wskaźniki efektu'!$E$1,FALSE)*Q11/100 -> 0 | BQ11: =VLOOKUP(BQ$4,'wskaźniki efektu'!$A$5:$F$16,'wskaźniki efektu'!$E$1,FALSE)*R11/100 -> 0 | BR11: =IF($J11="tak",(VLOOKUP(BR$4,'wskaźniki efektu'!$A$5:$F$16,'wskaźniki efektu'!$E$1,FALSE)*T11/100),0) -> 0 | BS11: =IF($J11="tak",(VLOOKUP(BS$4,'wskaźniki efektu'!$A$5:$F$16,'wskaźniki efektu'!$E$1,FALSE)*U11/100),0) -> 0 | BT11: =IF($J11="tak",(VLOOKUP(BT$4,'wskaźniki efektu'!$A$5:$F$16,'wskaźniki efektu'!$E$1,FALSE)*V11/100),0) -> 0 | BU11: =IF($J11="tak",(VLOOKUP(BU$4,'wskaźniki efektu'!$A$5:$F$16,'wskaźniki efektu'!$E$1,FALSE)*W11/100),0) -> 0 | BV11: 0 | BW11: =VLOOKUP(BW$4,'wskaźniki efektu'!$A$5:$F$16,'wskaźniki efektu'!$F$1,FALSE)*K11/100 -> 0 | BX11: =VLOOKUP(BX$4,'wskaźniki efektu'!$A$5:$F$16,'wskaźniki efektu'!$F$1,FALSE)*L11/100 -> 0 | BY11: =IF($J11="nie",(VLOOKUP(BY$4,'wskaźniki efektu'!$A$5:$F$16,'wskaźniki efektu'!$F$1,FALSE)*M11/100),0) -> 0 | BZ11: =IF($J11="nie",(VLOOKUP(BZ$4,'wskaźniki efektu'!$A$5:$F$16,'wskaźniki efektu'!$F$1,FALSE)*N11/100),0) -> 0 | CA11: =IF($J11="nie",(VLOOKUP(CA$4,'wskaźniki efektu'!$A$5:$F$16,'wskaźniki efektu'!$F$1,FALSE)*O11/100),0) -> 0 | CB11: =IF($J11="nie",(VLOOKUP(CB$4,'wskaźniki efektu'!$A$5:$F$16,'wskaźniki efektu'!$F$1,FALSE)*P11/100),0) -> 0 | CC11: =VLOOKUP(CC$4,'wskaźniki efektu'!$A$5:$F$16,'wskaźniki efektu'!$F$1,FALSE)*Q11/100 -> 0 | CD11: =VLOOKUP(CD$4,'wskaźniki efektu'!$A$5:$F$16,'wskaźniki efektu'!$F$1,FALSE)*R11/100 -> 0 | CE11: =IF($J11="tak",(VLOOKUP(CE$4,'wskaźniki efektu'!$A$5:$F$16,'wskaźniki efektu'!$F$1,FALSE)*T11/100),0) -> 0 | CF11: =IF($J11="tak",(VLOOKUP(CF$4,'wskaźniki efektu'!$A$5:$F$16,'wskaźniki efektu'!$F$1,FALSE)*U11/100),0) -> 0 | CG11: =IF($J11="tak",(VLOOKUP(CG$4,'wskaźniki efektu'!$A$5:$F$16,'wskaźniki efektu'!$F$1,FALSE)*V11/100),0) -> 0 | CH11: =IF($J11="tak",(VLOOKUP(CH$4,'wskaźniki efektu'!$A$5:$F$16,'wskaźniki efektu'!$F$1,FALSE)*W11/100),0) -> 0 | CI11: 0 | CJ11: FALSE
A12: 4 | B12: =IF('tabela informacyjna dla JST'!$C$9="",'tabela informacyjna dla innych'!$C$9,'tabela informacyjna dla JST'!$C$9) -> starostwo powiatowe w Raciborzu | C12: =IFERROR(VLOOKUP($B12,'katalog gmin'!$J$5:$N$188,'katalog gmin'!$N$1-'katalog gmin'!$I$1,FALSE),"brak gminy") -> PL2405_ZSO | D12: =IFERROR(VLOOKUP($C12,'katalog zadań'!$B$3:$D$18,'katalog zadań'!$C$1-'katalog zadań'!$A$1,FALSE),"") -> Ograniczenie emisji z instalacji o małej mocy do 1 MW, w których następuje spalanie paliw stałych | H12: 0 | X12: 0.0 | Y12: 0.0 | Z12: 0.000 | AA12: 0.0 | AB12: 0.0 | AC12: =IFERROR(IF(VLOOKUP($B12,'katalog gmin'!$J$5:$AW$188,'katalog gmin'!$AQ$1-'katalog gmin'!$I$1+MATCH('tabela informacyjna dla JST'!$C$5,'katalog gmin'!$AQ$4:$AW$4,0)-1,FALSE)=0,"n.d.",VLOOKUP($B12,'katalog gmin'!$J$5:$AW$188,'katalog gmin'!$AQ$1-'katalog gmin'!$I$1+MATCH('tabela informacyjna dla JST'!$C$5,'katalog gmin'!$AQ$4:$AW$4,0)-1,FALSE)),"brak gminy/roku") -> n.d. | AD12: n.d. | AJ12: =VLOOKUP(AJ$4,'wskaźniki efektu'!$A$5:$F$16,'wskaźniki efektu'!$C$1,FALSE)*K12/100 -> 0 | AK12: =VLOOKUP(AK$4,'wskaźniki efektu'!$A$5:$F$16,'wskaźniki efektu'!$C$1,FALSE)*L12/100 -> 0 | AL12: =IF($J12="nie",(VLOOKUP(AL$4,'wskaźniki efektu'!$A$5:$F$16,'wskaźniki efektu'!$C$1,FALSE)*M12/100),0) -> 0 | AM12: =IF($J12="nie",(VLOOKUP(AM$4,'wskaźniki efektu'!$A$5:$F$16,'wskaźniki efektu'!$C$1,FALSE)*N12/100),0) -> 0 | AN12: =IF($J12="nie",(VLOOKUP(AN$4,'wskaźniki efektu'!$A$5:$F$16,'wskaźniki efektu'!$C$1,FALSE)*O12/100),0) -> 0 | AO12: =IF($J12="nie",(VLOOKUP(AO$4,'wskaźniki efektu'!$A$5:$F$16,'wskaźniki efektu'!$C$1,FALSE)*P12/100),0) -> 0 | AP12: =VLOOKUP(AP$4,'wskaźniki efektu'!$A$5:$F$16,'wskaźniki efektu'!$C$1,FALSE)*Q12/100 -> 0 | AQ12: =VLOOKUP(AQ$4,'wskaźniki efektu'!$A$5:$F$16,'wskaźniki efektu'!$C$1,FALSE)*R12/100 -> 0 | AR12: =IF($J12="tak",(VLOOKUP(AR$4,'wskaźniki efektu'!$A$5:$F$16,'wskaźniki efektu'!$C$1,FALSE)*T12/100),0) -> 0 | AS12: =IF($J12="tak",(VLOOKUP(AS$4,'wskaźniki efektu'!$A$5:$F$16,'wskaźniki efektu'!$C$1,FALSE)*U12/100),0) -> 0 | AT12: =IF($J12="tak",(VLOOKUP(AT$4,'wskaźniki efektu'!$A$5:$F$16,'wskaźniki efektu'!$C$1,FALSE)*V12/100),0) -> 0 | AU12: =IF($J12="tak",(VLOOKUP(AU$4,'wskaźniki efektu'!$A$5:$F$16,'wskaźniki efektu'!$C$1,FALSE)*W12/100),0) -> 0 | AV12: 0 | AW12: =VLOOKUP(AW$4,'wskaźniki efektu'!$A$5:$F$16,'wskaźniki efektu'!$D$1,FALSE)*K12/100 -> 0 | AX12: =VLOOKUP(AX$4,'wskaźniki efektu'!$A$5:$F$16,'wskaźniki efektu'!$D$1,FALSE)*L12/100 -> 0 | AY12: =IF($J12="nie",(VLOOKUP(AY$4,'wskaźniki efektu'!$A$5:$F$16,'wskaźniki efektu'!$D$1,FALSE)*M12/100),0) -> 0 | AZ12: =IF($J12="nie",(VLOOKUP(AZ$4,'wskaźniki efektu'!$A$5:$F$16,'wskaźniki efektu'!$D$1,FALSE)*N12/100),0) -> 0 | BA12: =IF($J12="nie",(VLOOKUP(BA$4,'wskaźniki efektu'!$A$5:$F$16,'wskaźniki efektu'!$D$1,FALSE)*O12/100),0) -> 0 | BB12: =IF($J12="nie",(VLOOKUP(BB$4,'wskaźniki efektu'!$A$5:$F$16,'wskaźniki efektu'!$D$1,FALSE)*P12/100),0) -> 0 | BC12: =VLOOKUP(BC$4,'wskaźniki efektu'!$A$5:$F$16,'wskaźniki efektu'!$D$1,FALSE)*Q12/100 -> 0 | BD12: =VLOOKUP(BD$4,'wskaźniki efektu'!$A$5:$F$16,'wskaźniki efektu'!$D$1,FALSE)*R12/100 -> 0 | BE12: =IF($J12="tak",(VLOOKUP(BE$4,'wskaźniki efektu'!$A$5:$F$16,'wskaźniki efektu'!$D$1,FALSE)*T12/100),0) -> 0 | BF12: =IF($J12="tak",(VLOOKUP(BF$4,'wskaźniki efektu'!$A$5:$F$16,'wskaźniki efektu'!$D$1,FALSE)*U12/100),0) -> 0 | BG12: =IF($J12="tak",(VLOOKUP(BG$4,'wskaźniki efektu'!$A$5:$F$16,'wskaźniki efektu'!$D$1,FALSE)*V12/100),0) -> 0 | BH12: =IF($J12="tak",(VLOOKUP(BH$4,'wskaźniki efektu'!$A$5:$F$16,'wskaźniki efektu'!$D$1,FALSE)*W12/100),0) -> 0 | BI12: 0 | BJ12: =VLOOKUP(BJ$4,'wskaźniki efektu'!$A$5:$F$16,'wskaźniki efektu'!$E$1,FALSE)*K12/100 -> 0 | BK12: =VLOOKUP(BK$4,'wskaźniki efektu'!$A$5:$F$16,'wskaźniki efektu'!$E$1,FALSE)*L12/100 -> 0 | BL12: =IF($J12="nie",(VLOOKUP(BL$4,'wskaźniki efektu'!$A$5:$F$16,'wskaźniki efektu'!$E$1,FALSE)*M12/100),0) -> 0 | BM12: =IF($J12="nie",(VLOOKUP(BM$4,'wskaźniki efektu'!$A$5:$F$16,'wskaźniki efektu'!$E$1,FALSE)*N12/100),0) -> 0 | BN12: =IF($J12="nie",(VLOOKUP(BN$4,'wskaźniki efektu'!$A$5:$F$16,'wskaźniki efektu'!$E$1,FALSE)*O12/100),0) -> 0 | BO12: =IF($J12="nie",(VLOOKUP(BO$4,'wskaźniki efektu'!$A$5:$F$16,'wskaźniki efektu'!$E$1,FALSE)*P12/100),0) -> 0 | BP12: =VLOOKUP(BP$4,'wskaźniki efektu'!$A$5:$F$16,'wskaźniki efektu'!$E$1,FALSE)*Q12/100 -> 0 | BQ12: =VLOOKUP(BQ$4,'wskaźniki efektu'!$A$5:$F$16,'wskaźniki efektu'!$E$1,FALSE)*R12/100 -> 0 | BR12: =IF($J12="tak",(VLOOKUP(BR$4,'wskaźniki efektu'!$A$5:$F$16,'wskaźniki efektu'!$E$1,FALSE)*T12/100),0) -> 0 | BS12: =IF($J12="tak",(VLOOKUP(BS$4,'wskaźniki efektu'!$A$5:$F$16,'wskaźniki efektu'!$E$1,FALSE)*U12/100),0) -> 0 | BT12: =IF($J12="tak",(VLOOKUP(BT$4,'wskaźniki efektu'!$A$5:$F$16,'wskaźniki efektu'!$E$1,FALSE)*V12/100),0) -> 0 | BU12: =IF($J12="tak",(VLOOKUP(BU$4,'wskaźniki efektu'!$A$5:$F$16,'wskaźniki efektu'!$E$1,FALSE)*W12/100),0) -> 0 | BV12: 0 | BW12: =VLOOKUP(BW$4,'wskaźniki efektu'!$A$5:$F$16,'wskaźniki efektu'!$F$1,FALSE)*K12/100 -> 0 | BX12: =VLOOKUP(BX$4,'wskaźniki efektu'!$A$5:$F$16,'wskaźniki efektu'!$F$1,FALSE)*L12/100 -> 0 | BY12: =IF($J12="nie",(VLOOKUP(BY$4,'wskaźniki efektu'!$A$5:$F$16,'wskaźniki efektu'!$F$1,FALSE)*M12/100),0) -> 0 | BZ12: =IF($J12="nie",(VLOOKUP(BZ$4,'wskaźniki efektu'!$A$5:$F$16,'wskaźniki efektu'!$F$1,FALSE)*N12/100),0) -> 0 | CA12: =IF($J12="nie",(VLOOKUP(CA$4,'wskaźniki efektu'!$A$5:$F$16,'wskaźniki efektu'!$F$1,FALSE)*O12/100),0) -> 0 | CB12: =IF($J12="nie",(VLOOKUP(CB$4,'wskaźniki efektu'!$A$5:$F$16,'wskaźniki efektu'!$F$1,FALSE)*P12/100),0) -> 0 | CC12: =VLOOKUP(CC$4,'wskaźniki efektu'!$A$5:$F$16,'wskaźniki efektu'!$F$1,FALSE)*Q12/100 -> 0 | CD12: =VLOOKUP(CD$4,'wskaźniki efektu'!$A$5:$F$16,'wskaźniki efektu'!$F$1,FALSE)*R12/100 -> 0 | CE12: =IF($J12="tak",(VLOOKUP(CE$4,'wskaźniki efektu'!$A$5:$F$16,'wskaźniki efektu'!$F$1,FALSE)*T12/100),0) -> 0 | CF12: =IF($J12="tak",(VLOOKUP(CF$4,'wskaźniki efektu'!$A$5:$F$16,'wskaźniki efektu'!$F$1,FALSE)*U12/100),0) -> 0 | CG12: =IF($J12="tak",(VLOOKUP(CG$4,'wskaźniki efektu'!$A$5:$F$16,'wskaźniki efektu'!$F$1,FALSE)*V12/100),0) -> 0 | CH12: =IF($J12="tak",(VLOOKUP(CH$4,'wskaźniki efektu'!$A$5:$F$16,'wskaźniki efektu'!$F$1,FALSE)*W12/100),0) -> 0 | CI12: 0 | CJ12: FALSE
A13: 5 | B13: =IF('tabela informacyjna dla JST'!$C$9="",'tabela informacyjna dla innych'!$C$9,'tabela informacyjna dla JST'!$C$9) -> starostwo powiatowe w Raciborzu | C13: =IFERROR(VLOOKUP($B13,'katalog gmin'!$J$5:$N$188,'katalog gmin'!$N$1-'katalog gmin'!$I$1,FALSE),"brak gminy") -> PL2405_ZSO | D13: =IFERROR(VLOOKUP($C13,'katalog zadań'!$B$3:$D$18,'katalog zadań'!$C$1-'katalog zadań'!$A$1,FALSE),"") -> Ograniczenie emisji z instalacji o małej mocy do 1 MW, w których następuje spalanie paliw stałych | H13: 0 | X13: 0.0 | Y13: 0.0 | Z13: 0.000 | AA13: 0.0 | AB13: 0.0 | AC13: =IFERROR(IF(VLOOKUP($B13,'katalog gmin'!$J$5:$AW$188,'katalog gmin'!$AQ$1-'katalog gmin'!$I$1+MATCH('tabela informacyjna dla JST'!$C$5,'katalog gmin'!$AQ$4:$AW$4,0)-1,FALSE)=0,"n.d.",VLOOKUP($B13,'katalog gmin'!$J$5:$AW$188,'katalog gmin'!$AQ$1-'katalog gmin'!$I$1+MATCH('tabela informacyjna dla JST'!$C$5,'katalog gmin'!$AQ$4:$AW$4,0)-1,FALSE)),"brak gminy/roku") -> n.d. | AD13: n.d. | AJ13: =VLOOKUP(AJ$4,'wskaźniki efektu'!$A$5:$F$16,'wskaźniki efektu'!$C$1,FALSE)*K13/100 -> 0 | AK13: =VLOOKUP(AK$4,'wskaźniki efektu'!$A$5:$F$16,'wskaźniki efektu'!$C$1,FALSE)*L13/100 -> 0 | AL13: =IF($J13="nie",(VLOOKUP(AL$4,'wskaźniki efektu'!$A$5:$F$16,'wskaźniki efektu'!$C$1,FALSE)*M13/100),0) -> 0 | AM13: =IF($J13="nie",(VLOOKUP(AM$4,'wskaźniki efektu'!$A$5:$F$16,'wskaźniki efektu'!$C$1,FALSE)*N13/100),0) -> 0 | AN13: =IF($J13="nie",(VLOOKUP(AN$4,'wskaźniki efektu'!$A$5:$F$16,'wskaźniki efektu'!$C$1,FALSE)*O13/100),0) -> 0 | AO13: =IF($J13="nie",(VLOOKUP(AO$4,'wskaźniki efektu'!$A$5:$F$16,'wskaźniki efektu'!$C$1,FALSE)*P13/100),0) -> 0 | AP13: =VLOOKUP(AP$4,'wskaźniki efektu'!$A$5:$F$16,'wskaźniki efektu'!$C$1,FALSE)*Q13/100 -> 0 | AQ13: =VLOOKUP(AQ$4,'wskaźniki efektu'!$A$5:$F$16,'wskaźniki efektu'!$C$1,FALSE)*R13/100 -> 0 | AR13: =IF($J13="tak",(VLOOKUP(AR$4,'wskaźniki efektu'!$A$5:$F$16,'wskaźniki efektu'!$C$1,FALSE)*T13/100),0) -> 0 | AS13: =IF($J13="tak",(VLOOKUP(AS$4,'wskaźniki efektu'!$A$5:$F$16,'wskaźniki efektu'!$C$1,FALSE)*U13/100),0) -> 0 | AT13: =IF($J13="tak",(VLOOKUP(AT$4,'wskaźniki efektu'!$A$5:$F$16,'wskaźniki efektu'!$C$1,FALSE)*V13/100),0) -> 0 | AU13: =IF($J13="tak",(VLOOKUP(AU$4,'wskaźniki efektu'!$A$5:$F$16,'wskaźniki efektu'!$C$1,FALSE)*W13/100),0) -> 0 | AV13: 0 | AW13: =VLOOKUP(AW$4,'wskaźniki efektu'!$A$5:$F$16,'wskaźniki efektu'!$D$1,FALSE)*K13/100 -> 0 | AX13: =VLOOKUP(AX$4,'wskaźniki efektu'!$A$5:$F$16,'wskaźniki efektu'!$D$1,FALSE)*L13/100 -> 0 | AY13: =IF($J13="nie",(VLOOKUP(AY$4,'wskaźniki efektu'!$A$5:$F$16,'wskaźniki efektu'!$D$1,FALSE)*M13/100),0) -> 0 | AZ13: =IF($J13="nie",(VLOOKUP(AZ$4,'wskaźniki efektu'!$A$5:$F$16,'wskaźniki efektu'!$D$1,FALSE)*N13/100),0) -> 0 | BA13: =IF($J13="nie",(VLOOKUP(BA$4,'wskaźniki efektu'!$A$5:$F$16,'wskaźniki efektu'!$D$1,FALSE)*O13/100),0) -> 0 | BB13: =IF($J13="nie",(VLOOKUP(BB$4,'wskaźniki efektu'!$A$5:$F$16,'wskaźniki efektu'!$D$1,FALSE)*P13/100),0) -> 0 | BC13: =VLOOKUP(BC$4,'wskaźniki efektu'!$A$5:$F$16,'wskaźniki efektu'!$D$1,FALSE)*Q13/100 -> 0 | BD13: =VLOOKUP(BD$4,'wskaźniki efektu'!$A$5:$F$16,'wskaźniki efektu'!$D$1,FALSE)*R13/100 -> 0 | BE13: =IF($J13="tak",(VLOOKUP(BE$4,'wskaźniki efektu'!$A$5:$F$16,'wskaźniki efektu'!$D$1,FALSE)*T13/100),0) -> 0 | BF13: =IF($J13="tak",(VLOOKUP(BF$4,'wskaźniki efektu'!$A$5:$F$16,'wskaźniki efektu'!$D$1,FALSE)*U13/100),0) -> 0 | BG13: =IF($J13="tak",(VLOOKUP(BG$4,'wskaźniki efektu'!$A$5:$F$16,'wskaźniki efektu'!$D$1,FALSE)*V13/100),0) -> 0 | BH13: =IF($J13="tak",(VLOOKUP(BH$4,'wskaźniki efektu'!$A$5:$F$16,'wskaźniki efektu'!$D$1,FALSE)*W13/100),0) -> 0 | BI13: 0 | BJ13: =VLOOKUP(BJ$4,'wskaźniki efektu'!$A$5:$F$16,'wskaźniki efektu'!$E$1,FALSE)*K13/100 -> 0 | BK13: =VLOOKUP(BK$4,'wskaźniki efektu'!$A$5:$F$16,'wskaźniki efektu'!$E$1,FALSE)*L13/100 -> 0 | BL13: =IF($J13="nie",(VLOOKUP(BL$4,'wskaźniki efektu'!$A$5:$F$16,'wskaźniki efektu'!$E$1,FALSE)*M13/100),0) -> 0 | BM13: =IF($J13="nie",(VLOOKUP(BM$4,'wskaźniki efektu'!$A$5:$F$16,'wskaźniki efektu'!$E$1,FALSE)*N13/100),0) -> 0 | BN13: =IF($J13="nie",(VLOOKUP(BN$4,'wskaźniki efektu'!$A$5:$F$16,'wskaźniki efektu'!$E$1,FALSE)*O13/100),0) -> 0 | BO13: =IF($J13="nie",(VLOOKUP(BO$4,'wskaźniki efektu'!$A$5:$F$16,'wskaźniki efektu'!$E$1,FALSE)*P13/100),0) -> 0 | BP13: =VLOOKUP(BP$4,'wskaźniki efektu'!$A$5:$F$16,'wskaźniki efektu'!$E$1,FALSE)*Q13/100 -> 0 | BQ13: =VLOOKUP(BQ$4,'wskaźniki efektu'!$A$5:$F$16,'wskaźniki efektu'!$E$1,FALSE)*R13/100 -> 0 | BR13: =IF($J13="tak",(VLOOKUP(BR$4,'wskaźniki efektu'!$A$5:$F$16,'wskaźniki efektu'!$E$1,FALSE)*T13/100),0) -> 0 | BS13: =IF($J13="tak",(VLOOKUP(BS$4,'wskaźniki efektu'!$A$5:$F$16,'wskaźniki efektu'!$E$1,FALSE)*U13/100),0) -> 0 | BT13: =IF($J13="tak",(VLOOKUP(BT$4,'wskaźniki efektu'!$A$5:$F$16,'wskaźniki efektu'!$E$1,FALSE)*V13/100),0) -> 0 | BU13: =IF($J13="tak",(VLOOKUP(BU$4,'wskaźniki efektu'!$A$5:$F$16,'wskaźniki efektu'!$E$1,FALSE)*W13/100),0) -> 0 | BV13: 0 | BW13: =VLOOKUP(BW$4,'wskaźniki efektu'!$A$5:$F$16,'wskaźniki efektu'!$F$1,FALSE)*K13/100 -> 0 | BX13: =VLOOKUP(BX$4,'wskaźniki efektu'!$A$5:$F$16,'wskaźniki efektu'!$F$1,FALSE)*L13/100 -> 0 | BY13: =IF($J13="nie",(VLOOKUP(BY$4,'wskaźniki efektu'!$A$5:$F$16,'wskaźniki efektu'!$F$1,FALSE)*M13/100),0) -> 0 | BZ13: =IF($J13="nie",(VLOOKUP(BZ$4,'wskaźniki efektu'!$A$5:$F$16,'wskaźniki efektu'!$F$1,FALSE)*N13/100),0) -> 0 | CA13: =IF($J13="nie",(VLOOKUP(CA$4,'wskaźniki efektu'!$A$5:$F$16,'wskaźniki efektu'!$F$1,FALSE)*O13/100),0) -> 0 | CB13: =IF($J13="nie",(VLOOKUP(CB$4,'wskaźniki efektu'!$A$5:$F$16,'wskaźniki efektu'!$F$1,FALSE)*P13/100),0) -> 0 | CC13: =VLOOKUP(CC$4,'wskaźniki efektu'!$A$5:$F$16,'wskaźniki efektu'!$F$1,FALSE)*Q13/100 -> 0 | CD13: =VLOOKUP(CD$4,'wskaźniki efektu'!$A$5:$F$16,'wskaźniki efektu'!$F$1,FALSE)*R13/100 -> 0 | CE13: =IF($J13="tak",(VLOOKUP(CE$4,'wskaźniki efektu'!$A$5:$F$16,'wskaźniki efektu'!$F$1,FALSE)*T13/100),0) -> 0 | CF13: =IF($J13="tak",(VLOOKUP(CF$4,'wskaźniki efektu'!$A$5:$F$16,'wskaźniki efektu'!$F$1,FALSE)*U13/100),0) -> 0 | CG13: =IF($J13="tak",(VLOOKUP(CG$4,'wskaźniki efektu'!$A$5:$F$16,'wskaźniki efektu'!$F$1,FALSE)*V13/100),0) -> 0 | CH13: =IF($J13="tak",(VLOOKUP(CH$4,'wskaźniki efektu'!$A$5:$F$16,'wskaźniki efektu'!$F$1,FALSE)*W13/100),0) -> 0 | CI13: 0 | CJ13: FALSE
A14: 6 | B14: =IF('tabela informacyjna dla JST'!$C$9="",'tabela informacyjna dla innych'!$C$9,'tabela informacyjna dla JST'!$C$9) -> starostwo powiatowe w Raciborzu | C14: =IFERROR(VLOOKUP($B14,'katalog gmin'!$J$5:$N$188,'katalog gmin'!$N$1-'katalog gmin'!$I$1,FALSE),"brak gminy") -> PL2405_ZSO | D14: =IFERROR(VLOOKUP($C14,'katalog zadań'!$B$3:$D$18,'katalog zadań'!$C$1-'katalog zadań'!$A$1,FALSE),"") -> Ograniczenie emisji z instalacji o małej mocy do 1 MW, w których następuje spalanie paliw stałych | H14: 0 | X14: 0.0 | Y14: 0.0 | Z14: 0.000 | AA14: 0.0 | AB14: 0.0 | AC14: =IFERROR(IF(VLOOKUP($B14,'katalog gmin'!$J$5:$AW$188,'katalog gmin'!$AQ$1-'katalog gmin'!$I$1+MATCH('tabela informacyjna dla JST'!$C$5,'katalog gmin'!$AQ$4:$AW$4,0)-1,FALSE)=0,"n.d.",VLOOKUP($B14,'katalog gmin'!$J$5:$AW$188,'katalog gmin'!$AQ$1-'katalog gmin'!$I$1+MATCH('tabela informacyjna dla JST'!$C$5,'katalog gmin'!$AQ$4:$AW$4,0)-1,FALSE)),"brak gminy/roku") -> n.d. | AD14: n.d. | AJ14: =VLOOKUP(AJ$4,'wskaźniki efektu'!$A$5:$F$16,'wskaźniki efektu'!$C$1,FALSE)*K14/100 -> 0 | AK14: =VLOOKUP(AK$4,'wskaźniki efektu'!$A$5:$F$16,'wskaźniki efektu'!$C$1,FALSE)*L14/100 -> 0 | AL14: =IF($J14="nie",(VLOOKUP(AL$4,'wskaźniki efektu'!$A$5:$F$16,'wskaźniki efektu'!$C$1,FALSE)*M14/100),0) -> 0 | AM14: =IF($J14="nie",(VLOOKUP(AM$4,'wskaźniki efektu'!$A$5:$F$16,'wskaźniki efektu'!$C$1,FALSE)*N14/100),0) -> 0 | AN14: =IF($J14="nie",(VLOOKUP(AN$4,'wskaźniki efektu'!$A$5:$F$16,'wskaźniki efektu'!$C$1,FALSE)*O14/100),0) -> 0 | AO14: =IF($J14="nie",(VLOOKUP(AO$4,'wskaźniki efektu'!$A$5:$F$16,'wskaźniki efektu'!$C$1,FALSE)*P14/100),0) -> 0 | AP14: =VLOOKUP(AP$4,'wskaźniki efektu'!$A$5:$F$16,'wskaźniki efektu'!$C$1,FALSE)*Q14/100 -> 0 | AQ14: =VLOOKUP(AQ$4,'wskaźniki efektu'!$A$5:$F$16,'wskaźniki efektu'!$C$1,FALSE)*R14/100 -> 0 | AR14: =IF($J14="tak",(VLOOKUP(AR$4,'wskaźniki efektu'!$A$5:$F$16,'wskaźniki efektu'!$C$1,FALSE)*T14/100),0) -> 0 | AS14: =IF($J14="tak",(VLOOKUP(AS$4,'wskaźniki efektu'!$A$5:$F$16,'wskaźniki efektu'!$C$1,FALSE)*U14/100),0) -> 0 | AT14: =IF($J14="tak",(VLOOKUP(AT$4,'wskaźniki efektu'!$A$5:$F$16,'wskaźniki efektu'!$C$1,FALSE)*V14/100),0) -> 0 | AU14: =IF($J14="tak",(VLOOKUP(AU$4,'wskaźniki efektu'!$A$5:$F$16,'wskaźniki efektu'!$C$1,FALSE)*W14/100),0) -> 0 | AV14: 0 | AW14: =VLOOKUP(AW$4,'wskaźniki efektu'!$A$5:$F$16,'wskaźniki efektu'!$D$1,FALSE)*K14/100 -> 0 | AX14: =VLOOKUP(AX$4,'wskaźniki efektu'!$A$5:$F$16,'wskaźniki efektu'!$D$1,FALSE)*L14/100 -> 0 | AY14: =IF($J14="nie",(VLOOKUP(AY$4,'wskaźniki efektu'!$A$5:$F$16,'wskaźniki efektu'!$D$1,FALSE)*M14/100),0) -> 0 | AZ14: =IF($J14="nie",(VLOOKUP(AZ$4,'wskaźniki efektu'!$A$5:$F$16,'wskaźniki efektu'!$D$1,FALSE)*N14/100),0) -> 0 | BA14: =IF($J14="nie",(VLOOKUP(BA$4,'wskaźniki efektu'!$A$5:$F$16,'wskaźniki efektu'!$D$1,FALSE)*O14/100),0) -> 0 | BB14: =IF($J14="nie",(VLOOKUP(BB$4,'wskaźniki efektu'!$A$5:$F$16,'wskaźniki efektu'!$D$1,FALSE)*P14/100),0) -> 0 | BC14: =VLOOKUP(BC$4,'wskaźniki efektu'!$A$5:$F$16,'wskaźniki efektu'!$D$1,FALSE)*Q14/100 -> 0 | BD14: =VLOOKUP(BD$4,'wskaźniki efektu'!$A$5:$F$16,'wskaźniki efektu'!$D$1,FALSE)*R14/100 -> 0 | BE14: =IF($J14="tak",(VLOOKUP(BE$4,'wskaźniki efektu'!$A$5:$F$16,'wskaźniki efektu'!$D$1,FALSE)*T14/100),0) -> 0 | BF14: =IF($J14="tak",(VLOOKUP(BF$4,'wskaźniki efektu'!$A$5:$F$16,'wskaźniki efektu'!$D$1,FALSE)*U14/100),0) -> 0 | BG14: =IF($J14="tak",(VLOOKUP(BG$4,'wskaźniki efektu'!$A$5:$F$16,'wskaźniki efektu'!$D$1,FALSE)*V14/100),0) -> 0 | BH14: =IF($J14="tak",(VLOOKUP(BH$4,'wskaźniki efektu'!$A$5:$F$16,'wskaźniki efektu'!$D$1,FALSE)*W14/100),0) -> 0 | BI14: 0 | BJ14: =VLOOKUP(BJ$4,'wskaźniki efektu'!$A$5:$F$16,'wskaźniki efektu'!$E$1,FALSE)*K14/100 -> 0 | BK14: =VLOOKUP(BK$4,'wskaźniki efektu'!$A$5:$F$16,'wskaźniki efektu'!$E$1,FALSE)*L14/100 -> 0 | BL14: =IF($J14="nie",(VLOOKUP(BL$4,'wskaźniki efektu'!$A$5:$F$16,'wskaźniki efektu'!$E$1,FALSE)*M14/100),0) -> 0 | BM14: =IF($J14="nie",(VLOOKUP(BM$4,'wskaźniki efektu'!$A$5:$F$16,'wskaźniki efektu'!$E$1,FALSE)*N14/100),0) -> 0 | BN14: =IF($J14="nie",(VLOOKUP(BN$4,'wskaźniki efektu'!$A$5:$F$16,'wskaźniki efektu'!$E$1,FALSE)*O14/100),0) -> 0 | BO14: =IF($J14="nie",(VLOOKUP(BO$4,'wskaźniki efektu'!$A$5:$F$16,'wskaźniki efektu'!$E$1,FALSE)*P14/100),0) -> 0 | BP14: =VLOOKUP(BP$4,'wskaźniki efektu'!$A$5:$F$16,'wskaźniki efektu'!$E$1,FALSE)*Q14/100 -> 0 | BQ14: =VLOOKUP(BQ$4,'wskaźniki efektu'!$A$5:$F$16,'wskaźniki efektu'!$E$1,FALSE)*R14/100 -> 0 | BR14: =IF($J14="tak",(VLOOKUP(BR$4,'wskaźniki efektu'!$A$5:$F$16,'wskaźniki efektu'!$E$1,FALSE)*T14/100),0) -> 0 | BS14: =IF($J14="tak",(VLOOKUP(BS$4,'wskaźniki efektu'!$A$5:$F$16,'wskaźniki efektu'!$E$1,FALSE)*U14/100),0) -> 0 | BT14: =IF($J14="tak",(VLOOKUP(BT$4,'wskaźniki efektu'!$A$5:$F$16,'wskaźniki efektu'!$E$1,FALSE)*V14/100),0) -> 0 | BU14: =IF($J14="tak",(VLOOKUP(BU$4,'wskaźniki efektu'!$A$5:$F$16,'wskaźniki efektu'!$E$1,FALSE)*W14/100),0) -> 0 | BV14: 0 | BW14: =VLOOKUP(BW$4,'wskaźniki efektu'!$A$5:$F$16,'wskaźniki efektu'!$F$1,FALSE)*K14/100 -> 0 | BX14: =VLOOKUP(BX$4,'wskaźniki efektu'!$A$5:$F$16,'wskaźniki efektu'!$F$1,FALSE)*L14/100 -> 0 | BY14: =IF($J14="nie",(VLOOKUP(BY$4,'wskaźniki efektu'!$A$5:$F$16,'wskaźniki efektu'!$F$1,FALSE)*M14/100),0) -> 0 | BZ14: =IF($J14="nie",(VLOOKUP(BZ$4,'wskaźniki efektu'!$A$5:$F$16,'wskaźniki efektu'!$F$1,FALSE)*N14/100),0) -> 0 | CA14: =IF($J14="nie",(VLOOKUP(CA$4,'wskaźniki efektu'!$A$5:$F$16,'wskaźniki efektu'!$F$1,FALSE)*O14/100),0) -> 0 | CB14: =IF($J14="nie",(VLOOKUP(CB$4,'wskaźniki efektu'!$A$5:$F$16,'wskaźniki efektu'!$F$1,FALSE)*P14/100),0) -> 0 | CC14: =VLOOKUP(CC$4,'wskaźniki efektu'!$A$5:$F$16,'wskaźniki efektu'!$F$1,FALSE)*Q14/100 -> 0 | CD14: =VLOOKUP(CD$4,'wskaźniki efektu'!$A$5:$F$16,'wskaźniki efektu'!$F$1,FALSE)*R14/100 -> 0 | CE14: =IF($J14="tak",(VLOOKUP(CE$4,'wskaźniki efektu'!$A$5:$F$16,'wskaźniki efektu'!$F$1,FALSE)*T14/100),0) -> 0 | CF14: =IF($J14="tak",(VLOOKUP(CF$4,'wskaźniki efektu'!$A$5:$F$16,'wskaźniki efektu'!$F$1,FALSE)*U14/100),0) -> 0 | CG14: =IF($J14="tak",(VLOOKUP(CG$4,'wskaźniki efektu'!$A$5:$F$16,'wskaźniki efektu'!$F$1,FALSE)*V14/100),0) -> 0 | CH14: =IF($J14="tak",(VLOOKUP(CH$4,'wskaźniki efektu'!$A$5:$F$16,'wskaźniki efektu'!$F$1,FALSE)*W14/100),0) -> 0 | CI14: 0 | CJ14: FALSE
A15: 7 | B15: =IF('tabela informacyjna dla JST'!$C$9="",'tabela informacyjna dla innych'!$C$9,'tabela informacyjna dla JST'!$C$9) -> starostwo powiatowe w Raciborzu | C15: =IFERROR(VLOOKUP($B15,'katalog gmin'!$J$5:$N$188,'katalog gmin'!$N$1-'katalog gmin'!$I$1,FALSE),"brak gminy") -> PL2405_ZSO | D15: =IFERROR(VLOOKUP($C15,'katalog zadań'!$B$3:$D$18,'katalog zadań'!$C$1-'katalog zadań'!$A$1,FALSE),"") -> Ograniczenie emisji z instalacji o małej mocy do 1 MW, w których następuje spalanie paliw stałych | H15: 0 | X15: 0.0 | Y15: 0.0 | Z15: 0.000 | AA15: 0.0 | AB15: 0.0 | AC15: =IFERROR(IF(VLOOKUP($B15,'katalog gmin'!$J$5:$AW$188,'katalog gmin'!$AQ$1-'katalog gmin'!$I$1+MATCH('tabela informacyjna dla JST'!$C$5,'katalog gmin'!$AQ$4:$AW$4,0)-1,FALSE)=0,"n.d.",VLOOKUP($B15,'katalog gmin'!$J$5:$AW$188,'katalog gmin'!$AQ$1-'katalog gmin'!$I$1+MATCH('tabela informacyjna dla JST'!$C$5,'katalog gmin'!$AQ$4:$AW$4,0)-1,FALSE)),"brak gminy/roku") -> n.d. | AD15: n.d. | AJ15: =VLOOKUP(AJ$4,'wskaźniki efektu'!$A$5:$F$16,'wskaźniki efektu'!$C$1,FALSE)*K15/100 -> 0 | AK15: =VLOOKUP(AK$4,'wskaźniki efektu'!$A$5:$F$16,'wskaźniki efektu'!$C$1,FALSE)*L15/100 -> 0 | AL15: =IF($J15="nie",(VLOOKUP(AL$4,'wskaźniki efektu'!$A$5:$F$16,'wskaźniki efektu'!$C$1,FALSE)*M15/100),0) -> 0 | AM15: =IF($J15="nie",(VLOOKUP(AM$4,'wskaźniki efektu'!$A$5:$F$16,'wskaźniki efektu'!$C$1,FALSE)*N15/100),0) -> 0 | AN15: =IF($J15="nie",(VLOOKUP(AN$4,'wskaźniki efektu'!$A$5:$F$16,'wskaźniki efektu'!$C$1,FALSE)*O15/100),0) -> 0 | AO15: =IF($J15="nie",(VLOOKUP(AO$4,'wskaźniki efektu'!$A$5:$F$16,'wskaźniki efektu'!$C$1,FALSE)*P15/100),0) -> 0 | AP15: =VLOOKUP(AP$4,'wskaźniki efektu'!$A$5:$F$16,'wskaźniki efektu'!$C$1,FALSE)*Q15/100 -> 0 | AQ15: =VLOOKUP(AQ$4,'wskaźniki efektu'!$A$5:$F$16,'wskaźniki efektu'!$C$1,FALSE)*R15/100 -> 0 | AR15: =IF($J15="tak",(VLOOKUP(AR$4,'wskaźniki efektu'!$A$5:$F$16,'wskaźniki efektu'!$C$1,FALSE)*T15/100),0) -> 0 | AS15: =IF($J15="tak",(VLOOKUP(AS$4,'wskaźniki efektu'!$A$5:$F$16,'wskaźniki efektu'!$C$1,FALSE)*U15/100),0) -> 0 | AT15: =IF($J15="tak",(VLOOKUP(AT$4,'wskaźniki efektu'!$A$5:$F$16,'wskaźniki efektu'!$C$1,FALSE)*V15/100),0) -> 0 | AU15: =IF($J15="tak",(VLOOKUP(AU$4,'wskaźniki efektu'!$A$5:$F$16,'wskaźniki efektu'!$C$1,FALSE)*W15/100),0) -> 0 | AV15: 0 | AW15: =VLOOKUP(AW$4,'wskaźniki efektu'!$A$5:$F$16,'wskaźniki efektu'!$D$1,FALSE)*K15/100 -> 0 | AX15: =VLOOKUP(AX$4,'wskaźniki efektu'!$A$5:$F$16,'wskaźniki efektu'!$D$1,FALSE)*L15/100 -> 0 | AY15: =IF($J15="nie",(VLOOKUP(AY$4,'wskaźniki efektu'!$A$5:$F$16,'wskaźniki efektu'!$D$1,FALSE)*M15/100),0) -> 0 | AZ15: =IF($J15="nie",(VLOOKUP(AZ$4,'wskaźniki efektu'!$A$5:$F$16,'wskaźniki efektu'!$D$1,FALSE)*N15/100),0) -> 0 | BA15: =IF($J15="nie",(VLOOKUP(BA$4,'wskaźniki efektu'!$A$5:$F$16,'wskaźniki efektu'!$D$1,FALSE)*O15/100),0) -> 0 | BB15: =IF($J15="nie",(VLOOKUP(BB$4,'wskaźniki efektu'!$A$5:$F$16,'wskaźniki efektu'!$D$1,FALSE)*P15/100),0) -> 0 | BC15: =VLOOKUP(BC$4,'wskaźniki efektu'!$A$5:$F$16,'wskaźniki efektu'!$D$1,FALSE)*Q15/100 -> 0 | BD15: =VLOOKUP(BD$4,'wskaźniki efektu'!$A$5:$F$16,'wskaźniki efektu'!$D$1,FALSE)*R15/100 -> 0 | BE15: =IF($J15="tak",(VLOOKUP(BE$4,'wskaźniki efektu'!$A$5:$F$16,'wskaźniki efektu'!$D$1,FALSE)*T15/100),0) -> 0 | BF15: =IF($J15="tak",(VLOOKUP(BF$4,'wskaźniki efektu'!$A$5:$F$16,'wskaźniki efektu'!$D$1,FALSE)*U15/100),0) -> 0 | BG15: =IF($J15="tak",(VLOOKUP(BG$4,'wskaźniki efektu'!$A$5:$F$16,'wskaźniki efektu'!$D$1,FALSE)*V15/100),0) -> 0 | BH15: =IF($J15="tak",(VLOOKUP(BH$4,'wskaźniki efektu'!$A$5:$F$16,'wskaźniki efektu'!$D$1,FALSE)*W15/100),0) -> 0 | BI15: 0 | BJ15: =VLOOKUP(BJ$4,'wskaźniki efektu'!$A$5:$F$16,'wskaźniki efektu'!$E$1,FALSE)*K15/100 -> 0 | BK15: =VLOOKUP(BK$4,'wskaźniki efektu'!$A$5:$F$16,'wskaźniki efektu'!$E$1,FALSE)*L15/100 -> 0 | BL15: =IF($J15="nie",(VLOOKUP(BL$4,'wskaźniki efektu'!$A$5:$F$16,'wskaźniki efektu'!$E$1,FALSE)*M15/100),0) -> 0 | BM15: =IF($J15="nie",(VLOOKUP(BM$4,'wskaźniki efektu'!$A$5:$F$16,'wskaźniki efektu'!$E$1,FALSE)*N15/100),0) -> 0 | BN15: =IF($J15="nie",(VLOOKUP(BN$4,'wskaźniki efektu'!$A$5:$F$16,'wskaźniki efektu'!$E$1,FALSE)*O15/100),0) -> 0 | BO15: =IF($J15="nie",(VLOOKUP(BO$4,'wskaźniki efektu'!$A$5:$F$16,'wskaźniki efektu'!$E$1,FALSE)*P15/100),0) -> 0 | BP15: =VLOOKUP(BP$4,'wskaźniki efektu'!$A$5:$F$16,'wskaźniki efektu'!$E$1,FALSE)*Q15/100 -> 0 | BQ15: =VLOOKUP(BQ$4,'wskaźniki efektu'!$A$5:$F$16,'wskaźniki efektu'!$E$1,FALSE)*R15/100 -> 0 | BR15: =IF($J15="tak",(VLOOKUP(BR$4,'wskaźniki efektu'!$A$5:$F$16,'wskaźniki efektu'!$E$1,FALSE)*T15/100),0) -> 0 | BS15: =IF($J15="tak",(VLOOKUP(BS$4,'wskaźniki efektu'!$A$5:$F$16,'wskaźniki efektu'!$E$1,FALSE)*U15/100),0) -> 0 | BT15: =IF($J15="tak",(VLOOKUP(BT$4,'wskaźniki efektu'!$A$5:$F$16,'wskaźniki efektu'!$E$1,FALSE)*V15/100),0) -> 0 | BU15: =IF($J15="tak",(VLOOKUP(BU$4,'wskaźniki efektu'!$A$5:$F$16,'wskaźniki efektu'!$E$1,FALSE)*W15/100),0) -> 0 | BV15: 0 | BW15: =VLOOKUP(BW$4,'wskaźniki efektu'!$A$5:$F$16,'wskaźniki efektu'!$F$1,FALSE)*K15/100 -> 0 | BX15: =VLOOKUP(BX$4,'wskaźniki efektu'!$A$5:$F$16,'wskaźniki efektu'!$F$1,FALSE)*L15/100 -> 0 | BY15: =IF($J15="nie",(VLOOKUP(BY$4,'wskaźniki efektu'!$A$5:$F$16,'wskaźniki efektu'!$F$1,FALSE)*M15/100),0) -> 0 | BZ15: =IF($J15="nie",(VLOOKUP(BZ$4,'wskaźniki efektu'!$A$5:$F$16,'wskaźniki efektu'!$F$1,FALSE)*N15/100),0) -> 0 | CA15: =IF($J15="nie",(VLOOKUP(CA$4,'wskaźniki efektu'!$A$5:$F$16,'wskaźniki efektu'!$F$1,FALSE)*O15/100),0) -> 0 | CB15: =IF($J15="nie",(VLOOKUP(CB$4,'wskaźniki efektu'!$A$5:$F$16,'wskaźniki efektu'!$F$1,FALSE)*P15/100),0) -> 0 | CC15: =VLOOKUP(CC$4,'wskaźniki efektu'!$A$5:$F$16,'wskaźniki efektu'!$F$1,FALSE)*Q15/100 -> 0 | CD15: =VLOOKUP(CD$4,'wskaźniki efektu'!$A$5:$F$16,'wskaźniki efektu'!$F$1,FALSE)*R15/100 -> 0 | CE15: =IF($J15="tak",(VLOOKUP(CE$4,'wskaźniki efektu'!$A$5:$F$16,'wskaźniki efektu'!$F$1,FALSE)*T15/100),0) -> 0 | CF15: =IF($J15="tak",(VLOOKUP(CF$4,'wskaźniki efektu'!$A$5:$F$16,'wskaźniki efektu'!$F$1,FALSE)*U15/100),0) -> 0 | CG15: =IF($J15="tak",(VLOOKUP(CG$4,'wskaźniki efektu'!$A$5:$F$16,'wskaźniki efektu'!$F$1,FALSE)*V15/100),0) -> 0 | CH15: =IF($J15="tak",(VLOOKUP(CH$4,'wskaźniki efektu'!$A$5:$F$16,'wskaźniki efektu'!$F$1,FALSE)*W15/100),0) -> 0 | CI15: 0 | CJ15: FALSE
A16: 8 | B16: =IF('tabela informacyjna dla JST'!$C$9="",'tabela informacyjna dla innych'!$C$9,'tabela informacyjna dla JST'!$C$9) -> starostwo powiatowe w Raciborzu | C16: =IFERROR(VLOOKUP($B16,'katalog gmin'!$J$5:$N$188,'katalog gmin'!$N$1-'katalog gmin'!$I$1,FALSE),"brak gminy") -> PL2405_ZSO | D16: =IFERROR(VLOOKUP($C16,'katalog zadań'!$B$3:$D$18,'katalog zadań'!$C$1-'katalog zadań'!$A$1,FALSE),"") -> Ograniczenie emisji z instalacji o małej mocy do 1 MW, w których następuje spalanie paliw stałych | H16: 0 | X16: 0.0 | Y16: 0.0 | Z16: 0.000 | AA16: 0.0 | AB16: 0.0 | AC16: =IFERROR(IF(VLOOKUP($B16,'katalog gmin'!$J$5:$AW$188,'katalog gmin'!$AQ$1-'katalog gmin'!$I$1+MATCH('tabela informacyjna dla JST'!$C$5,'katalog gmin'!$AQ$4:$AW$4,0)-1,FALSE)=0,"n.d.",VLOOKUP($B16,'katalog gmin'!$J$5:$AW$188,'katalog gmin'!$AQ$1-'katalog gmin'!$I$1+MATCH('tabela informacyjna dla JST'!$C$5,'katalog gmin'!$AQ$4:$AW$4,0)-1,FALSE)),"brak gminy/roku") -> n.d. | AD16: n.d. | AJ16: =VLOOKUP(AJ$4,'wskaźniki efektu'!$A$5:$F$16,'wskaźniki efektu'!$C$1,FALSE)*K16/100 -> 0 | AK16: =VLOOKUP(AK$4,'wskaźniki efektu'!$A$5:$F$16,'wskaźniki efektu'!$C$1,FALSE)*L16/100 -> 0 | AL16: =IF($J16="nie",(VLOOKUP(AL$4,'wskaźniki efektu'!$A$5:$F$16,'wskaźniki efektu'!$C$1,FALSE)*M16/100),0) -> 0 | AM16: =IF($J16="nie",(VLOOKUP(AM$4,'wskaźniki efektu'!$A$5:$F$16,'wskaźniki efektu'!$C$1,FALSE)*N16/100),0) -> 0 | AN16: =IF($J16="nie",(VLOOKUP(AN$4,'wskaźniki efektu'!$A$5:$F$16,'wskaźniki efektu'!$C$1,FALSE)*O16/100),0) -> 0 | AO16: =IF($J16="nie",(VLOOKUP(AO$4,'wskaźniki efektu'!$A$5:$F$16,'wskaźniki efektu'!$C$1,FALSE)*P16/100),0) -> 0 | AP16: =VLOOKUP(AP$4,'wskaźniki efektu'!$A$5:$F$16,'wskaźniki efektu'!$C$1,FALSE)*Q16/100 -> 0 | AQ16: =VLOOKUP(AQ$4,'wskaźniki efektu'!$A$5:$F$16,'wskaźniki efektu'!$C$1,FALSE)*R16/100 -> 0 | AR16: =IF($J16="tak",(VLOOKUP(AR$4,'wskaźniki efektu'!$A$5:$F$16,'wskaźniki efektu'!$C$1,FALSE)*T16/100),0) -> 0 | AS16: =IF($J16="tak",(VLOOKUP(AS$4,'wskaźniki efektu'!$A$5:$F$16,'wskaźniki efektu'!$C$1,FALSE)*U16/100),0) -> 0 | AT16: =IF($J16="tak",(VLOOKUP(AT$4,'wskaźniki efektu'!$A$5:$F$16,'wskaźniki efektu'!$C$1,FALSE)*V16/100),0) -> 0 | AU16: =IF($J16="tak",(VLOOKUP(AU$4,'wskaźniki efektu'!$A$5:$F$16,'wskaźniki efektu'!$C$1,FALSE)*W16/100),0) -> 0 | AV16: 0 | AW16: =VLOOKUP(AW$4,'wskaźniki efektu'!$A$5:$F$16,'wskaźniki efektu'!$D$1,FALSE)*K16/100 -> 0 | AX16: =VLOOKUP(AX$4,'wskaźniki efektu'!$A$5:$F$16,'wskaźniki efektu'!$D$1,FALSE)*L16/100 -> 0 | AY16: =IF($J16="nie",(VLOOKUP(AY$4,'wskaźniki efektu'!$A$5:$F$16,'wskaźniki efektu'!$D$1,FALSE)*M16/100),0) -> 0 | AZ16: =IF($J16="nie",(VLOOKUP(AZ$4,'wskaźniki efektu'!$A$5:$F$16,'wskaźniki efektu'!$D$1,FALSE)*N16/100),0) -> 0 | BA16: =IF($J16="nie",(VLOOKUP(BA$4,'wskaźniki efektu'!$A$5:$F$16,'wskaźniki efektu'!$D$1,FALSE)*O16/100),0) -> 0 | BB16: =IF($J16="nie",(VLOOKUP(BB$4,'wskaźniki efektu'!$A$5:$F$16,'wskaźniki efektu'!$D$1,FALSE)*P16/100),0) -> 0 | BC16: =VLOOKUP(BC$4,'wskaźniki efektu'!$A$5:$F$16,'wskaźniki efektu'!$D$1,FALSE)*Q16/100 -> 0 | BD16: =VLOOKUP(BD$4,'wskaźniki efektu'!$A$5:$F$16,'wskaźniki efektu'!$D$1,FALSE)*R16/100 -> 0 | BE16: =IF($J16="tak",(VLOOKUP(BE$4,'wskaźniki efektu'!$A$5:$F$16,'wskaźniki efektu'!$D$1,FALSE)*T16/100),0) -> 0 | BF16: =IF($J16="tak",(VLOOKUP(BF$4,'wskaźniki efektu'!$A$5:$F$16,'wskaźniki efektu'!$D$1,FALSE)*U16/100),0) -> 0 | BG16: =IF($J16="tak",(VLOOKUP(BG$4,'wskaźniki efektu'!$A$5:$F$16,'wskaźniki efektu'!$D$1,FALSE)*V16/100),0) -> 0 | BH16: =IF($J16="tak",(VLOOKUP(BH$4,'wskaźniki efektu'!$A$5:$F$16,'wskaźniki efektu'!$D$1,FALSE)*W16/100),0) -> 0 | BI16: 0 | BJ16: =VLOOKUP(BJ$4,'wskaźniki efektu'!$A$5:$F$16,'wskaźniki efektu'!$E$1,FALSE)*K16/100 -> 0 | BK16: =VLOOKUP(BK$4,'wskaźniki efektu'!$A$5:$F$16,'wskaźniki efektu'!$E$1,FALSE)*L16/100 -> 0 | BL16: =IF($J16="nie",(VLOOKUP(BL$4,'wskaźniki efektu'!$A$5:$F$16,'wskaźniki efektu'!$E$1,FALSE)*M16/100),0) -> 0 | BM16: =IF($J16="nie",(VLOOKUP(BM$4,'wskaźniki efektu'!$A$5:$F$16,'wskaźniki efektu'!$E$1,FALSE)*N16/100),0) -> 0 | BN16: =IF($J16="nie",(VLOOKUP(BN$4,'wskaźniki efektu'!$A$5:$F$16,'wskaźniki efektu'!$E$1,FALSE)*O16/100),0) -> 0 | BO16: =IF($J16="nie",(VLOOKUP(BO$4,'wskaźniki efektu'!$A$5:$F$16,'wskaźniki efektu'!$E$1,FALSE)*P16/100),0) -> 0 | BP16: =VLOOKUP(BP$4,'wskaźniki efektu'!$A$5:$F$16,'wskaźniki efektu'!$E$1,FALSE)*Q16/100 -> 0 | BQ16: =VLOOKUP(BQ$4,'wskaźniki efektu'!$A$5:$F$16,'wskaźniki efektu'!$E$1,FALSE)*R16/100 -> 0 | BR16: =IF($J16="tak",(VLOOKUP(BR$4,'wskaźniki efektu'!$A$5:$F$16,'wskaźniki efektu'!$E$1,FALSE)*T16/100),0) -> 0 | BS16: =IF($J16="tak",(VLOOKUP(BS$4,'wskaźniki efektu'!$A$5:$F$16,'wskaźniki efektu'!$E$1,FALSE)*U16/100),0) -> 0 | BT16: =IF($J16="tak",(VLOOKUP(BT$4,'wskaźniki efektu'!$A$5:$F$16,'wskaźniki efektu'!$E$1,FALSE)*V16/100),0) -> 0 | BU16: =IF($J16="tak",(VLOOKUP(BU$4,'wskaźniki efektu'!$A$5:$F$16,'wskaźniki efektu'!$E$1,FALSE)*W16/100),0) -> 0 | BV16: 0 | BW16: =VLOOKUP(BW$4,'wskaźniki efektu'!$A$5:$F$16,'wskaźniki efektu'!$F$1,FALSE)*K16/100 -> 0 | BX16: =VLOOKUP(BX$4,'wskaźniki efektu'!$A$5:$F$16,'wskaźniki efektu'!$F$1,FALSE)*L16/100 -> 0 | BY16: =IF($J16="nie",(VLOOKUP(BY$4,'wskaźniki efektu'!$A$5:$F$16,'wskaźniki efektu'!$F$1,FALSE)*M16/100),0) -> 0 | BZ16: =IF($J16="nie",(VLOOKUP(BZ$4,'wskaźniki efektu'!$A$5:$F$16,'wskaźniki efektu'!$F$1,FALSE)*N16/100),0) -> 0 | CA16: =IF($J16="nie",(VLOOKUP(CA$4,'wskaźniki efektu'!$A$5:$F$16,'wskaźniki efektu'!$F$1,FALSE)*O16/100),0) -> 0 | CB16: =IF($J16="nie",(VLOOKUP(CB$4,'wskaźniki efektu'!$A$5:$F$16,'wskaźniki efektu'!$F$1,FALSE)*P16/100),0) -> 0 | CC16: =VLOOKUP(CC$4,'wskaźniki efektu'!$A$5:$F$16,'wskaźniki efektu'!$F$1,FALSE)*Q16/100 -> 0 | CD16: =VLOOKUP(CD$4,'wskaźniki efektu'!$A$5:$F$16,'wskaźniki efektu'!$F$1,FALSE)*R16/100 -> 0 | CE16: =IF($J16="tak",(VLOOKUP(CE$4,'wskaźniki efektu'!$A$5:$F$16,'wskaźniki efektu'!$F$1,FALSE)*T16/100),0) -> 0 | CF16: =IF($J16="tak",(VLOOKUP(CF$4,'wskaźniki efektu'!$A$5:$F$16,'wskaźniki efektu'!$F$1,FALSE)*U16/100),0) -> 0 | CG16: =IF($J16="tak",(VLOOKUP(CG$4,'wskaźniki efektu'!$A$5:$F$16,'wskaźniki efektu'!$F$1,FALSE)*V16/100),0) -> 0 | CH16: =IF($J16="tak",(VLOOKUP(CH$4,'wskaźniki efektu'!$A$5:$F$16,'wskaźniki efektu'!$F$1,FALSE)*W16/100),0) -> 0 | CI16: 0 | CJ16: FALSE
A17: 9 | B17: =IF('tabela informacyjna dla JST'!$C$9="",'tabela informacyjna dla innych'!$C$9,'tabela informacyjna dla JST'!$C$9) -> starostwo powiatowe w Raciborzu | C17: =IFERROR(VLOOKUP($B17,'katalog gmin'!$J$5:$N$188,'katalog gmin'!$N$1-'katalog gmin'!$I$1,FALSE),"brak gminy") -> PL2405_ZSO | D17: =IFERROR(VLOOKUP($C17,'katalog zadań'!$B$3:$D$18,'katalog zadań'!$C$1-'katalog zadań'!$A$1,FALSE),"") -> Ograniczenie emisji z instalacji o małej mocy do 1 MW, w których następuje spalanie paliw stałych | H17: 0 | X17: 0.0 | Y17: 0.0 | Z17: 0.000 | AA17: 0.0 | AB17: 0.0 | AC17: =IFERROR(IF(VLOOKUP($B17,'katalog gmin'!$J$5:$AW$188,'katalog gmin'!$AQ$1-'katalog gmin'!$I$1+MATCH('tabela informacyjna dla JST'!$C$5,'katalog gmin'!$AQ$4:$AW$4,0)-1,FALSE)=0,"n.d.",VLOOKUP($B17,'katalog gmin'!$J$5:$AW$188,'katalog gmin'!$AQ$1-'katalog gmin'!$I$1+MATCH('tabela informacyjna dla JST'!$C$5,'katalog gmin'!$AQ$4:$AW$4,0)-1,FALSE)),"brak gminy/roku") -> n.d. | AD17: n.d. | AJ17: =VLOOKUP(AJ$4,'wskaźniki efektu'!$A$5:$F$16,'wskaźniki efektu'!$C$1,FALSE)*K17/100 -> 0 | AK17: =VLOOKUP(AK$4,'wskaźniki efektu'!$A$5:$F$16,'wskaźniki efektu'!$C$1,FALSE)*L17/100 -> 0 | AL17: =IF($J17="nie",(VLOOKUP(AL$4,'wskaźniki efektu'!$A$5:$F$16,'wskaźniki efektu'!$C$1,FALSE)*M17/100),0) -> 0 | AM17: =IF($J17="nie",(VLOOKUP(AM$4,'wskaźniki efektu'!$A$5:$F$16,'wskaźniki efektu'!$C$1,FALSE)*N17/100),0) -> 0 | AN17: =IF($J17="nie",(VLOOKUP(AN$4,'wskaźniki efektu'!$A$5:$F$16,'wskaźniki efektu'!$C$1,FALSE)*O17/100),0) -> 0 | AO17: =IF($J17="nie",(VLOOKUP(AO$4,'wskaźniki efektu'!$A$5:$F$16,'wskaźniki efektu'!$C$1,FALSE)*P17/100),0) -> 0 | AP17: =VLOOKUP(AP$4,'wskaźniki efektu'!$A$5:$F$16,'wskaźniki efektu'!$C$1,FALSE)*Q17/100 -> 0 | AQ17: =VLOOKUP(AQ$4,'wskaźniki efektu'!$A$5:$F$16,'wskaźniki efektu'!$C$1,FALSE)*R17/100 -> 0 | AR17: =IF($J17="tak",(VLOOKUP(AR$4,'wskaźniki efektu'!$A$5:$F$16,'wskaźniki efektu'!$C$1,FALSE)*T17/100),0) -> 0 | AS17: =IF($J17="tak",(VLOOKUP(AS$4,'wskaźniki efektu'!$A$5:$F$16,'wskaźniki efektu'!$C$1,FALSE)*U17/100),0) -> 0 | AT17: =IF($J17="tak",(VLOOKUP(AT$4,'wskaźniki efektu'!$A$5:$F$16,'wskaźniki efektu'!$C$1,FALSE)*V17/100),0) -> 0 | AU17: =IF($J17="tak",(VLOOKUP(AU$4,'wskaźniki efektu'!$A$5:$F$16,'wskaźniki efektu'!$C$1,FALSE)*W17/100),0) -> 0 | AV17: 0 | AW17: =VLOOKUP(AW$4,'wskaźniki efektu'!$A$5:$F$16,'wskaźniki efektu'!$D$1,FALSE)*K17/100 -> 0 | AX17: =VLOOKUP(AX$4,'wskaźniki efektu'!$A$5:$F$16,'wskaźniki efektu'!$D$1,FALSE)*L17/100 -> 0 | AY17: =IF($J17="nie",(VLOOKUP(AY$4,'wskaźniki efektu'!$A$5:$F$16,'wskaźniki efektu'!$D$1,FALSE)*M17/100),0) -> 0 | AZ17: =IF($J17="nie",(VLOOKUP(AZ$4,'wskaźniki efektu'!$A$5:$F$16,'wskaźniki efektu'!$D$1,FALSE)*N17/100),0) -> 0 | BA17: =IF($J17="nie",(VLOOKUP(BA$4,'wskaźniki efektu'!$A$5:$F$16,'wskaźniki efektu'!$D$1,FALSE)*O17/100),0) -> 0 | BB17: =IF($J17="nie",(VLOOKUP(BB$4,'wskaźniki efektu'!$A$5:$F$16,'wskaźniki efektu'!$D$1,FALSE)*P17/100),0) -> 0 | BC17: =VLOOKUP(BC$4,'wskaźniki efektu'!$A$5:$F$16,'wskaźniki efektu'!$D$1,FALSE)*Q17/100 -> 0 | BD17: =VLOOKUP(BD$4,'wskaźniki efektu'!$A$5:$F$16,'wskaźniki efektu'!$D$1,FALSE)*R17/100 -> 0 | BE17: =IF($J17="tak",(VLOOKUP(BE$4,'wskaźniki efektu'!$A$5:$F$16,'wskaźniki efektu'!$D$1,FALSE)*T17/100),0) -> 0 | BF17: =IF($J17="tak",(VLOOKUP(BF$4,'wskaźniki efektu'!$A$5:$F$16,'wskaźniki efektu'!$D$1,FALSE)*U17/100),0) -> 0 | BG17: =IF($J17="tak",(VLOOKUP(BG$4,'wskaźniki efektu'!$A$5:$F$16,'wskaźniki efektu'!$D$1,FALSE)*V17/100),0) -> 0 | BH17: =IF($J17="tak",(VLOOKUP(BH$4,'wskaźniki efektu'!$A$5:$F$16,'wskaźniki efektu'!$D$1,FALSE)*W17/100),0) -> 0 | BI17: 0 | BJ17: =VLOOKUP(BJ$4,'wskaźniki efektu'!$A$5:$F$16,'wskaźniki efektu'!$E$1,FALSE)*K17/100 -> 0 | BK17: =VLOOKUP(BK$4,'wskaźniki efektu'!$A$5:$F$16,'wskaźniki efektu'!$E$1,FALSE)*L17/100 -> 0 | BL17: =IF($J17="nie",(VLOOKUP(BL$4,'wskaźniki efektu'!$A$5:$F$16,'wskaźniki efektu'!$E$1,FALSE)*M17/100),0) -> 0 | BM17: =IF($J17="nie",(VLOOKUP(BM$4,'wskaźniki efektu'!$A$5:$F$16,'wskaźniki efektu'!$E$1,FALSE)*N17/100),0) -> 0 | BN17: =IF($J17="nie",(VLOOKUP(BN$4,'wskaźniki efektu'!$A$5:$F$16,'wskaźniki efektu'!$E$1,FALSE)*O17/100),0) -> 0 | BO17: =IF($J17="nie",(VLOOKUP(BO$4,'wskaźniki efektu'!$A$5:$F$16,'wskaźniki efektu'!$E$1,FALSE)*P17/100),0) -> 0 | BP17: =VLOOKUP(BP$4,'wskaźniki efektu'!$A$5:$F$16,'wskaźniki efektu'!$E$1,FALSE)*Q17/100 -> 0 | BQ17: =VLOOKUP(BQ$4,'wskaźniki efektu'!$A$5:$F$16,'wskaźniki efektu'!$E$1,FALSE)*R17/100 -> 0 | BR17: =IF($J17="tak",(VLOOKUP(BR$4,'wskaźniki efektu'!$A$5:$F$16,'wskaźniki efektu'!$E$1,FALSE)*T17/100),0) -> 0 | BS17: =IF($J17="tak",(VLOOKUP(BS$4,'wskaźniki efektu'!$A$5:$F$16,'wskaźniki efektu'!$E$1,FALSE)*U17/100),0) -> 0 | BT17: =IF($J17="tak",(VLOOKUP(BT$4,'wskaźniki efektu'!$A$5:$F$16,'wskaźniki efektu'!$E$1,FALSE)*V17/100),0) -> 0 | BU17: =IF($J17="tak",(VLOOKUP(BU$4,'wskaźniki efektu'!$A$5:$F$16,'wskaźniki efektu'!$E$1,FALSE)*W17/100),0) -> 0 | BV17: 0 | BW17: =VLOOKUP(BW$4,'wskaźniki efektu'!$A$5:$F$16,'wskaźniki efektu'!$F$1,FALSE)*K17/100 -> 0 | BX17: =VLOOKUP(BX$4,'wskaźniki efektu'!$A$5:$F$16,'wskaźniki efektu'!$F$1,FALSE)*L17/100 -> 0 | BY17: =IF($J17="nie",(VLOOKUP(BY$4,'wskaźniki efektu'!$A$5:$F$16,'wskaźniki efektu'!$F$1,FALSE)*M17/100),0) -> 0 | BZ17: =IF($J17="nie",(VLOOKUP(BZ$4,'wskaźniki efektu'!$A$5:$F$16,'wskaźniki efektu'!$F$1,FALSE)*N17/100),0) -> 0 | CA17: =IF($J17="nie",(VLOOKUP(CA$4,'wskaźniki efektu'!$A$5:$F$16,'wskaźniki efektu'!$F$1,FALSE)*O17/100),0) -> 0 | CB17: =IF($J17="nie",(VLOOKUP(CB$4,'wskaźniki efektu'!$A$5:$F$16,'wskaźniki efektu'!$F$1,FALSE)*P17/100),0) -> 0 | CC17: =VLOOKUP(CC$4,'wskaźniki efektu'!$A$5:$F$16,'wskaźniki efektu'!$F$1,FALSE)*Q17/100 -> 0 | CD17: =VLOOKUP(CD$4,'wskaźniki efektu'!$A$5:$F$16,'wskaźniki efektu'!$F$1,FALSE)*R17/100 -> 0 | CE17: =IF($J17="tak",(VLOOKUP(CE$4,'wskaźniki efektu'!$A$5:$F$16,'wskaźniki efektu'!$F$1,FALSE)*T17/100),0) -> 0 | CF17: =IF($J17="tak",(VLOOKUP(CF$4,'wskaźniki efektu'!$A$5:$F$16,'wskaźniki efektu'!$F$1,FALSE)*U17/100),0) -> 0 | CG17: =IF($J17="tak",(VLOOKUP(CG$4,'wskaźniki efektu'!$A$5:$F$16,'wskaźniki efektu'!$F$1,FALSE)*V17/100),0) -> 0 | CH17: =IF($J17="tak",(VLOOKUP(CH$4,'wskaźniki efektu'!$A$5:$F$16,'wskaźniki efektu'!$F$1,FALSE)*W17/100),0) -> 0 | CI17: 0 | CJ17: FALSE
A18: 10 | B18: =IF('tabela informacyjna dla JST'!$C$9="",'tabela informacyjna dla innych'!$C$9,'tabela informacyjna dla JST'!$C$9) -> starostwo powiatowe w Raciborzu | C18: =IFERROR(VLOOKUP($B18,'katalog gmin'!$J$5:$N$188,'katalog gmin'!$N$1-'katalog gmin'!$I$1,FALSE),"brak gminy") -> PL2405_ZSO | D18: =IFERROR(VLOOKUP($C18,'katalog zadań'!$B$3:$D$18,'katalog zadań'!$C$1-'katalog zadań'!$A$1,FALSE),"") -> Ograniczenie emisji z instalacji o małej mocy do 1 MW, w których następuje spalanie paliw stałych | H18: 0 | X18: 0.0 | Y18: 0.0 | Z18: 0.000 | AA18: 0.0 | AB18: 0.0 | AC18: =IFERROR(IF(VLOOKUP($B18,'katalog gmin'!$J$5:$AW$188,'katalog gmin'!$AQ$1-'katalog gmin'!$I$1+MATCH('tabela informacyjna dla JST'!$C$5,'katalog gmin'!$AQ$4:$AW$4,0)-1,FALSE)=0,"n.d.",VLOOKUP($B18,'katalog gmin'!$J$5:$AW$188,'katalog gmin'!$AQ$1-'katalog gmin'!$I$1+MATCH('tabela informacyjna dla JST'!$C$5,'katalog gmin'!$AQ$4:$AW$4,0)-1,FALSE)),"brak gminy/roku") -> n.d. | AD18: n.d. | AJ18: =VLOOKUP(AJ$4,'wskaźniki efektu'!$A$5:$F$16,'wskaźniki efektu'!$C$1,FALSE)*K18/100 -> 0 | AK18: =VLOOKUP(AK$4,'wskaźniki efektu'!$A$5:$F$16,'wskaźniki efektu'!$C$1,FALSE)*L18/100 -> 0 | AL18: =IF($J18="nie",(VLOOKUP(AL$4,'wskaźniki efektu'!$A$5:$F$16,'wskaźniki efektu'!$C$1,FALSE)*M18/100),0) -> 0 | AM18: =IF($J18="nie",(VLOOKUP(AM$4,'wskaźniki efektu'!$A$5:$F$16,'wskaźniki efektu'!$C$1,FALSE)*N18/100),0) -> 0 | AN18: =IF($J18="nie",(VLOOKUP(AN$4,'wskaźniki efektu'!$A$5:$F$16,'wskaźniki efektu'!$C$1,FALSE)*O18/100),0) -> 0 | AO18: =IF($J18="nie",(VLOOKUP(AO$4,'wskaźniki efektu'!$A$5:$F$16,'wskaźniki efektu'!$C$1,FALSE)*P18/100),0) -> 0 | AP18: =VLOOKUP(AP$4,'wskaźniki efektu'!$A$5:$F$16,'wskaźniki efektu'!$C$1,FALSE)*Q18/100 -> 0 | AQ18: =VLOOKUP(AQ$4,'wskaźniki efektu'!$A$5:$F$16,'wskaźniki efektu'!$C$1,FALSE)*R18/100 -> 0 | AR18: =IF($J18="tak",(VLOOKUP(AR$4,'wskaźniki efektu'!$A$5:$F$16,'wskaźniki efektu'!$C$1,FALSE)*T18/100),0) -> 0 | AS18: =IF($J18="tak",(VLOOKUP(AS$4,'wskaźniki efektu'!$A$5:$F$16,'wskaźniki efektu'!$C$1,FALSE)*U18/100),0) -> 0 | AT18: =IF($J18="tak",(VLOOKUP(AT$4,'wskaźniki efektu'!$A$5:$F$16,'wskaźniki efektu'!$C$1,FALSE)*V18/100),0) -> 0 | AU18: =IF($J18="tak",(VLOOKUP(AU$4,'wskaźniki efektu'!$A$5:$F$16,'wskaźniki efektu'!$C$1,FALSE)*W18/100),0) -> 0 | AV18: 0 | AW18: =VLOOKUP(AW$4,'wskaźniki efektu'!$A$5:$F$16,'wskaźniki efektu'!$D$1,FALSE)*K18/100 -> 0 | AX18: =VLOOKUP(AX$4,'wskaźniki efektu'!$A$5:$F$16,'wskaźniki efektu'!$D$1,FALSE)*L18/100 -> 0 | AY18: =IF($J18="nie",(VLOOKUP(AY$4,'wskaźniki efektu'!$A$5:$F$16,'wskaźniki efektu'!$D$1,FALSE)*M18/100),0) -> 0 | AZ18: =IF($J18="nie",(VLOOKUP(AZ$4,'wskaźniki efektu'!$A$5:$F$16,'wskaźniki efektu'!$D$1,FALSE)*N18/100),0) -> 0 | BA18: =IF($J18="nie",(VLOOKUP(BA$4,'wskaźniki efektu'!$A$5:$F$16,'wskaźniki efektu'!$D$1,FALSE)*O18/100),0) -> 0 | BB18: =IF($J18="nie",(VLOOKUP(BB$4,'wskaźniki efektu'!$A$5:$F$16,'wskaźniki efektu'!$D$1,FALSE)*P18/100),0) -> 0 | BC18: =VLOOKUP(BC$4,'wskaźniki efektu'!$A$5:$F$16,'wskaźniki efektu'!$D$1,FALSE)*Q18/100 -> 0 | BD18: =VLOOKUP(BD$4,'wskaźniki efektu'!$A$5:$F$16,'wskaźniki efektu'!$D$1,FALSE)*R18/100 -> 0 | BE18: =IF($J18="tak",(VLOOKUP(BE$4,'wskaźniki efektu'!$A$5:$F$16,'wskaźniki efektu'!$D$1,FALSE)*T18/100),0) -> 0 | BF18: =IF($J18="tak",(VLOOKUP(BF$4,'wskaźniki efektu'!$A$5:$F$16,'wskaźniki efektu'!$D$1,FALSE)*U18/100),0) -> 0 | BG18: =IF($J18="tak",(VLOOKUP(BG$4,'wskaźniki efektu'!$A$5:$F$16,'wskaźniki efektu'!$D$1,FALSE)*V18/100),0) -> 0 | BH18: =IF($J18="tak",(VLOOKUP(BH$4,'wskaźniki efektu'!$A$5:$F$16,'wskaźniki efektu'!$D$1,FALSE)*W18/100),0) -> 0 | BI18: 0 | BJ18: =VLOOKUP(BJ$4,'wskaźniki efektu'!$A$5:$F$16,'wskaźniki efektu'!$E$1,FALSE)*K18/100 -> 0 | BK18: =VLOOKUP(BK$4,'wskaźniki efektu'!$A$5:$F$16,'wskaźniki efektu'!$E$1,FALSE)*L18/100 -> 0 | BL18: =IF($J18="nie",(VLOOKUP(BL$4,'wskaźniki efektu'!$A$5:$F$16,'wskaźniki efektu'!$E$1,FALSE)*M18/100),0) -> 0 | BM18: =IF($J18="nie",(VLOOKUP(BM$4,'wskaźniki efektu'!$A$5:$F$16,'wskaźniki efektu'!$E$1,FALSE)*N18/100),0) -> 0 | BN18: =IF($J18="nie",(VLOOKUP(BN$4,'wskaźniki efektu'!$A$5:$F$16,'wskaźniki efektu'!$E$1,FALSE)*O18/100),0) -> 0 | BO18: =IF($J18="nie",(VLOOKUP(BO$4,'wskaźniki efektu'!$A$5:$F$16,'wskaźniki efektu'!$E$1,FALSE)*P18/100),0) -> 0 | BP18: =VLOOKUP(BP$4,'wskaźniki efektu'!$A$5:$F$16,'wskaźniki efektu'!$E$1,FALSE)*Q18/100 -> 0 | BQ18: =VLOOKUP(BQ$4,'wskaźniki efektu'!$A$5:$F$16,'wskaźniki efektu'!$E$1,FALSE)*R18/100 -> 0 | BR18: =IF($J18="tak",(VLOOKUP(BR$4,'wskaźniki efektu'!$A$5:$F$16,'wskaźniki efektu'!$E$1,FALSE)*T18/100),0) -> 0 | BS18: =IF($J18="tak",(VLOOKUP(BS$4,'wskaźniki efektu'!$A$5:$F$16,'wskaźniki efektu'!$E$1,FALSE)*U18/100),0) -> 0 | BT18: =IF($J18="tak",(VLOOKUP(BT$4,'wskaźniki efektu'!$A$5:$F$16,'wskaźniki efektu'!$E$1,FALSE)*V18/100),0) -> 0 | BU18: =IF($J18="tak",(VLOOKUP(BU$4,'wskaźniki efektu'!$A$5:$F$16,'wskaźniki efektu'!$E$1,FALSE)*W18/100),0) -> 0 | BV18: 0 | BW18: =VLOOKUP(BW$4,'wskaźniki efektu'!$A$5:$F$16,'wskaźniki efektu'!$F$1,FALSE)*K18/100 -> 0 | BX18: =VLOOKUP(BX$4,'wskaźniki efektu'!$A$5:$F$16,'wskaźniki efektu'!$F$1,FALSE)*L18/100 -> 0 | BY18: =IF($J18="nie",(VLOOKUP(BY$4,'wskaźniki efektu'!$A$5:$F$16,'wskaźniki efektu'!$F$1,FALSE)*M18/100),0) -> 0 | BZ18: =IF($J18="nie",(VLOOKUP(BZ$4,'wskaźniki efektu'!$A$5:$F$16,'wskaźniki efektu'!$F$1,FALSE)*N18/100),0) -> 0 | CA18: =IF($J18="nie",(VLOOKUP(CA$4,'wskaźniki efektu'!$A$5:$F$16,'wskaźniki efektu'!$F$1,FALSE)*O18/100),0) -> 0 | CB18: =IF($J18="nie",(VLOOKUP(CB$4,'wskaźniki efektu'!$A$5:$F$16,'wskaźniki efektu'!$F$1,FALSE)*P18/100),0) -> 0 | CC18: =VLOOKUP(CC$4,'wskaźniki efektu'!$A$5:$F$16,'wskaźniki efektu'!$F$1,FALSE)*Q18/100 -> 0 | CD18: =VLOOKUP(CD$4,'wskaźniki efektu'!$A$5:$F$16,'wskaźniki efektu'!$F$1,FALSE)*R18/100 -> 0 | CE18: =IF($J18="tak",(VLOOKUP(CE$4,'wskaźniki efektu'!$A$5:$F$16,'wskaźniki efektu'!$F$1,FALSE)*T18/100),0) -> 0 | CF18: =IF($J18="tak",(VLOOKUP(CF$4,'wskaźniki efektu'!$A$5:$F$16,'wskaźniki efektu'!$F$1,FALSE)*U18/100),0) -> 0 | CG18: =IF($J18="tak",(VLOOKUP(CG$4,'wskaźniki efektu'!$A$5:$F$16,'wskaźniki efektu'!$F$1,FALSE)*V18/100),0) -> 0 | CH18: =IF($J18="tak",(VLOOKUP(CH$4,'wskaźniki efektu'!$A$5:$F$16,'wskaźniki efektu'!$F$1,FALSE)*W18/100),0) -> 0 | CI18: 0 | CJ18: FALSE
A19: 11 | B19: =IF('tabela informacyjna dla JST'!$C$9="",'tabela informacyjna dla innych'!$C$9,'tabela informacyjna dla JST'!$C$9) -> starostwo powiatowe w Raciborzu | C19: =IFERROR(VLOOKUP($B19,'katalog gmin'!$J$5:$N$188,'katalog gmin'!$N$1-'katalog gmin'!$I$1,FALSE),"brak gminy") -> PL2405_ZSO | D19: =IFERROR(VLOOKUP($C19,'katalog zadań'!$B$3:$D$18,'katalog zadań'!$C$1-'katalog zadań'!$A$1,FALSE),"") -> Ograniczenie emisji z instalacji o małej mocy do 1 MW, w których następuje spalanie paliw stałych | H19: 0 | X19: 0.0 | Y19: 0.0 | Z19: 0.000 | AA19: 0.0 | AB19: 0.0 | AC19: =IFERROR(IF(VLOOKUP($B19,'katalog gmin'!$J$5:$AW$188,'katalog gmin'!$AQ$1-'katalog gmin'!$I$1+MATCH('tabela informacyjna dla JST'!$C$5,'katalog gmin'!$AQ$4:$AW$4,0)-1,FALSE)=0,"n.d.",VLOOKUP($B19,'katalog gmin'!$J$5:$AW$188,'katalog gmin'!$AQ$1-'katalog gmin'!$I$1+MATCH('tabela informacyjna dla JST'!$C$5,'katalog gmin'!$AQ$4:$AW$4,0)-1,FALSE)),"brak gminy/roku") -> n.d. | AD19: n.d. | AJ19: =VLOOKUP(AJ$4,'wskaźniki efektu'!$A$5:$F$16,'wskaźniki efektu'!$C$1,FALSE)*K19/100 -> 0 | AK19: =VLOOKUP(AK$4,'wskaźniki efektu'!$A$5:$F$16,'wskaźniki efektu'!$C$1,FALSE)*L19/100 -> 0 | AL19: =IF($J19="nie",(VLOOKUP(AL$4,'wskaźniki efektu'!$A$5:$F$16,'wskaźniki efektu'!$C$1,FALSE)*M19/100),0) -> 0 | AM19: =IF($J19="nie",(VLOOKUP(AM$4,'wskaźniki efektu'!$A$5:$F$16,'wskaźniki efektu'!$C$1,FALSE)*N19/100),0) -> 0 | AN19: =IF($J19="nie",(VLOOKUP(AN$4,'wskaźniki efektu'!$A$5:$F$16,'wskaźniki efektu'!$C$1,FALSE)*O19/100),0) -> 0 | AO19: =IF($J19="nie",(VLOOKUP(AO$4,'wskaźniki efektu'!$A$5:$F$16,'wskaźniki efektu'!$C$1,FALSE)*P19/100),0) -> 0 | AP19: =VLOOKUP(AP$4,'wskaźniki efektu'!$A$5:$F$16,'wskaźniki efektu'!$C$1,FALSE)*Q19/100 -> 0 | AQ19: =VLOOKUP(AQ$4,'wskaźniki efektu'!$A$5:$F$16,'wskaźniki efektu'!$C$1,FALSE)*R19/100 -> 0 | AR19: =IF($J19="tak",(VLOOKUP(AR$4,'wskaźniki efektu'!$A$5:$F$16,'wskaźniki efektu'!$C$1,FALSE)*T19/100),0) -> 0 | AS19: =IF($J19="tak",(VLOOKUP(AS$4,'wskaźniki efektu'!$A$5:$F$16,'wskaźniki efektu'!$C$1,FALSE)*U19/100),0) -> 0 | AT19: =IF($J19="tak",(VLOOKUP(AT$4,'wskaźniki efektu'!$A$5:$F$16,'wskaźniki efektu'!$C$1,FALSE)*V19/100),0) -> 0 | AU19: =IF($J19="tak",(VLOOKUP(AU$4,'wskaźniki efektu'!$A$5:$F$16,'wskaźniki efektu'!$C$1,FALSE)*W19/100),0) -> 0 | AV19: 0 | AW19: =VLOOKUP(AW$4,'wskaźniki efektu'!$A$5:$F$16,'wskaźniki efektu'!$D$1,FALSE)*K19/100 -> 0 | AX19: =VLOOKUP(AX$4,'wskaźniki efektu'!$A$5:$F$16,'wskaźniki efektu'!$D$1,FALSE)*L19/100 -> 0 | AY19: =IF($J19="nie",(VLOOKUP(AY$4,'wskaźniki efektu'!$A$5:$F$16,'wskaźniki efektu'!$D$1,FALSE)*M19/100),0) -> 0 | AZ19: =IF($J19="nie",(VLOOKUP(AZ$4,'wskaźniki efektu'!$A$5:$F$16,'wskaźniki efektu'!$D$1,FALSE)*N19/100),0) -> 0 | BA19: =IF($J19="nie",(VLOOKUP(BA$4,'wskaźniki efektu'!$A$5:$F$16,'wskaźniki efektu'!$D$1,FALSE)*O19/100),0) -> 0 | BB19: =IF($J19="nie",(VLOOKUP(BB$4,'wskaźniki efektu'!$A$5:$F$16,'wskaźniki efektu'!$D$1,FALSE)*P19/100),0) -> 0 | BC19: =VLOOKUP(BC$4,'wskaźniki efektu'!$A$5:$F$16,'wskaźniki efektu'!$D$1,FALSE)*Q19/100 -> 0 | BD19: =VLOOKUP(BD$4,'wskaźniki efektu'!$A$5:$F$16,'wskaźniki efektu'!$D$1,FALSE)*R19/100 -> 0 | BE19: =IF($J19="tak",(VLOOKUP(BE$4,'wskaźniki efektu'!$A$5:$F$16,'wskaźniki efektu'!$D$1,FALSE)*T19/100),0) -> 0 | BF19: =IF($J19="tak",(VLOOKUP(BF$4,'wskaźniki efektu'!$A$5:$F$16,'wskaźniki efektu'!$D$1,FALSE)*U19/100),0) -> 0 | BG19: =IF($J19="tak",(VLOOKUP(BG$4,'wskaźniki efektu'!$A$5:$F$16,'wskaźniki efektu'!$D$1,FALSE)*V19/100),0) -> 0 | BH19: =IF($J19="tak",(VLOOKUP(BH$4,'wskaźniki efektu'!$A$5:$F$16,'wskaźniki efektu'!$D$1,FALSE)*W19/100),0) -> 0 | BI19: 0 | BJ19: =VLOOKUP(BJ$4,'wskaźniki efektu'!$A$5:$F$16,'wskaźniki efektu'!$E$1,FALSE)*K19/100 -> 0 | BK19: =VLOOKUP(BK$4,'wskaźniki efektu'!$A$5:$F$16,'wskaźniki efektu'!$E$1,FALSE)*L19/100 -> 0 | BL19: =IF($J19="nie",(VLOOKUP(BL$4,'wskaźniki efektu'!$A$5:$F$16,'wskaźniki efektu'!$E$1,FALSE)*M19/100),0) -> 0 | BM19: =IF($J19="nie",(VLOOKUP(BM$4,'wskaźniki efektu'!$A$5:$F$16,'wskaźniki efektu'!$E$1,FALSE)*N19/100),0) -> 0 | BN19: =IF($J19="nie",(VLOOKUP(BN$4,'wskaźniki efektu'!$A$5:$F$16,'wskaźniki efektu'!$E$1,FALSE)*O19/100),0) -> 0 | BO19: =IF($J19="nie",(VLOOKUP(BO$4,'wskaźniki efektu'!$A$5:$F$16,'wskaźniki efektu'!$E$1,FALSE)*P19/100),0) -> 0 | BP19: =VLOOKUP(BP$4,'wskaźniki efektu'!$A$5:$F$16,'wskaźniki efektu'!$E$1,FALSE)*Q19/100 -> 0 | BQ19: =VLOOKUP(BQ$4,'wskaźniki efektu'!$A$5:$F$16,'wskaźniki efektu'!$E$1,FALSE)*R19/100 -> 0 | BR19: =IF($J19="tak",(VLOOKUP(BR$4,'wskaźniki efektu'!$A$5:$F$16,'wskaźniki efektu'!$E$1,FALSE)*T19/100),0) -> 0 | BS19: =IF($J19="tak",(VLOOKUP(BS$4,'wskaźniki efektu'!$A$5:$F$16,'wskaźniki efektu'!$E$1,FALSE)*U19/100),0) -> 0 | BT19: =IF($J19="tak",(VLOOKUP(BT$4,'wskaźniki efektu'!$A$5:$F$16,'wskaźniki efektu'!$E$1,FALSE)*V19/100),0) -> 0 | BU19: =IF($J19="tak",(VLOOKUP(BU$4,'wskaźniki efektu'!$A$5:$F$16,'wskaźniki efektu'!$E$1,FALSE)*W19/100),0) -> 0 | BV19: 0 | BW19: =VLOOKUP(BW$4,'wskaźniki efektu'!$A$5:$F$16,'wskaźniki efektu'!$F$1,FALSE)*K19/100 -> 0 | BX19: =VLOOKUP(BX$4,'wskaźniki efektu'!$A$5:$F$16,'wskaźniki efektu'!$F$1,FALSE)*L19/100 -> 0 | BY19: =IF($J19="nie",(VLOOKUP(BY$4,'wskaźniki efektu'!$A$5:$F$16,'wskaźniki efektu'!$F$1,FALSE)*M19/100),0) -> 0 | BZ19: =IF($J19="nie",(VLOOKUP(BZ$4,'wskaźniki efektu'!$A$5:$F$16,'wskaźniki efektu'!$F$1,FALSE)*N19/100),0) -> 0 | CA19: =IF($J19="nie",(VLOOKUP(CA$4,'wskaźniki efektu'!$A$5:$F$16,'wskaźniki efektu'!$F$1,FALSE)*O19/100),0) -> 0 | CB19: =IF($J19="nie",(VLOOKUP(CB$4,'wskaźniki efektu'!$A$5:$F$16,'wskaźniki efektu'!$F$1,FALSE)*P19/100),0) -> 0 | CC19: =VLOOKUP(CC$4,'wskaźniki efektu'!$A$5:$F$16,'wskaźniki efektu'!$F$1,FALSE)*Q19/100 -> 0 | CD19: =VLOOKUP(CD$4,'wskaźniki efektu'!$A$5:$F$16,'wskaźniki efektu'!$F$1,FALSE)*R19/100 -> 0 | CE19: =IF($J19="tak",(VLOOKUP(CE$4,'wskaźniki efektu'!$A$5:$F$16,'wskaźniki efektu'!$F$1,FALSE)*T19/100),0) -> 0 | CF19: =IF($J19="tak",(VLOOKUP(CF$4,'wskaźniki efektu'!$A$5:$F$16,'wskaźniki efektu'!$F$1,FALSE)*U19/100),0) -> 0 | CG19: =IF($J19="tak",(VLOOKUP(CG$4,'wskaźniki efektu'!$A$5:$F$16,'wskaźniki efektu'!$F$1,FALSE)*V19/100),0) -> 0 | CH19: =IF($J19="tak",(VLOOKUP(CH$4,'wskaźniki efektu'!$A$5:$F$16,'wskaźniki efektu'!$F$1,FALSE)*W19/100),0) -> 0 | CI19: 0 | CJ19: FALSE
A20: 12 | B20: =IF('tabela informacyjna dla JST'!$C$9="",'tabela informacyjna dla innych'!$C$9,'tabela informacyjna dla JST'!$C$9) -> starostwo powiatowe w Raciborzu | C20: =IFERROR(VLOOKUP($B20,'katalog gmin'!$J$5:$N$188,'katalog gmin'!$N$1-'katalog gmin'!$I$1,FALSE),"brak gminy") -> PL2405_ZSO | D20: =IFERROR(VLOOKUP($C20,'katalog zadań'!$B$3:$D$18,'katalog zadań'!$C$1-'katalog zadań'!$A$1,FALSE),"") -> Ograniczenie emisji z instalacji o małej mocy do 1 MW, w których następuje spalanie paliw stałych | H20: 0 | X20: 0.0 | Y20: 0.0 | Z20: 0.000 | AA20: 0.0 | AB20: 0.0 | AC20: =IFERROR(IF(VLOOKUP($B20,'katalog gmin'!$J$5:$AW$188,'katalog gmin'!$AQ$1-'katalog gmin'!$I$1+MATCH('tabela informacyjna dla JST'!$C$5,'katalog gmin'!$AQ$4:$AW$4,0)-1,FALSE)=0,"n.d.",VLOOKUP($B20,'katalog gmin'!$J$5:$AW$188,'katalog gmin'!$AQ$1-'katalog gmin'!$I$1+MATCH('tabela informacyjna dla JST'!$C$5,'katalog gmin'!$AQ$4:$AW$4,0)-1,FALSE)),"brak gminy/roku") -> n.d. | AD20: n.d. | AJ20: =VLOOKUP(AJ$4,'wskaźniki efektu'!$A$5:$F$16,'wskaźniki efektu'!$C$1,FALSE)*K20/100 -> 0 | AK20: =VLOOKUP(AK$4,'wskaźniki efektu'!$A$5:$F$16,'wskaźniki efektu'!$C$1,FALSE)*L20/100 -> 0 | AL20: =IF($J20="nie",(VLOOKUP(AL$4,'wskaźniki efektu'!$A$5:$F$16,'wskaźniki efektu'!$C$1,FALSE)*M20/100),0) -> 0 | AM20: =IF($J20="nie",(VLOOKUP(AM$4,'wskaźniki efektu'!$A$5:$F$16,'wskaźniki efektu'!$C$1,FALSE)*N20/100),0) -> 0 | AN20: =IF($J20="nie",(VLOOKUP(AN$4,'wskaźniki efektu'!$A$5:$F$16,'wskaźniki efektu'!$C$1,FALSE)*O20/100),0) -> 0 | AO20: =IF($J20="nie",(VLOOKUP(AO$4,'wskaźniki efektu'!$A$5:$F$16,'wskaźniki efektu'!$C$1,FALSE)*P20/100),0) -> 0 | AP20: =VLOOKUP(AP$4,'wskaźniki efektu'!$A$5:$F$16,'wskaźniki efektu'!$C$1,FALSE)*Q20/100 -> 0 | AQ20: =VLOOKUP(AQ$4,'wskaźniki efektu'!$A$5:$F$16,'wskaźniki efektu'!$C$1,FALSE)*R20/100 -> 0 | AR20: =IF($J20="tak",(VLOOKUP(AR$4,'wskaźniki efektu'!$A$5:$F$16,'wskaźniki efektu'!$C$1,FALSE)*T20/100),0) -> 0 | AS20: =IF($J20="tak",(VLOOKUP(AS$4,'wskaźniki efektu'!$A$5:$F$16,'wskaźniki efektu'!$C$1,FALSE)*U20/100),0) -> 0 | AT20: =IF($J20="tak",(VLOOKUP(AT$4,'wskaźniki efektu'!$A$5:$F$16,'wskaźniki efektu'!$C$1,FALSE)*V20/100),0) -> 0 | AU20: =IF($J20="tak",(VLOOKUP(AU$4,'wskaźniki efektu'!$A$5:$F$16,'wskaźniki efektu'!$C$1,FALSE)*W20/100),0) -> 0 | AV20: 0 | AW20: =VLOOKUP(AW$4,'wskaźniki efektu'!$A$5:$F$16,'wskaźniki efektu'!$D$1,FALSE)*K20/100 -> 0 | AX20: =VLOOKUP(AX$4,'wskaźniki efektu'!$A$5:$F$16,'wskaźniki efektu'!$D$1,FALSE)*L20/100 -> 0 | AY20: =IF($J20="nie",(VLOOKUP(AY$4,'wskaźniki efektu'!$A$5:$F$16,'wskaźniki efektu'!$D$1,FALSE)*M20/100),0) -> 0 | AZ20: =IF($J20="nie",(VLOOKUP(AZ$4,'wskaźniki efektu'!$A$5:$F$16,'wskaźniki efektu'!$D$1,FALSE)*N20/100),0) -> 0 | BA20: =IF($J20="nie",(VLOOKUP(BA$4,'wskaźniki efektu'!$A$5:$F$16,'wskaźniki efektu'!$D$1,FALSE)*O20/100),0) -> 0 | BB20: =IF($J20="nie",(VLOOKUP(BB$4,'wskaźniki efektu'!$A$5:$F$16,'wskaźniki efektu'!$D$1,FALSE)*P20/100),0) -> 0 | BC20: =VLOOKUP(BC$4,'wskaźniki efektu'!$A$5:$F$16,'wskaźniki efektu'!$D$1,FALSE)*Q20/100 -> 0 | BD20: =VLOOKUP(BD$4,'wskaźniki efektu'!$A$5:$F$16,'wskaźniki efektu'!$D$1,FALSE)*R20/100 -> 0 | BE20: =IF($J20="tak",(VLOOKUP(BE$4,'wskaźniki efektu'!$A$5:$F$16,'wskaźniki efektu'!$D$1,FALSE)*T20/100),0) -> 0 | BF20: =IF($J20="tak",(VLOOKUP(BF$4,'wskaźniki efektu'!$A$5:$F$16,'wskaźniki efektu'!$D$1,FALSE)*U20/100),0) -> 0 | BG20: =IF($J20="tak",(VLOOKUP(BG$4,'wskaźniki efektu'!$A$5:$F$16,'wskaźniki efektu'!$D$1,FALSE)*V20/100),0) -> 0 | BH20: =IF($J20="tak",(VLOOKUP(BH$4,'wskaźniki efektu'!$A$5:$F$16,'wskaźniki efektu'!$D$1,FALSE)*W20/100),0) -> 0 | BI20: 0 | BJ20: =VLOOKUP(BJ$4,'wskaźniki efektu'!$A$5:$F$16,'wskaźniki efektu'!$E$1,FALSE)*K20/100 -> 0 | BK20: =VLOOKUP(BK$4,'wskaźniki efektu'!$A$5:$F$16,'wskaźniki efektu'!$E$1,FALSE)*L20/100 -> 0 | BL20: =IF($J20="nie",(VLOOKUP(BL$4,'wskaźniki efektu'!$A$5:$F$16,'wskaźniki efektu'!$E$1,FALSE)*M20/100),0) -> 0 | BM20: =IF($J20="nie",(VLOOKUP(BM$4,'wskaźniki efektu'!$A$5:$F$16,'wskaźniki efektu'!$E$1,FALSE)*N20/100),0) -> 0 | BN20: =IF($J20="nie",(VLOOKUP(BN$4,'wskaźniki efektu'!$A$5:$F$16,'wskaźniki efektu'!$E$1,FALSE)*O20/100),0) -> 0 | BO20: =IF($J20="nie",(VLOOKUP(BO$4,'wskaźniki efektu'!$A$5:$F$16,'wskaźniki efektu'!$E$1,FALSE)*P20/100),0) -> 0 | BP20: =VLOOKUP(BP$4,'wskaźniki efektu'!$A$5:$F$16,'wskaźniki efektu'!$E$1,FALSE)*Q20/100 -> 0 | BQ20: =VLOOKUP(BQ$4,'wskaźniki efektu'!$A$5:$F$16,'wskaźniki efektu'!$E$1,FALSE)*R20/100 -> 0 | BR20: =IF($J20="tak",(VLOOKUP(BR$4,'wskaźniki efektu'!$A$5:$F$16,'wskaźniki efektu'!$E$1,FALSE)*T20/100),0) -> 0 | BS20: =IF($J20="tak",(VLOOKUP(BS$4,'wskaźniki efektu'!$A$5:$F$16,'wskaźniki efektu'!$E$1,FALSE)*U20/100),0) -> 0 | BT20: =IF($J20="tak",(VLOOKUP(BT$4,'wskaźniki efektu'!$A$5:$F$16,'wskaźniki efektu'!$E$1,FALSE)*V20/100),0) -> 0 | BU20: =IF($J20="tak",(VLOOKUP(BU$4,'wskaźniki efektu'!$A$5:$F$16,'wskaźniki efektu'!$E$1,FALSE)*W20/100),0) -> 0 | BV20: 0 | BW20: =VLOOKUP(BW$4,'wskaźniki efektu'!$A$5:$F$16,'wskaźniki efektu'!$F$1,FALSE)*K20/100 -> 0 | BX20: =VLOOKUP(BX$4,'wskaźniki efektu'!$A$5:$F$16,'wskaźniki efektu'!$F$1,FALSE)*L20/100 -> 0 | BY20: =IF($J20="nie",(VLOOKUP(BY$4,'wskaźniki efektu'!$A$5:$F$16,'wskaźniki efektu'!$F$1,FALSE)*M20/100),0) -> 0 | BZ20: =IF($J20="nie",(VLOOKUP(BZ$4,'wskaźniki efektu'!$A$5:$F$16,'wskaźniki efektu'!$F$1,FALSE)*N20/100),0) -> 0 | CA20: =IF($J20="nie",(VLOOKUP(CA$4,'wskaźniki efektu'!$A$5:$F$16,'wskaźniki efektu'!$F$1,FALSE)*O20/100),0) -> 0 | CB20: =IF($J20="nie",(VLOOKUP(CB$4,'wskaźniki efektu'!$A$5:$F$16,'wskaźniki efektu'!$F$1,FALSE)*P20/100),0) -> 0 | CC20: =VLOOKUP(CC$4,'wskaźniki efektu'!$A$5:$F$16,'wskaźniki efektu'!$F$1,FALSE)*Q20/100 -> 0 | CD20: =VLOOKUP(CD$4,'wskaźniki efektu'!$A$5:$F$16,'wskaźniki efektu'!$F$1,FALSE)*R20/100 -> 0 | CE20: =IF($J20="tak",(VLOOKUP(CE$4,'wskaźniki efektu'!$A$5:$F$16,'wskaźniki efektu'!$F$1,FALSE)*T20/100),0) -> 0 | CF20: =IF($J20="tak",(VLOOKUP(CF$4,'wskaźniki efektu'!$A$5:$F$16,'wskaźniki efektu'!$F$1,FALSE)*U20/100),0) -> 0 | CG20: =IF($J20="tak",(VLOOKUP(CG$4,'wskaźniki efektu'!$A$5:$F$16,'wskaźniki efektu'!$F$1,FALSE)*V20/100),0) -> 0 | CH20: =IF($J20="tak",(VLOOKUP(CH$4,'wskaźniki efektu'!$A$5:$F$16,'wskaźniki efektu'!$F$1,FALSE)*W20/100),0) -> 0 | CI20: 0 | CJ20: FALSE
A21: 13 | B21: =IF('tabela informacyjna dla JST'!$C$9="",'tabela informacyjna dla innych'!$C$9,'tabela informacyjna dla JST'!$C$9) -> starostwo powiatowe w Raciborzu | C21: =IFERROR(VLOOKUP($B21,'katalog gmin'!$J$5:$N$188,'katalog gmin'!$N$1-'katalog gmin'!$I$1,FALSE),"brak gminy") -> PL2405_ZSO | D21: =IFERROR(VLOOKUP($C21,'katalog zadań'!$B$3:$D$18,'katalog zadań'!$C$1-'katalog zadań'!$A$1,FALSE),"") -> Ograniczenie emisji z instalacji o małej mocy do 1 MW, w których następuje spalanie paliw stałych | H21: 0 | X21: 0.0 | Y21: 0.0 | Z21: 0.000 | AA21: 0.0 | AB21: 0.0 | AC21: =IFERROR(IF(VLOOKUP($B21,'katalog gmin'!$J$5:$AW$188,'katalog gmin'!$AQ$1-'katalog gmin'!$I$1+MATCH('tabela informacyjna dla JST'!$C$5,'katalog gmin'!$AQ$4:$AW$4,0)-1,FALSE)=0,"n.d.",VLOOKUP($B21,'katalog gmin'!$J$5:$AW$188,'katalog gmin'!$AQ$1-'katalog gmin'!$I$1+MATCH('tabela informacyjna dla JST'!$C$5,'katalog gmin'!$AQ$4:$AW$4,0)-1,FALSE)),"brak gminy/roku") -> n.d. | AD21: n.d. | AJ21: =VLOOKUP(AJ$4,'wskaźniki efektu'!$A$5:$F$16,'wskaźniki efektu'!$C$1,FALSE)*K21/100 -> 0 | AK21: =VLOOKUP(AK$4,'wskaźniki efektu'!$A$5:$F$16,'wskaźniki efektu'!$C$1,FALSE)*L21/100 -> 0 | AL21: =IF($J21="nie",(VLOOKUP(AL$4,'wskaźniki efektu'!$A$5:$F$16,'wskaźniki efektu'!$C$1,FALSE)*M21/100),0) -> 0 | AM21: =IF($J21="nie",(VLOOKUP(AM$4,'wskaźniki efektu'!$A$5:$F$16,'wskaźniki efektu'!$C$1,FALSE)*N21/100),0) -> 0 | AN21: =IF($J21="nie",(VLOOKUP(AN$4,'wskaźniki efektu'!$A$5:$F$16,'wskaźniki efektu'!$C$1,FALSE)*O21/100),0) -> 0 | AO21: =IF($J21="nie",(VLOOKUP(AO$4,'wskaźniki efektu'!$A$5:$F$16,'wskaźniki efektu'!$C$1,FALSE)*P21/100),0) -> 0 | AP21: =VLOOKUP(AP$4,'wskaźniki efektu'!$A$5:$F$16,'wskaźniki efektu'!$C$1,FALSE)*Q21/100 -> 0 | AQ21: =VLOOKUP(AQ$4,'wskaźniki efektu'!$A$5:$F$16,'wskaźniki efektu'!$C$1,FALSE)*R21/100 -> 0 | AR21: =IF($J21="tak",(VLOOKUP(AR$4,'wskaźniki efektu'!$A$5:$F$16,'wskaźniki efektu'!$C$1,FALSE)*T21/100),0) -> 0 | AS21: =IF($J21="tak",(VLOOKUP(AS$4,'wskaźniki efektu'!$A$5:$F$16,'wskaźniki efektu'!$C$1,FALSE)*U21/100),0) -> 0 | AT21: =IF($J21="tak",(VLOOKUP(AT$4,'wskaźniki efektu'!$A$5:$F$16,'wskaźniki efektu'!$C$1,FALSE)*V21/100),0) -> 0 | AU21: =IF($J21="tak",(VLOOKUP(AU$4,'wskaźniki efektu'!$A$5:$F$16,'wskaźniki efektu'!$C$1,FALSE)*W21/100),0) -> 0 | AV21: 0 | AW21: =VLOOKUP(AW$4,'wskaźniki efektu'!$A$5:$F$16,'wskaźniki efektu'!$D$1,FALSE)*K21/100 -> 0 | AX21: =VLOOKUP(AX$4,'wskaźniki efektu'!$A$5:$F$16,'wskaźniki efektu'!$D$1,FALSE)*L21/100 -> 0 | AY21: =IF($J21="nie",(VLOOKUP(AY$4,'wskaźniki efektu'!$A$5:$F$16,'wskaźniki efektu'!$D$1,FALSE)*M21/100),0) -> 0 | AZ21: =IF($J21="nie",(VLOOKUP(AZ$4,'wskaźniki efektu'!$A$5:$F$16,'wskaźniki efektu'!$D$1,FALSE)*N21/100),0) -> 0 | BA21: =IF($J21="nie",(VLOOKUP(BA$4,'wskaźniki efektu'!$A$5:$F$16,'wskaźniki efektu'!$D$1,FALSE)*O21/100),0) -> 0 | BB21: =IF($J21="nie",(VLOOKUP(BB$4,'wskaźniki efektu'!$A$5:$F$16,'wskaźniki efektu'!$D$1,FALSE)*P21/100),0) -> 0 | BC21: =VLOOKUP(BC$4,'wskaźniki efektu'!$A$5:$F$16,'wskaźniki efektu'!$D$1,FALSE)*Q21/100 -> 0 | BD21: =VLOOKUP(BD$4,'wskaźniki efektu'!$A$5:$F$16,'wskaźniki efektu'!$D$1,FALSE)*R21/100 -> 0 | BE21: =IF($J21="tak",(VLOOKUP(BE$4,'wskaźniki efektu'!$A$5:$F$16,'wskaźniki efektu'!$D$1,FALSE)*T21/100),0) -> 0 | BF21: =IF($J21="tak",(VLOOKUP(BF$4,'wskaźniki efektu'!$A$5:$F$16,'wskaźniki efektu'!$D$1,FALSE)*U21/100),0) -> 0 | BG21: =IF($J21="tak",(VLOOKUP(BG$4,'wskaźniki efektu'!$A$5:$F$16,'wskaźniki efektu'!$D$1,FALSE)*V21/100),0) -> 0 | BH21: =IF($J21="tak",(VLOOKUP(BH$4,'wskaźniki efektu'!$A$5:$F$16,'wskaźniki efektu'!$D$1,FALSE)*W21/100),0) -> 0 | BI21: 0 | BJ21: =VLOOKUP(BJ$4,'wskaźniki efektu'!$A$5:$F$16,'wskaźniki efektu'!$E$1,FALSE)*K21/100 -> 0 | BK21: =VLOOKUP(BK$4,'wskaźniki efektu'!$A$5:$F$16,'wskaźniki efektu'!$E$1,FALSE)*L21/100 -> 0 | BL21: =IF($J21="nie",(VLOOKUP(BL$4,'wskaźniki efektu'!$A$5:$F$16,'wskaźniki efektu'!$E$1,FALSE)*M21/100),0) -> 0 | BM21: =IF($J21="nie",(VLOOKUP(BM$4,'wskaźniki efektu'!$A$5:$F$16,'wskaźniki efektu'!$E$1,FALSE)*N21/100),0) -> 0 | BN21: =IF($J21="nie",(VLOOKUP(BN$4,'wskaźniki efektu'!$A$5:$F$16,'wskaźniki efektu'!$E$1,FALSE)*O21/100),0) -> 0 | BO21: =IF($J21="nie",(VLOOKUP(BO$4,'wskaźniki efektu'!$A$5:$F$16,'wskaźniki efektu'!$E$1,FALSE)*P21/100),0) -> 0 | BP21: =VLOOKUP(BP$4,'wskaźniki efektu'!$A$5:$F$16,'wskaźniki efektu'!$E$1,FALSE)*Q21/100 -> 0 | BQ21: =VLOOKUP(BQ$4,'wskaźniki efektu'!$A$5:$F$16,'wskaźniki efektu'!$E$1,FALSE)*R21/100 -> 0 | BR21: =IF($J21="tak",(VLOOKUP(BR$4,'wskaźniki efektu'!$A$5:$F$16,'wskaźniki efektu'!$E$1,FALSE)*T21/100),0) -> 0 | BS21: =IF($J21="tak",(VLOOKUP(BS$4,'wskaźniki efektu'!$A$5:$F$16,'wskaźniki efektu'!$E$1,FALSE)*U21/100),0) -> 0 | BT21: =IF($J21="tak",(VLOOKUP(BT$4,'wskaźniki efektu'!$A$5:$F$16,'wskaźniki efektu'!$E$1,FALSE)*V21/100),0) -> 0 | BU21: =IF($J21="tak",(VLOOKUP(BU$4,'wskaźniki efektu'!$A$5:$F$16,'wskaźniki efektu'!$E$1,FALSE)*W21/100),0) -> 0 | BV21: 0 | BW21: =VLOOKUP(BW$4,'wskaźniki efektu'!$A$5:$F$16,'wskaźniki efektu'!$F$1,FALSE)*K21/100 -> 0 | BX21: =VLOOKUP(BX$4,'wskaźniki efektu'!$A$5:$F$16,'wskaźniki efektu'!$F$1,FALSE)*L21/100 -> 0 | BY21: =IF($J21="nie",(VLOOKUP(BY$4,'wskaźniki efektu'!$A$5:$F$16,'wskaźniki efektu'!$F$1,FALSE)*M21/100),0) -> 0 | BZ21: =IF($J21="nie",(VLOOKUP(BZ$4,'wskaźniki efektu'!$A$5:$F$16,'wskaźniki efektu'!$F$1,FALSE)*N21/100),0) -> 0 | CA21: =IF($J21="nie",(VLOOKUP(CA$4,'wskaźniki efektu'!$A$5:$F$16,'wskaźniki efektu'!$F$1,FALSE)*O21/100),0) -> 0 | CB21: =IF($J21="nie",(VLOOKUP(CB$4,'wskaźniki efektu'!$A$5:$F$16,'wskaźniki efektu'!$F$1,FALSE)*P21/100),0) -> 0 | CC21: =VLOOKUP(CC$4,'wskaźniki efektu'!$A$5:$F$16,'wskaźniki efektu'!$F$1,FALSE)*Q21/100 -> 0 | CD21: =VLOOKUP(CD$4,'wskaźniki efektu'!$A$5:$F$16,'wskaźniki efektu'!$F$1,FALSE)*R21/100 -> 0 | CE21: =IF($J21="tak",(VLOOKUP(CE$4,'wskaźniki efektu'!$A$5:$F$16,'wskaźniki efektu'!$F$1,FALSE)*T21/100),0) -> 0 | CF21: =IF($J21="tak",(VLOOKUP(CF$4,'wskaźniki efektu'!$A$5:$F$16,'wskaźniki efektu'!$F$1,FALSE)*U21/100),0) -> 0 | CG21: =IF($J21="tak",(VLOOKUP(CG$4,'wskaźniki efektu'!$A$5:$F$16,'wskaźniki efektu'!$F$1,FALSE)*V21/100),0) -> 0 | CH21: =IF($J21="tak",(VLOOKUP(CH$4,'wskaźniki efektu'!$A$5:$F$16,'wskaźniki efektu'!$F$1,FALSE)*W21/100),0) -> 0 | CI21: 0 | CJ21: FALSE
